Workbook

Sheet Introduction
C4: Joint Monitoring Programme for Water Supply, Sanitation and Hygiene
C6: Estimates on household water, sanitation and hygiene by wealth quintile and sub-national region in
C7: =+Water!B5 -> Sao Tome and Principe
C9: Updated May 2021
C11: Follow the links below to find the following information:
C13: JMP Estimates
C14: WASH status and trends by wealth quintile (customized quintiles made without water and sanitation assets)
C15: Water
C16: Sanitation
C17: Hygiene
C19: Data inputs
C20: customized wealth quintiles and subnational data:
C21: =IF(INDIRECT(CONCATENATE("Water","!B105"))=0,"",INDIRECT(CONCATENATE("Water","!B105"))) -> MICS00
C22: =IF(INDIRECT(CONCATENATE("Water","!B106"))=0,"",INDIRECT(CONCATENATE("Water","!B106"))) -> DHS09
C23: =IF(INDIRECT(CONCATENATE("Water","!B107"))=0,"",INDIRECT(CONCATENATE("Water","!B107"))) -> MICS14
C24: =IF(INDIRECT(CONCATENATE("Water","!B108"))=0,"",INDIRECT(CONCATENATE("Water","!B108"))) -> MICS19
C25: =IF(INDIRECT(CONCATENATE("Water","!B109"))=0,"",INDIRECT(CONCATENATE("Water","!B109"))) -> 
C26: =IF(INDIRECT(CONCATENATE("Water","!B110"))=0,"",INDIRECT(CONCATENATE("Water","!B110"))) -> 
C27: =IF(INDIRECT(CONCATENATE("Water","!B111"))=0,"",INDIRECT(CONCATENATE("Water","!B111"))) -> 
C28: =IF(INDIRECT(CONCATENATE("Water","!B112"))=0,"",INDIRECT(CONCATENATE("Water","!B112"))) -> 
C29: =IF(INDIRECT(CONCATENATE("Water","!B113"))=0,"",INDIRECT(CONCATENATE("Water","!B113"))) -> 
C30: =IF(INDIRECT(CONCATENATE("Water","!B114"))=0,"",INDIRECT(CONCATENATE("Water","!B114"))) -> 
C31: =IF(INDIRECT(CONCATENATE("Water","!B115"))=0,"",INDIRECT(CONCATENATE("Water","!B115"))) -> 
C32: =IF(INDIRECT(CONCATENATE("Water","!B116"))=0,"",INDIRECT(CONCATENATE("Water","!B116"))) -> 
L55: =+IF(ISNUMBER(M48), "", "Insufficient data to estimate safely managed sanitation services at national level") -> Insufficient data to estimate safely managed sanitation services at national level

Sheet Water
A1: BGD
B4: Summary of trends in use of drinking water by wealth quintile (%)
B5: =IF(ISERROR(INDIRECT(CONCATENATE($B105,"!A2"))),"",INDIRECT(CONCATENATE($B105,"!A2"))) -> Sao Tome and Principe
B7: =B118 -> National use of drinking water sources, 2000–2020 | J7: =B218 -> Urban use of drinking water sources, 2000–2020 | R7: =B318 -> Rural use of drinking water sources, 2000–2020
B31: =IF(ISERROR(INDIRECT(CONCATENATE($B105,"!A2"))),"",INDIRECT(CONCATENATE($B105,"!A2"))) -> Sao Tome and Principe | F31: Poorest | J31: Poor | N31: Middle | R31: Rich | V31: Richest
F32: Basic | G32: Limited | H32: Unimproved | I32: Surface water | J32: Basic | K32: Limited | L32: Unimproved | M32: Surface water | N32: Basic | O32: Limited | P32: Unimproved | Q32: Surface water | R32: Basic | S32: Limited | T32: Unimproved | U32: Surface water | V32: Basic | W32: Limited | X32: Unimproved | Y32: Surface water
B33: NATIONAL | D33: Estimate | E33: =C99 -> 2000 | F33: =E99 -> 71.53426697 | G33: =F99 -> 10.74813285 | H33: 2.840342508 | I33: 14.87725768 | J33: =J99 -> 63.35212674 | K33: =K99 -> 11.33349637 | L33: 7.480238512 | M33: 17.83413837 | N33: =O99 -> 67.41386887 | O33: =P99 -> 11.56442245 | P33: 9.323022636 | Q33: 11.69868604 | R33: =T99 -> 73.61491038 | S33: =U99 -> 10.87295193 | T33: 5.651780946 | U33: 9.860356746 | V33: =Y99 -> 82.4395344 | W33: =Z99 -> 8.137569007 | X33: 4.487642956 | Y33: 4.93525364
E34: =C100 -> 2020 | F34: =E100 -> 83.26915683 | G34: 12.51131797 | H34: 1.963992493 | I34: 2.255532705 | J34: =J100 -> 84.5860676 | K34: 15.13218166 | L34: 0 | M34: 0.2817507413 | N34: =O100 -> 85.3574669 | O34: 14.6425331 | P34: 0 | Q34: 0 | R34: =T100 -> 87.13075271 | S34: 12.86924729 | T34: 0 | U34: 0 | V34: =Y100 -> 91.01586527 | W34: 8.984134732 | X34: 0 | Y34: 0
B36: URBAN | D36: Estimate | E36: =C199 -> 2000 | F36: =E199 -> 73.19149896 | G36: =F199 -> 14.32182371 | H36: 4.809093185 | I36: 7.677584137 | J36: =J199 -> 75.33907729 | K36: =K199 -> 15.12840982 | L36: 3.70554275 | M36: 5.826970147 | N36: =O199 -> 75.55905115 | O36: =P199 -> 11.86096823 | P36: 5.120635696 | Q36: 7.459344918 | R36: =T199 -> 79.42091808 | S36: =U199 -> 11.65546135 | T36: 2.932714938 | U36: 5.99090563 | V36: =Y199 -> 89.63126861 | W36: =Z199 -> 6.692568002 | X36: 2.785684628 | Y36: 0.8904787592
E37: =C200 -> 2020 | F37: =E200 -> 83.47240946 | G37: 16.33355171 | H37: 0 | I37: 0.1940388292 | J37: =J200 -> 83.18680818 | K37: 16.70426783 | L37: 0 | M37: 0.1089239833 | N37: =O200 -> 86.4322059 | O37: 13.5677941 | P37: 0 | Q37: 0 | R37: =T200 -> 87.20254206 | S37: 12.79745794 | T37: 0 | U37: 0 | V37: =Y200 -> 93.05201263 | W37: 6.94798737 | X37: 0 | Y37: 0
B39: RURAL | D39: Estimate | E39: =C299 -> 2000 | F39: =E299 -> 70.88114535 | G39: =F299 -> 8.64017879 | H39: 0.7903082269 | I39: 19.68836763 | J39: =J299 -> 59.77482584 | K39: =K299 -> 11.20562823 | L39: 10.19710138 | M39: 18.82244456 | N39: =O299 -> 64.277194 | O39: =P299 -> 8.819988935 | P39: 6.666883135 | Q39: 20.23593393 | R39: =T299 -> 61.84171455 | S39: =U299 -> 8.417027325 | T39: 13.06094988 | U39: 16.68030825 | V39: =Y299 -> 68.99523322 | W39: =Z299 -> 9.468016805 | X39: 8.327185313 | Y39: 13.20956466
E40: =C300 -> 2020 | F40: =E300 -> 80.61505519 | G40: 9.826710426 | H40: 5.278017619 | I40: 4.280216761 | J40: =J300 -> 80.60709187 | K40: 15.11092824 | L40: 0.7085148352 | M40: 3.573465053 | N40: =O300 -> 84.80742259 | O40: 11.63710614 | P40: 1.482697586 | Q40: 2.072773682 | R40: =T300 -> 83.17625112 | S40: 11.32078539 | T40: 4.488144443 | U40: 1.014819044 | V40: =Y300 -> 87.71257866 | W40: 12.03654412 | X40: 0 | Y40: 0.2508772182
A97: NATIONAL | D97: Poorest | I97: Poor | N97: Middle | S97: Rich | X97: Richest
D98: Improved | E98: Basic | F98: Limited | G98: Unimproved | H98: Surface water | I98: Improved | J98: Basic | K98: Limited | L98: Unimproved | M98: Surface water | N98: Improved | O98: Basic | P98: Limited | Q98: Unimproved | R98: Surface water | S98: Improved | T98: Basic | U98: Limited | V98: Unimproved | W98: Surface water | X98: Improved | Y98: Basic | Z98: Limited | AA98: Unimproved | AB98: Surface water
A99: Forecast period: | C99: 2000 | D99: =IF((D101+H101)>100,D101*100/(D101+H101),D101) -> 82.28239982 | E99: =D99*AVERAGEIF(E105:E116,">0")/100 -> 71.53426697 | F99: =D99*(100-AVERAGEIF(E105:E116,">0"))/100 -> 10.74813285 | G99: =100-(E99+F99+H99) -> 2.840342508 | H99: =IF((D101+H101)>100,H101*100/(D101+H101),H101) -> 14.87725768 | I99: =IF((I101+M101)>100,I101*100/(I101+M101),I101) -> 74.68562312 | J99: =I99*AVERAGEIF(J105:J116,">0")/100 -> 63.35212674 | K99: =I99*(100-AVERAGEIF(J105:J116,">0"))/100 -> 11.33349637 | L99: =100-(J99+K99+M99) -> 7.480238512 | M99: =IF((I101+M101)>100,M101*100/(I101+M101),M101) -> 17.83413837 | N99: =IF((N101+R101)>100,N101*100/(N101+R101),N101) -> 78.97829132 | O99: =N99*AVERAGEIF(O105:O116,">0")/100 -> 67.41386887 | P99: =N99*(100-AVERAGEIF(O105:O116,">0"))/100 -> 11.56442245 | Q99: =100-(O99+P99+R99) -> 9.323022636 | R99: =IF((N101+R101)>100,R101*100/(N101+R101),R101) -> 11.69868604 | S99: =IF((S101+W101)>100,S101*100/(S101+W101),S101) -> 84.48786231 | T99: =S99*AVERAGEIF(T105:T116,">0")/100 -> 73.61491038 | U99: =S99*(100-AVERAGEIF(T105:T116,">0"))/100 -> 10.87295193 | V99: =100-(T99+U99+W99) -> 5.651780946 | W99: =IF((S101+W101)>100,W101*100/(S101+W101),W101) -> 9.860356746 | X99: =IF((X101+AB101)>100,X101*100/(X101+AB101),X101) -> 90.5771034 | Y99: =X99*AVERAGEIF(Y105:Y116,">0")/100 -> 82.4395344 | Z99: =X99*(100-AVERAGEIF(Y105:Y116,">0"))/100 -> 8.137569007 | AA99: =100-(Y99+Z99+AB99) -> 4.487642956 | AB99: =IF((X101+AB101)>100,AB101*100/(X101+AB101),AB101) -> 4.93525364
C100: 2020 | D100: =IF((D102+H102)>100,D102*100/(D102+H102),D102) -> 95.7804748 | E100: =D100*AVERAGEIF(E105:E116,">0")/100 -> 83.26915683 | F100: =D100*(100-AVERAGEIF(E105:E116,">0"))/100 -> 12.51131797 | G100: =100-(E100+F100+H100) -> 1.963992493 | H100: =IF((D102+H102)>100,H102*100/(D102+H102),H102) -> 2.255532705 | I100: =IF((I102+M102)>100,I102*100/(I102+M102),I102) -> 99.71824926 | J100: =I100*AVERAGEIF(J105:J116,">0")/100 -> 84.5860676 | K100: =I100*(100-AVERAGEIF(J105:J116,">0"))/100 -> 15.13218166 | L100: =100-(J100+K100+M100) -> 0 | M100: =IF((I102+M102)>100,M102*100/(I102+M102),M102) -> 0.2817507413 | N100: =IF((N102+R102)>100,N102*100/(N102+R102),N102) -> 100 | O100: =N100*AVERAGEIF(O105:O116,">0")/100 -> 85.3574669 | P100: =N100*(100-AVERAGEIF(O105:O116,">0"))/100 -> 14.6425331 | Q100: =100-(O100+P100+R100) -> 0 | R100: =IF((N102+R102)>100,R102*100/(N102+R102),R102) -> 0 | S100: =IF((S102+W102)>100,S102*100/(S102+W102),S102) -> 100 | T100: =S100*AVERAGEIF(T105:T116,">0")/100 -> 87.13075271 | U100: =S100*(100-AVERAGEIF(T105:T116,">0"))/100 -> 12.86924729 | V100: =100-(T100+U100+W100) -> 0 | W100: =IF((S102+W102)>100,W102*100/(S102+W102),W102) -> 0 | X100: =IF((X102+AB102)>100,X102*100/(X102+AB102),X102) -> 100 | Y100: =X100*AVERAGEIF(Y105:Y116,">0")/100 -> 91.01586527 | Z100: =X100*(100-AVERAGEIF(Y105:Y116,">0"))/100 -> 8.984134732 | AA100: =100-(Y100+Z100+AB100) -> 0 | AB100: =IF((X102+AB102)>100,AB102*100/(X102+AB102),AB102) -> 0
A101: Regression period: | C101: =MinRegYear(C99,C105:C116) -> 2000 | D101: =IF(MAX(C105:C116)-MIN(C105:C116)<5,AVERAGEIF(C105:C116,">0",D105:D116), IF(FORECAST($C101,D$105:D$116,$C$105:$C$116)<0,0, IF(FORECAST($C101,D$105:D$116,$C$105:$C$116)>100,100, FORECAST($C101,D$105:D$116,$C$105:$C$116)))) -> 82.28239982 | H101: =IF(MAX(C105:C116)-MIN(C105:C116)<5,AVERAGEIF(C105:C116,">0",H105:H116), IF(FORECAST($C101,H$105:H$116,$C$105:$C$116)<0,0, IF(FORECAST($C101,H$105:H$116,$C$105:$C$116)>100,100, FORECAST($C101,H$105:H$116,$C$105:$C$116)))) -> 14.87725768 | I101: =IF(MAX(C105:C116)-MIN(C105:C116)<5,AVERAGEIF(C105:C116,">0",I105:I116), IF(FORECAST($C101,I$105:I$116,$C$105:$C$116)<0,0, IF(FORECAST($C101,I$105:I$116,$C$105:$C$116)>100,100, FORECAST($C101,I$105:I$116,$C$105:$C$116)))) -> 74.68562312 | M101: =IF(MAX(C105:C116)-MIN(C105:C116)<5,AVERAGEIF(C105:C116,">0",M105:M116), IF(FORECAST($C101,M$105:M$116,$C$105:$C$116)<0,0, IF(FORECAST($C101,M$105:M$116,$C$105:$C$116)>100,100, FORECAST($C101,M$105:M$116,$C$105:$C$116)))) -> 17.83413837 | N101: =IF(MAX(C105:C116)-MIN(C105:C116)<5,AVERAGEIF(C105:C116,">0",N105:N116), IF(FORECAST($C101,N$105:N$116,$C$105:$C$116)<0,0, IF(FORECAST($C101,N$105:N$116,$C$105:$C$116)>100,100, FORECAST($C101,N$105:N$116,$C$105:$C$116)))) -> 78.97829132 | R101: =IF(MAX(C105:C116)-MIN(C105:C116)<5,AVERAGEIF(C105:C116,">0",R105:R116), IF(FORECAST($C101,R$105:R$116,$C$105:$C$116)<0,0, IF(FORECAST($C101,R$105:R$116,$C$105:$C$116)>100,100, FORECAST($C101,R$105:R$116,$C$105:$C$116)))) -> 11.69868604 | S101: =IF(MAX(C105:C116)-MIN(C105:C116)<5,AVERAGEIF(C105:C116,">0",S105:S116), IF(FORECAST($C101,S$105:S$116,$C$105:$C$116)<0,0, IF(FORECAST($C101,S$105:S$116,$C$105:$C$116)>100,100, FORECAST($C101,S$105:S$116,$C$105:$C$116)))) -> 84.48786231 | W101: =IF(MAX(C105:C116)-MIN(C105:C116)<5,AVERAGEIF(C105:C116,">0",W105:W116), IF(FORECAST($C101,W$105:W$116,$C$105:$C$116)<0,0, IF(FORECAST($C101,W$105:W$116,$C$105:$C$116)>100,100, FORECAST($C101,W$105:W$116,$C$105:$C$116)))) -> 9.860356746 | X101: =IF(MAX(C105:C116)-MIN(C105:C116)<5,AVERAGEIF(C105:C116,">0",X105:X116), IF(FORECAST($C101,X$105:X$116,$C$105:$C$116)<0,0, IF(FORECAST($C101,X$105:X$116,$C$105:$C$116)>100,100, FORECAST($C101,X$105:X$116,$C$105:$C$116)))) -> 90.5771034 | AB101: =IF(MAX(C105:C116)-MIN(C105:C116)<5,AVERAGEIF(C105:C116,">0",AB105:AB116), IF(FORECAST($C101,AB$105:AB$116,$C$105:$C$116)<0,0, IF(FORECAST($C101,AB$105:AB$116,$C$105:$C$116)>100,100, FORECAST($C101,AB$105:AB$116,$C$105:$C$116)))) -> 4.93525364
C102: =MaxRegYear(C100,C105:C116) -> 2020 | D102: =IF(MAX(C105:C116)-MIN(C105:C116)<5,AVERAGEIF(C105:C116,">0",D105:D116), IF(FORECAST($C102,D$105:D$116,$C$105:$C$116)<0,0, IF(FORECAST($C102,D$105:D$116,$C$105:$C$116)>100,100, FORECAST($C102,D$105:D$116,$C$105:$C$116)))) -> 95.7804748 | H102: =IF(MAX(C105:C116)-MIN(C105:C116)<5,AVERAGEIF(C105:C116,">0",H105:H116), IF(FORECAST($C102,H$105:H$116,$C$105:$C$116)<0,0, IF(FORECAST($C102,H$105:H$116,$C$105:$C$116)>100,100, FORECAST($C102,H$105:H$116,$C$105:$C$116)))) -> 2.255532705 | I102: =IF(MAX(C105:C116)-MIN(C105:C116)<5,AVERAGEIF(C105:C116,">0",I105:I116), IF(FORECAST($C102,I$105:I$116,$C$105:$C$116)<0,0, IF(FORECAST($C102,I$105:I$116,$C$105:$C$116)>100,100, FORECAST($C102,I$105:I$116,$C$105:$C$116)))) -> 100 | M102: =IF(MAX(C105:C116)-MIN(C105:C116)<5,AVERAGEIF(C105:C116,">0",M105:M116), IF(FORECAST($C102,M$105:M$116,$C$105:$C$116)<0,0, IF(FORECAST($C102,M$105:M$116,$C$105:$C$116)>100,100, FORECAST($C102,M$105:M$116,$C$105:$C$116)))) -> 0.2825468191 | N102: =IF(MAX(C105:C116)-MIN(C105:C116)<5,AVERAGEIF(C105:C116,">0",N105:N116), IF(FORECAST($C102,N$105:N$116,$C$105:$C$116)<0,0, IF(FORECAST($C102,N$105:N$116,$C$105:$C$116)>100,100, FORECAST($C102,N$105:N$116,$C$105:$C$116)))) -> 100 | R102: =IF(MAX(C105:C116)-MIN(C105:C116)<5,AVERAGEIF(C105:C116,">0",R105:R116), IF(FORECAST($C102,R$105:R$116,$C$105:$C$116)<0,0, IF(FORECAST($C102,R$105:R$116,$C$105:$C$116)>100,100, FORECAST($C102,R$105:R$116,$C$105:$C$116)))) -> 0 | S102: =IF(MAX(C105:C116)-MIN(C105:C116)<5,AVERAGEIF(C105:C116,">0",S105:S116), IF(FORECAST($C102,S$105:S$116,$C$105:$C$116)<0,0, IF(FORECAST($C102,S$105:S$116,$C$105:$C$116)>100,100, FORECAST($C102,S$105:S$116,$C$105:$C$116)))) -> 100 | W102: =IF(MAX(C105:C116)-MIN(C105:C116)<5,AVERAGEIF(C105:C116,">0",W105:W116), IF(FORECAST($C102,W$105:W$116,$C$105:$C$116)<0,0, IF(FORECAST($C102,W$105:W$116,$C$105:$C$116)>100,100, FORECAST($C102,W$105:W$116,$C$105:$C$116)))) -> 0 | X102: =IF(MAX(C105:C116)-MIN(C105:C116)<5,AVERAGEIF(C105:C116,">0",X105:X116), IF(FORECAST($C102,X$105:X$116,$C$105:$C$116)<0,0, IF(FORECAST($C102,X$105:X$116,$C$105:$C$116)>100,100, FORECAST($C102,X$105:X$116,$C$105:$C$116)))) -> 100 | AB102: =IF(MAX(C105:C116)-MIN(C105:C116)<5,AVERAGEIF(C105:C116,">0",AB105:AB116), IF(FORECAST($C102,AB$105:AB$116,$C$105:$C$116)<0,0, IF(FORECAST($C102,AB$105:AB$116,$C$105:$C$116)>100,100, FORECAST($C102,AB$105:AB$116,$C$105:$C$116)))) -> 0
B104: Survey | C104: Year | D104: Improved | E104: % Improved < = 30min | H104: Surface water | I104: Improved | J104: % Improved < = 30min | M104: Surface water | N104: Improved | O104: % Improved < = 30min | R104: Surface water | S104: Improved | T104: % Improved < = 30min | W104: Surface water | X104: Improved | Y104: % Improved < = 30min | AB104: Surface water
B105: MICS00 | C105: 2000 | D105: =IF(ISERROR(INDIRECT(CONCATENATE($B105,"!C16"))),"",INDIRECT(CONCATENATE($B105,"!C16"))) -> 81.96079149 | E105: =IF(ISERROR(INDIRECT(CONCATENATE($B105,"!C23"))),"",INDIRECT(CONCATENATE($B105,"!C23"))) -> 86.9862094 | H105: =IF(ISERROR(INDIRECT(CONCATENATE($B105,"!C21"))),"",INDIRECT(CONCATENATE($B105,"!C21"))) -> 14.21796719 | I105: =IF(ISERROR(INDIRECT(CONCATENATE($B105,"!D16"))),"",INDIRECT(CONCATENATE($B105,"!D16"))) -> 72.88756415 | J105: =IF(ISERROR(INDIRECT(CONCATENATE($B105,"!D23"))),"",INDIRECT(CONCATENATE($B105,"!D23"))) -> 78.18038318 | M105: =IF(ISERROR(INDIRECT(CONCATENATE($B105,"!D21"))),"",INDIRECT(CONCATENATE($B105,"!D21"))) -> 17.92272892 | N105: =IF(ISERROR(INDIRECT(CONCATENATE($B105,"!E16"))),"",INDIRECT(CONCATENATE($B105,"!E16"))) -> 75.71427531 | O105: =IF(ISERROR(INDIRECT(CONCATENATE($B105,"!E23"))),"",INDIRECT(CONCATENATE($B105,"!E23"))) -> 81.56658298 | R105: =IF(ISERROR(INDIRECT(CONCATENATE($B105,"!E21"))),"",INDIRECT(CONCATENATE($B105,"!E21"))) -> 12.69603955 | S105: =IF(ISERROR(INDIRECT(CONCATENATE($B105,"!F16"))),"",INDIRECT(CONCATENATE($B105,"!F16"))) -> 81.94128734 | T105: =IF(ISERROR(INDIRECT(CONCATENATE($B105,"!F23"))),"",INDIRECT(CONCATENATE($B105,"!F23"))) -> 79.10598325 | W105: =IF(ISERROR(INDIRECT(CONCATENATE($B105,"!F21"))),"",INDIRECT(CONCATENATE($B105,"!F21"))) -> 10.73530661 | X105: =IF(ISERROR(INDIRECT(CONCATENATE($B105,"!G16"))),"",INDIRECT(CONCATENATE($B105,"!G16"))) -> 88.61981805 | Y105: =IF(ISERROR(INDIRECT(CONCATENATE($B105,"!G23"))),"",INDIRECT(CONCATENATE($B105,"!G23"))) -> 83.71507059 | AB105: =IF(ISERROR(INDIRECT(CONCATENATE($B105,"!G221"))),"",INDIRECT(CONCATENATE($B105,"!G21"))) -> 5.842485543
B106: DHS09 | C106: 2009 | D106: 89.65507418 | E106: 86.21633954 | H106: 10.06924921 | I106: 89.61504952 | J106: 86.69870531 | M106: 9.949314983 | N106: 95.77454331 | O106: 84.48415677 | R106: 3.901977555 | S106: 96.3777785 | T106: 89.95321678 | W106: 3.301847853 | X106: 99.51773297 | Y106: 92.23791376 | AB106: 0.4851199021
B107: MICS14 | C107: 2014 | D107: 90.35608269 | E107: 85.42441881 | H107: 6.803818484 | I107: 93.13886501 | J107: 83.46796494 | M107: 5.184594594 | N107: 92.25829497 | O107: 85.61444063 | R107: 4.51062318 | S107: 96.48373919 | T107: 88.5182006 | W107: 2.360199876 | X107: 97.59923276 | Y107: 93.54917439 | AB107: 1.61647519
B108: MICS19 | C108: 2019 | D108: 95.50360837 | E108: 89.12305959 | H108: 1.912373376 | I108: 97.54281899 | J108: 90.95319793 | M108: 1.421572733 | N108: 97.40693812 | O108: 89.76468721 | R108: 0.7597122281 | S108: 97.40321998 | T108: 90.94561022 | W108: 0.3478433533 | X108: 99.49536653 | Y108: 94.56130234 | AB108: 0.2842552629
D111: =IF(ISERROR(INDIRECT(CONCATENATE($B111,"!C16"))),"",INDIRECT(CONCATENATE($B111,"!C16"))) ->  | E111: =IF(ISERROR(INDIRECT(CONCATENATE($B111,"!C23"))),"",INDIRECT(CONCATENATE($B111,"!C23"))) ->  | H111: =IF(ISERROR(INDIRECT(CONCATENATE($B111,"!C21"))),"",INDIRECT(CONCATENATE($B111,"!C21"))) ->  | I111: =IF(ISERROR(INDIRECT(CONCATENATE($B111,"!D16"))),"",INDIRECT(CONCATENATE($B111,"!D16"))) ->  | J111: =IF(ISERROR(INDIRECT(CONCATENATE($B111,"!D23"))),"",INDIRECT(CONCATENATE($B111,"!D23"))) ->  | M111: =IF(ISERROR(INDIRECT(CONCATENATE($B111,"!D21"))),"",INDIRECT(CONCATENATE($B111,"!D21"))) ->  | N111: =IF(ISERROR(INDIRECT(CONCATENATE($B111,"!E16"))),"",INDIRECT(CONCATENATE($B111,"!E16"))) ->  | O111: =IF(ISERROR(INDIRECT(CONCATENATE($B111,"!E23"))),"",INDIRECT(CONCATENATE($B111,"!E23"))) ->  | R111: =IF(ISERROR(INDIRECT(CONCATENATE($B111,"!E21"))),"",INDIRECT(CONCATENATE($B111,"!E21"))) ->  | S111: =IF(ISERROR(INDIRECT(CONCATENATE($B111,"!F16"))),"",INDIRECT(CONCATENATE($B111,"!F16"))) ->  | T111: =IF(ISERROR(INDIRECT(CONCATENATE($B111,"!F23"))),"",INDIRECT(CONCATENATE($B111,"!F23"))) ->  | W111: =IF(ISERROR(INDIRECT(CONCATENATE($B111,"!F21"))),"",INDIRECT(CONCATENATE($B111,"!F21"))) ->  | X111: =IF(ISERROR(INDIRECT(CONCATENATE($B111,"!G16"))),"",INDIRECT(CONCATENATE($B111,"!G16"))) ->  | Y111: =IF(ISERROR(INDIRECT(CONCATENATE($B111,"!G23"))),"",INDIRECT(CONCATENATE($B111,"!G23"))) ->  | AB111: =IF(ISERROR(INDIRECT(CONCATENATE($B111,"!G221"))),"",INDIRECT(CONCATENATE($B111,"!G21"))) -> 
D112: =IF(ISERROR(INDIRECT(CONCATENATE($B112,"!C16"))),"",INDIRECT(CONCATENATE($B112,"!C16"))) ->  | E112: =IF(ISERROR(INDIRECT(CONCATENATE($B112,"!C23"))),"",INDIRECT(CONCATENATE($B112,"!C23"))) ->  | H112: =IF(ISERROR(INDIRECT(CONCATENATE($B112,"!C21"))),"",INDIRECT(CONCATENATE($B112,"!C21"))) ->  | I112: =IF(ISERROR(INDIRECT(CONCATENATE($B112,"!D16"))),"",INDIRECT(CONCATENATE($B112,"!D16"))) ->  | J112: =IF(ISERROR(INDIRECT(CONCATENATE($B112,"!D23"))),"",INDIRECT(CONCATENATE($B112,"!D23"))) ->  | M112: =IF(ISERROR(INDIRECT(CONCATENATE($B112,"!D21"))),"",INDIRECT(CONCATENATE($B112,"!D21"))) ->  | N112: =IF(ISERROR(INDIRECT(CONCATENATE($B112,"!E16"))),"",INDIRECT(CONCATENATE($B112,"!E16"))) ->  | O112: =IF(ISERROR(INDIRECT(CONCATENATE($B112,"!E23"))),"",INDIRECT(CONCATENATE($B112,"!E23"))) ->  | R112: =IF(ISERROR(INDIRECT(CONCATENATE($B112,"!E21"))),"",INDIRECT(CONCATENATE($B112,"!E21"))) ->  | S112: =IF(ISERROR(INDIRECT(CONCATENATE($B112,"!F16"))),"",INDIRECT(CONCATENATE($B112,"!F16"))) ->  | T112: =IF(ISERROR(INDIRECT(CONCATENATE($B112,"!F23"))),"",INDIRECT(CONCATENATE($B112,"!F23"))) ->  | W112: =IF(ISERROR(INDIRECT(CONCATENATE($B112,"!F21"))),"",INDIRECT(CONCATENATE($B112,"!F21"))) ->  | X112: =IF(ISERROR(INDIRECT(CONCATENATE($B112,"!G16"))),"",INDIRECT(CONCATENATE($B112,"!G16"))) ->  | Y112: =IF(ISERROR(INDIRECT(CONCATENATE($B112,"!G23"))),"",INDIRECT(CONCATENATE($B112,"!G23"))) ->  | AB112: =IF(ISERROR(INDIRECT(CONCATENATE($B112,"!G221"))),"",INDIRECT(CONCATENATE($B112,"!G21"))) -> 
B118: =CONCATENATE("National use of drinking water sources, ",C99,"–",C100) -> National use of drinking water sources, 2000–2020 | S118: Data points used for regression
E153: =IF(ISERROR(INDIRECT(CONCATENATE($B153,"!M18"))),"",INDIRECT(CONCATENATE($B153,"!M18"))) ->  | F153: =IF(ISERROR(INDIRECT(CONCATENATE($B153,"!M19"))),"",INDIRECT(CONCATENATE($B153,"!M19"))) ->  | G153: =IF(ISERROR(INDIRECT(CONCATENATE($B153,"!M20"))),"",INDIRECT(CONCATENATE($B153,"!M20"))) ->  | H153: =IF(ISERROR(INDIRECT(CONCATENATE($B153,"!M21"))),"",INDIRECT(CONCATENATE($B153,"!M21"))) ->  | J153: =IF(ISERROR(INDIRECT(CONCATENATE($B153,"!N18"))),"",INDIRECT(CONCATENATE($B153,"!N18"))) ->  | K153: =IF(ISERROR(INDIRECT(CONCATENATE($B153,"!N19"))),"",INDIRECT(CONCATENATE($B153,"!N19"))) ->  | L153: =IF(ISERROR(INDIRECT(CONCATENATE($B153,"!N20"))),"",INDIRECT(CONCATENATE($B153,"!N20"))) ->  | M153: =IF(ISERROR(INDIRECT(CONCATENATE($B153,"!N21"))),"",INDIRECT(CONCATENATE($B153,"!N21"))) ->  | O153: =IF(ISERROR(INDIRECT(CONCATENATE($B153,"!O18"))),"",INDIRECT(CONCATENATE($B153,"!O18"))) ->  | P153: =IF(ISERROR(INDIRECT(CONCATENATE($B153,"!O19"))),"",INDIRECT(CONCATENATE($B153,"!O19"))) ->  | Q153: =IF(ISERROR(INDIRECT(CONCATENATE($B153,"!O20"))),"",INDIRECT(CONCATENATE($B153,"!O20"))) ->  | R153: =IF(ISERROR(INDIRECT(CONCATENATE($B153,"!O21"))),"",INDIRECT(CONCATENATE($B153,"!O21"))) ->  | T153: =IF(ISERROR(INDIRECT(CONCATENATE($B153,"!P18"))),"",INDIRECT(CONCATENATE($B153,"!P18"))) ->  | U153: =IF(ISERROR(INDIRECT(CONCATENATE($B153,"!P19"))),"",INDIRECT(CONCATENATE($B153,"!P19"))) ->  | V153: =IF(ISERROR(INDIRECT(CONCATENATE($B153,"!P20"))),"",INDIRECT(CONCATENATE($B153,"!P20"))) ->  | W153: =IF(ISERROR(INDIRECT(CONCATENATE($B153,"!P21"))),"",INDIRECT(CONCATENATE($B153,"!P21"))) ->  | Y153: =IF(ISERROR(INDIRECT(CONCATENATE($B153,"!Q18"))),"",INDIRECT(CONCATENATE($B153,"!Q18"))) ->  | Z153: =IF(ISERROR(INDIRECT(CONCATENATE($B153,"!Q19"))),"",INDIRECT(CONCATENATE($B153,"!Q19"))) ->  | AA153: =IF(ISERROR(INDIRECT(CONCATENATE($B153,"!Q20"))),"",INDIRECT(CONCATENATE($B153,"!Q20"))) ->  | AB153: =IF(ISERROR(INDIRECT(CONCATENATE($B153,"!Q21"))),"",INDIRECT(CONCATENATE($B153,"!Q1"))) -> 
A197: URBAN | D197: Poorest | I197: Poor | N197: Middle | S197: Rich | X197: Richest
D198: Improved | E198: Basic | F198: Limited | G198: Unimproved | H198: Surface water | I198: Improved | J198: Basic | K198: Limited | L198: Unimproved | M198: Surface water | N198: Improved | O198: Basic | P198: Limited | Q198: Unimproved | R198: Surface water | S198: Improved | T198: Basic | U198: Limited | V198: Unimproved | W198: Surface water | X198: Improved | Y198: Basic | Z198: Limited | AA198: Unimproved | AB198: Surface water
A199: Forecast period: | C199: 2000 | D199: =IF((D201+H201)>100,D201*100/(D201+H201),D201) -> 87.51332268 | E199: =D199*AVERAGEIF(E205:E216,">0")/100 -> 73.19149896 | F199: =D199*(100-AVERAGEIF(E205:E216,">0"))/100 -> 14.32182371 | G199: =100-(E199+F199+H199) -> 4.809093185 | H199: =IF((D201+H201)>100,H201*100/(D201+H201),H201) -> 7.677584137 | I199: =IF((I201+M201)>100,I201*100/(I201+M201),I201) -> 90.4674871 | J199: =I199*AVERAGEIF(J205:J216,">0")/100 -> 75.33907729 | K199: =I199*(100-AVERAGEIF(J205:J216,">0"))/100 -> 15.12840982 | L199: =100-(J199+K199+M199) -> 3.70554275 | M199: =IF((I201+M201)>100,M201*100/(I201+M201),M201) -> 5.826970147 | N199: =IF((N201+R201)>100,N201*100/(N201+R201),N201) -> 87.42001939 | O199: =N199*AVERAGEIF(O205:O216,">0")/100 -> 75.55905115 | P199: =N199*(100-AVERAGEIF(O205:O216,">0"))/100 -> 11.86096823 | Q199: =100-(O199+P199+R199) -> 5.120635696 | R199: =IF((N201+R201)>100,R201*100/(N201+R201),R201) -> 7.459344918 | S199: =IF((S201+W201)>100,S201*100/(S201+W201),S201) -> 91.07637943 | T199: =S199*AVERAGEIF(T205:T216,">0")/100 -> 79.42091808 | U199: =S199*(100-AVERAGEIF(T205:T216,">0"))/100 -> 11.65546135 | V199: =100-(T199+U199+W199) -> 2.932714938 | W199: =IF((S201+W201)>100,W201*100/(S201+W201),W201) -> 5.99090563 | X199: =IF((X201+AB201)>100,X201*100/(X201+AB201),X201) -> 96.32383661 | Y199: =X199*AVERAGEIF(Y205:Y216,">0")/100 -> 89.63126861 | Z199: =X199*(100-AVERAGEIF(Y205:Y216,">0"))/100 -> 6.692568002 | AA199: =100-(Y199+Z199+AB199) -> 2.785684628 | AB199: =IF((X201+AB201)>100,AB201*100/(X201+AB201),AB201) -> 0.8904787592
C200: 2020 | D200: =IF((D202+H202)>100,D202*100/(D202+H202),D202) -> 99.80596117 | E200: =D200*AVERAGEIF(E205:E216,">0")/100 -> 83.47240946 | F200: =D200*(100-AVERAGEIF(E205:E216,">0"))/100 -> 16.33355171 | G200: =100-(E200+F200+H200) -> 0 | H200: =IF((D202+H202)>100,H202*100/(D202+H202),H202) -> 0.1940388292 | I200: =IF((I202+M202)>100,I202*100/(I202+M202),I202) -> 99.89107602 | J200: =I200*AVERAGEIF(J205:J216,">0")/100 -> 83.18680818 | K200: =I200*(100-AVERAGEIF(J205:J216,">0"))/100 -> 16.70426783 | L200: =100-(J200+K200+M200) -> 0 | M200: =IF((I202+M202)>100,M202*100/(I202+M202),M202) -> 0.1089239833 | N200: =IF((N202+R202)>100,N202*100/(N202+R202),N202) -> 100 | O200: =N200*AVERAGEIF(O205:O216,">0")/100 -> 86.4322059 | P200: =N200*(100-AVERAGEIF(O205:O216,">0"))/100 -> 13.5677941 | Q200: =100-(O200+P200+R200) -> 0 | R200: =IF((N202+R202)>100,R202*100/(N202+R202),R202) -> 0 | S200: =IF((S202+W202)>100,S202*100/(S202+W202),S202) -> 100 | T200: =S200*AVERAGEIF(T205:T216,">0")/100 -> 87.20254206 | U200: =S200*(100-AVERAGEIF(T205:T216,">0"))/100 -> 12.79745794 | V200: =100-(T200+U200+W200) -> 0 | W200: =IF((S202+W202)>100,W202*100/(S202+W202),W202) -> 0 | X200: =IF((X202+AB202)>100,X202*100/(X202+AB202),X202) -> 100 | Y200: =X200*AVERAGEIF(Y205:Y216,">0")/100 -> 93.05201263 | Z200: =X200*(100-AVERAGEIF(Y205:Y216,">0"))/100 -> 6.94798737 | AA200: =100-(Y200+Z200+AB200) -> 0 | AB200: =IF((X202+AB202)>100,AB202*100/(X202+AB202),AB202) -> 0
A201: Regression period: | C201: =MinRegYear(C199,C205:C216) -> 2000 | D201: =IF(MAX(C205:C216)-MIN(C205:C216)<5,AVERAGEIF(C205:C216,">0",D205:D216), IF(FORECAST($C201,D$205:D$216,$C$205:$C$216)<0,0, IF(FORECAST($C201,D$205:D$216,$C$205:$C$216)>100,100, FORECAST($C201,D$205:D$216,$C$205:$C$216)))) -> 87.51332268 | H201: =IF(MAX(C205:C216)-MIN(C205:C216)<5,AVERAGEIF(C205:C216,">0",H205:H216), IF(FORECAST($C201,H$205:H$216,$C$205:$C$216)<0,0, IF(FORECAST($C201,H$205:H$216,$C$205:$C$216)>100,100, FORECAST($C201,H$205:H$216,$C$205:$C$216)))) -> 7.677584137 | I201: =IF(MAX(C205:C216)-MIN(C205:C216)<5,AVERAGEIF(C205:C216,">0",I205:I216), IF(FORECAST($C201,I$205:I$216,$C$205:$C$216)<0,0, IF(FORECAST($C201,I$205:I$216,$C$205:$C$216)>100,100, FORECAST($C201,I$205:I$216,$C$205:$C$216)))) -> 90.4674871 | M201: =IF(MAX(C205:C216)-MIN(C205:C216)<5,AVERAGEIF(C205:C216,">0",M205:M216), IF(FORECAST($C201,M$205:M$216,$C$205:$C$216)<0,0, IF(FORECAST($C201,M$205:M$216,$C$205:$C$216)>100,100, FORECAST($C201,M$205:M$216,$C$205:$C$216)))) -> 5.826970147 | N201: =IF(MAX(C205:C216)-MIN(C205:C216)<5,AVERAGEIF(C205:C216,">0",N205:N216), IF(FORECAST($C201,N$205:N$216,$C$205:$C$216)<0,0, IF(FORECAST($C201,N$205:N$216,$C$205:$C$216)>100,100, FORECAST($C201,N$205:N$216,$C$205:$C$216)))) -> 87.42001939 | R201: =IF(MAX(C205:C216)-MIN(C205:C216)<5,AVERAGEIF(C205:C216,">0",R205:R216), IF(FORECAST($C201,R$205:R$216,$C$205:$C$216)<0,0, IF(FORECAST($C201,R$205:R$216,$C$205:$C$216)>100,100, FORECAST($C201,R$205:R$216,$C$205:$C$216)))) -> 7.459344918 | S201: =IF(MAX(C205:C216)-MIN(C205:C216)<5,AVERAGEIF(C205:C216,">0",S205:S216), IF(FORECAST($C201,S$205:S$216,$C$205:$C$216)<0,0, IF(FORECAST($C201,S$205:S$216,$C$205:$C$216)>100,100, FORECAST($C201,S$205:S$216,$C$205:$C$216)))) -> 91.07637943 | W201: =IF(MAX(C205:C216)-MIN(C205:C216)<5,AVERAGEIF(C205:C216,">0",W205:W216), IF(FORECAST($C201,W$205:W$216,$C$205:$C$216)<0,0, IF(FORECAST($C201,W$205:W$216,$C$205:$C$216)>100,100, FORECAST($C201,W$205:W$216,$C$205:$C$216)))) -> 5.99090563 | X201: =IF(MAX(C205:C216)-MIN(C205:C216)<5,AVERAGEIF(C205:C216,">0",X205:X216), IF(FORECAST($C201,X$205:X$216,$C$205:$C$216)<0,0, IF(FORECAST($C201,X$205:X$216,$C$205:$C$216)>100,100, FORECAST($C201,X$205:X$216,$C$205:$C$216)))) -> 96.32383661 | AB201: =IF(MAX(C205:C216)-MIN(C205:C216)<5,AVERAGEIF(C205:C216,">0",AB205:AB216), IF(FORECAST($C201,AB$205:AB$216,$C$205:$C$216)<0,0, IF(FORECAST($C201,AB$205:AB$216,$C$205:$C$216)>100,100, FORECAST($C201,AB$205:AB$216,$C$205:$C$216)))) -> 0.8904787592
C202: =MaxRegYear(C200,C205:C216) -> 2020 | D202: =IF(MAX(C205:C216)-MIN(C205:C216)<5,AVERAGEIF(C205:C216,">0",D205:D216), IF(FORECAST($C202,D$205:D$216,$C$205:$C$216)<0,0, IF(FORECAST($C202,D$205:D$216,$C$205:$C$216)>100,100, FORECAST($C202,D$205:D$216,$C$205:$C$216)))) -> 100 | H202: =IF(MAX(C205:C216)-MIN(C205:C216)<5,AVERAGEIF(C205:C216,">0",H205:H216), IF(FORECAST($C202,H$205:H$216,$C$205:$C$216)<0,0, IF(FORECAST($C202,H$205:H$216,$C$205:$C$216)>100,100, FORECAST($C202,H$205:H$216,$C$205:$C$216)))) -> 0.1944160719 | I202: =IF(MAX(C205:C216)-MIN(C205:C216)<5,AVERAGEIF(C205:C216,">0",I205:I216), IF(FORECAST($C202,I$205:I$216,$C$205:$C$216)<0,0, IF(FORECAST($C202,I$205:I$216,$C$205:$C$216)>100,100, FORECAST($C202,I$205:I$216,$C$205:$C$216)))) -> 100 | M202: =IF(MAX(C205:C216)-MIN(C205:C216)<5,AVERAGEIF(C205:C216,">0",M205:M216), IF(FORECAST($C202,M$205:M$216,$C$205:$C$216)<0,0, IF(FORECAST($C202,M$205:M$216,$C$205:$C$216)>100,100, FORECAST($C202,M$205:M$216,$C$205:$C$216)))) -> 0.109042757 | N202: =IF(MAX(C205:C216)-MIN(C205:C216)<5,AVERAGEIF(C205:C216,">0",N205:N216), IF(FORECAST($C202,N$205:N$216,$C$205:$C$216)<0,0, IF(FORECAST($C202,N$205:N$216,$C$205:$C$216)>100,100, FORECAST($C202,N$205:N$216,$C$205:$C$216)))) -> 100 | R202: =IF(MAX(C205:C216)-MIN(C205:C216)<5,AVERAGEIF(C205:C216,">0",R205:R216), IF(FORECAST($C202,R$205:R$216,$C$205:$C$216)<0,0, IF(FORECAST($C202,R$205:R$216,$C$205:$C$216)>100,100, FORECAST($C202,R$205:R$216,$C$205:$C$216)))) -> 0 | S202: =IF(MAX(C205:C216)-MIN(C205:C216)<5,AVERAGEIF(C205:C216,">0",S205:S216), IF(FORECAST($C202,S$205:S$216,$C$205:$C$216)<0,0, IF(FORECAST($C202,S$205:S$216,$C$205:$C$216)>100,100, FORECAST($C202,S$205:S$216,$C$205:$C$216)))) -> 100 | W202: =IF(MAX(C205:C216)-MIN(C205:C216)<5,AVERAGEIF(C205:C216,">0",W205:W216), IF(FORECAST($C202,W$205:W$216,$C$205:$C$216)<0,0, IF(FORECAST($C202,W$205:W$216,$C$205:$C$216)>100,100, FORECAST($C202,W$205:W$216,$C$205:$C$216)))) -> 0 | X202: =IF(MAX(C205:C216)-MIN(C205:C216)<5,AVERAGEIF(C205:C216,">0",X205:X216), IF(FORECAST($C202,X$205:X$216,$C$205:$C$216)<0,0, IF(FORECAST($C202,X$205:X$216,$C$205:$C$216)>100,100, FORECAST($C202,X$205:X$216,$C$205:$C$216)))) -> 100 | AB202: =IF(MAX(C205:C216)-MIN(C205:C216)<5,AVERAGEIF(C205:C216,">0",AB205:AB216), IF(FORECAST($C202,AB$205:AB$216,$C$205:$C$216)<0,0, IF(FORECAST($C202,AB$205:AB$216,$C$205:$C$216)>100,100, FORECAST($C202,AB$205:AB$216,$C$205:$C$216)))) -> 0
B204: Survey | C204: Year | D204: Improved | E204: % Improved < = 30min | H204: Surface water | I204: Improved | J204: % Improved < = 30min | M204: Surface water | N204: Improved | O204: % Improved < = 30min | R204: Surface water | S204: Improved | T204: % Improved < = 30min | W204: Surface water | X204: Improved | Y204: % Improved < = 30min | AB204: Surface water
B205: MICS00 | C205: 2000 | D205: =IF(ISERROR(INDIRECT(CONCATENATE($B205,"!H16"))),"",INDIRECT(CONCATENATE($B205,"!H16"))) -> 85.06827226 | E205: =IF(ISERROR(INDIRECT(CONCATENATE($B205,"!H23"))),"",INDIRECT(CONCATENATE($B205,"!H23"))) -> 80.60677002 | H205: =IF(ISERROR(INDIRECT(CONCATENATE($B205,"!H21"))),"",INDIRECT(CONCATENATE($B205,"!H21"))) -> 8.814827946 | I205: =IF(ISERROR(INDIRECT(CONCATENATE($B205,"!I16"))),"",INDIRECT(CONCATENATE($B205,"!I16"))) -> 88.8912271 | J205: =IF(ISERROR(INDIRECT(CONCATENATE($B205,"!I23"))),"",INDIRECT(CONCATENATE($B205,"!I23"))) -> 74.97371028 | M205: =IF(ISERROR(INDIRECT(CONCATENATE($B205,"!I21"))),"",INDIRECT(CONCATENATE($B205,"!I21"))) -> 6.216881154 | N205: =IF(ISERROR(INDIRECT(CONCATENATE($B205,"!J16"))),"",INDIRECT(CONCATENATE($B205,"!J16"))) -> 84.47949708 | O205: =IF(ISERROR(INDIRECT(CONCATENATE($B205,"!J23"))),"",INDIRECT(CONCATENATE($B205,"!J23"))) -> 81.48394152 | R205: =IF(ISERROR(INDIRECT(CONCATENATE($B205,"!J21"))),"",INDIRECT(CONCATENATE($B205,"!J21"))) -> 9.095736592 | S205: =IF(ISERROR(INDIRECT(CONCATENATE($B205,"!K16"))),"",INDIRECT(CONCATENATE($B205,"!K16"))) -> 88.70322202 | T205: =IF(ISERROR(INDIRECT(CONCATENATE($B205,"!K23"))),"",INDIRECT(CONCATENATE($B205,"!K23"))) -> 85.1499013 | W205: =IF(ISERROR(INDIRECT(CONCATENATE($B205,"!K21"))),"",INDIRECT(CONCATENATE($B205,"!K21"))) -> 7.318038566 | X205: =IF(ISERROR(INDIRECT(CONCATENATE($B205,"!L16"))),"",INDIRECT(CONCATENATE($B205,"!L16"))) -> 95.54944598 | Y205: =IF(ISERROR(INDIRECT(CONCATENATE($B205,"!L23"))),"",INDIRECT(CONCATENATE($B205,"!L23"))) -> 86.37724817 | AB205: =IF(ISERROR(INDIRECT(CONCATENATE($B205,"!L221"))),"",INDIRECT(CONCATENATE($B205,"!L21"))) -> 1.072785487
B206: DHS09 | C206: 2009 | D206: 98.40322595 | E206: 83.13489604 | H206: 1.431678251 | I206: 98.04207491 | J206: 83.09983643 | M206: 2.055193053 | N206: 100 | O206: 84.98564203 | R206: 0 | S206: 100 | T206: 86.83999778 | W206: 0 | X206: 100 | Y206: 95.16934056 | AB206: 0
B207: MICS14 | C207: 2014 | D207: 96.15374964 | E207: 83.0778889 | H207: 3.874800532 | I207: 97.33786891 | J207: 84.86218042 | M207: 2.740178685 | N207: 98.72749703 | O207: 86.8540977 | R207: 1.497676997 | S207: 98.92095258 | T207: 88.71313122 | W207: 1.038500625 | X207: 98.85273437 | Y207: 93.75515723 | AB207: 0.3452024372
B208: MICS19 | C208: 2019 | D208: 98.15991039 | E208: 87.71921799 | H208: 0.8743768828 | I208: 98.63784986 | J208: 90.17434235 | M208: 0.2879801773 | N208: 99.67074197 | O208: 92.40514234 | R208: 0 | S208: 98.56572678 | T208: 88.10713794 | W208: 0 | X208: 100 | Y208: 96.90630457 | AB208: 0
B218: =CONCATENATE("Urban use of drinking water sources, ",C199,"–",C200) -> Urban use of drinking water sources, 2000–2020 | S218: Data points used for regression
E253: =IF(ISERROR(INDIRECT(CONCATENATE($B253,"!M18"))),"",INDIRECT(CONCATENATE($B253,"!M18"))) ->  | F253: =IF(ISERROR(INDIRECT(CONCATENATE($B253,"!M19"))),"",INDIRECT(CONCATENATE($B253,"!M19"))) ->  | G253: =IF(ISERROR(INDIRECT(CONCATENATE($B253,"!M20"))),"",INDIRECT(CONCATENATE($B253,"!M20"))) ->  | H253: =IF(ISERROR(INDIRECT(CONCATENATE($B253,"!M21"))),"",INDIRECT(CONCATENATE($B253,"!M21"))) ->  | J253: =IF(ISERROR(INDIRECT(CONCATENATE($B253,"!N18"))),"",INDIRECT(CONCATENATE($B253,"!N18"))) ->  | K253: =IF(ISERROR(INDIRECT(CONCATENATE($B253,"!N19"))),"",INDIRECT(CONCATENATE($B253,"!N19"))) ->  | L253: =IF(ISERROR(INDIRECT(CONCATENATE($B253,"!N20"))),"",INDIRECT(CONCATENATE($B253,"!N20"))) ->  | M253: =IF(ISERROR(INDIRECT(CONCATENATE($B253,"!N21"))),"",INDIRECT(CONCATENATE($B253,"!N21"))) ->  | O253: =IF(ISERROR(INDIRECT(CONCATENATE($B253,"!O18"))),"",INDIRECT(CONCATENATE($B253,"!O18"))) ->  | P253: =IF(ISERROR(INDIRECT(CONCATENATE($B253,"!O19"))),"",INDIRECT(CONCATENATE($B253,"!O19"))) ->  | Q253: =IF(ISERROR(INDIRECT(CONCATENATE($B253,"!O20"))),"",INDIRECT(CONCATENATE($B253,"!O20"))) ->  | R253: =IF(ISERROR(INDIRECT(CONCATENATE($B253,"!O21"))),"",INDIRECT(CONCATENATE($B253,"!O21"))) ->  | T253: =IF(ISERROR(INDIRECT(CONCATENATE($B253,"!P18"))),"",INDIRECT(CONCATENATE($B253,"!P18"))) ->  | U253: =IF(ISERROR(INDIRECT(CONCATENATE($B253,"!P19"))),"",INDIRECT(CONCATENATE($B253,"!P19"))) ->  | V253: =IF(ISERROR(INDIRECT(CONCATENATE($B253,"!P20"))),"",INDIRECT(CONCATENATE($B253,"!P20"))) ->  | W253: =IF(ISERROR(INDIRECT(CONCATENATE($B253,"!P21"))),"",INDIRECT(CONCATENATE($B253,"!P21"))) ->  | Y253: =IF(ISERROR(INDIRECT(CONCATENATE($B253,"!Q18"))),"",INDIRECT(CONCATENATE($B253,"!Q18"))) ->  | Z253: =IF(ISERROR(INDIRECT(CONCATENATE($B253,"!Q19"))),"",INDIRECT(CONCATENATE($B253,"!Q19"))) ->  | AA253: =IF(ISERROR(INDIRECT(CONCATENATE($B253,"!Q20"))),"",INDIRECT(CONCATENATE($B253,"!Q20"))) ->  | AB253: =IF(ISERROR(INDIRECT(CONCATENATE($B253,"!Q21"))),"",INDIRECT(CONCATENATE($B253,"!Q1"))) -> 
E254: =IF(ISERROR(INDIRECT(CONCATENATE($B254,"!M18"))),"",INDIRECT(CONCATENATE($B254,"!M18"))) ->  | F254: =IF(ISERROR(INDIRECT(CONCATENATE($B254,"!M19"))),"",INDIRECT(CONCATENATE($B254,"!M19"))) ->  | G254: =IF(ISERROR(INDIRECT(CONCATENATE($B254,"!M20"))),"",INDIRECT(CONCATENATE($B254,"!M20"))) ->  | H254: =IF(ISERROR(INDIRECT(CONCATENATE($B254,"!M21"))),"",INDIRECT(CONCATENATE($B254,"!M21"))) ->  | J254: =IF(ISERROR(INDIRECT(CONCATENATE($B254,"!N18"))),"",INDIRECT(CONCATENATE($B254,"!N18"))) ->  | K254: =IF(ISERROR(INDIRECT(CONCATENATE($B254,"!N19"))),"",INDIRECT(CONCATENATE($B254,"!N19"))) ->  | L254: =IF(ISERROR(INDIRECT(CONCATENATE($B254,"!N20"))),"",INDIRECT(CONCATENATE($B254,"!N20"))) ->  | M254: =IF(ISERROR(INDIRECT(CONCATENATE($B254,"!N21"))),"",INDIRECT(CONCATENATE($B254,"!N21"))) ->  | O254: =IF(ISERROR(INDIRECT(CONCATENATE($B254,"!O18"))),"",INDIRECT(CONCATENATE($B254,"!O18"))) ->  | P254: =IF(ISERROR(INDIRECT(CONCATENATE($B254,"!O19"))),"",INDIRECT(CONCATENATE($B254,"!O19"))) ->  | Q254: =IF(ISERROR(INDIRECT(CONCATENATE($B254,"!O20"))),"",INDIRECT(CONCATENATE($B254,"!O20"))) ->  | R254: =IF(ISERROR(INDIRECT(CONCATENATE($B254,"!O21"))),"",INDIRECT(CONCATENATE($B254,"!O21"))) ->  | T254: =IF(ISERROR(INDIRECT(CONCATENATE($B254,"!P18"))),"",INDIRECT(CONCATENATE($B254,"!P18"))) ->  | U254: =IF(ISERROR(INDIRECT(CONCATENATE($B254,"!P19"))),"",INDIRECT(CONCATENATE($B254,"!P19"))) ->  | V254: =IF(ISERROR(INDIRECT(CONCATENATE($B254,"!P20"))),"",INDIRECT(CONCATENATE($B254,"!P20"))) ->  | W254: =IF(ISERROR(INDIRECT(CONCATENATE($B254,"!P21"))),"",INDIRECT(CONCATENATE($B254,"!P21"))) ->  | Y254: =IF(ISERROR(INDIRECT(CONCATENATE($B254,"!Q18"))),"",INDIRECT(CONCATENATE($B254,"!Q18"))) ->  | Z254: =IF(ISERROR(INDIRECT(CONCATENATE($B254,"!Q19"))),"",INDIRECT(CONCATENATE($B254,"!Q19"))) ->  | AA254: =IF(ISERROR(INDIRECT(CONCATENATE($B254,"!Q20"))),"",INDIRECT(CONCATENATE($B254,"!Q20"))) ->  | AB254: =IF(ISERROR(INDIRECT(CONCATENATE($B254,"!Q21"))),"",INDIRECT(CONCATENATE($B254,"!Q1"))) -> 
E255: =IF(ISERROR(INDIRECT(CONCATENATE($B255,"!M18"))),"",INDIRECT(CONCATENATE($B255,"!M18"))) ->  | F255: =IF(ISERROR(INDIRECT(CONCATENATE($B255,"!M19"))),"",INDIRECT(CONCATENATE($B255,"!M19"))) ->  | G255: =IF(ISERROR(INDIRECT(CONCATENATE($B255,"!M20"))),"",INDIRECT(CONCATENATE($B255,"!M20"))) ->  | H255: =IF(ISERROR(INDIRECT(CONCATENATE($B255,"!M21"))),"",INDIRECT(CONCATENATE($B255,"!M21"))) ->  | J255: =IF(ISERROR(INDIRECT(CONCATENATE($B255,"!N18"))),"",INDIRECT(CONCATENATE($B255,"!N18"))) ->  | K255: =IF(ISERROR(INDIRECT(CONCATENATE($B255,"!N19"))),"",INDIRECT(CONCATENATE($B255,"!N19"))) ->  | L255: =IF(ISERROR(INDIRECT(CONCATENATE($B255,"!N20"))),"",INDIRECT(CONCATENATE($B255,"!N20"))) ->  | M255: =IF(ISERROR(INDIRECT(CONCATENATE($B255,"!N21"))),"",INDIRECT(CONCATENATE($B255,"!N21"))) ->  | O255: =IF(ISERROR(INDIRECT(CONCATENATE($B255,"!O18"))),"",INDIRECT(CONCATENATE($B255,"!O18"))) ->  | P255: =IF(ISERROR(INDIRECT(CONCATENATE($B255,"!O19"))),"",INDIRECT(CONCATENATE($B255,"!O19"))) ->  | Q255: =IF(ISERROR(INDIRECT(CONCATENATE($B255,"!O20"))),"",INDIRECT(CONCATENATE($B255,"!O20"))) ->  | R255: =IF(ISERROR(INDIRECT(CONCATENATE($B255,"!O21"))),"",INDIRECT(CONCATENATE($B255,"!O21"))) ->  | T255: =IF(ISERROR(INDIRECT(CONCATENATE($B255,"!P18"))),"",INDIRECT(CONCATENATE($B255,"!P18"))) ->  | U255: =IF(ISERROR(INDIRECT(CONCATENATE($B255,"!P19"))),"",INDIRECT(CONCATENATE($B255,"!P19"))) ->  | V255: =IF(ISERROR(INDIRECT(CONCATENATE($B255,"!P20"))),"",INDIRECT(CONCATENATE($B255,"!P20"))) ->  | W255: =IF(ISERROR(INDIRECT(CONCATENATE($B255,"!P21"))),"",INDIRECT(CONCATENATE($B255,"!P21"))) ->  | Y255: =IF(ISERROR(INDIRECT(CONCATENATE($B255,"!Q18"))),"",INDIRECT(CONCATENATE($B255,"!Q18"))) ->  | Z255: =IF(ISERROR(INDIRECT(CONCATENATE($B255,"!Q19"))),"",INDIRECT(CONCATENATE($B255,"!Q19"))) ->  | AA255: =IF(ISERROR(INDIRECT(CONCATENATE($B255,"!Q20"))),"",INDIRECT(CONCATENATE($B255,"!Q20"))) ->  | AB255: =IF(ISERROR(INDIRECT(CONCATENATE($B255,"!Q21"))),"",INDIRECT(CONCATENATE($B255,"!Q1"))) -> 
E256: =IF(ISERROR(INDIRECT(CONCATENATE($B256,"!M18"))),"",INDIRECT(CONCATENATE($B256,"!M18"))) ->  | F256: =IF(ISERROR(INDIRECT(CONCATENATE($B256,"!M19"))),"",INDIRECT(CONCATENATE($B256,"!M19"))) ->  | G256: =IF(ISERROR(INDIRECT(CONCATENATE($B256,"!M20"))),"",INDIRECT(CONCATENATE($B256,"!M20"))) ->  | H256: =IF(ISERROR(INDIRECT(CONCATENATE($B256,"!M21"))),"",INDIRECT(CONCATENATE($B256,"!M21"))) ->  | J256: =IF(ISERROR(INDIRECT(CONCATENATE($B256,"!N18"))),"",INDIRECT(CONCATENATE($B256,"!N18"))) ->  | K256: =IF(ISERROR(INDIRECT(CONCATENATE($B256,"!N19"))),"",INDIRECT(CONCATENATE($B256,"!N19"))) ->  | L256: =IF(ISERROR(INDIRECT(CONCATENATE($B256,"!N20"))),"",INDIRECT(CONCATENATE($B256,"!N20"))) ->  | M256: =IF(ISERROR(INDIRECT(CONCATENATE($B256,"!N21"))),"",INDIRECT(CONCATENATE($B256,"!N21"))) ->  | O256: =IF(ISERROR(INDIRECT(CONCATENATE($B256,"!O18"))),"",INDIRECT(CONCATENATE($B256,"!O18"))) ->  | P256: =IF(ISERROR(INDIRECT(CONCATENATE($B256,"!O19"))),"",INDIRECT(CONCATENATE($B256,"!O19"))) ->  | Q256: =IF(ISERROR(INDIRECT(CONCATENATE($B256,"!O20"))),"",INDIRECT(CONCATENATE($B256,"!O20"))) ->  | R256: =IF(ISERROR(INDIRECT(CONCATENATE($B256,"!O21"))),"",INDIRECT(CONCATENATE($B256,"!O21"))) ->  | T256: =IF(ISERROR(INDIRECT(CONCATENATE($B256,"!P18"))),"",INDIRECT(CONCATENATE($B256,"!P18"))) ->  | U256: =IF(ISERROR(INDIRECT(CONCATENATE($B256,"!P19"))),"",INDIRECT(CONCATENATE($B256,"!P19"))) ->  | V256: =IF(ISERROR(INDIRECT(CONCATENATE($B256,"!P20"))),"",INDIRECT(CONCATENATE($B256,"!P20"))) ->  | W256: =IF(ISERROR(INDIRECT(CONCATENATE($B256,"!P21"))),"",INDIRECT(CONCATENATE($B256,"!P21"))) ->  | Y256: =IF(ISERROR(INDIRECT(CONCATENATE($B256,"!Q18"))),"",INDIRECT(CONCATENATE($B256,"!Q18"))) ->  | Z256: =IF(ISERROR(INDIRECT(CONCATENATE($B256,"!Q19"))),"",INDIRECT(CONCATENATE($B256,"!Q19"))) ->  | AA256: =IF(ISERROR(INDIRECT(CONCATENATE($B256,"!Q20"))),"",INDIRECT(CONCATENATE($B256,"!Q20"))) ->  | AB256: =IF(ISERROR(INDIRECT(CONCATENATE($B256,"!Q21"))),"",INDIRECT(CONCATENATE($B256,"!Q1"))) -> 
E257: =IF(ISERROR(INDIRECT(CONCATENATE($B257,"!M18"))),"",INDIRECT(CONCATENATE($B257,"!M18"))) ->  | F257: =IF(ISERROR(INDIRECT(CONCATENATE($B257,"!M19"))),"",INDIRECT(CONCATENATE($B257,"!M19"))) ->  | G257: =IF(ISERROR(INDIRECT(CONCATENATE($B257,"!M20"))),"",INDIRECT(CONCATENATE($B257,"!M20"))) ->  | H257: =IF(ISERROR(INDIRECT(CONCATENATE($B257,"!M21"))),"",INDIRECT(CONCATENATE($B257,"!M21"))) ->  | J257: =IF(ISERROR(INDIRECT(CONCATENATE($B257,"!N18"))),"",INDIRECT(CONCATENATE($B257,"!N18"))) ->  | K257: =IF(ISERROR(INDIRECT(CONCATENATE($B257,"!N19"))),"",INDIRECT(CONCATENATE($B257,"!N19"))) ->  | L257: =IF(ISERROR(INDIRECT(CONCATENATE($B257,"!N20"))),"",INDIRECT(CONCATENATE($B257,"!N20"))) ->  | M257: =IF(ISERROR(INDIRECT(CONCATENATE($B257,"!N21"))),"",INDIRECT(CONCATENATE($B257,"!N21"))) ->  | O257: =IF(ISERROR(INDIRECT(CONCATENATE($B257,"!O18"))),"",INDIRECT(CONCATENATE($B257,"!O18"))) ->  | P257: =IF(ISERROR(INDIRECT(CONCATENATE($B257,"!O19"))),"",INDIRECT(CONCATENATE($B257,"!O19"))) ->  | Q257: =IF(ISERROR(INDIRECT(CONCATENATE($B257,"!O20"))),"",INDIRECT(CONCATENATE($B257,"!O20"))) ->  | R257: =IF(ISERROR(INDIRECT(CONCATENATE($B257,"!O21"))),"",INDIRECT(CONCATENATE($B257,"!O21"))) ->  | T257: =IF(ISERROR(INDIRECT(CONCATENATE($B257,"!P18"))),"",INDIRECT(CONCATENATE($B257,"!P18"))) ->  | U257: =IF(ISERROR(INDIRECT(CONCATENATE($B257,"!P19"))),"",INDIRECT(CONCATENATE($B257,"!P19"))) ->  | V257: =IF(ISERROR(INDIRECT(CONCATENATE($B257,"!P20"))),"",INDIRECT(CONCATENATE($B257,"!P20"))) ->  | W257: =IF(ISERROR(INDIRECT(CONCATENATE($B257,"!P21"))),"",INDIRECT(CONCATENATE($B257,"!P21"))) ->  | Y257: =IF(ISERROR(INDIRECT(CONCATENATE($B257,"!Q18"))),"",INDIRECT(CONCATENATE($B257,"!Q18"))) ->  | Z257: =IF(ISERROR(INDIRECT(CONCATENATE($B257,"!Q19"))),"",INDIRECT(CONCATENATE($B257,"!Q19"))) ->  | AA257: =IF(ISERROR(INDIRECT(CONCATENATE($B257,"!Q20"))),"",INDIRECT(CONCATENATE($B257,"!Q20"))) ->  | AB257: =IF(ISERROR(INDIRECT(CONCATENATE($B257,"!Q21"))),"",INDIRECT(CONCATENATE($B257,"!Q1"))) -> 
A297: RURAL | D297: Poorest | I297: Poor | N297: Middle | S297: Rich | X297: Richest
D298: Improved | E298: Basic | F298: Limited | G298: Unimproved | H298: Surface water | I298: Improved | J298: Basic | K298: Limited | L298: Unimproved | M298: Surface water | N298: Improved | O298: Basic | P298: Limited | Q298: Unimproved | R298: Surface water | S298: Improved | T298: Basic | U298: Limited | V298: Unimproved | W298: Surface water | X298: Improved | Y298: Basic | Z298: Limited | AA298: Unimproved | AB298: Surface water
A299: Forecast period: | C299: 2000 | D299: =IF((D301+H301)>100,D301*100/(D301+H301),D301) -> 79.52132414 | E299: =D299*AVERAGEIF(E305:E316,">0")/100 -> 70.88114535 | F299: =D299*(100-AVERAGEIF(E305:E316,">0"))/100 -> 8.64017879 | G299: =100-(E299+F299+H299) -> 0.7903082269 | H299: =IF((D301+H301)>100,H301*100/(D301+H301),H301) -> 19.68836763 | I299: =IF((I301+M301)>100,I301*100/(I301+M301),I301) -> 70.98045407 | J299: =I299*AVERAGEIF(J305:J316,">0")/100 -> 59.77482584 | K299: =I299*(100-AVERAGEIF(J305:J316,">0"))/100 -> 11.20562823 | L299: =100-(J299+K299+M299) -> 10.19710138 | M299: =IF((I301+M301)>100,M301*100/(I301+M301),M301) -> 18.82244456 | N299: =IF((N301+R301)>100,N301*100/(N301+R301),N301) -> 73.09718293 | O299: =N299*AVERAGEIF(O305:O316,">0")/100 -> 64.277194 | P299: =N299*(100-AVERAGEIF(O305:O316,">0"))/100 -> 8.819988935 | Q299: =100-(O299+P299+R299) -> 6.666883135 | R299: =IF((N301+R301)>100,R301*100/(N301+R301),R301) -> 20.23593393 | S299: =IF((S301+W301)>100,S301*100/(S301+W301),S301) -> 70.25874187 | T299: =S299*AVERAGEIF(T305:T316,">0")/100 -> 61.84171455 | U299: =S299*(100-AVERAGEIF(T305:T316,">0"))/100 -> 8.417027325 | V299: =100-(T299+U299+W299) -> 13.06094988 | W299: =IF((S301+W301)>100,W301*100/(S301+W301),W301) -> 16.68030825 | X299: =IF((X301+AB301)>100,X301*100/(X301+AB301),X301) -> 78.46325003 | Y299: =X299*AVERAGEIF(Y305:Y316,">0")/100 -> 68.99523322 | Z299: =X299*(100-AVERAGEIF(Y305:Y316,">0"))/100 -> 9.468016805 | AA299: =100-(Y299+Z299+AB299) -> 8.327185313 | AB299: =IF((X301+AB301)>100,AB301*100/(X301+AB301),AB301) -> 13.20956466
C300: 2020 | D300: =IF((D302+H302)>100,D302*100/(D302+H302),D302) -> 90.44176562 | E300: =D300*AVERAGEIF(E305:E316,">0")/100 -> 80.61505519 | F300: =D300*(100-AVERAGEIF(E305:E316,">0"))/100 -> 9.826710426 | G300: =100-(E300+F300+H300) -> 5.278017619 | H300: =IF((D302+H302)>100,H302*100/(D302+H302),H302) -> 4.280216761 | I300: =IF((I302+M302)>100,I302*100/(I302+M302),I302) -> 95.71802011 | J300: =I300*AVERAGEIF(J305:J316,">0")/100 -> 80.60709187 | K300: =I300*(100-AVERAGEIF(J305:J316,">0"))/100 -> 15.11092824 | L300: =100-(J300+K300+M300) -> 0.7085148352 | M300: =IF((I302+M302)>100,M302*100/(I302+M302),M302) -> 3.573465053 | N300: =IF((N302+R302)>100,N302*100/(N302+R302),N302) -> 96.44452873 | O300: =N300*AVERAGEIF(O305:O316,">0")/100 -> 84.80742259 | P300: =N300*(100-AVERAGEIF(O305:O316,">0"))/100 -> 11.63710614 | Q300: =100-(O300+P300+R300) -> 1.482697586 | R300: =IF((N302+R302)>100,R302*100/(N302+R302),R302) -> 2.072773682 | S300: =IF((S302+W302)>100,S302*100/(S302+W302),S302) -> 94.49703651 | T300: =S300*AVERAGEIF(T305:T316,">0")/100 -> 83.17625112 | U300: =S300*(100-AVERAGEIF(T305:T316,">0"))/100 -> 11.32078539 | V300: =100-(T300+U300+W300) -> 4.488144443 | W300: =IF((S302+W302)>100,W302*100/(S302+W302),W302) -> 1.014819044 | X300: =IF((X302+AB302)>100,X302*100/(X302+AB302),X302) -> 99.74912278 | Y300: =X300*AVERAGEIF(Y305:Y316,">0")/100 -> 87.71257866 | Z300: =X300*(100-AVERAGEIF(Y305:Y316,">0"))/100 -> 12.03654412 | AA300: =100-(Y300+Z300+AB300) -> 0 | AB300: =IF((X302+AB302)>100,AB302*100/(X302+AB302),AB302) -> 0.2508772182
A301: Regression period: | C301: =MinRegYear(C299,C305:C316) -> 2000 | D301: =IF(MAX(C305:C316)-MIN(C305:C316)<5,AVERAGEIF(C305:C316,">0",D305:D316), IF(FORECAST($C301,D$305:D$316,$C$305:$C$316)<0,0, IF(FORECAST($C301,D$305:D$316,$C$305:$C$316)>100,100, FORECAST($C301,D$305:D$316,$C$305:$C$316)))) -> 79.52132414 | H301: =IF(MAX(C305:C316)-MIN(C305:C316)<5,AVERAGEIF(C305:C316,">0",H305:H316), IF(FORECAST($C301,H$305:H$316,$C$305:$C$316)<0,0, IF(FORECAST($C301,H$305:H$316,$C$305:$C$316)>100,100, FORECAST($C301,H$305:H$316,$C$305:$C$316)))) -> 19.68836763 | I301: =IF(MAX(C305:C316)-MIN(C305:C316)<5,AVERAGEIF(C305:C316,">0",I305:I316), IF(FORECAST($C301,I$305:I$316,$C$305:$C$316)<0,0, IF(FORECAST($C301,I$305:I$316,$C$305:$C$316)>100,100, FORECAST($C301,I$305:I$316,$C$305:$C$316)))) -> 70.98045407 | M301: =IF(MAX(C305:C316)-MIN(C305:C316)<5,AVERAGEIF(C305:C316,">0",M305:M316), IF(FORECAST($C301,M$305:M$316,$C$305:$C$316)<0,0, IF(FORECAST($C301,M$305:M$316,$C$305:$C$316)>100,100, FORECAST($C301,M$305:M$316,$C$305:$C$316)))) -> 18.82244456 | N301: =IF(MAX(C305:C316)-MIN(C305:C316)<5,AVERAGEIF(C305:C316,">0",N305:N316), IF(FORECAST($C301,N$305:N$316,$C$305:$C$316)<0,0, IF(FORECAST($C301,N$305:N$316,$C$305:$C$316)>100,100, FORECAST($C301,N$305:N$316,$C$305:$C$316)))) -> 73.09718293 | R301: =IF(MAX(C305:C316)-MIN(C305:C316)<5,AVERAGEIF(C305:C316,">0",R305:R316), IF(FORECAST($C301,R$305:R$316,$C$305:$C$316)<0,0, IF(FORECAST($C301,R$305:R$316,$C$305:$C$316)>100,100, FORECAST($C301,R$305:R$316,$C$305:$C$316)))) -> 20.23593393 | S301: =IF(MAX(C305:C316)-MIN(C305:C316)<5,AVERAGEIF(C305:C316,">0",S305:S316), IF(FORECAST($C301,S$305:S$316,$C$305:$C$316)<0,0, IF(FORECAST($C301,S$305:S$316,$C$305:$C$316)>100,100, FORECAST($C301,S$305:S$316,$C$305:$C$316)))) -> 70.25874187 | W301: =IF(MAX(C305:C316)-MIN(C305:C316)<5,AVERAGEIF(C305:C316,">0",W305:W316), IF(FORECAST($C301,W$305:W$316,$C$305:$C$316)<0,0, IF(FORECAST($C301,W$305:W$316,$C$305:$C$316)>100,100, FORECAST($C301,W$305:W$316,$C$305:$C$316)))) -> 16.68030825 | X301: =IF(MAX(C305:C316)-MIN(C305:C316)<5,AVERAGEIF(C305:C316,">0",X305:X316), IF(FORECAST($C301,X$305:X$316,$C$305:$C$316)<0,0, IF(FORECAST($C301,X$305:X$316,$C$305:$C$316)>100,100, FORECAST($C301,X$305:X$316,$C$305:$C$316)))) -> 78.46325003 | AB301: =IF(MAX(C305:C316)-MIN(C305:C316)<5,AVERAGEIF(C305:C316,">0",AB305:AB316), IF(FORECAST($C301,AB$305:AB$316,$C$305:$C$316)<0,0, IF(FORECAST($C301,AB$305:AB$316,$C$305:$C$316)>100,100, FORECAST($C301,AB$305:AB$316,$C$305:$C$316)))) -> 13.20956466
C302: =MaxRegYear(C300,C305:C316) -> 2020 | D302: =IF(MAX(C305:C316)-MIN(C305:C316)<5,AVERAGEIF(C305:C316,">0",D305:D316), IF(FORECAST($C302,D$305:D$316,$C$305:$C$316)<0,0, IF(FORECAST($C302,D$305:D$316,$C$305:$C$316)>100,100, FORECAST($C302,D$305:D$316,$C$305:$C$316)))) -> 90.44176562 | H302: =IF(MAX(C305:C316)-MIN(C305:C316)<5,AVERAGEIF(C305:C316,">0",H305:H316), IF(FORECAST($C302,H$305:H$316,$C$305:$C$316)<0,0, IF(FORECAST($C302,H$305:H$316,$C$305:$C$316)>100,100, FORECAST($C302,H$305:H$316,$C$305:$C$316)))) -> 4.280216761 | I302: =IF(MAX(C305:C316)-MIN(C305:C316)<5,AVERAGEIF(C305:C316,">0",I305:I316), IF(FORECAST($C302,I$305:I$316,$C$305:$C$316)<0,0, IF(FORECAST($C302,I$305:I$316,$C$305:$C$316)>100,100, FORECAST($C302,I$305:I$316,$C$305:$C$316)))) -> 95.71802011 | M302: =IF(MAX(C305:C316)-MIN(C305:C316)<5,AVERAGEIF(C305:C316,">0",M305:M316), IF(FORECAST($C302,M$305:M$316,$C$305:$C$316)<0,0, IF(FORECAST($C302,M$305:M$316,$C$305:$C$316)>100,100, FORECAST($C302,M$305:M$316,$C$305:$C$316)))) -> 3.573465053 | N302: =IF(MAX(C305:C316)-MIN(C305:C316)<5,AVERAGEIF(C305:C316,">0",N305:N316), IF(FORECAST($C302,N$305:N$316,$C$305:$C$316)<0,0, IF(FORECAST($C302,N$305:N$316,$C$305:$C$316)>100,100, FORECAST($C302,N$305:N$316,$C$305:$C$316)))) -> 96.44452873 | R302: =IF(MAX(C305:C316)-MIN(C305:C316)<5,AVERAGEIF(C305:C316,">0",R305:R316), IF(FORECAST($C302,R$305:R$316,$C$305:$C$316)<0,0, IF(FORECAST($C302,R$305:R$316,$C$305:$C$316)>100,100, FORECAST($C302,R$305:R$316,$C$305:$C$316)))) -> 2.072773682 | S302: =IF(MAX(C305:C316)-MIN(C305:C316)<5,AVERAGEIF(C305:C316,">0",S305:S316), IF(FORECAST($C302,S$305:S$316,$C$305:$C$316)<0,0, IF(FORECAST($C302,S$305:S$316,$C$305:$C$316)>100,100, FORECAST($C302,S$305:S$316,$C$305:$C$316)))) -> 94.49703651 | W302: =IF(MAX(C305:C316)-MIN(C305:C316)<5,AVERAGEIF(C305:C316,">0",W305:W316), IF(FORECAST($C302,W$305:W$316,$C$305:$C$316)<0,0, IF(FORECAST($C302,W$305:W$316,$C$305:$C$316)>100,100, FORECAST($C302,W$305:W$316,$C$305:$C$316)))) -> 1.014819044 | X302: =IF(MAX(C305:C316)-MIN(C305:C316)<5,AVERAGEIF(C305:C316,">0",X305:X316), IF(FORECAST($C302,X$305:X$316,$C$305:$C$316)<0,0, IF(FORECAST($C302,X$305:X$316,$C$305:$C$316)>100,100, FORECAST($C302,X$305:X$316,$C$305:$C$316)))) -> 100 | AB302: =IF(MAX(C305:C316)-MIN(C305:C316)<5,AVERAGEIF(C305:C316,">0",AB305:AB316), IF(FORECAST($C302,AB$305:AB$316,$C$305:$C$316)<0,0, IF(FORECAST($C302,AB$305:AB$316,$C$305:$C$316)>100,100, FORECAST($C302,AB$305:AB$316,$C$305:$C$316)))) -> 0.251508195
B304: Survey | C304: Year | D304: Improved | E304: % Improved < = 30min | H304: Surface water | I304: Improved | J304: % Improved < = 30min | M304: Surface water | N304: Improved | O304: % Improved < = 30min | R304: Surface water | S304: Improved | T304: % Improved < = 30min | W304: Surface water | X304: Improved | Y304: % Improved < = 30min | AB304: Surface water
B305: MICS00 | C305: 2000 | D305: =IF(ISERROR(INDIRECT(CONCATENATE($B305,"!M16"))),"",INDIRECT(CONCATENATE($B305,"!M16"))) -> 79.1469746 | E305: =IF(ISERROR(INDIRECT(CONCATENATE($B305,"!M23"))),"",INDIRECT(CONCATENATE($B305,"!M23"))) -> 92.4087532 | H305: =IF(ISERROR(INDIRECT(CONCATENATE($B305,"!M21"))),"",INDIRECT(CONCATENATE($B305,"!M21"))) -> 18.97833732 | I305: =IF(ISERROR(INDIRECT(CONCATENATE($B305,"!N16"))),"",INDIRECT(CONCATENATE($B305,"!N16"))) -> 70.93305119 | J305: =IF(ISERROR(INDIRECT(CONCATENATE($B305,"!N23"))),"",INDIRECT(CONCATENATE($B305,"!N23"))) -> 72.23039759 | M305: =IF(ISERROR(INDIRECT(CONCATENATE($B305,"!N21"))),"",INDIRECT(CONCATENATE($B305,"!N21"))) -> 16.93110691 | N305: =IF(ISERROR(INDIRECT(CONCATENATE($B305,"!O16"))),"",INDIRECT(CONCATENATE($B305,"!O16"))) -> 71.95916962 | O305: =IF(ISERROR(INDIRECT(CONCATENATE($B305,"!O23"))),"",INDIRECT(CONCATENATE($B305,"!O23"))) -> 87.83613027 | R305: =IF(ISERROR(INDIRECT(CONCATENATE($B305,"!O21"))),"",INDIRECT(CONCATENATE($B305,"!O21"))) -> 19.85806391 | S305: =IF(ISERROR(INDIRECT(CONCATENATE($B305,"!P16"))),"",INDIRECT(CONCATENATE($B305,"!P16"))) -> 66.01703221 | T305: =IF(ISERROR(INDIRECT(CONCATENATE($B305,"!P23"))),"",INDIRECT(CONCATENATE($B305,"!P23"))) -> 87.03892111 | W305: =IF(ISERROR(INDIRECT(CONCATENATE($B305,"!P21"))),"",INDIRECT(CONCATENATE($B305,"!P21"))) -> 18.20280051 | X305: =IF(ISERROR(INDIRECT(CONCATENATE($B305,"!Q16"))),"",INDIRECT(CONCATENATE($B305,"!Q16"))) -> 75.36185849 | Y305: =IF(ISERROR(INDIRECT(CONCATENATE($B305,"!Q23"))),"",INDIRECT(CONCATENATE($B305,"!Q23"))) -> 72.23333752 | AB305: =IF(ISERROR(INDIRECT(CONCATENATE($B305,"!Q221"))),"",INDIRECT(CONCATENATE($B305,"!Q21"))) -> 13.94805924
B306: DHS09 | C306: 2009 | D306: 86.09417178 | E306: 88.77895983 | H306: 13.4882078 | I306: 83.48781289 | J306: 87.21999134 | M306: 15.72367351 | N306: 87.47848241 | O306: 87.39349169 | R306: 11.99416266 | S306: 93.05284728 | T306: 89.31422953 | W306: 5.570724312 | X306: 94.34359663 | Y306: 94.42665748 | AB306: 5.479255891
B307: MICS14 | C307: 2014 | D307: 85.27086348 | E307: 84.90385054 | H307: 10.13376108 | I307: 85.72597303 | J307: 86.36661775 | M307: 7.808702494 | N307: 86.01478784 | O307: 85.95223501 | R307: 9.094326154 | S307: 79.5702992 | T307: 85.94231422 | W307: 8.049222797 | X307: 93.092507 | Y307: 92.29299387 | AB307: 5.131012456
B308: MICS19 | C308: 2019 | D308: 90.5062138 | E308: 90.44749619 | H308: 3.796047496 | I308: 95.72386786 | J308: 91.03530921 | M308: 2.803438353 | N308: 95.96571804 | O308: 90.5536897 | R308: 1.854546478 | S308: 93.29520755 | T308: 89.78436406 | W308: 2.000958042 | X308: 96.47365733 | Y308: 92.77974307 | AB308: 1.068012479
B318: =CONCATENATE("Rural use of drinking water sources, ",C299,"–",C300) -> Rural use of drinking water sources, 2000–2020 | S318: Data points used for regression

Sheet Sanitation
B4: Summary of trends in use of sanitation facilities by wealth quintile (%)
B5: =IF(ISERROR(INDIRECT(CONCATENATE($B105,"!A2"))),"",INDIRECT(CONCATENATE($B105,"!A2"))) -> Sao Tome and Principe
B7: =B118 -> National use of sanitation facilities, 2000–2020 | J7: =B218 -> Urban use of sanitation facilities, 2000–2020 | R7: =B318 -> Rural use of sanitation facilities, 2000–2020
B31: =IF(ISERROR(INDIRECT(CONCATENATE($B105,"!A2"))),"",INDIRECT(CONCATENATE($B105,"!A2"))) -> Sao Tome and Principe | F31: Poorest | J31: Poor | N31: Middle | R31: Rich | V31: Richest
F32: Basic | G32: Limited | H32: Unimproved | I32: Open defecation | J32: Basic | K32: Limited | L32: Unimproved | M32: Open defecation | N32: Basic | O32: Limited | P32: Unimproved | Q32: Open defecation | R32: Basic | S32: Limited | T32: Unimproved | U32: Open defecation | V32: Basic | W32: Limited | X32: Unimproved | Y32: Open defecation
B33: NATIONAL | D33: Estimate | E33: =C99 -> 2000 | F33: =E99 -> 9.389833817 | G33: =F99 -> 3.296684242 | H33: 0 | I33: 87.31348194 | J33: =J99 -> 9.14014718 | K33: =K99 -> 2.505519798 | L33: 0 | M33: 88.35433302 | N33: =O99 -> 15.61859839 | O33: =P99 -> 3.354206758 | P33: 0.07980540583 | Q33: 80.94738944 | R33: =T99 -> 25.26011931 | S33: =U99 -> 3.939269902 | T33: 0.8779267734 | U33: 69.92268402 | V33: =Y99 -> 60.72709745 | W33: =Z99 -> 4.53349547 | X33: 1.388437488 | Y33: 33.35096959
E34: =C100 -> 2020 | F34: =E100 -> 13.94259231 | G34: 4.895115852 | H34: 6.003169163 | I34: 75.15912267 | J34: =J100 -> 26.55198788 | K34: 7.278496725 | L34: 3.530365534 | M34: 62.63914986 | N34: =O100 -> 42.71445386 | O34: 9.17323733 | P34: 2.289964787 | Q34: 45.82234402 | R34: =T100 -> 68.31433102 | S34: 10.65349632 | T34: 2.305832824 | U34: 18.72633983 | V34: =Y100 -> 85.400515 | W34: 6.37545452 | X34: 1.350818614 | Y34: 6.873211867
B36: URBAN | D36: Estimate | E36: =C199 -> 2000 | F36: =E199 -> 4.698550799 | G36: =F199 -> 1.246164181 | H36: 0 | I36: 94.05528502 | J36: =J199 -> 13.18515504 | K36: =K199 -> 3.282271927 | L36: 0 | M36: 83.53257304 | N36: =O199 -> 24.02328717 | O36: =P199 -> 4.737416489 | P36: 0.8995182685 | Q36: 70.33977808 | R36: =T199 -> 38.83511597 | S36: =U199 -> 5.680346436 | T36: 0.6853534234 | U36: 54.79918417 | V36: =Y199 -> 74.95015572 | W36: =Z199 -> 4.609408015 | X36: 1.626410139 | Y36: 18.81402613
E37: =C200 -> 2020 | F37: =E200 -> 16.25419287 | G37: 4.310987326 | H37: 6.819207714 | I37: 72.61561209 | J37: =J200 -> 28.76897308 | K37: 7.161659643 | L37: 3.311538547 | M37: 60.75782873 | N37: =O200 -> 53.00579687 | O37: 10.45279667 | P37: 2.750402372 | Q37: 33.79100409 | R37: =T200 -> 72.53074811 | S37: 10.6089493 | T37: 2.558341728 | U37: 14.30196086 | V37: =Y200 -> 87.87505072 | W37: 5.404284477 | X37: 0.608410273 | Y37: 6.11225453
B39: RURAL | D39: Estimate | E39: =C299 -> 2000 | F39: =E299 -> 13.36790985 | G39: =F299 -> 5.356416824 | H39: 0 | I39: 81.27567332 | J39: =J299 -> 5.179201995 | K39: =K299 -> 1.561738077 | L39: 0 | M39: 93.25905993 | N39: =O299 -> 11.7539804 | O39: =P299 -> 2.787519255 | P39: 0 | Q39: 85.45850035 | R39: =T299 -> 17.29717417 | S39: =U299 -> 2.673467752 | T39: 0.4476810478 | U39: 79.58167703 | V39: =Y299 -> 38.72386601 | W39: =Z299 -> 4.148762483 | X39: 1.113841663 | Y39: 56.01352984
E40: =C300 -> 2020 | F40: =E300 -> 13.79095651 | G40: 5.525928306 | H40: 5.546981158 | I40: 75.13613403 | J40: =J300 -> 25.35020566 | K40: 7.64410839 | L40: 1.23105602 | M40: 65.77462993 | N40: =O300 -> 31.06280409 | O40: 7.366709965 | P40: 2.961473642 | Q40: 58.6090123 | R40: =T300 -> 51.42146455 | S40: 7.947750649 | T40: 2.378581901 | U40: 38.2522029 | V40: =Y300 -> 73.65840095 | W40: 7.891547044 | X40: 1.980646275 | Y40: 16.46940573
A97: NATIONAL | D97: Poorest | I97: Poor | N97: Middle | S97: Rich | X97: Richest
D98: Improved | E98: Basic | F98: Limited | G98: Unimproved | H98: Open defecation | I98: Improved | J98: Basic | K98: Limited | L98: Unimproved | M98: Open defecation | N98: Improved | O98: Basic | P98: Limited | Q98: Unimproved | R98: Open defecation | S98: Improved | T98: Basic | U98: Limited | V98: Unimproved | W98: Open defecation | X98: Improved | Y98: Basic | Z98: Limited | AA98: Unimproved | AB98: Open defecation
A99: Forecast period: | C99: 2000 | D99: =IF((D101+H101)>100,D101*100/(D101+H101),D101) -> 12.68651806 | E99: =D99*AVERAGEIF(E105:E116,">0")/100 -> 9.389833817 | F99: =D99*(100-AVERAGEIF(E105:E116,">0"))/100 -> 3.296684242 | G99: =100-(E99+F99+H99) -> 0 | H99: =IF((D101+H101)>100,H101*100/(D101+H101),H101) -> 87.31348194 | I99: =IF((I101+M101)>100,I101*100/(I101+M101),I101) -> 11.64566698 | J99: =I99*AVERAGEIF(J105:J116,">0")/100 -> 9.14014718 | K99: =I99*(100-AVERAGEIF(J105:J116,">0"))/100 -> 2.505519798 | L99: =100-(J99+K99+M99) -> 0 | M99: =IF((I101+M101)>100,M101*100/(I101+M101),M101) -> 88.35433302 | N99: =IF((N101+R101)>100,N101*100/(N101+R101),N101) -> 18.97280515 | O99: =N99*AVERAGEIF(O105:O116,">0")/100 -> 15.61859839 | P99: =N99*(100-AVERAGEIF(O105:O116,">0"))/100 -> 3.354206758 | Q99: =100-(O99+P99+R99) -> 0.07980540583 | R99: =IF((N101+R101)>100,R101*100/(N101+R101),R101) -> 80.94738944 | S99: =IF((S101+W101)>100,S101*100/(S101+W101),S101) -> 29.19938921 | T99: =S99*AVERAGEIF(T105:T116,">0")/100 -> 25.26011931 | U99: =S99*(100-AVERAGEIF(T105:T116,">0"))/100 -> 3.939269902 | V99: =100-(T99+U99+W99) -> 0.8779267734 | W99: =IF((S101+W101)>100,W101*100/(S101+W101),W101) -> 69.92268402 | X99: =IF((X101+AB101)>100,X101*100/(X101+AB101),X101) -> 65.26059292 | Y99: =X99*AVERAGEIF(Y105:Y116,">0")/100 -> 60.72709745 | Z99: =X99*(100-AVERAGEIF(Y105:Y116,">0"))/100 -> 4.53349547 | AA99: =100-(Y99+Z99+AB99) -> 1.388437488 | AB99: =IF((X101+AB101)>100,AB101*100/(X101+AB101),AB101) -> 33.35096959
C100: 2020 | D100: =IF((D102+H102)>100,D102*100/(D102+H102),D102) -> 18.83770816 | E100: =D100*AVERAGEIF(E105:E116,">0")/100 -> 13.94259231 | F100: =D100*(100-AVERAGEIF(E105:E116,">0"))/100 -> 4.895115852 | G100: =100-(E100+F100+H100) -> 6.003169163 | H100: =IF((D102+H102)>100,H102*100/(D102+H102),H102) -> 75.15912267 | I100: =IF((I102+M102)>100,I102*100/(I102+M102),I102) -> 33.8304846 | J100: =I100*AVERAGEIF(J105:J116,">0")/100 -> 26.55198788 | K100: =I100*(100-AVERAGEIF(J105:J116,">0"))/100 -> 7.278496725 | L100: =100-(J100+K100+M100) -> 3.530365534 | M100: =IF((I102+M102)>100,M102*100/(I102+M102),M102) -> 62.63914986 | N100: =IF((N102+R102)>100,N102*100/(N102+R102),N102) -> 51.88769119 | O100: =N100*AVERAGEIF(O105:O116,">0")/100 -> 42.71445386 | P100: =N100*(100-AVERAGEIF(O105:O116,">0"))/100 -> 9.17323733 | Q100: =100-(O100+P100+R100) -> 2.289964787 | R100: =IF((N102+R102)>100,R102*100/(N102+R102),R102) -> 45.82234402 | S100: =IF((S102+W102)>100,S102*100/(S102+W102),S102) -> 78.96782734 | T100: =S100*AVERAGEIF(T105:T116,">0")/100 -> 68.31433102 | U100: =S100*(100-AVERAGEIF(T105:T116,">0"))/100 -> 10.65349632 | V100: =100-(T100+U100+W100) -> 2.305832824 | W100: =IF((S102+W102)>100,W102*100/(S102+W102),W102) -> 18.72633983 | X100: =IF((X102+AB102)>100,X102*100/(X102+AB102),X102) -> 91.77596952 | Y100: =X100*AVERAGEIF(Y105:Y116,">0")/100 -> 85.400515 | Z100: =X100*(100-AVERAGEIF(Y105:Y116,">0"))/100 -> 6.37545452 | AA100: =100-(Y100+Z100+AB100) -> 1.350818614 | AB100: =IF((X102+AB102)>100,AB102*100/(X102+AB102),AB102) -> 6.873211867
A101: Regression period: | C101: =MinRegYear(C99,C105:C116) -> 2000 | D101: =IF(MAX(C105:C116)-MIN(C105:C116)<5,AVERAGEIF(C105:C116,">0",D105:D116), IF(FORECAST($C101,D$105:D$116,$C$105:$C$116)<0,0, IF(FORECAST($C101,D$105:D$116,$C$105:$C$116)>100,100, FORECAST($C101,D$105:D$116,$C$105:$C$116)))) -> 12.85759948 | H101: =IF(MAX(C105:C116)-MIN(C105:C116)<5,AVERAGEIF(C105:C116,">0",H105:H116), IF(FORECAST($C101,H$105:H$116,$C$105:$C$116)<0,0, IF(FORECAST($C101,H$105:H$116,$C$105:$C$116)>100,100, FORECAST($C101,H$105:H$116,$C$105:$C$116)))) -> 88.49092991 | I101: =IF(MAX(C105:C116)-MIN(C105:C116)<5,AVERAGEIF(C105:C116,">0",I105:I116), IF(FORECAST($C101,I$105:I$116,$C$105:$C$116)<0,0, IF(FORECAST($C101,I$105:I$116,$C$105:$C$116)>100,100, FORECAST($C101,I$105:I$116,$C$105:$C$116)))) -> 11.71349852 | M101: =IF(MAX(C105:C116)-MIN(C105:C116)<5,AVERAGEIF(C105:C116,">0",M105:M116), IF(FORECAST($C101,M$105:M$116,$C$105:$C$116)<0,0, IF(FORECAST($C101,M$105:M$116,$C$105:$C$116)>100,100, FORECAST($C101,M$105:M$116,$C$105:$C$116)))) -> 88.86896308 | N101: =IF(MAX(C105:C116)-MIN(C105:C116)<5,AVERAGEIF(C105:C116,">0",N105:N116), IF(FORECAST($C101,N$105:N$116,$C$105:$C$116)<0,0, IF(FORECAST($C101,N$105:N$116,$C$105:$C$116)>100,100, FORECAST($C101,N$105:N$116,$C$105:$C$116)))) -> 18.97280515 | R101: =IF(MAX(C105:C116)-MIN(C105:C116)<5,AVERAGEIF(C105:C116,">0",R105:R116), IF(FORECAST($C101,R$105:R$116,$C$105:$C$116)<0,0, IF(FORECAST($C101,R$105:R$116,$C$105:$C$116)>100,100, FORECAST($C101,R$105:R$116,$C$105:$C$116)))) -> 80.94738944 | S101: =IF(MAX(C105:C116)-MIN(C105:C116)<5,AVERAGEIF(C105:C116,">0",S105:S116), IF(FORECAST($C101,S$105:S$116,$C$105:$C$116)<0,0, IF(FORECAST($C101,S$105:S$116,$C$105:$C$116)>100,100, FORECAST($C101,S$105:S$116,$C$105:$C$116)))) -> 29.19938921 | W101: =IF(MAX(C105:C116)-MIN(C105:C116)<5,AVERAGEIF(C105:C116,">0",W105:W116), IF(FORECAST($C101,W$105:W$116,$C$105:$C$116)<0,0, IF(FORECAST($C101,W$105:W$116,$C$105:$C$116)>100,100, FORECAST($C101,W$105:W$116,$C$105:$C$116)))) -> 69.92268402 | X101: =IF(MAX(C105:C116)-MIN(C105:C116)<5,AVERAGEIF(C105:C116,">0",X105:X116), IF(FORECAST($C101,X$105:X$116,$C$105:$C$116)<0,0, IF(FORECAST($C101,X$105:X$116,$C$105:$C$116)>100,100, FORECAST($C101,X$105:X$116,$C$105:$C$116)))) -> 65.26059292 | AB101: =IF(MAX(C105:C116)-MIN(C105:C116)<5,AVERAGEIF(C105:C116,">0",AB105:AB116), IF(FORECAST($C101,AB$105:AB$116,$C$105:$C$116)<0,0, IF(FORECAST($C101,AB$105:AB$116,$C$105:$C$116)>100,100, FORECAST($C101,AB$105:AB$116,$C$105:$C$116)))) -> 33.35096959
C102: =MaxRegYear(C100,C105:C116) -> 2020 | D102: =IF(MAX(C105:C116)-MIN(C105:C116)<5,AVERAGEIF(C105:C116,">0",D105:D116), IF(FORECAST($C102,D$105:D$116,$C$105:$C$116)<0,0, IF(FORECAST($C102,D$105:D$116,$C$105:$C$116)>100,100, FORECAST($C102,D$105:D$116,$C$105:$C$116)))) -> 18.83770816 | H102: =IF(MAX(C105:C116)-MIN(C105:C116)<5,AVERAGEIF(C105:C116,">0",H105:H116), IF(FORECAST($C102,H$105:H$116,$C$105:$C$116)<0,0, IF(FORECAST($C102,H$105:H$116,$C$105:$C$116)>100,100, FORECAST($C102,H$105:H$116,$C$105:$C$116)))) -> 75.15912267 | I102: =IF(MAX(C105:C116)-MIN(C105:C116)<5,AVERAGEIF(C105:C116,">0",I105:I116), IF(FORECAST($C102,I$105:I$116,$C$105:$C$116)<0,0, IF(FORECAST($C102,I$105:I$116,$C$105:$C$116)>100,100, FORECAST($C102,I$105:I$116,$C$105:$C$116)))) -> 33.8304846 | M102: =IF(MAX(C105:C116)-MIN(C105:C116)<5,AVERAGEIF(C105:C116,">0",M105:M116), IF(FORECAST($C102,M$105:M$116,$C$105:$C$116)<0,0, IF(FORECAST($C102,M$105:M$116,$C$105:$C$116)>100,100, FORECAST($C102,M$105:M$116,$C$105:$C$116)))) -> 62.63914986 | N102: =IF(MAX(C105:C116)-MIN(C105:C116)<5,AVERAGEIF(C105:C116,">0",N105:N116), IF(FORECAST($C102,N$105:N$116,$C$105:$C$116)<0,0, IF(FORECAST($C102,N$105:N$116,$C$105:$C$116)>100,100, FORECAST($C102,N$105:N$116,$C$105:$C$116)))) -> 51.88769119 | R102: =IF(MAX(C105:C116)-MIN(C105:C116)<5,AVERAGEIF(C105:C116,">0",R105:R116), IF(FORECAST($C102,R$105:R$116,$C$105:$C$116)<0,0, IF(FORECAST($C102,R$105:R$116,$C$105:$C$116)>100,100, FORECAST($C102,R$105:R$116,$C$105:$C$116)))) -> 45.82234402 | S102: =IF(MAX(C105:C116)-MIN(C105:C116)<5,AVERAGEIF(C105:C116,">0",S105:S116), IF(FORECAST($C102,S$105:S$116,$C$105:$C$116)<0,0, IF(FORECAST($C102,S$105:S$116,$C$105:$C$116)>100,100, FORECAST($C102,S$105:S$116,$C$105:$C$116)))) -> 78.96782734 | W102: =IF(MAX(C105:C116)-MIN(C105:C116)<5,AVERAGEIF(C105:C116,">0",W105:W116), IF(FORECAST($C102,W$105:W$116,$C$105:$C$116)<0,0, IF(FORECAST($C102,W$105:W$116,$C$105:$C$116)>100,100, FORECAST($C102,W$105:W$116,$C$105:$C$116)))) -> 18.72633983 | X102: =IF(MAX(C105:C116)-MIN(C105:C116)<5,AVERAGEIF(C105:C116,">0",X105:X116), IF(FORECAST($C102,X$105:X$116,$C$105:$C$116)<0,0, IF(FORECAST($C102,X$105:X$116,$C$105:$C$116)>100,100, FORECAST($C102,X$105:X$116,$C$105:$C$116)))) -> 91.77596952 | AB102: =IF(MAX(C105:C116)-MIN(C105:C116)<5,AVERAGEIF(C105:C116,">0",AB105:AB116), IF(FORECAST($C102,AB$105:AB$116,$C$105:$C$116)<0,0, IF(FORECAST($C102,AB$105:AB$116,$C$105:$C$116)>100,100, FORECAST($C102,AB$105:AB$116,$C$105:$C$116)))) -> 6.873211867
B104: Survey | C104: Year | D104: Improved | E104: Not shared | H104: Open defecation | I104: Improved | J104: Not shared | M104: Open defecation | N104: Improved | O104: Not shared | R104: Open defecation | S104: Improved | T104: Not shared | W104: Open defecation | X104: Improved | Y104: Not shared | AB104: Open defecation
B105: MICS00 | C105: 2000 | D105: =IF(ISERROR(INDIRECT(CONCATENATE($B105,"!C122"))),"",INDIRECT(CONCATENATE($B105,"!C122"))) -> 12.97210339 | E105: =IF(ISERROR(INDIRECT(CONCATENATE($B105,"!C129"))),"",INDIRECT(CONCATENATE($B105,"!C129"))) -> N/A | H105: =IF(ISERROR(INDIRECT(CONCATENATE($B105,"!C127"))),"",INDIRECT(CONCATENATE($B105,"!C127"))) -> 86.95944959 | I105: =IF(ISERROR(INDIRECT(CONCATENATE($B105,"!D122"))),"",INDIRECT(CONCATENATE($B105,"!D122"))) -> 9.692581796 | J105: =IF(ISERROR(INDIRECT(CONCATENATE($B105,"!D129"))),"",INDIRECT(CONCATENATE($B105,"!D129"))) -> N/A | M105: =IF(ISERROR(INDIRECT(CONCATENATE($B105,"!D127"))),"",INDIRECT(CONCATENATE($B105,"!D127"))) -> 90.12160895 | N105: =IF(ISERROR(INDIRECT(CONCATENATE($B105,"!E122"))),"",INDIRECT(CONCATENATE($B105,"!E122"))) -> 18.42984657 | O105: =IF(ISERROR(INDIRECT(CONCATENATE($B105,"!E129"))),"",INDIRECT(CONCATENATE($B105,"!E129"))) -> N/A | R105: =IF(ISERROR(INDIRECT(CONCATENATE($B105,"!E127"))),"",INDIRECT(CONCATENATE($B105,"!E127"))) -> 80.62130872 | S105: =IF(ISERROR(INDIRECT(CONCATENATE($B105,"!F122"))),"",INDIRECT(CONCATENATE($B105,"!F122"))) -> 24.71670726 | T105: =IF(ISERROR(INDIRECT(CONCATENATE($B105,"!F129"))),"",INDIRECT(CONCATENATE($B105,"!F129"))) -> N/A | W105: =IF(ISERROR(INDIRECT(CONCATENATE($B105,"!F127"))),"",INDIRECT(CONCATENATE($B105,"!F127"))) -> 73.69235997 | X105: =IF(ISERROR(INDIRECT(CONCATENATE($B105,"!G122"))),"",INDIRECT(CONCATENATE($B105,"!G122"))) -> 62.48469427 | Y105: =IF(ISERROR(INDIRECT(CONCATENATE($B105,"!G129"))),"",INDIRECT(CONCATENATE($B105,"!G129"))) -> N/A | AB105: =IF(ISERROR(INDIRECT(CONCATENATE($B105,"!G2127"))),"",INDIRECT(CONCATENATE($B105,"!G127"))) -> 35.62505422
B106: DHS09 | C106: 2009 | D106: 14.92187174 | E106: 70.76794106 | H106: 84.8538255 | I106: 24.00008904 | J106: 74.27871474 | M106: 75.76354668 | N106: 32.18256196 | O106: 80.73630743 | R106: 67.4619766 | S106: 56.97970602 | T106: 82.74286176 | W106: 42.29298093 | X106: 80.97292621 | Y106: 91.10286414 | AB106: 18.02559445
B107: MICS14 | C107: 2014 | D107: 17.86211403 | E107: 71.63674162 | H107: 80.25387238 | I107: 30.20697873 | J107: 78.99335363 | M107: 68.35204039 | N107: 47.28035181 | O107: 81.18787681 | R107: 52.95724921 | S107: 70.302448 | T107: 85.78163952 | W107: 28.94317088 | X107: 86.80894376 | Y107: 93.92114015 | AB107: 12.99578595
B108: MICS19 | C108: 2019 | D108: 18.23253701 | E108: 79.63812938 | H108: 73.89977697 | I108: 29.40001528 | J108: 82.18410251 | M108: 66.15604853 | N108: 47.11972096 | O108: 85.03874404 | R108: 48.98642786 | S108: 69.31241563 | T108: 91.00270107 | W108: 27.2499015 | X108: 86.4580983 | Y108: 94.13572166 | AB108: 11.15415253
B118: =CONCATENATE("National use of sanitation facilities, ",C99,"–",C100) -> National use of sanitation facilities, 2000–2020 | S118: Data points used for regression
A197: URBAN | D197: Poorest | I197: Poor | N197: Middle | S197: Rich | X197: Richest
D198: Improved | E198: Basic | F198: Limited | G198: Unimproved | H198: Open defecation | I198: Improved | J198: Basic | K198: Limited | L198: Unimproved | M198: Open defecation | N198: Improved | O198: Basic | P198: Limited | Q198: Unimproved | R198: Open defecation | S198: Improved | T198: Basic | U198: Limited | V198: Unimproved | W198: Open defecation | X198: Improved | Y198: Basic | Z198: Limited | AA198: Unimproved | AB198: Open defecation
A199: Forecast period: | C199: 2000 | D199: =IF((D201+H201)>100,D201*100/(D201+H201),D201) -> 5.94471498 | E199: =D199*AVERAGEIF(E205:E216,">0")/100 -> 4.698550799 | F199: =D199*(100-AVERAGEIF(E205:E216,">0"))/100 -> 1.246164181 | G199: =100-(E199+F199+H199) -> 0 | H199: =IF((D201+H201)>100,H201*100/(D201+H201),H201) -> 94.05528502 | I199: =IF((I201+M201)>100,I201*100/(I201+M201),I201) -> 16.46742696 | J199: =I199*AVERAGEIF(J205:J216,">0")/100 -> 13.18515504 | K199: =I199*(100-AVERAGEIF(J205:J216,">0"))/100 -> 3.282271927 | L199: =100-(J199+K199+M199) -> 0 | M199: =IF((I201+M201)>100,M201*100/(I201+M201),M201) -> 83.53257304 | N199: =IF((N201+R201)>100,N201*100/(N201+R201),N201) -> 28.76070366 | O199: =N199*AVERAGEIF(O205:O216,">0")/100 -> 24.02328717 | P199: =N199*(100-AVERAGEIF(O205:O216,">0"))/100 -> 4.737416489 | Q199: =100-(O199+P199+R199) -> 0.8995182685 | R199: =IF((N201+R201)>100,R201*100/(N201+R201),R201) -> 70.33977808 | S199: =IF((S201+W201)>100,S201*100/(S201+W201),S201) -> 44.51546241 | T199: =S199*AVERAGEIF(T205:T216,">0")/100 -> 38.83511597 | U199: =S199*(100-AVERAGEIF(T205:T216,">0"))/100 -> 5.680346436 | V199: =100-(T199+U199+W199) -> 0.6853534234 | W199: =IF((S201+W201)>100,W201*100/(S201+W201),W201) -> 54.79918417 | X199: =IF((X201+AB201)>100,X201*100/(X201+AB201),X201) -> 79.55956373 | Y199: =X199*AVERAGEIF(Y205:Y216,">0")/100 -> 74.95015572 | Z199: =X199*(100-AVERAGEIF(Y205:Y216,">0"))/100 -> 4.609408015 | AA199: =100-(Y199+Z199+AB199) -> 1.626410139 | AB199: =IF((X201+AB201)>100,AB201*100/(X201+AB201),AB201) -> 18.81402613
C200: 2020 | D200: =IF((D202+H202)>100,D202*100/(D202+H202),D202) -> 20.5651802 | E200: =D200*AVERAGEIF(E205:E216,">0")/100 -> 16.25419287 | F200: =D200*(100-AVERAGEIF(E205:E216,">0"))/100 -> 4.310987326 | G200: =100-(E200+F200+H200) -> 6.819207714 | H200: =IF((D202+H202)>100,H202*100/(D202+H202),H202) -> 72.61561209 | I200: =IF((I202+M202)>100,I202*100/(I202+M202),I202) -> 35.93063272 | J200: =I200*AVERAGEIF(J205:J216,">0")/100 -> 28.76897308 | K200: =I200*(100-AVERAGEIF(J205:J216,">0"))/100 -> 7.161659643 | L200: =100-(J200+K200+M200) -> 3.311538547 | M200: =IF((I202+M202)>100,M202*100/(I202+M202),M202) -> 60.75782873 | N200: =IF((N202+R202)>100,N202*100/(N202+R202),N202) -> 63.45859354 | O200: =N200*AVERAGEIF(O205:O216,">0")/100 -> 53.00579687 | P200: =N200*(100-AVERAGEIF(O205:O216,">0"))/100 -> 10.45279667 | Q200: =100-(O200+P200+R200) -> 2.750402372 | R200: =IF((N202+R202)>100,R202*100/(N202+R202),R202) -> 33.79100409 | S200: =IF((S202+W202)>100,S202*100/(S202+W202),S202) -> 83.13969741 | T200: =S200*AVERAGEIF(T205:T216,">0")/100 -> 72.53074811 | U200: =S200*(100-AVERAGEIF(T205:T216,">0"))/100 -> 10.6089493 | V200: =100-(T200+U200+W200) -> 2.558341728 | W200: =IF((S202+W202)>100,W202*100/(S202+W202),W202) -> 14.30196086 | X200: =IF((X202+AB202)>100,X202*100/(X202+AB202),X202) -> 93.2793352 | Y200: =X200*AVERAGEIF(Y205:Y216,">0")/100 -> 87.87505072 | Z200: =X200*(100-AVERAGEIF(Y205:Y216,">0"))/100 -> 5.404284477 | AA200: =100-(Y200+Z200+AB200) -> 0.608410273 | AB200: =IF((X202+AB202)>100,AB202*100/(X202+AB202),AB202) -> 6.11225453
A201: Regression period: | C201: =MinRegYear(C199,C205:C216) -> 2000 | D201: =IF(MAX(C205:C216)-MIN(C205:C216)<5,AVERAGEIF(C205:C216,">0",D205:D216), IF(FORECAST($C201,D$205:D$216,$C$205:$C$216)<0,0, IF(FORECAST($C201,D$205:D$216,$C$205:$C$216)>100,100, FORECAST($C201,D$205:D$216,$C$205:$C$216)))) -> 6.030617907 | H201: =IF(MAX(C205:C216)-MIN(C205:C216)<5,AVERAGEIF(C205:C216,">0",H205:H216), IF(FORECAST($C201,H$205:H$216,$C$205:$C$216)<0,0, IF(FORECAST($C201,H$205:H$216,$C$205:$C$216)>100,100, FORECAST($C201,H$205:H$216,$C$205:$C$216)))) -> 95.41441231 | I201: =IF(MAX(C205:C216)-MIN(C205:C216)<5,AVERAGEIF(C205:C216,">0",I205:I216), IF(FORECAST($C201,I$205:I$216,$C$205:$C$216)<0,0, IF(FORECAST($C201,I$205:I$216,$C$205:$C$216)>100,100, FORECAST($C201,I$205:I$216,$C$205:$C$216)))) -> 16.48040451 | M201: =IF(MAX(C205:C216)-MIN(C205:C216)<5,AVERAGEIF(C205:C216,">0",M205:M216), IF(FORECAST($C201,M$205:M$216,$C$205:$C$216)<0,0, IF(FORECAST($C201,M$205:M$216,$C$205:$C$216)>100,100, FORECAST($C201,M$205:M$216,$C$205:$C$216)))) -> 83.59840288 | N201: =IF(MAX(C205:C216)-MIN(C205:C216)<5,AVERAGEIF(C205:C216,">0",N205:N216), IF(FORECAST($C201,N$205:N$216,$C$205:$C$216)<0,0, IF(FORECAST($C201,N$205:N$216,$C$205:$C$216)>100,100, FORECAST($C201,N$205:N$216,$C$205:$C$216)))) -> 28.76070366 | R201: =IF(MAX(C205:C216)-MIN(C205:C216)<5,AVERAGEIF(C205:C216,">0",R205:R216), IF(FORECAST($C201,R$205:R$216,$C$205:$C$216)<0,0, IF(FORECAST($C201,R$205:R$216,$C$205:$C$216)>100,100, FORECAST($C201,R$205:R$216,$C$205:$C$216)))) -> 70.33977808 | S201: =IF(MAX(C205:C216)-MIN(C205:C216)<5,AVERAGEIF(C205:C216,">0",S205:S216), IF(FORECAST($C201,S$205:S$216,$C$205:$C$216)<0,0, IF(FORECAST($C201,S$205:S$216,$C$205:$C$216)>100,100, FORECAST($C201,S$205:S$216,$C$205:$C$216)))) -> 44.51546241 | W201: =IF(MAX(C205:C216)-MIN(C205:C216)<5,AVERAGEIF(C205:C216,">0",W205:W216), IF(FORECAST($C201,W$205:W$216,$C$205:$C$216)<0,0, IF(FORECAST($C201,W$205:W$216,$C$205:$C$216)>100,100, FORECAST($C201,W$205:W$216,$C$205:$C$216)))) -> 54.79918417 | X201: =IF(MAX(C205:C216)-MIN(C205:C216)<5,AVERAGEIF(C205:C216,">0",X205:X216), IF(FORECAST($C201,X$205:X$216,$C$205:$C$216)<0,0, IF(FORECAST($C201,X$205:X$216,$C$205:$C$216)>100,100, FORECAST($C201,X$205:X$216,$C$205:$C$216)))) -> 79.55956373 | AB201: =IF(MAX(C205:C216)-MIN(C205:C216)<5,AVERAGEIF(C205:C216,">0",AB205:AB216), IF(FORECAST($C201,AB$205:AB$216,$C$205:$C$216)<0,0, IF(FORECAST($C201,AB$205:AB$216,$C$205:$C$216)>100,100, FORECAST($C201,AB$205:AB$216,$C$205:$C$216)))) -> 18.81402613
C202: =MaxRegYear(C200,C205:C216) -> 2020 | D202: =IF(MAX(C205:C216)-MIN(C205:C216)<5,AVERAGEIF(C205:C216,">0",D205:D216), IF(FORECAST($C202,D$205:D$216,$C$205:$C$216)<0,0, IF(FORECAST($C202,D$205:D$216,$C$205:$C$216)>100,100, FORECAST($C202,D$205:D$216,$C$205:$C$216)))) -> 20.5651802 | H202: =IF(MAX(C205:C216)-MIN(C205:C216)<5,AVERAGEIF(C205:C216,">0",H205:H216), IF(FORECAST($C202,H$205:H$216,$C$205:$C$216)<0,0, IF(FORECAST($C202,H$205:H$216,$C$205:$C$216)>100,100, FORECAST($C202,H$205:H$216,$C$205:$C$216)))) -> 72.61561209 | I202: =IF(MAX(C205:C216)-MIN(C205:C216)<5,AVERAGEIF(C205:C216,">0",I205:I216), IF(FORECAST($C202,I$205:I$216,$C$205:$C$216)<0,0, IF(FORECAST($C202,I$205:I$216,$C$205:$C$216)>100,100, FORECAST($C202,I$205:I$216,$C$205:$C$216)))) -> 35.93063272 | M202: =IF(MAX(C205:C216)-MIN(C205:C216)<5,AVERAGEIF(C205:C216,">0",M205:M216), IF(FORECAST($C202,M$205:M$216,$C$205:$C$216)<0,0, IF(FORECAST($C202,M$205:M$216,$C$205:$C$216)>100,100, FORECAST($C202,M$205:M$216,$C$205:$C$216)))) -> 60.75782873 | N202: =IF(MAX(C205:C216)-MIN(C205:C216)<5,AVERAGEIF(C205:C216,">0",N205:N216), IF(FORECAST($C202,N$205:N$216,$C$205:$C$216)<0,0, IF(FORECAST($C202,N$205:N$216,$C$205:$C$216)>100,100, FORECAST($C202,N$205:N$216,$C$205:$C$216)))) -> 63.45859354 | R202: =IF(MAX(C205:C216)-MIN(C205:C216)<5,AVERAGEIF(C205:C216,">0",R205:R216), IF(FORECAST($C202,R$205:R$216,$C$205:$C$216)<0,0, IF(FORECAST($C202,R$205:R$216,$C$205:$C$216)>100,100, FORECAST($C202,R$205:R$216,$C$205:$C$216)))) -> 33.79100409 | S202: =IF(MAX(C205:C216)-MIN(C205:C216)<5,AVERAGEIF(C205:C216,">0",S205:S216), IF(FORECAST($C202,S$205:S$216,$C$205:$C$216)<0,0, IF(FORECAST($C202,S$205:S$216,$C$205:$C$216)>100,100, FORECAST($C202,S$205:S$216,$C$205:$C$216)))) -> 83.13969741 | W202: =IF(MAX(C205:C216)-MIN(C205:C216)<5,AVERAGEIF(C205:C216,">0",W205:W216), IF(FORECAST($C202,W$205:W$216,$C$205:$C$216)<0,0, IF(FORECAST($C202,W$205:W$216,$C$205:$C$216)>100,100, FORECAST($C202,W$205:W$216,$C$205:$C$216)))) -> 14.30196086 | X202: =IF(MAX(C205:C216)-MIN(C205:C216)<5,AVERAGEIF(C205:C216,">0",X205:X216), IF(FORECAST($C202,X$205:X$216,$C$205:$C$216)<0,0, IF(FORECAST($C202,X$205:X$216,$C$205:$C$216)>100,100, FORECAST($C202,X$205:X$216,$C$205:$C$216)))) -> 93.2793352 | AB202: =IF(MAX(C205:C216)-MIN(C205:C216)<5,AVERAGEIF(C205:C216,">0",AB205:AB216), IF(FORECAST($C202,AB$205:AB$216,$C$205:$C$216)<0,0, IF(FORECAST($C202,AB$205:AB$216,$C$205:$C$216)>100,100, FORECAST($C202,AB$205:AB$216,$C$205:$C$216)))) -> 6.11225453
B204: Survey | C204: Year | D204: Improved | E204: Not shared | H204: Open defecation | I204: Improved | J204: Not shared | M204: Open defecation | N204: Improved | O204: Not shared | R204: Open defecation | S204: Improved | T204: Not shared | W204: Open defecation | X204: Improved | Y204: Not shared | AB204: Open defecation
B205: MICS00 | C205: 2000 | D205: =IF(ISERROR(INDIRECT(CONCATENATE($B205,"!H122"))),"",INDIRECT(CONCATENATE($B205,"!H122"))) -> 4.521922987 | E205: =IF(ISERROR(INDIRECT(CONCATENATE($B205,"!H129"))),"",INDIRECT(CONCATENATE($B205,"!H129"))) -> N/A | H205: =IF(ISERROR(INDIRECT(CONCATENATE($B205,"!H127"))),"",INDIRECT(CONCATENATE($B205,"!H127"))) -> 95.33474648 | I205: =IF(ISERROR(INDIRECT(CONCATENATE($B205,"!I122"))),"",INDIRECT(CONCATENATE($B205,"!I122"))) -> 15.42186691 | J205: =IF(ISERROR(INDIRECT(CONCATENATE($B205,"!I129"))),"",INDIRECT(CONCATENATE($B205,"!I129"))) -> N/A | M205: =IF(ISERROR(INDIRECT(CONCATENATE($B205,"!I127"))),"",INDIRECT(CONCATENATE($B205,"!I127"))) -> 83.85948153 | N205: =IF(ISERROR(INDIRECT(CONCATENATE($B205,"!J122"))),"",INDIRECT(CONCATENATE($B205,"!J122"))) -> 22.35971593 | O205: =IF(ISERROR(INDIRECT(CONCATENATE($B205,"!J129"))),"",INDIRECT(CONCATENATE($B205,"!J129"))) -> N/A | R205: =IF(ISERROR(INDIRECT(CONCATENATE($B205,"!J127"))),"",INDIRECT(CONCATENATE($B205,"!J127"))) -> 75.79948024 | S205: =IF(ISERROR(INDIRECT(CONCATENATE($B205,"!K122"))),"",INDIRECT(CONCATENATE($B205,"!K122"))) -> 38.53717682 | T205: =IF(ISERROR(INDIRECT(CONCATENATE($B205,"!K129"))),"",INDIRECT(CONCATENATE($B205,"!K129"))) -> N/A | W205: =IF(ISERROR(INDIRECT(CONCATENATE($B205,"!K127"))),"",INDIRECT(CONCATENATE($B205,"!K127"))) -> 59.63887598 | X205: =IF(ISERROR(INDIRECT(CONCATENATE($B205,"!L122"))),"",INDIRECT(CONCATENATE($B205,"!L122"))) -> 78.23791776 | Y205: =IF(ISERROR(INDIRECT(CONCATENATE($B205,"!L129"))),"",INDIRECT(CONCATENATE($B205,"!L129"))) -> N/A | AB205: =IF(ISERROR(INDIRECT(CONCATENATE($B205,"!L2127"))),"",INDIRECT(CONCATENATE($B205,"!L127"))) -> 20.18866352
B206: DHS09 | C206: 2009 | D206: 13.44615006 | E206: 85.44908332 | H206: 86.36745285 | I206: 24.00177659 | J206: 77.69603846 | M206: 75.00812981 | N206: 52.74582608 | O206: 83.58050012 | R206: 46.42553789 | S206: 69.71931375 | T206: 86.77984754 | W206: 29.75554154 | X206: 88.28671544 | Y206: 91.01388784 | AB206: 10.30758955
B207: MICS14 | C207: 2014 | D207: 20.18789397 | E207: 74.39488599 | H207: 77.33298102 | I207: 36.58046838 | J207: 76.83445122 | M207: 63.24193149 | N207: 60.630836 | O207: 83.49722547 | R207: 38.94335184 | S207: 78.62402094 | T207: 84.0408737 | W207: 21.70008326 | X207: 89.07914935 | Y207: 96.84923704 | AB207: 10.28044263
B208: MICS19 | C208: 2019 | D208: 16.48908543 | E208: 77.268364 | H208: 74.74498841 | I208: 30.76298541 | J208: 85.67379481 | M208: 64.31886297 | N208: 52.17200538 | O208: 83.50676067 | R208: 43.43831696 | S208: 72.29223163 | T208: 90.89810995 | W208: 23.05806694 | X208: 91.44599245 | Y208: 94.75590494 | AB208: 7.805688455
B218: =CONCATENATE("Urban use of sanitation facilities, ",C199,"–",C200) -> Urban use of sanitation facilities, 2000–2020 | S218: Data points used for regression
A297: RURAL | D297: Poorest | I297: Poor | N297: Middle | S297: Rich | X297: Richest
D298: Improved | E298: Basic | F298: Limited | G298: Unimproved | H298: Open defecation | I298: Improved | J298: Basic | K298: Limited | L298: Unimproved | M298: Open defecation | N298: Improved | O298: Basic | P298: Limited | Q298: Unimproved | R298: Open defecation | S298: Improved | T298: Basic | U298: Limited | V298: Unimproved | W298: Open defecation | X298: Improved | Y298: Basic | Z298: Limited | AA298: Unimproved | AB298: Open defecation
A299: Forecast period: | C299: 2000 | D299: =IF((D301+H301)>100,D301*100/(D301+H301),D301) -> 18.72432668 | E299: =D299*AVERAGEIF(E305:E316,">0")/100 -> 13.36790985 | F299: =D299*(100-AVERAGEIF(E305:E316,">0"))/100 -> 5.356416824 | G299: =100-(E299+F299+H299) -> 0 | H299: =IF((D301+H301)>100,H301*100/(D301+H301),H301) -> 81.27567332 | I299: =IF((I301+M301)>100,I301*100/(I301+M301),I301) -> 6.740940072 | J299: =I299*AVERAGEIF(J305:J316,">0")/100 -> 5.179201995 | K299: =I299*(100-AVERAGEIF(J305:J316,">0"))/100 -> 1.561738077 | L299: =100-(J299+K299+M299) -> 0 | M299: =IF((I301+M301)>100,M301*100/(I301+M301),M301) -> 93.25905993 | N299: =IF((N301+R301)>100,N301*100/(N301+R301),N301) -> 14.54149965 | O299: =N299*AVERAGEIF(O305:O316,">0")/100 -> 11.7539804 | P299: =N299*(100-AVERAGEIF(O305:O316,">0"))/100 -> 2.787519255 | Q299: =100-(O299+P299+R299) -> 0 | R299: =IF((N301+R301)>100,R301*100/(N301+R301),R301) -> 85.45850035 | S299: =IF((S301+W301)>100,S301*100/(S301+W301),S301) -> 19.97064192 | T299: =S299*AVERAGEIF(T305:T316,">0")/100 -> 17.29717417 | U299: =S299*(100-AVERAGEIF(T305:T316,">0"))/100 -> 2.673467752 | V299: =100-(T299+U299+W299) -> 0.4476810478 | W299: =IF((S301+W301)>100,W301*100/(S301+W301),W301) -> 79.58167703 | X299: =IF((X301+AB301)>100,X301*100/(X301+AB301),X301) -> 42.8726285 | Y299: =X299*AVERAGEIF(Y305:Y316,">0")/100 -> 38.72386601 | Z299: =X299*(100-AVERAGEIF(Y305:Y316,">0"))/100 -> 4.148762483 | AA299: =100-(Y299+Z299+AB299) -> 1.113841663 | AB299: =IF((X301+AB301)>100,AB301*100/(X301+AB301),AB301) -> 56.01352984
C300: 2020 | D300: =IF((D302+H302)>100,D302*100/(D302+H302),D302) -> 19.31688481 | E300: =D300*AVERAGEIF(E305:E316,">0")/100 -> 13.79095651 | F300: =D300*(100-AVERAGEIF(E305:E316,">0"))/100 -> 5.525928306 | G300: =100-(E300+F300+H300) -> 5.546981158 | H300: =IF((D302+H302)>100,H302*100/(D302+H302),H302) -> 75.13613403 | I300: =IF((I302+M302)>100,I302*100/(I302+M302),I302) -> 32.99431405 | J300: =I300*AVERAGEIF(J305:J316,">0")/100 -> 25.35020566 | K300: =I300*(100-AVERAGEIF(J305:J316,">0"))/100 -> 7.64410839 | L300: =100-(J300+K300+M300) -> 1.23105602 | M300: =IF((I302+M302)>100,M302*100/(I302+M302),M302) -> 65.77462993 | N300: =IF((N302+R302)>100,N302*100/(N302+R302),N302) -> 38.42951406 | O300: =N300*AVERAGEIF(O305:O316,">0")/100 -> 31.06280409 | P300: =N300*(100-AVERAGEIF(O305:O316,">0"))/100 -> 7.366709965 | Q300: =100-(O300+P300+R300) -> 2.961473642 | R300: =IF((N302+R302)>100,R302*100/(N302+R302),R302) -> 58.6090123 | S300: =IF((S302+W302)>100,S302*100/(S302+W302),S302) -> 59.36921519 | T300: =S300*AVERAGEIF(T305:T316,">0")/100 -> 51.42146455 | U300: =S300*(100-AVERAGEIF(T305:T316,">0"))/100 -> 7.947750649 | V300: =100-(T300+U300+W300) -> 2.378581901 | W300: =IF((S302+W302)>100,W302*100/(S302+W302),W302) -> 38.2522029 | X300: =IF((X302+AB302)>100,X302*100/(X302+AB302),X302) -> 81.549948 | Y300: =X300*AVERAGEIF(Y305:Y316,">0")/100 -> 73.65840095 | Z300: =X300*(100-AVERAGEIF(Y305:Y316,">0"))/100 -> 7.891547044 | AA300: =100-(Y300+Z300+AB300) -> 1.980646275 | AB300: =IF((X302+AB302)>100,AB302*100/(X302+AB302),AB302) -> 16.46940573
A301: Regression period: | C301: =MinRegYear(C299,C305:C316) -> 2000 | D301: =IF(MAX(C305:C316)-MIN(C305:C316)<5,AVERAGEIF(C305:C316,">0",D305:D316), IF(FORECAST($C301,D$305:D$316,$C$305:$C$316)<0,0, IF(FORECAST($C301,D$305:D$316,$C$305:$C$316)>100,100, FORECAST($C301,D$305:D$316,$C$305:$C$316)))) -> 18.94772682 | H301: =IF(MAX(C305:C316)-MIN(C305:C316)<5,AVERAGEIF(C305:C316,">0",H305:H316), IF(FORECAST($C301,H$305:H$316,$C$305:$C$316)<0,0, IF(FORECAST($C301,H$305:H$316,$C$305:$C$316)>100,100, FORECAST($C301,H$305:H$316,$C$305:$C$316)))) -> 82.24537423 | I301: =IF(MAX(C305:C316)-MIN(C305:C316)<5,AVERAGEIF(C305:C316,">0",I305:I316), IF(FORECAST($C301,I$305:I$316,$C$305:$C$316)<0,0, IF(FORECAST($C301,I$305:I$316,$C$305:$C$316)>100,100, FORECAST($C301,I$305:I$316,$C$305:$C$316)))) -> 6.754725974 | M301: =IF(MAX(C305:C316)-MIN(C305:C316)<5,AVERAGEIF(C305:C316,">0",M305:M316), IF(FORECAST($C301,M$305:M$316,$C$305:$C$316)<0,0, IF(FORECAST($C301,M$305:M$316,$C$305:$C$316)>100,100, FORECAST($C301,M$305:M$316,$C$305:$C$316)))) -> 93.44978411 | N301: =IF(MAX(C305:C316)-MIN(C305:C316)<5,AVERAGEIF(C305:C316,">0",N305:N316), IF(FORECAST($C301,N$305:N$316,$C$305:$C$316)<0,0, IF(FORECAST($C301,N$305:N$316,$C$305:$C$316)>100,100, FORECAST($C301,N$305:N$316,$C$305:$C$316)))) -> 14.63271123 | R301: =IF(MAX(C305:C316)-MIN(C305:C316)<5,AVERAGEIF(C305:C316,">0",R305:R316), IF(FORECAST($C301,R$305:R$316,$C$305:$C$316)<0,0, IF(FORECAST($C301,R$305:R$316,$C$305:$C$316)>100,100, FORECAST($C301,R$305:R$316,$C$305:$C$316)))) -> 85.99453893 | S301: =IF(MAX(C305:C316)-MIN(C305:C316)<5,AVERAGEIF(C305:C316,">0",S305:S316), IF(FORECAST($C301,S$305:S$316,$C$305:$C$316)<0,0, IF(FORECAST($C301,S$305:S$316,$C$305:$C$316)>100,100, FORECAST($C301,S$305:S$316,$C$305:$C$316)))) -> 19.97064192 | W301: =IF(MAX(C305:C316)-MIN(C305:C316)<5,AVERAGEIF(C305:C316,">0",W305:W316), IF(FORECAST($C301,W$305:W$316,$C$305:$C$316)<0,0, IF(FORECAST($C301,W$305:W$316,$C$305:$C$316)>100,100, FORECAST($C301,W$305:W$316,$C$305:$C$316)))) -> 79.58167703 | X301: =IF(MAX(C305:C316)-MIN(C305:C316)<5,AVERAGEIF(C305:C316,">0",X305:X316), IF(FORECAST($C301,X$305:X$316,$C$305:$C$316)<0,0, IF(FORECAST($C301,X$305:X$316,$C$305:$C$316)>100,100, FORECAST($C301,X$305:X$316,$C$305:$C$316)))) -> 42.8726285 | AB301: =IF(MAX(C305:C316)-MIN(C305:C316)<5,AVERAGEIF(C305:C316,">0",AB305:AB316), IF(FORECAST($C301,AB$305:AB$316,$C$305:$C$316)<0,0, IF(FORECAST($C301,AB$305:AB$316,$C$305:$C$316)>100,100, FORECAST($C301,AB$305:AB$316,$C$305:$C$316)))) -> 56.01352984
C302: =MaxRegYear(C300,C305:C316) -> 2020 | D302: =IF(MAX(C305:C316)-MIN(C305:C316)<5,AVERAGEIF(C305:C316,">0",D305:D316), IF(FORECAST($C302,D$305:D$316,$C$305:$C$316)<0,0, IF(FORECAST($C302,D$305:D$316,$C$305:$C$316)>100,100, FORECAST($C302,D$305:D$316,$C$305:$C$316)))) -> 19.31688481 | H302: =IF(MAX(C305:C316)-MIN(C305:C316)<5,AVERAGEIF(C305:C316,">0",H305:H316), IF(FORECAST($C302,H$305:H$316,$C$305:$C$316)<0,0, IF(FORECAST($C302,H$305:H$316,$C$305:$C$316)>100,100, FORECAST($C302,H$305:H$316,$C$305:$C$316)))) -> 75.13613403 | I302: =IF(MAX(C305:C316)-MIN(C305:C316)<5,AVERAGEIF(C305:C316,">0",I305:I316), IF(FORECAST($C302,I$305:I$316,$C$305:$C$316)<0,0, IF(FORECAST($C302,I$305:I$316,$C$305:$C$316)>100,100, FORECAST($C302,I$305:I$316,$C$305:$C$316)))) -> 32.99431405 | M302: =IF(MAX(C305:C316)-MIN(C305:C316)<5,AVERAGEIF(C305:C316,">0",M305:M316), IF(FORECAST($C302,M$305:M$316,$C$305:$C$316)<0,0, IF(FORECAST($C302,M$305:M$316,$C$305:$C$316)>100,100, FORECAST($C302,M$305:M$316,$C$305:$C$316)))) -> 65.77462993 | N302: =IF(MAX(C305:C316)-MIN(C305:C316)<5,AVERAGEIF(C305:C316,">0",N305:N316), IF(FORECAST($C302,N$305:N$316,$C$305:$C$316)<0,0, IF(FORECAST($C302,N$305:N$316,$C$305:$C$316)>100,100, FORECAST($C302,N$305:N$316,$C$305:$C$316)))) -> 38.42951406 | R302: =IF(MAX(C305:C316)-MIN(C305:C316)<5,AVERAGEIF(C305:C316,">0",R305:R316), IF(FORECAST($C302,R$305:R$316,$C$305:$C$316)<0,0, IF(FORECAST($C302,R$305:R$316,$C$305:$C$316)>100,100, FORECAST($C302,R$305:R$316,$C$305:$C$316)))) -> 58.6090123 | S302: =IF(MAX(C305:C316)-MIN(C305:C316)<5,AVERAGEIF(C305:C316,">0",S305:S316), IF(FORECAST($C302,S$305:S$316,$C$305:$C$316)<0,0, IF(FORECAST($C302,S$305:S$316,$C$305:$C$316)>100,100, FORECAST($C302,S$305:S$316,$C$305:$C$316)))) -> 59.36921519 | W302: =IF(MAX(C305:C316)-MIN(C305:C316)<5,AVERAGEIF(C305:C316,">0",W305:W316), IF(FORECAST($C302,W$305:W$316,$C$305:$C$316)<0,0, IF(FORECAST($C302,W$305:W$316,$C$305:$C$316)>100,100, FORECAST($C302,W$305:W$316,$C$305:$C$316)))) -> 38.2522029 | X302: =IF(MAX(C305:C316)-MIN(C305:C316)<5,AVERAGEIF(C305:C316,">0",X305:X316), IF(FORECAST($C302,X$305:X$316,$C$305:$C$316)<0,0, IF(FORECAST($C302,X$305:X$316,$C$305:$C$316)>100,100, FORECAST($C302,X$305:X$316,$C$305:$C$316)))) -> 81.549948 | AB302: =IF(MAX(C305:C316)-MIN(C305:C316)<5,AVERAGEIF(C305:C316,">0",AB305:AB316), IF(FORECAST($C302,AB$305:AB$316,$C$305:$C$316)<0,0, IF(FORECAST($C302,AB$305:AB$316,$C$305:$C$316)>100,100, FORECAST($C302,AB$305:AB$316,$C$305:$C$316)))) -> 16.46940573
B304: Survey | C304: Year | D304: Improved | E304: Not shared | H304: Open defecation | I304: Improved | J304: Not shared | M304: Open defecation | N304: Improved | O304: Not shared | R304: Open defecation | S304: Improved | T304: Not shared | W304: Open defecation | X304: Improved | Y304: Not shared | AB304: Open defecation
B305: MICS00 | C305: 2000 | D305: =IF(ISERROR(INDIRECT(CONCATENATE($B305,"!M122"))),"",INDIRECT(CONCATENATE($B305,"!M122"))) -> 19.5324176 | E305: =IF(ISERROR(INDIRECT(CONCATENATE($B305,"!M129"))),"",INDIRECT(CONCATENATE($B305,"!M129"))) -> N/A | H305: =IF(ISERROR(INDIRECT(CONCATENATE($B305,"!M127"))),"",INDIRECT(CONCATENATE($B305,"!M127"))) -> 80.4675824 | I305: =IF(ISERROR(INDIRECT(CONCATENATE($B305,"!N122"))),"",INDIRECT(CONCATENATE($B305,"!N122"))) -> 6.401248098 | J305: =IF(ISERROR(INDIRECT(CONCATENATE($B305,"!N129"))),"",INDIRECT(CONCATENATE($B305,"!N129"))) -> N/A | M305: =IF(ISERROR(INDIRECT(CONCATENATE($B305,"!N127"))),"",INDIRECT(CONCATENATE($B305,"!N127"))) -> 93.41795953 | N305: =IF(ISERROR(INDIRECT(CONCATENATE($B305,"!O122"))),"",INDIRECT(CONCATENATE($B305,"!O122"))) -> 14.97756162 | O305: =IF(ISERROR(INDIRECT(CONCATENATE($B305,"!O129"))),"",INDIRECT(CONCATENATE($B305,"!O129"))) -> N/A | R305: =IF(ISERROR(INDIRECT(CONCATENATE($B305,"!O127"))),"",INDIRECT(CONCATENATE($B305,"!O127"))) -> 84.84164953 | S305: =IF(ISERROR(INDIRECT(CONCATENATE($B305,"!P122"))),"",INDIRECT(CONCATENATE($B305,"!P122"))) -> 19.68776399 | T305: =IF(ISERROR(INDIRECT(CONCATENATE($B305,"!P129"))),"",INDIRECT(CONCATENATE($B305,"!P129"))) -> N/A | W305: =IF(ISERROR(INDIRECT(CONCATENATE($B305,"!P127"))),"",INDIRECT(CONCATENATE($B305,"!P127"))) -> 78.97425438 | X305: =IF(ISERROR(INDIRECT(CONCATENATE($B305,"!Q122"))),"",INDIRECT(CONCATENATE($B305,"!Q122"))) -> 39.72860557 | Y305: =IF(ISERROR(INDIRECT(CONCATENATE($B305,"!Q129"))),"",INDIRECT(CONCATENATE($B305,"!Q129"))) -> N/A | AB305: =IF(ISERROR(INDIRECT(CONCATENATE($B305,"!Q2127"))),"",INDIRECT(CONCATENATE($B305,"!Q127"))) -> 58.60447573
B306: DHS09 | C306: 2009 | D306: 18.60223587 | E306: 64.19358136 | H306: 81.13296549 | I306: 19.55813725 | J306: 67.99667072 | M306: 80.44186275 | N306: 26.57346871 | O306: 75.00214576 | R306: 73.27047427 | S306: 39.26666574 | T306: 83.84446392 | W306: 60.65669772 | X306: 65.19832447 | Y306: 86.85487604 | AB306: 34.17139759
B307: MICS14 | C307: 2014 | D307: 18.00753652 | E307: 68.03480482 | H307: 79.85101634 | I307: 24.47446027 | J307: 80.69182006 | M307: 75.30631351 | N307: 27.5156493 | O307: 83.04476955 | R307: 72.00680535 | S307: 45.49124765 | T307: 86.03506578 | W307: 53.61268313 | X307: 72.05223488 | Y307: 89.65642595 | AB307: 26.58160138
B308: MICS19 | C308: 2019 | D308: 20.42394906 | E308: 81.95143589 | H308: 72.60052827 | I308: 31.68819324 | J308: 81.80763914 | M308: 66.51517686 | N308: 39.43745123 | O308: 84.44486364 | R308: 56.34962064 | S308: 58.17389417 | T308: 89.95950158 | W308: 38.29117723 | X308: 75.73372002 | Y308: 94.45785039 | AB308: 21.65398403
B318: =CONCATENATE("Rural use of sanitation facilities, ",C299,"–",C300) -> Rural use of sanitation facilities, 2000–2020 | S318: Data points used for regression

Sheet Hygiene
B4: Access to hygiene facilities by wealth quintile (%)
B5: =IF(ISERROR(INDIRECT(CONCATENATE($E$32,"!A2"))),"",INDIRECT(CONCATENATE($E$32,"!A2"))) -> Sao Tome and Principe
B7: =CONCATENATE("National ",IF(ISERROR(INDIRECT(CONCATENATE($E$32,"!A2"))),"",INDIRECT(CONCATENATE($E$32,"!A210")))) -> National Access to hygiene facilities | K7: =CONCATENATE("Urban ",IF(ISERROR(INDIRECT(CONCATENATE($E$32,"!A2"))),"",INDIRECT(CONCATENATE($E$32,"!A210")))) -> Urban Access to hygiene facilities | S7: =CONCATENATE("Rural ",IF(ISERROR(INDIRECT(CONCATENATE($E$32,"!A2"))),"",INDIRECT(CONCATENATE($E$32,"!A210")))) -> Rural Access to hygiene facilities
E32: =INDEX(B88:B100,A88) -> MICS19 | G32: =IF(ISERROR(INDIRECT(CONCATENATE($E$32,"!A2"))),"",INDIRECT(CONCATENATE($E$32,"!A2"))) -> Sao Tome and Principe | K32: Poorest | N32: Poor | Q32: Middle | T32: Rich | W32: Richest
K33: Basic | L33: Limited | M33: No facility | N33: Basic | O33: Limited | P33: No facility | Q33: Basic | R33: Limited | S33: No facility | T33: Basic | U33: Limited | V33: No facility | W33: Basic | X33: Limited | Y33: No facility
B34: >>> Select Survey : | G34: NATIONAL | J34: =IF(ISERROR(INDIRECT(CONCATENATE(#REF!,"!A2"))),"",INDIRECT(CONCATENATE(#REF!,"!A210"))) ->  | K34: =IF(ISERROR(INDIRECT(CONCATENATE($E$32,"!C222"))),"",INDIRECT(CONCATENATE($E$32,"!C222"))) -> 43.31666038 | L34: =IF(ISERROR(INDIRECT(CONCATENATE($E$32,"!C223"))),"",INDIRECT(CONCATENATE($E$32,"!C223"))) -> 13.07752645 | M34: =IF(ISERROR(INDIRECT(CONCATENATE($E$32,"!C224"))),"",INDIRECT(CONCATENATE($E$32,"!C224"))) -> 43.60581317 | N34: =IF(ISERROR(INDIRECT(CONCATENATE($E$32,"!D222"))),"",INDIRECT(CONCATENATE($E$32,"!D222"))) -> 39.47103516 | O34: =IF(ISERROR(INDIRECT(CONCATENATE($E$32,"!D223"))),"",INDIRECT(CONCATENATE($E$32,"!D223"))) -> 14.76133898 | P34: =IF(ISERROR(INDIRECT(CONCATENATE($E$32,"!D224"))),"",INDIRECT(CONCATENATE($E$32,"!D224"))) -> 45.76762586 | Q34: =IF(ISERROR(INDIRECT(CONCATENATE($E$32,"!E222"))),"",INDIRECT(CONCATENATE($E$32,"!E222"))) -> 46.34801402 | R34: =IF(ISERROR(INDIRECT(CONCATENATE($E$32,"!E223"))),"",INDIRECT(CONCATENATE($E$32,"!E223"))) -> 13.80042503 | S34: =IF(ISERROR(INDIRECT(CONCATENATE($E$32,"!E224"))),"",INDIRECT(CONCATENATE($E$32,"!E224"))) -> 39.85156096 | T34: =IF(ISERROR(INDIRECT(CONCATENATE($E$32,"!F222"))),"",INDIRECT(CONCATENATE($E$32,"!F222"))) -> 56.4943575 | U34: =IF(ISERROR(INDIRECT(CONCATENATE($E$32,"!F223"))),"",INDIRECT(CONCATENATE($E$32,"!F223"))) -> 15.38808952 | V34: =IF(ISERROR(INDIRECT(CONCATENATE($E$32,"!F224"))),"",INDIRECT(CONCATENATE($E$32,"!F224"))) -> 28.11755298 | W34: =IF(ISERROR(INDIRECT(CONCATENATE($E$32,"!G222"))),"",INDIRECT(CONCATENATE($E$32,"!G222"))) -> 77.27354176 | X34: =IF(ISERROR(INDIRECT(CONCATENATE($E$32,"!G223"))),"",INDIRECT(CONCATENATE($E$32,"!G223"))) -> 6.160349631 | Y34: =IF(ISERROR(INDIRECT(CONCATENATE($E$32,"!G224"))),"",INDIRECT(CONCATENATE($E$32,"!G224"))) -> 16.5661086
G37: URBAN | J37: =IF(ISERROR(INDIRECT(CONCATENATE(#REF!,"!A2"))),"",INDIRECT(CONCATENATE(#REF!,"!A210"))) ->  | K37: =IF(ISERROR(INDIRECT(CONCATENATE($E$32,"!H222"))),"",INDIRECT(CONCATENATE($E$32,"!H222"))) -> 46.09833056 | L37: =IF(ISERROR(INDIRECT(CONCATENATE($E$32,"!H223"))),"",INDIRECT(CONCATENATE($E$32,"!H223"))) -> 10.62204256 | M37: =IF(ISERROR(INDIRECT(CONCATENATE($E$32,"!H224"))),"",INDIRECT(CONCATENATE($E$32,"!H224"))) -> 43.27962688 | N37: =IF(ISERROR(INDIRECT(CONCATENATE($E$32,"!I222"))),"",INDIRECT(CONCATENATE($E$32,"!I222"))) -> 38.16014879 | O37: =IF(ISERROR(INDIRECT(CONCATENATE($E$32,"!I223"))),"",INDIRECT(CONCATENATE($E$32,"!I223"))) -> 16.05892458 | P37: =IF(ISERROR(INDIRECT(CONCATENATE($E$32,"!I224"))),"",INDIRECT(CONCATENATE($E$32,"!I224"))) -> 45.78092663 | Q37: =IF(ISERROR(INDIRECT(CONCATENATE($E$32,"!J222"))),"",INDIRECT(CONCATENATE($E$32,"!J222"))) -> 54.27496059 | R37: =IF(ISERROR(INDIRECT(CONCATENATE($E$32,"!J223"))),"",INDIRECT(CONCATENATE($E$32,"!J223"))) -> 13.32620659 | S37: =IF(ISERROR(INDIRECT(CONCATENATE($E$32,"!J224"))),"",INDIRECT(CONCATENATE($E$32,"!J224"))) -> 32.39883282 | T37: =IF(ISERROR(INDIRECT(CONCATENATE($E$32,"!K222"))),"",INDIRECT(CONCATENATE($E$32,"!K222"))) -> 59.59352905 | U37: =IF(ISERROR(INDIRECT(CONCATENATE($E$32,"!K223"))),"",INDIRECT(CONCATENATE($E$32,"!K223"))) -> 8.799168611 | V37: =IF(ISERROR(INDIRECT(CONCATENATE($E$32,"!K224"))),"",INDIRECT(CONCATENATE($E$32,"!K224"))) -> 31.60730234 | W37: =IF(ISERROR(INDIRECT(CONCATENATE($E$32,"!L222"))),"",INDIRECT(CONCATENATE($E$32,"!L222"))) -> 83.65460527 | X37: =IF(ISERROR(INDIRECT(CONCATENATE($E$32,"!L223"))),"",INDIRECT(CONCATENATE($E$32,"!L223"))) -> 5.679375391 | Y37: =IF(ISERROR(INDIRECT(CONCATENATE($E$32,"!L224"))),"",INDIRECT(CONCATENATE($E$32,"!L224"))) -> 10.66601933
G40: RURAL | J40: =IF(ISERROR(INDIRECT(CONCATENATE(#REF!,"!A2"))),"",INDIRECT(CONCATENATE(#REF!,"!A210"))) ->  | K40: =IF(ISERROR(INDIRECT(CONCATENATE($E$32,"!M222"))),"",INDIRECT(CONCATENATE($E$32,"!M222"))) -> 41.9106475 | L40: =IF(ISERROR(INDIRECT(CONCATENATE($E$32,"!M223"))),"",INDIRECT(CONCATENATE($E$32,"!M223"))) -> 17.85585108 | M40: =IF(ISERROR(INDIRECT(CONCATENATE($E$32,"!M224"))),"",INDIRECT(CONCATENATE($E$32,"!M224"))) -> 40.23350142 | N40: =IF(ISERROR(INDIRECT(CONCATENATE($E$32,"!N222"))),"",INDIRECT(CONCATENATE($E$32,"!N222"))) -> 39.22709035 | O40: =IF(ISERROR(INDIRECT(CONCATENATE($E$32,"!N223"))),"",INDIRECT(CONCATENATE($E$32,"!N223"))) -> 16.0573605 | P40: =IF(ISERROR(INDIRECT(CONCATENATE($E$32,"!N224"))),"",INDIRECT(CONCATENATE($E$32,"!N224"))) -> 44.71554915 | Q40: =IF(ISERROR(INDIRECT(CONCATENATE($E$32,"!O222"))),"",INDIRECT(CONCATENATE($E$32,"!O222"))) -> 38.29621332 | R40: =IF(ISERROR(INDIRECT(CONCATENATE($E$32,"!O223"))),"",INDIRECT(CONCATENATE($E$32,"!O223"))) -> 11.59774545 | S40: =IF(ISERROR(INDIRECT(CONCATENATE($E$32,"!O224"))),"",INDIRECT(CONCATENATE($E$32,"!O224"))) -> 50.10604123 | T40: =IF(ISERROR(INDIRECT(CONCATENATE($E$32,"!P222"))),"",INDIRECT(CONCATENATE($E$32,"!P222"))) -> 45.58772961 | U40: =IF(ISERROR(INDIRECT(CONCATENATE($E$32,"!P223"))),"",INDIRECT(CONCATENATE($E$32,"!P223"))) -> 19.16749605 | V40: =IF(ISERROR(INDIRECT(CONCATENATE($E$32,"!P224"))),"",INDIRECT(CONCATENATE($E$32,"!P224"))) -> 35.24477434 | W40: =IF(ISERROR(INDIRECT(CONCATENATE($E$32,"!Q222"))),"",INDIRECT(CONCATENATE($E$32,"!Q222"))) -> 60.43304807 | X40: =IF(ISERROR(INDIRECT(CONCATENATE($E$32,"!Q223"))),"",INDIRECT(CONCATENATE($E$32,"!Q223"))) -> 15.71329171 | Y40: =IF(ISERROR(INDIRECT(CONCATENATE($E$32,"!Q224"))),"",INDIRECT(CONCATENATE($E$32,"!Q224"))) -> 23.85366022
A88: 4 | B88: MICS00
B89: DHS09
B90: MICS14
B91: MICS19
B92: Input
B93: Template

Sheet MICS00
A2: =A1026 -> Sao Tome and Principe
A3: =A1034 -> 2000
A4: Use of drinking water sources
A5: by wealth quintile and sub-national region
A6: Notes:
A7: WHO/UNICEF JMP customised wealth index excludes water,
A8: sanitation and hygiene assets.
A9: Survey used for analysis: | B9: =A1025 -> MICS00
A10: =B1028 -> 
A11: =B1027 -> 
A14: Use of drinking water sources | C14: NATIONAL wealth index quintile | H14: URBAN wealth index quintile | M14: RURAL wealth index quintile | R14: SUB-REGIONS: | BA14: Raw numbers of respondents: | BB14: Use of drinking water sources | BC14: NATIONAL wealth index quintile | BH14: URBAN wealth index quintile | BM14: RURAL wealth index quintile | BR14: SUB-REGIONS:
A15: Weighted percentage (used in graphs) | C15: Poorest | D15: Poor | E15: Middle | F15: Rich | G15: Richest | H15: Poorest | I15: Poor | J15: Middle | K15: Rich | L15: Richest | M15: Poorest | N15: Poor | O15: Middle | P15: Rich | Q15: Richest | R15: Centro | S15: Norte | T15: Principe | U15: Sul | BA15: Water data, raw numbers (weighted) | BC15: Poorest | BD15: Poor | BE15: Middle | BF15: Rich | BG15: Richest | BH15: Poorest | BI15: Poor | BJ15: Middle | BK15: Rich | BL15: Richest | BM15: Poorest | BN15: Poor | BO15: Middle | BP15: Rich | BQ15: Richest | BR15: Centro | BS15: Norte | BT15: Principe | BU15: Sul
A16: Water | B16: Improved | C16: 81.96079149 | D16: 72.88756415 | E16: 75.71427531 | F16: 81.94128734 | G16: 88.61981805 | H16: 85.06827226 | I16: 88.8912271 | J16: 84.47949708 | K16: 88.70322202 | L16: 95.54944598 | M16: 79.1469746 | N16: 70.93305119 | O16: 71.95916962 | P16: 66.01703221 | Q16: 75.36185849 | R16: 80.88202447 | S16: 82.04566308 | T16: 79.89450206 | U16: 63.53408108 | BA16: Water | BB16: Improved | BC16: N/A | BD16: N/A | BE16: N/A | BF16: N/A | BG16: N/A | BH16: N/A | BI16: N/A | BJ16: N/A | BK16: N/A | BL16: N/A | BM16: N/A | BN16: N/A | BO16: N/A | BP16: N/A | BQ16: N/A | BR16: N/A | BS16: N/A | BT16: N/A | BU16: N/A
B17: Not Improved | C17: 18.03920851 | D17: 27.11243585 | E17: 24.28572469 | F17: 18.05871266 | G17: 11.38018195 | H17: 14.93172774 | I17: 11.1087729 | J17: 15.52050292 | K17: 11.29677798 | L17: 4.450554025 | M17: 20.8530254 | N17: 29.06694881 | O17: 28.04083038 | P17: 33.98296779 | Q17: 24.63814151 | R17: 19.11797553 | S17: 17.95433692 | T17: 20.10549794 | U17: 36.46591892 | BB17: Not Improved | BC17: N/A | BD17: N/A | BE17: N/A | BF17: N/A | BG17: N/A | BH17: N/A | BI17: N/A | BJ17: N/A | BK17: N/A | BL17: N/A | BM17: N/A | BN17: N/A | BO17: N/A | BP17: N/A | BQ17: N/A | BR17: N/A | BS17: N/A | BT17: N/A | BU17: N/A
A18: Water ladder | B18: Basic | C18: 71.29458572 | D18: 56.98377695 | E18: 61.7575472 | F18: 64.79221159 | G18: 74.18814324 | H18: 68.57078658 | I18: 66.64505107 | J18: 68.837224 | K18: 75.530706 | L18: 82.53298207 | M18: 73.13873243 | N18: 51.2352249 | O18: 63.20614997 | P18: 57.35154327 | Q18: 54.43638561 | R18: 63.34510011 | S18: 74.07286268 | T18: 73.98112032 | U18: 63.53408108 | BA18: Water ladder | BB18: Basic | BC18: N/A | BD18: N/A | BE18: N/A | BF18: N/A | BG18: N/A | BH18: N/A | BI18: N/A | BJ18: N/A | BK18: N/A | BL18: N/A | BM18: N/A | BN18: N/A | BO18: N/A | BP18: N/A | BQ18: N/A | BR18: N/A | BS18: N/A | BT18: N/A | BU18: N/A
B19: Limited | C19: 10.66620578 | D19: 15.9037872 | E19: 13.95672811 | F19: 17.11336487 | G19: 14.43167482 | H19: 16.49748568 | I19: 22.24617603 | J19: 15.64227308 | K19: 13.17251602 | L19: 13.0164639 | M19: 6.008242173 | N19: 19.69782629 | O19: 8.753019653 | P19: 8.540292866 | Q19: 20.92547288 | R19: 17.5265227 | S19: 7.972800396 | T19: 5.913381746 | U19: 0 | BB19: Limited | BC19: N/A | BD19: N/A | BE19: N/A | BF19: N/A | BG19: N/A | BH19: N/A | BI19: N/A | BJ19: N/A | BK19: N/A | BL19: N/A | BM19: N/A | BN19: N/A | BO19: N/A | BP19: N/A | BQ19: N/A | BR19: N/A | BS19: N/A | BT19: N/A | BU19: N/A
B20: Unimproved | C20: 3.821241313 | D20: 9.189706933 | E20: 11.58968513 | F20: 7.359116935 | G20: 5.537696405 | H20: 6.116899793 | I20: 4.891891743 | J20: 6.424766323 | K20: 3.978739414 | L20: 3.377768538 | M20: 1.87468808 | N20: 12.1358419 | O20: 8.18276647 | P20: 15.90536336 | Q20: 10.69008227 | R20: 8.756929481 | S20: 0.7360695017 | T20: 7.358875062 | U20: 13.77286566 | BB20: Unimproved | BC20: N/A | BD20: N/A | BE20: N/A | BF20: N/A | BG20: N/A | BH20: N/A | BI20: N/A | BJ20: N/A | BK20: N/A | BL20: N/A | BM20: N/A | BN20: N/A | BO20: N/A | BP20: N/A | BQ20: N/A | BR20: N/A | BS20: N/A | BT20: N/A | BU20: N/A
B21: Surface water | C21: 14.21796719 | D21: 17.92272892 | E21: 12.69603955 | F21: 10.73530661 | G21: 5.842485543 | H21: 8.814827946 | I21: 6.216881154 | J21: 9.095736592 | K21: 7.318038566 | L21: 1.072785487 | M21: 18.97833732 | N21: 16.93110691 | O21: 19.85806391 | P21: 18.20280051 | Q21: 13.94805924 | R21: 10.37144771 | S21: 17.21826742 | T21: 12.74662288 | U21: 22.69305326 | BB21: Surface water | BC21: N/A | BD21: N/A | BE21: N/A | BF21: N/A | BG21: N/A | BH21: N/A | BI21: N/A | BJ21: N/A | BK21: N/A | BL21: N/A | BM21: N/A | BN21: N/A | BO21: N/A | BP21: N/A | BQ21: N/A | BR21: N/A | BS21: N/A | BT21: N/A | BU21: N/A
A22: Improved water point at more than 30 minutes | B22: Yes | C22: 13.0137906 | D22: 21.81961682 | E22: 18.43341702 | F22: 20.89401675 | G22: 16.28492941 | H22: 19.39322998 | I22: 25.02628972 | J22: 18.51605848 | K22: 14.8500987 | L22: 13.62275183 | M22: 7.591246795 | N22: 27.76960241 | O22: 12.16386973 | P22: 12.96107889 | Q22: 27.76666248 | R22: 21.67203042 | S22: 9.717515951 | T22: 7.401487704 | U22: 0 | BA22: Improved water point at more than 30 minutes | BB22: Yes | BC22: N/A | BD22: N/A | BE22: N/A | BF22: N/A | BG22: N/A | BH22: N/A | BI22: N/A | BJ22: N/A | BK22: N/A | BL22: N/A | BM22: N/A | BN22: N/A | BO22: N/A | BP22: N/A | BQ22: N/A | BR22: N/A | BS22: N/A | BT22: N/A | BU22: N/A
B23: No | C23: 86.9862094 | D23: 78.18038318 | E23: 81.56658298 | F23: 79.10598325 | G23: 83.71507059 | H23: 80.60677002 | I23: 74.97371028 | J23: 81.48394152 | K23: 85.1499013 | L23: 86.37724817 | M23: 92.4087532 | N23: 72.23039759 | O23: 87.83613027 | P23: 87.03892111 | Q23: 72.23333752 | R23: 78.32796958 | S23: 90.28248405 | T23: 92.5985123 | U23: 100 | BB23: No | BC23: N/A | BD23: N/A | BE23: N/A | BF23: N/A | BG23: N/A | BH23: N/A | BI23: N/A | BJ23: N/A | BK23: N/A | BL23: N/A | BM23: N/A | BN23: N/A | BO23: N/A | BP23: N/A | BQ23: N/A | BR23: N/A | BS23: N/A | BT23: N/A | BU23: N/A
A24: Manually calculated ratios | B24: Improved wells
B25: Improved springs
B26: Other
C27: NATIONAL wealth index quintile | H27: URBAN wealth index quintile | M27: RURAL wealth index quintile | R27: SUB-REGIONS: | BA27: Raw numbers of respondents: | BB27: Use of drinking water sources | BC27: NATIONAL wealth index quintile | BH27: URBAN wealth index quintile | BM27: RURAL wealth index quintile | BR27: SUB-REGIONS:
A28: Percentage based on weighted population | C28: Poorest | D28: Poor | E28: Middle | F28: Rich | G28: Richest | H28: Poorest | I28: Poor | J28: Middle | K28: Rich | L28: Richest | M28: Poorest | N28: Poor | O28: Middle | P28: Rich | Q28: Richest | R28: Centro | S28: Norte | T28: Principe | U28: Sul | BA28: Water data, raw numbers (weighted) | BC28: Poorest | BD28: Poor | BE28: Middle | BF28: Rich | BG28: Richest | BH28: Poorest | BI28: Poor | BJ28: Middle | BK28: Rich | BL28: Richest | BM28: Poorest | BN28: Poor | BO28: Middle | BP28: Rich | BQ28: Richest | BR28: Centro | BS28: Norte | BT28: Principe | BU28: Sul
A29: Piped water | B29: Yes | C29: 75.68914824 | D29: 58.44660635 | E29: 67.85578817 | F29: 71.34524943 | G29: 80.55505742 | H29: 80.33836458 | I29: 84.74226153 | J29: 80.07600556 | K29: 82.52196614 | L29: 92.83172274 | M29: 72.59178129 | N29: 52.46084974 | O29: 60.95275393 | P29: 53.13787529 | Q29: 54.57823503 | R29: 69.95969371 | S29: 81.30242851 | T29: 52.56153755 | U29: 62.95137478 | BA29: Piped water | BB29: Yes | BC29: N/A | BD29: N/A | BE29: N/A | BF29: N/A | BG29: N/A | BH29: N/A | BI29: N/A | BJ29: N/A | BK29: N/A | BL29: N/A | BM29: N/A | BN29: N/A | BO29: N/A | BP29: N/A | BQ29: N/A | BR29: N/A | BS29: N/A | BT29: N/A | BU29: N/A
B30: No | C30: 24.31085176 | D30: 41.55339365 | E30: 32.14421183 | F30: 28.65475057 | G30: 19.44494258 | H30: 19.66163542 | I30: 15.25773847 | J30: 19.92399444 | K30: 17.47803386 | L30: 7.168277257 | M30: 27.40821871 | N30: 47.53915026 | O30: 39.04724607 | P30: 46.86212471 | Q30: 45.42176497 | R30: 30.04030629 | S30: 18.69757149 | T30: 47.43846245 | U30: 37.04862522 | BB30: No | BC30: N/A | BD30: N/A | BE30: N/A | BF30: N/A | BG30: N/A | BH30: N/A | BI30: N/A | BJ30: N/A | BK30: N/A | BL30: N/A | BM30: N/A | BN30: N/A | BO30: N/A | BP30: N/A | BQ30: N/A | BR30: N/A | BS30: N/A | BT30: N/A | BU30: N/A
A31: Piped water on premises | B31: Yes | C31: 18.48173658 | D31: 11.46797122 | E31: 21.23299481 | F31: 26.15291842 | G31: 50.51444394 | H31: 14.55352472 | I31: 20.10737915 | J31: 30.21409839 | K31: 39.23749094 | L31: 62.52464907 | M31: 19.87788536 | N31: 8.085269785 | O31: 18.75549218 | P31: 21.25613298 | Q31: 24.84114901 | R31: 26.63691465 | S31: 19.35831613 | T31: 39.51338333 | U31: 17.46173501 | BA31: Piped water on premises | BB31: Yes | BC31: N/A | BD31: N/A | BE31: N/A | BF31: N/A | BG31: N/A | BH31: N/A | BI31: N/A | BJ31: N/A | BK31: N/A | BL31: N/A | BM31: N/A | BN31: N/A | BO31: N/A | BP31: N/A | BQ31: N/A | BR31: N/A | BS31: N/A | BT31: N/A | BU31: N/A
B32: No | C32: 81.51826342 | D32: 88.53202878 | E32: 78.76700519 | F32: 73.84708158 | G32: 49.48555606 | H32: 85.44647528 | I32: 79.89262085 | J32: 69.78590161 | K32: 60.76250906 | L32: 37.47535093 | M32: 80.12211464 | N32: 91.91473021 | O32: 81.24450782 | P32: 78.74386702 | Q32: 75.15885099 | R32: 73.36308535 | S32: 80.64168387 | T32: 60.48661667 | U32: 82.53826499 | BB32: No | BC32: N/A | BD32: N/A | BE32: N/A | BF32: N/A | BG32: N/A | BH32: N/A | BI32: N/A | BJ32: N/A | BK32: N/A | BL32: N/A | BM32: N/A | BN32: N/A | BO32: N/A | BP32: N/A | BQ32: N/A | BR32: N/A | BS32: N/A | BT32: N/A | BU32: N/A
A33: Piped water into dwelling | B33: Yes | C33: N/A | D33: N/A | E33: N/A | F33: N/A | G33: N/A | H33: N/A | I33: N/A | J33: N/A | K33: N/A | L33: N/A | M33: N/A | N33: N/A | O33: N/A | P33: N/A | Q33: N/A | R33: N/A | S33: N/A | T33: N/A | U33: N/A | BA33: Piped water into dwelling | BB33: Yes | BC33: N/A | BD33: N/A | BE33: N/A | BF33: N/A | BG33: N/A | BH33: N/A | BI33: N/A | BJ33: N/A | BK33: N/A | BL33: N/A | BM33: N/A | BN33: N/A | BO33: N/A | BP33: N/A | BQ33: N/A | BR33: N/A | BS33: N/A | BT33: N/A | BU33: N/A
B34: No | C34: N/A | D34: N/A | E34: N/A | F34: N/A | G34: N/A | H34: N/A | I34: N/A | J34: N/A | K34: N/A | L34: N/A | M34: N/A | N34: N/A | O34: N/A | P34: N/A | Q34: N/A | R34: N/A | S34: N/A | T34: N/A | U34: N/A | BB34: No | BC34: N/A | BD34: N/A | BE34: N/A | BF34: N/A | BG34: N/A | BH34: N/A | BI34: N/A | BJ34: N/A | BK34: N/A | BL34: N/A | BM34: N/A | BN34: N/A | BO34: N/A | BP34: N/A | BQ34: N/A | BR34: N/A | BS34: N/A | BT34: N/A | BU34: N/A
A35: Water source on premises | B35: Yes | C35: 19.2527147 | D35: 11.58558572 | E35: 21.75973625 | F35: 26.15291842 | G35: 50.99127174 | H35: 14.55352472 | I35: 20.98533017 | J35: 30.44305899 | K35: 40.09007796 | L35: 62.66768714 | M35: 20.99208361 | N35: 8.637243209 | O35: 18.75549218 | P35: 21.25613298 | Q35: 24.84114901 | R35: 26.86680179 | S35: 20.55097289 | T35: 39.51338333 | U35: 17.46173501 | BA35: Water source on premises | BB35: Yes | BC35: N/A | BD35: N/A | BE35: N/A | BF35: N/A | BG35: N/A | BH35: N/A | BI35: N/A | BJ35: N/A | BK35: N/A | BL35: N/A | BM35: N/A | BN35: N/A | BO35: N/A | BP35: N/A | BQ35: N/A | BR35: N/A | BS35: N/A | BT35: N/A | BU35: N/A
B36: No | C36: 80.7472853 | D36: 88.41441428 | E36: 78.24026375 | F36: 73.84708158 | G36: 49.00872826 | H36: 85.44647528 | I36: 79.01466983 | J36: 69.55694101 | K36: 59.90992204 | L36: 37.33231286 | M36: 79.00791639 | N36: 91.36275679 | O36: 81.24450782 | P36: 78.74386702 | Q36: 75.15885099 | R36: 73.13319821 | S36: 79.44902711 | T36: 60.48661667 | U36: 82.53826499 | BB36: No | BC36: N/A | BD36: N/A | BE36: N/A | BF36: N/A | BG36: N/A | BH36: N/A | BI36: N/A | BJ36: N/A | BK36: N/A | BL36: N/A | BM36: N/A | BN36: N/A | BO36: N/A | BP36: N/A | BQ36: N/A | BR36: N/A | BS36: N/A | BT36: N/A | BU36: N/A
A37: Improved Water source on premises | B37: Yes | C37: 23.35577124 | D37: 15.73378306 | E37: 28.73927824 | F37: 31.91665554 | G37: 57.53935503 | H37: 17.10805254 | I37: 23.60787544 | J37: 36.03603246 | K37: 45.19574041 | L37: 65.58665673 | M37: 26.25895878 | N37: 11.87076014 | O37: 26.06407534 | P37: 32.19795297 | Q37: 32.96249523 | R37: 33.17693279 | S37: 24.89723368 | T37: 49.45694924 | U37: 27.48404433 | BA37: Improved water source on premises | BB37: Yes | BC37: N/A | BD37: N/A | BE37: N/A | BF37: N/A | BG37: N/A | BH37: N/A | BI37: N/A | BJ37: N/A | BK37: N/A | BL37: N/A | BM37: N/A | BN37: N/A | BO37: N/A | BP37: N/A | BQ37: N/A | BR37: N/A | BS37: N/A | BT37: N/A | BU37: N/A
B38: No | C38: 76.64422876 | D38: 84.26621694 | E38: 71.26072176 | F38: 68.08334446 | G38: 42.46064497 | H38: 82.89194746 | I38: 76.39212456 | J38: 63.96396754 | K38: 54.80425959 | L38: 34.41334327 | M38: 73.74104122 | N38: 88.12923986 | O38: 73.93592466 | P38: 67.80204703 | Q38: 67.03750477 | R38: 66.82306721 | S38: 75.10276632 | T38: 50.54305076 | U38: 72.51595567 | BB38: No | BC38: N/A | BD38: N/A | BE38: N/A | BF38: N/A | BG38: N/A | BH38: N/A | BI38: N/A | BJ38: N/A | BK38: N/A | BL38: N/A | BM38: N/A | BN38: N/A | BO38: N/A | BP38: N/A | BQ38: N/A | BR38: N/A | BS38: N/A | BT38: N/A | BU38: N/A
A39: Piped water on premises available when needed | B39: Yes | C39: N/A | D39: N/A | E39: N/A | F39: N/A | G39: N/A | H39: N/A | I39: N/A | J39: N/A | K39: N/A | L39: N/A | M39: N/A | N39: N/A | O39: N/A | P39: N/A | Q39: N/A | R39: N/A | S39: N/A | T39: N/A | U39: N/A | BA39: Piped water on premises available when needed | BB39: Yes | BC39: N/A | BD39: N/A | BE39: N/A | BF39: N/A | BG39: N/A | BH39: N/A | BI39: N/A | BJ39: N/A | BK39: N/A | BL39: N/A | BM39: N/A | BN39: N/A | BO39: N/A | BP39: N/A | BQ39: N/A | BR39: N/A | BS39: N/A | BT39: N/A | BU39: N/A
B40: No | C40: N/A | D40: N/A | E40: N/A | F40: N/A | G40: N/A | H40: N/A | I40: N/A | J40: N/A | K40: N/A | L40: N/A | M40: N/A | N40: N/A | O40: N/A | P40: N/A | Q40: N/A | R40: N/A | S40: N/A | T40: N/A | U40: N/A | BB40: No | BC40: N/A | BD40: N/A | BE40: N/A | BF40: N/A | BG40: N/A | BH40: N/A | BI40: N/A | BJ40: N/A | BK40: N/A | BL40: N/A | BM40: N/A | BN40: N/A | BO40: N/A | BP40: N/A | BQ40: N/A | BR40: N/A | BS40: N/A | BT40: N/A | BU40: N/A
A41: Water point at more than 30 minutes | B41: Yes | C41: 13.85444616 | D41: 23.23086703 | E41: 20.28453173 | F41: 24.78427946 | G41: 17.38388915 | H41: 20.58240595 | I41: 27.89138995 | J41: 21.77828586 | K41: 18.28803812 | L41: 13.37405907 | M41: 9.114013923 | N41: 28.9059054 | O41: 13.22372459 | P41: 16.40475221 | Q41: 29.07325894 | R41: 24.01610752 | S41: 11.44122837 | T41: 9.067185344 | U41: 0.3720172665 | BA41: Water point at more than 30 minutes | BB41: Yes | BC41: N/A | BD41: N/A | BE41: N/A | BF41: N/A | BG41: N/A | BH41: N/A | BI41: N/A | BJ41: N/A | BK41: N/A | BL41: N/A | BM41: N/A | BN41: N/A | BO41: N/A | BP41: N/A | BQ41: N/A | BR41: N/A | BS41: N/A | BT41: N/A | BU41: N/A
B42: No | C42: 86.14555384 | D42: 76.76913297 | E42: 79.71546827 | F42: 75.21572054 | G42: 82.61611085 | H42: 79.41759405 | I42: 72.10861005 | J42: 78.22171414 | K42: 81.71196188 | L42: 86.62594093 | M42: 90.88598608 | N42: 71.0940946 | O42: 86.77627541 | P42: 83.59524779 | Q42: 70.92674106 | R42: 75.98389248 | S42: 88.55877163 | T42: 90.93281466 | U42: 99.62798273 | BB42: No | BC42: N/A | BD42: N/A | BE42: N/A | BF42: N/A | BG42: N/A | BH42: N/A | BI42: N/A | BJ42: N/A | BK42: N/A | BL42: N/A | BM42: N/A | BN42: N/A | BO42: N/A | BP42: N/A | BQ42: N/A | BR42: N/A | BS42: N/A | BT42: N/A | BU42: N/A
A43: Water source available when needed | B43: Yes | C43: N/A | D43: N/A | E43: N/A | F43: N/A | G43: N/A | H43: N/A | I43: N/A | J43: N/A | K43: N/A | L43: N/A | M43: N/A | N43: N/A | O43: N/A | P43: N/A | Q43: N/A | R43: N/A | S43: N/A | T43: N/A | U43: N/A | BA43: Water source available when needed | BB43: Yes | BC43: N/A | BD43: N/A | BE43: N/A | BF43: N/A | BG43: N/A | BH43: N/A | BI43: N/A | BJ43: N/A | BK43: N/A | BL43: N/A | BM43: N/A | BN43: N/A | BO43: N/A | BP43: N/A | BQ43: N/A | BR43: N/A | BS43: N/A | BT43: N/A | BU43: N/A
B44: No | C44: N/A | D44: N/A | E44: N/A | F44: N/A | G44: N/A | H44: N/A | I44: N/A | J44: N/A | K44: N/A | L44: N/A | M44: N/A | N44: N/A | O44: N/A | P44: N/A | Q44: N/A | R44: N/A | S44: N/A | T44: N/A | U44: N/A | BB44: No | BC44: N/A | BD44: N/A | BE44: N/A | BF44: N/A | BG44: N/A | BH44: N/A | BI44: N/A | BJ44: N/A | BK44: N/A | BL44: N/A | BM44: N/A | BN44: N/A | BO44: N/A | BP44: N/A | BQ44: N/A | BR44: N/A | BS44: N/A | BT44: N/A | BU44: N/A
A45: Improved water source available when needed | B45: Yes | C45: N/A | D45: N/A | E45: N/A | F45: N/A | G45: N/A | H45: N/A | I45: N/A | J45: N/A | K45: N/A | L45: N/A | M45: N/A | N45: N/A | O45: N/A | P45: N/A | Q45: N/A | R45: N/A | S45: N/A | T45: N/A | U45: N/A | BA45: Improved water source available when needed | BB45: Yes | BC45: N/A | BD45: N/A | BE45: N/A | BF45: N/A | BG45: N/A | BH45: N/A | BI45: N/A | BJ45: N/A | BK45: N/A | BL45: N/A | BM45: N/A | BN45: N/A | BO45: N/A | BP45: N/A | BQ45: N/A | BR45: N/A | BS45: N/A | BT45: N/A | BU45: N/A
B46: No | C46: N/A | D46: N/A | E46: N/A | F46: N/A | G46: N/A | H46: N/A | I46: N/A | J46: N/A | K46: N/A | L46: N/A | M46: N/A | N46: N/A | O46: N/A | P46: N/A | Q46: N/A | R46: N/A | S46: N/A | T46: N/A | U46: N/A | BB46: No | BC46: N/A | BD46: N/A | BE46: N/A | BF46: N/A | BG46: N/A | BH46: N/A | BI46: N/A | BJ46: N/A | BK46: N/A | BL46: N/A | BM46: N/A | BN46: N/A | BO46: N/A | BP46: N/A | BQ46: N/A | BR46: N/A | BS46: N/A | BT46: N/A | BU46: N/A
A47: Microbiological quality at point of collection | B47: Not contaminated (No E. coli in 100 mL) | C47: N/A | D47: N/A | E47: N/A | F47: N/A | G47: N/A | H47: N/A | I47: N/A | J47: N/A | K47: N/A | L47: N/A | M47: N/A | N47: N/A | O47: N/A | P47: N/A | Q47: N/A | R47: N/A | S47: N/A | T47: N/A | U47: N/A | BA47: Microbiological quality at point of collection | BB47: Not contaminated (No E. coli in 100 mL) | BC47: N/A | BD47: N/A | BE47: N/A | BF47: N/A | BG47: N/A | BH47: N/A | BI47: N/A | BJ47: N/A | BK47: N/A | BL47: N/A | BM47: N/A | BN47: N/A | BO47: N/A | BP47: N/A | BQ47: N/A | BR47: N/A | BS47: N/A | BT47: N/A | BU47: N/A
B48: Contaminated (E. coli detected in 100 mL) | C48: N/A | D48: N/A | E48: N/A | F48: N/A | G48: N/A | H48: N/A | I48: N/A | J48: N/A | K48: N/A | L48: N/A | M48: N/A | N48: N/A | O48: N/A | P48: N/A | Q48: N/A | R48: N/A | S48: N/A | T48: N/A | U48: N/A | BB48: Contaminated (E. coli detected in 100 mL) | BC48: N/A | BD48: N/A | BE48: N/A | BF48: N/A | BG48: N/A | BH48: N/A | BI48: N/A | BJ48: N/A | BK48: N/A | BL48: N/A | BM48: N/A | BN48: N/A | BO48: N/A | BP48: N/A | BQ48: N/A | BR48: N/A | BS48: N/A | BT48: N/A | BU48: N/A
B49: Highly contaminated (>100 CFU/100 mL) | C49: N/A | D49: N/A | E49: N/A | F49: N/A | G49: N/A | H49: N/A | I49: N/A | J49: N/A | K49: N/A | L49: N/A | M49: N/A | N49: N/A | O49: N/A | P49: N/A | Q49: N/A | R49: N/A | S49: N/A | T49: N/A | U49: N/A | BB49: Highly contaminated (>100 CFU/100 mL) | BC49: N/A | BD49: N/A | BE49: N/A | BF49: N/A | BG49: N/A | BH49: N/A | BI49: N/A | BJ49: N/A | BK49: N/A | BL49: N/A | BM49: N/A | BN49: N/A | BO49: N/A | BP49: N/A | BQ49: N/A | BR49: N/A | BS49: N/A | BT49: N/A | BU49: N/A
A50: Microbiological quality of improved water sources at point of collection | B50: Not contaminated (No E. coli in 100 mL) | C50: N/A | D50: N/A | E50: N/A | F50: N/A | G50: N/A | H50: N/A | I50: N/A | J50: N/A | K50: N/A | L50: N/A | M50: N/A | N50: N/A | O50: N/A | P50: N/A | Q50: N/A | R50: N/A | S50: N/A | T50: N/A | U50: N/A | BA50: Microbiological quality of improved water sources at point of collection | BB50: Not contaminated (No E. coli in 100 mL) | BC50: N/A | BD50: N/A | BE50: N/A | BF50: N/A | BG50: N/A | BH50: N/A | BI50: N/A | BJ50: N/A | BK50: N/A | BL50: N/A | BM50: N/A | BN50: N/A | BO50: N/A | BP50: N/A | BQ50: N/A | BR50: N/A | BS50: N/A | BT50: N/A | BU50: N/A
B51: Contaminated (E. coli detected in 100 mL) | C51: N/A | D51: N/A | E51: N/A | F51: N/A | G51: N/A | H51: N/A | I51: N/A | J51: N/A | K51: N/A | L51: N/A | M51: N/A | N51: N/A | O51: N/A | P51: N/A | Q51: N/A | R51: N/A | S51: N/A | T51: N/A | U51: N/A | BB51: Contaminated (E. coli detected in 100 mL) | BC51: N/A | BD51: N/A | BE51: N/A | BF51: N/A | BG51: N/A | BH51: N/A | BI51: N/A | BJ51: N/A | BK51: N/A | BL51: N/A | BM51: N/A | BN51: N/A | BO51: N/A | BP51: N/A | BQ51: N/A | BR51: N/A | BS51: N/A | BT51: N/A | BU51: N/A
B52: Highly contaminated (>100 CFU/100 mL) | C52: N/A | D52: N/A | E52: N/A | F52: N/A | G52: N/A | H52: N/A | I52: N/A | J52: N/A | K52: N/A | L52: N/A | M52: N/A | N52: N/A | O52: N/A | P52: N/A | Q52: N/A | R52: N/A | S52: N/A | T52: N/A | U52: N/A | BB52: Highly contaminated (>100 CFU/100 mL) | BC52: N/A | BD52: N/A | BE52: N/A | BF52: N/A | BG52: N/A | BH52: N/A | BI52: N/A | BJ52: N/A | BK52: N/A | BL52: N/A | BM52: N/A | BN52: N/A | BO52: N/A | BP52: N/A | BQ52: N/A | BR52: N/A | BS52: N/A | BT52: N/A | BU52: N/A
A53: Microbiological quality of piped on premises at point of collection | B53: Not contaminated (No E. coli in 100 mL) | C53: N/A | D53: N/A | E53: N/A | F53: N/A | G53: N/A | H53: N/A | I53: N/A | J53: N/A | K53: N/A | L53: N/A | M53: N/A | N53: N/A | O53: N/A | P53: N/A | Q53: N/A | R53: N/A | S53: N/A | T53: N/A | U53: N/A | BA53: Microbiological quality of piped on premises at point of collection | BB53: Not contaminated (No E. coli in 100 mL) | BC53: N/A | BD53: N/A | BE53: N/A | BF53: N/A | BG53: N/A | BH53: N/A | BI53: N/A | BJ53: N/A | BK53: N/A | BL53: N/A | BM53: N/A | BN53: N/A | BO53: N/A | BP53: N/A | BQ53: N/A | BR53: N/A | BS53: N/A | BT53: N/A | BU53: N/A
B54: Contaminated (E. coli detected in 100 mL) | C54: N/A | D54: N/A | E54: N/A | F54: N/A | G54: N/A | H54: N/A | I54: N/A | J54: N/A | K54: N/A | L54: N/A | M54: N/A | N54: N/A | O54: N/A | P54: N/A | Q54: N/A | R54: N/A | S54: N/A | T54: N/A | U54: N/A | BB54: Contaminated (E. coli detected in 100 mL) | BC54: N/A | BD54: N/A | BE54: N/A | BF54: N/A | BG54: N/A | BH54: N/A | BI54: N/A | BJ54: N/A | BK54: N/A | BL54: N/A | BM54: N/A | BN54: N/A | BO54: N/A | BP54: N/A | BQ54: N/A | BR54: N/A | BS54: N/A | BT54: N/A | BU54: N/A
B55: Highly contaminated (>100 CFU/100 mL) | C55: N/A | D55: N/A | E55: N/A | F55: N/A | G55: N/A | H55: N/A | I55: N/A | J55: N/A | K55: N/A | L55: N/A | M55: N/A | N55: N/A | O55: N/A | P55: N/A | Q55: N/A | R55: N/A | S55: N/A | T55: N/A | U55: N/A | BB55: Highly contaminated (>100 CFU/100 mL) | BC55: N/A | BD55: N/A | BE55: N/A | BF55: N/A | BG55: N/A | BH55: N/A | BI55: N/A | BJ55: N/A | BK55: N/A | BL55: N/A | BM55: N/A | BN55: N/A | BO55: N/A | BP55: N/A | BQ55: N/A | BR55: N/A | BS55: N/A | BT55: N/A | BU55: N/A
C56: NATIONAL wealth index quintile | H56: URBAN wealth index quintile | M56: RURAL wealth index quintile | R56: SUB-REGIONS: | BA56: Raw numbers of respondents: | BB56: Use of drinking water sources | BC56: NATIONAL wealth index quintile | BH56: URBAN wealth index quintile | BM56: RURAL wealth index quintile | BR56: SUB-REGIONS:
A57: Percentage based on weighted population | C57: Poorest | D57: Poor | E57: Middle | F57: Rich | G57: Richest | H57: Poorest | I57: Poor | J57: Middle | K57: Rich | L57: Richest | M57: Poorest | N57: Poor | O57: Middle | P57: Rich | Q57: Richest | R57: Centro | S57: Norte | T57: Principe | U57: Sul | BA57: Water data, raw numbers (weighted) | BC57: Poorest | BD57: Poor | BE57: Middle | BF57: Rich | BG57: Richest | BH57: Poorest | BI57: Poor | BJ57: Middle | BK57: Rich | BL57: Richest | BM57: Poorest | BN57: Poor | BO57: Middle | BP57: Rich | BQ57: Richest | BR57: Centro | BS57: Norte | BT57: Principe | BU57: Sul
A58: Principal fonte de agua | B58: Agua canalizada em casa | C58: 1.481454572 | D58: 1.154771429 | E58: 2.038956099 | F58: 5.704788016 | G58: 18.42017775 | H58: 1.550091233 | I58: 1.643543294 | J58: 4.871587645 | K58: 11.37024539 | L58: 27.22792337 | M58: 1.127378515 | N58: 0.6296028022 | O58: 1.695313591 | P58: 2.385623024 | Q58: 6.695609172 | R58: 6.507506824 | S58: 3.323060353 | T58: 7.090832183 | U58: 1.998338049
B59: Agua canalizada no quintal | C59: 17.00028201 | D59: 10.31319979 | E59: 19.19403871 | F59: 20.44813041 | G59: 32.09426619 | H59: 13.00343348 | I59: 18.46383586 | J59: 25.34251075 | K59: 27.86724555 | L59: 35.2967257 | M59: 18.75050685 | N59: 7.455666983 | O59: 17.06017859 | P59: 18.87050996 | Q59: 18.14553984 | R59: 20.12940782 | S59: 16.03525578 | T59: 32.42255114 | U59: 15.46339696
B60: Torneira publica | C60: 57.20741166 | D60: 46.97863513 | E60: 46.62279336 | F60: 45.19233101 | G60: 30.04061347 | H60: 65.78483987 | I60: 64.63488238 | J60: 49.86190717 | K60: 43.2844752 | L60: 30.30707367 | M60: 52.71389592 | N60: 44.37557996 | O60: 42.19726175 | P60: 31.88174231 | Q60: 29.73708602 | R60: 43.32277906 | S60: 61.94411238 | T60: 13.04815422 | U60: 45.48963977
B61: Furo com bomba | C61: 0.7380544787 | D61: 3.881278494 | E61: 1.603258819 | F61: 1.560975875 | G61: 1.356930328 | H61: 0.6449874107 | I61: 0.2143752122 | J61: 1.082825785 | K61: 1.278880526 | L61: 0.7867093568 | M61: 0.5261099735 | N61: 4.979244503 | O61: 3.632814838 | P61: 2.495981146 | Q61: 2.179510615 | R61: 2.505392215 | S61: 0.08258161834 | T61: 0 | U61: 0
B62: Fonte ou po‡o protegido | C62: 5.37509261 | D62: 10.55967931 | E62: 6.25522832 | F62: 9.035062034 | G62: 6.128825126 | H62: 4.084920268 | I62: 3.934590357 | J62: 3.32066574 | K62: 4.476081841 | L62: 1.144304519 | M62: 5.728449071 | N62: 13.49295695 | O62: 7.373600848 | P62: 10.38317578 | Q62: 18.60411285 | R62: 8.213749148 | S62: 0.6606529467 | T62: 27.33296452 | U62: 0.5827062998
B63: Agua engarrafada | C63: 0.1584961651 | D63: 0 | E63: 0 | F63: 0 | G63: 0.2724730265 | H63: 0 | I63: 0 | J63: 0 | K63: 0.4262935087 | L63: 0.1430380649 | M63: 0.3006342706 | N63: 0 | O63: 0 | P63: 0 | Q63: 0 | R63: 0.1186492881 | S63: 0 | T63: 0 | U63: 0
B64: Fonte ou po‡o nao protegido | C64: 2.494259793 | D64: 6.554708814 | E64: 6.469873409 | F64: 4.294095546 | G64: 2.602685479 | H64: 3.153271786 | I64: 1.715001698 | J64: 3.392854126 | K64: 1.847271871 | L64: 1.287342584 | M64: 1.198260971 | N64: 8.820972875 | O64: 6.810369753 | P64: 8.594258392 | Q64: 6.932305344 | R64: 4.995495157 | S64: 0.247744855 | T64: 7.358875062 | U64: 9.486440297
B65: Bassia,rio ou corrente | C65: 14.21796719 | D65: 17.92272892 | E65: 12.69603955 | F65: 10.71411957 | G65: 5.842485543 | H65: 8.814827946 | I65: 6.216881154 | J65: 9.095736592 | K65: 7.318038566 | L65: 1.072785487 | M65: 18.97833732 | N65: 16.93110691 | O65: 19.85806391 | P65: 18.13598603 | Q65: 13.94805924 | R65: 10.36580791 | S65: 17.21826742 | T65: 12.74662288 | U65: 22.69305326
B66: Camiao-cisterna de destribui‡ao de agua | C66: 0 | D66: 0 | E66: 0 | F66: 0 | G66: 0.3065321548 | H66: 0 | I66: 0 | J66: 0 | K66: 0 | L66: 0.6436712919 | M66: 0 | N66: 0 | O66: 0 | P66: 0 | Q66: 0 | R66: 0.08454010891 | S66: 0 | T66: 0 | U66: 0
B67: Outro | C67: 1.326981519 | D67: 2.63499812 | E67: 5.119811723 | F67: 3.050497544 | G67: 2.935010925 | H67: 2.963628007 | I67: 3.176890046 | J67: 3.031912197 | K67: 2.131467543 | L67: 2.090425954 | M67: 0.6764271088 | N67: 3.314869022 | O67: 1.372396716 | P67: 7.252723366 | Q67: 3.757776923 | R67: 3.756672467 | S67: 0.4883246467 | T67: 0 | U67: 4.286425365
A108: =A1026 -> Sao Tome and Principe
A109: =A1034 -> 2000
A110: Use of sanitation facilities
A111: by wealth quintile and sub-national region
A112: Notes:
A113: WHO/UNICEF JMP customised wealth index excludes water,
A114: sanitation and hygiene assets.
A115: Survey used for analysis: | B115: =A1025 -> MICS00
A116: =B1030 -> Ratio of Improved latrines based on: | B116: 50% Rule
A117: =B1029 -> Ratio of Shared improved based on: | B117: DHS09
A120: Use of sanitation facilities | C120: NATIONAL wealth index quintile | H120: URBAN wealth index quintile | M120: RURAL wealth index quintile | R120: SUB-REGIONS: | BA120: Raw numbers of respondents: | BB120: Use of sanitation facilities | BC120: NATIONAL wealth index quintile | BH120: URBAN wealth index quintile | BM120: RURAL wealth index quintile | BR120: SUB-REGIONS:
A121: Weighted percentage (used in graphs) | C121: Poorest | D121: Poor | E121: Middle | F121: Rich | G121: Richest | H121: Poorest | I121: Poor | J121: Middle | K121: Rich | L121: Richest | M121: Poorest | N121: Poor | O121: Middle | P121: Rich | Q121: Richest | R121: Centro | S121: Norte | T121: Principe | U121: Sul | BA121: Sanitation data, raw numbers (weighted) | BC121: Poorest | BD121: Poor | BE121: Middle | BF121: Rich | BG121: Richest | BH121: Poorest | BI121: Poor | BJ121: Middle | BK121: Rich | BL121: Richest | BM121: Poorest | BN121: Poor | BO121: Middle | BP121: Rich | BQ121: Richest | BR121: Centro | BS121: Norte | BT121: Principe | BU121: Sul
A122: Sanitation | B122: Improved | C122: =C153+C154+C155+C156*0.5 -> 12.97210339 | D122: =D153+D154+D155+D156*0.5 -> 9.692581796 | E122: 18.42984657 | F122: 24.71670726 | G122: 62.48469427 | H122: 4.521922987 | I122: 15.42186691 | J122: 22.35971593 | K122: 38.53717682 | L122: 78.23791776 | M122: 19.5324176 | N122: 6.401248098 | O122: 14.97756162 | P122: 19.68776399 | Q122: 39.72860557 | R122: 28.07866861 | S122: 20.15120075 | T122: 22.8275313 | U122: 12.11684545 | BA122: Sanitation | BB122: Improved | BC122: N/A | BD122: N/A | BE122: N/A | BF122: N/A | BG122: N/A | BH122: N/A | BI122: N/A | BJ122: N/A | BK122: N/A | BL122: N/A | BM122: N/A | BN122: N/A | BO122: N/A | BP122: N/A | BQ122: N/A | BR122: N/A | BS122: N/A | BT122: N/A | BU122: N/A
B123: Not Improved | C123: =100-C122 -> 87.02789661 | D123: =100-D122 -> 90.3074182 | E123: 81.57015343 | F123: 75.28329274 | G123: 37.51530573 | H123: 95.47807701 | I123: 84.57813309 | J123: 77.64028407 | K123: 61.46282318 | L123: 21.76208224 | M123: 80.4675824 | N123: 93.5987519 | O123: 85.02243838 | P123: 80.31223601 | Q123: 60.27139443 | R123: 71.92133139 | S123: 79.84879925 | T123: 77.1724687 | U123: 87.88315455 | BB123: Not Improved | BC123: N/A | BD123: N/A | BE123: N/A | BF123: N/A | BG123: N/A | BH123: N/A | BI123: N/A | BJ123: N/A | BK123: N/A | BL123: N/A | BM123: N/A | BN123: N/A | BO123: N/A | BP123: N/A | BQ123: N/A | BR123: N/A | BS123: N/A | BT123: N/A | BU123: N/A
A124: Sanitation ladder | B124: Basic | C124: =C122*'DHS09'!C129/100 -> 9.180090478 | D124: =D122*'DHS09'!D129/100 -> 7.199525183 | E124: =E122*'DHS09'!E129/100 -> 14.87957759 | F124: =F122*'DHS09'!F129/100 -> 20.45131092 | G124: =G122*'DHS09'!G129/100 -> 56.92534613 | H124: =H122*'DHS09'!H129/100 -> 3.863941741 | I124: =I122*'DHS09'!I129/100 -> 11.98217965 | J124: =J122*'DHS09'!J129/100 -> 18.6883624 | K124: =K122*'DHS09'!K129/100 -> 33.4425033 | L124: =L122*'DHS09'!L129/100 -> 71.20737072 | M124: =M122*'DHS09'!M129/100 -> 12.53855838 | N124: =N122*'DHS09'!N129/100 -> 4.352635591 | O124: =O122*'DHS09'!O129/100 -> 11.2334926 | P124: =P122*'DHS09'!P129/100 -> 16.50710018 | Q124: =Q122*'DHS09'!Q129/100 -> 34.50623112 | R124: =R122*'DHS09'!R129/100 -> 24.16744798 | S124: =S122*'DHS09'!S129/100 -> 16.71066147 | T124: =T122*'DHS09'!T129/100 -> 18.44015493 | U124: =U122*'DHS09'!U129/100 -> 8.746746566 | BA124: Sanitation ladder | BB124: Basic | BC124: N/A | BD124: N/A | BE124: N/A | BF124: N/A | BG124: N/A | BH124: N/A | BI124: N/A | BJ124: N/A | BK124: N/A | BL124: N/A | BM124: N/A | BN124: N/A | BO124: N/A | BP124: N/A | BQ124: N/A | BR124: N/A | BS124: N/A | BT124: N/A | BU124: N/A
B125: Limited | C125: =C122*'DHS09'!C128/100 -> 3.792012908 | D125: =D122*'DHS09'!D128/100 -> 2.493056613 | E125: =E122*'DHS09'!E128/100 -> 3.550268984 | F125: =F122*'DHS09'!F128/100 -> 4.26539634 | G125: =G122*'DHS09'!G128/100 -> 5.559348142 | H125: =H122*'DHS09'!H128/100 -> 0.6579812462 | I125: =I122*'DHS09'!I128/100 -> 3.439687265 | J125: =J122*'DHS09'!J128/100 -> 3.67135353 | K125: =K122*'DHS09'!K128/100 -> 5.094673529 | L125: =L122*'DHS09'!L128/100 -> 7.030547041 | M125: =M122*'DHS09'!M128/100 -> 6.993859217 | N125: =N122*'DHS09'!N128/100 -> 2.048612507 | O125: =O122*'DHS09'!O128/100 -> 3.744069024 | P125: =P122*'DHS09'!P128/100 -> 3.180663816 | Q125: =Q122*'DHS09'!Q128/100 -> 5.222374449 | R125: =R122*'DHS09'!R128/100 -> 3.911220634 | S125: =S122*'DHS09'!S128/100 -> 3.440539275 | T125: =T122*'DHS09'!T128/100 -> 4.387376371 | U125: =U122*'DHS09'!U128/100 -> 3.37009888 | BB125: Limited | BC125: N/A | BD125: N/A | BE125: N/A | BF125: N/A | BG125: N/A | BH125: N/A | BI125: N/A | BJ125: N/A | BK125: N/A | BL125: N/A | BM125: N/A | BN125: N/A | BO125: N/A | BP125: N/A | BQ125: N/A | BR125: N/A | BS125: N/A | BT125: N/A | BU125: N/A
B126: Unimproved | C126: =100-(C124+C125+C127) -> 0.06844702654 | D126: =100-(D124+D125+D127) -> 0.1858092489 | E126: 0.9488447124 | F126: 1.590932773 | G126: 1.890251513 | H126: 0.1433305357 | I126: 0.7186515543 | J126: 1.840803834 | K126: 1.823947199 | L126: 1.573418714 | M126: 2.557953849e-13 | N126: 0.1807923683 | O126: 0.1807888466 | P126: 1.337981631 | Q126: 1.6669187 | R126: 1.173393821 | S126: 0.1633719709 | T126: 0.07543438493 | U126: 1.1160518 | BB126: Unimproved | BC126: N/A | BD126: N/A | BE126: N/A | BF126: N/A | BG126: N/A | BH126: N/A | BI126: N/A | BJ126: N/A | BK126: N/A | BL126: N/A | BM126: N/A | BN126: N/A | BO126: N/A | BP126: N/A | BQ126: N/A | BR126: N/A | BS126: N/A | BT126: N/A | BU126: N/A
B127: Open defecation | C127: =C158 -> 86.95944959 | D127: =D158 -> 90.12160895 | E127: 80.62130872 | F127: 73.69235997 | G127: 35.62505422 | H127: 95.33474648 | I127: 83.85948153 | J127: 75.79948024 | K127: 59.63887598 | L127: 20.18866352 | M127: 80.4675824 | N127: 93.41795953 | O127: 84.84164953 | P127: 78.97425438 | Q127: 58.60447573 | R127: 70.74793756 | S127: 79.68542728 | T127: 77.09703431 | U127: 86.76710275 | BB127: Open defecation | BC127: N/A | BD127: N/A | BE127: N/A | BF127: N/A | BG127: N/A | BH127: N/A | BI127: N/A | BJ127: N/A | BK127: N/A | BL127: N/A | BM127: N/A | BN127: N/A | BO127: N/A | BP127: N/A | BQ127: N/A | BR127: N/A | BS127: N/A | BT127: N/A | BU127: N/A
A128: Shared among Improved Sanitation | B128: Yes | C128: N/A | D128: N/A | E128: N/A | F128: N/A | G128: N/A | H128: N/A | I128: N/A | J128: N/A | K128: N/A | L128: N/A | M128: N/A | N128: N/A | O128: N/A | P128: N/A | Q128: N/A | R128: N/A | S128: N/A | T128: N/A | U128: N/A | BA128: Shared among improved sanitation facilities | BB128: Yes | BC128: N/A | BD128: N/A | BE128: N/A | BF128: N/A | BG128: N/A | BH128: N/A | BI128: N/A | BJ128: N/A | BK128: N/A | BL128: N/A | BM128: N/A | BN128: N/A | BO128: N/A | BP128: N/A | BQ128: N/A | BR128: N/A | BS128: N/A | BT128: N/A | BU128: N/A
B129: No | C129: N/A | D129: N/A | E129: N/A | F129: N/A | G129: N/A | H129: N/A | I129: N/A | J129: N/A | K129: N/A | L129: N/A | M129: N/A | N129: N/A | O129: N/A | P129: N/A | Q129: N/A | R129: N/A | S129: N/A | T129: N/A | U129: N/A | BB129: No | BC129: N/A | BD129: N/A | BE129: N/A | BF129: N/A | BG129: N/A | BH129: N/A | BI129: N/A | BJ129: N/A | BK129: N/A | BL129: N/A | BM129: N/A | BN129: N/A | BO129: N/A | BP129: N/A | BQ129: N/A | BR129: N/A | BS129: N/A | BT129: N/A | BU129: N/A
A130: Manually calculated ratios | B130: Improved latrines
B131: Other
B132: Other
C133: NATIONAL wealth index quintile | H133: URBAN wealth index quintile | M133: RURAL wealth index quintile | R133: SUB-REGIONS: | BA133: Raw numbers of respondents: | BB133: Use of sanitation facilities | BC133: NATIONAL wealth index quintile | BH133: URBAN wealth index quintile | BM133: RURAL wealth index quintile | BR133: SUB-REGIONS:
A134: Percentage based on weighted population | C134: Poorest | D134: Poor | E134: Middle | F134: Rich | G134: Richest | H134: Poorest | I134: Poor | J134: Middle | K134: Rich | L134: Richest | M134: Poorest | N134: Poor | O134: Middle | P134: Rich | Q134: Richest | R134: Centro | S134: Norte | T134: Principe | U134: Sul | BA134: Sanitation data, raw numbers (weighted) | BC134: Poorest | BD134: Poor | BE134: Middle | BF134: Rich | BG134: Richest | BH134: Poorest | BI134: Poor | BJ134: Middle | BK134: Rich | BL134: Richest | BM134: Poorest | BN134: Poor | BO134: Middle | BP134: Rich | BQ134: Richest | BR134: Centro | BS134: Norte | BT134: Principe | BU134: Sul
A135: Sanitation type | B135: Sewer connection | C135: N/A | D135: N/A | E135: N/A | F135: N/A | G135: N/A | H135: N/A | I135: N/A | J135: N/A | K135: N/A | L135: N/A | M135: N/A | N135: N/A | O135: N/A | P135: N/A | Q135: N/A | R135: N/A | S135: N/A | T135: N/A | U135: N/A | BA135: Sanitation type | BB135: Sewer connection | BC135: N/A | BD135: N/A | BE135: N/A | BF135: N/A | BG135: N/A | BH135: N/A | BI135: N/A | BJ135: N/A | BK135: N/A | BL135: N/A | BM135: N/A | BN135: N/A | BO135: N/A | BP135: N/A | BQ135: N/A | BR135: N/A | BS135: N/A | BT135: N/A | BU135: N/A
B136: Septic tank connection | C136: N/A | D136: N/A | E136: N/A | F136: N/A | G136: N/A | H136: N/A | I136: N/A | J136: N/A | K136: N/A | L136: N/A | M136: N/A | N136: N/A | O136: N/A | P136: N/A | Q136: N/A | R136: N/A | S136: N/A | T136: N/A | U136: N/A | BB136: Septic tank connection | BC136: N/A | BD136: N/A | BE136: N/A | BF136: N/A | BG136: N/A | BH136: N/A | BI136: N/A | BJ136: N/A | BK136: N/A | BL136: N/A | BM136: N/A | BN136: N/A | BO136: N/A | BP136: N/A | BQ136: N/A | BR136: N/A | BS136: N/A | BT136: N/A | BU136: N/A
B137: Improved latrines | C137: N/A | D137: N/A | E137: N/A | F137: N/A | G137: N/A | H137: N/A | I137: N/A | J137: N/A | K137: N/A | L137: N/A | M137: N/A | N137: N/A | O137: N/A | P137: N/A | Q137: N/A | R137: N/A | S137: N/A | T137: N/A | U137: N/A | BB137: Improved latrines | BC137: N/A | BD137: N/A | BE137: N/A | BF137: N/A | BG137: N/A | BH137: N/A | BI137: N/A | BJ137: N/A | BK137: N/A | BL137: N/A | BM137: N/A | BN137: N/A | BO137: N/A | BP137: N/A | BQ137: N/A | BR137: N/A | BS137: N/A | BT137: N/A | BU137: N/A
B138: Unimproved facilities | C138: N/A | D138: N/A | E138: N/A | F138: N/A | G138: N/A | H138: N/A | I138: N/A | J138: N/A | K138: N/A | L138: N/A | M138: N/A | N138: N/A | O138: N/A | P138: N/A | Q138: N/A | R138: N/A | S138: N/A | T138: N/A | U138: N/A | BB138: Unimproved facilities | BC138: N/A | BD138: N/A | BE138: N/A | BF138: N/A | BG138: N/A | BH138: N/A | BI138: N/A | BJ138: N/A | BK138: N/A | BL138: N/A | BM138: N/A | BN138: N/A | BO138: N/A | BP138: N/A | BQ138: N/A | BR138: N/A | BS138: N/A | BT138: N/A | BU138: N/A
B139: Open defecation | C139: =C158 -> 86.95944959 | D139: =D158 -> 90.12160895 | E139: 80.62130872 | F139: 73.69235997 | G139: 35.62505422 | H139: 95.33474648 | I139: 83.85948153 | J139: 75.79948024 | K139: 59.63887598 | L139: 20.18866352 | M139: 80.4675824 | N139: 93.41795953 | O139: 84.84164953 | P139: 78.97425438 | Q139: 58.60447573 | R139: 70.74793756 | S139: 79.68542728 | T139: 77.09703431 | U139: 86.76710275 | BB139: Open defecation | BC139: N/A | BD139: N/A | BE139: N/A | BF139: N/A | BG139: N/A | BH139: N/A | BI139: N/A | BJ139: N/A | BK139: N/A | BL139: N/A | BM139: N/A | BN139: N/A | BO139: N/A | BP139: N/A | BQ139: N/A | BR139: N/A | BS139: N/A | BT139: N/A | BU139: N/A
A140: Septic tank emptying practices | B140: Not emptied/treated and disposed in situ | C140: N/A | D140: N/A | E140: N/A | F140: N/A | G140: N/A | H140: N/A | I140: N/A | J140: N/A | K140: N/A | L140: N/A | M140: N/A | N140: N/A | O140: N/A | P140: N/A | Q140: N/A | R140: N/A | S140: N/A | T140: N/A | U140: N/A | BA140: Septic tank emptying practices | BB140: Not emptied/treated and disposed in situ | BC140: N/A | BD140: N/A | BE140: N/A | BF140: N/A | BG140: N/A | BH140: N/A | BI140: N/A | BJ140: N/A | BK140: N/A | BL140: N/A | BM140: N/A | BN140: N/A | BO140: N/A | BP140: N/A | BQ140: N/A | BR140: N/A | BS140: N/A | BT140: N/A | BU140: N/A
B141: Emptied and buried on site | C141: N/A | D141: N/A | E141: N/A | F141: N/A | G141: N/A | H141: N/A | I141: N/A | J141: N/A | K141: N/A | L141: N/A | M141: N/A | N141: N/A | O141: N/A | P141: N/A | Q141: N/A | R141: N/A | S141: N/A | T141: N/A | U141: N/A | BB141: Emptied and buried on site | BC141: N/A | BD141: N/A | BE141: N/A | BF141: N/A | BG141: N/A | BH141: N/A | BI141: N/A | BJ141: N/A | BK141: N/A | BL141: N/A | BM141: N/A | BN141: N/A | BO141: N/A | BP141: N/A | BQ141: N/A | BR141: N/A | BS141: N/A | BT141: N/A | BU141: N/A
B142: Emptied and discharged locally | C142: N/A | D142: N/A | E142: N/A | F142: N/A | G142: N/A | H142: N/A | I142: N/A | J142: N/A | K142: N/A | L142: N/A | M142: N/A | N142: N/A | O142: N/A | P142: N/A | Q142: N/A | R142: N/A | S142: N/A | T142: N/A | U142: N/A | BB142: Emptied and discharged locally | BC142: N/A | BD142: N/A | BE142: N/A | BF142: N/A | BG142: N/A | BH142: N/A | BI142: N/A | BJ142: N/A | BK142: N/A | BL142: N/A | BM142: N/A | BN142: N/A | BO142: N/A | BP142: N/A | BQ142: N/A | BR142: N/A | BS142: N/A | BT142: N/A | BU142: N/A
B143: Emptied and removed offsite | C143: N/A | D143: N/A | E143: N/A | F143: N/A | G143: N/A | H143: N/A | I143: N/A | J143: N/A | K143: N/A | L143: N/A | M143: N/A | N143: N/A | O143: N/A | P143: N/A | Q143: N/A | R143: N/A | S143: N/A | T143: N/A | U143: N/A | BB143: Emptied and removed offsite | BC143: N/A | BD143: N/A | BE143: N/A | BF143: N/A | BG143: N/A | BH143: N/A | BI143: N/A | BJ143: N/A | BK143: N/A | BL143: N/A | BM143: N/A | BN143: N/A | BO143: N/A | BP143: N/A | BQ143: N/A | BR143: N/A | BS143: N/A | BT143: N/A | BU143: N/A
A144: Latrine emptying practices | B144: Not emptied/treated and disposed in situ | C144: N/A | D144: N/A | E144: N/A | F144: N/A | G144: N/A | H144: N/A | I144: N/A | J144: N/A | K144: N/A | L144: N/A | M144: N/A | N144: N/A | O144: N/A | P144: N/A | Q144: N/A | R144: N/A | S144: N/A | T144: N/A | U144: N/A | BA144: Latrine emptying practices | BB144: Not emptied/treated and disposed in situ | BC144: N/A | BD144: N/A | BE144: N/A | BF144: N/A | BG144: N/A | BH144: N/A | BI144: N/A | BJ144: N/A | BK144: N/A | BL144: N/A | BM144: N/A | BN144: N/A | BO144: N/A | BP144: N/A | BQ144: N/A | BR144: N/A | BS144: N/A | BT144: N/A | BU144: N/A
B145: Emptied and buried on site | C145: N/A | D145: N/A | E145: N/A | F145: N/A | G145: N/A | H145: N/A | I145: N/A | J145: N/A | K145: N/A | L145: N/A | M145: N/A | N145: N/A | O145: N/A | P145: N/A | Q145: N/A | R145: N/A | S145: N/A | T145: N/A | U145: N/A | BB145: Emptied and buried on site | BC145: N/A | BD145: N/A | BE145: N/A | BF145: N/A | BG145: N/A | BH145: N/A | BI145: N/A | BJ145: N/A | BK145: N/A | BL145: N/A | BM145: N/A | BN145: N/A | BO145: N/A | BP145: N/A | BQ145: N/A | BR145: N/A | BS145: N/A | BT145: N/A | BU145: N/A
B146: Emptied and discharged locally | C146: N/A | D146: N/A | E146: N/A | F146: N/A | G146: N/A | H146: N/A | I146: N/A | J146: N/A | K146: N/A | L146: N/A | M146: N/A | N146: N/A | O146: N/A | P146: N/A | Q146: N/A | R146: N/A | S146: N/A | T146: N/A | U146: N/A | BB146: Emptied and discharged locally | BC146: N/A | BD146: N/A | BE146: N/A | BF146: N/A | BG146: N/A | BH146: N/A | BI146: N/A | BJ146: N/A | BK146: N/A | BL146: N/A | BM146: N/A | BN146: N/A | BO146: N/A | BP146: N/A | BQ146: N/A | BR146: N/A | BS146: N/A | BT146: N/A | BU146: N/A
B147: Emptied and removed offsite | C147: N/A | D147: N/A | E147: N/A | F147: N/A | G147: N/A | H147: N/A | I147: N/A | J147: N/A | K147: N/A | L147: N/A | M147: N/A | N147: N/A | O147: N/A | P147: N/A | Q147: N/A | R147: N/A | S147: N/A | T147: N/A | U147: N/A | BB147: Emptied and removed offsite | BC147: N/A | BD147: N/A | BE147: N/A | BF147: N/A | BG147: N/A | BH147: N/A | BI147: N/A | BJ147: N/A | BK147: N/A | BL147: N/A | BM147: N/A | BN147: N/A | BO147: N/A | BP147: N/A | BQ147: N/A | BR147: N/A | BS147: N/A | BT147: N/A | BU147: N/A
A148: Shared among improved sanitation facilities | B148: Yes | C148: N/A | D148: N/A | E148: N/A | F148: N/A | G148: N/A | H148: N/A | I148: N/A | J148: N/A | K148: N/A | L148: N/A | M148: N/A | N148: N/A | O148: N/A | P148: N/A | Q148: N/A | R148: N/A | S148: N/A | T148: N/A | U148: N/A | BA148: Shared among improved sanitation facilities | BB148: Yes | BC148: N/A | BD148: N/A | BE148: N/A | BF148: N/A | BG148: N/A | BH148: N/A | BI148: N/A | BJ148: N/A | BK148: N/A | BL148: N/A | BM148: N/A | BN148: N/A | BO148: N/A | BP148: N/A | BQ148: N/A | BR148: N/A | BS148: N/A | BT148: N/A | BU148: N/A
B149: No | C149: N/A | D149: N/A | E149: N/A | F149: N/A | G149: N/A | H149: N/A | I149: N/A | J149: N/A | K149: N/A | L149: N/A | M149: N/A | N149: N/A | O149: N/A | P149: N/A | Q149: N/A | R149: N/A | S149: N/A | T149: N/A | U149: N/A | BB149: No | BC149: N/A | BD149: N/A | BE149: N/A | BF149: N/A | BG149: N/A | BH149: N/A | BI149: N/A | BJ149: N/A | BK149: N/A | BL149: N/A | BM149: N/A | BN149: N/A | BO149: N/A | BP149: N/A | BQ149: N/A | BR149: N/A | BS149: N/A | BT149: N/A | BU149: N/A
B150: DK/missing | C150: N/A | D150: N/A | E150: N/A | F150: N/A | G150: N/A | H150: N/A | I150: N/A | J150: N/A | K150: N/A | L150: N/A | M150: N/A | N150: N/A | O150: N/A | P150: N/A | Q150: N/A | R150: N/A | S150: N/A | T150: N/A | U150: N/A | BB150: DK/missing | BC150: N/A | BD150: N/A | BE150: N/A | BF150: N/A | BG150: N/A | BH150: N/A | BI150: N/A | BJ150: N/A | BK150: N/A | BL150: N/A | BM150: N/A | BN150: N/A | BO150: N/A | BP150: N/A | BQ150: N/A | BR150: N/A | BS150: N/A | BT150: N/A | BU150: N/A
A151: Shared among all sanitation facilities | B151: Yes | C151: N/A | D151: N/A | E151: N/A | F151: N/A | G151: N/A | H151: N/A | I151: N/A | J151: N/A | K151: N/A | L151: N/A | M151: N/A | N151: N/A | O151: N/A | P151: N/A | Q151: N/A | R151: N/A | S151: N/A | T151: N/A | U151: N/A | BA151: Shared among all sanitation facilities | BB151: Yes | BC151: N/A | BD151: N/A | BE151: N/A | BF151: N/A | BG151: N/A | BH151: N/A | BI151: N/A | BJ151: N/A | BK151: N/A | BL151: N/A | BM151: N/A | BN151: N/A | BO151: N/A | BP151: N/A | BQ151: N/A | BR151: N/A | BS151: N/A | BT151: N/A | BU151: N/A
B152: No | C152: N/A | D152: N/A | E152: N/A | F152: N/A | G152: N/A | H152: N/A | I152: N/A | J152: N/A | K152: N/A | L152: N/A | M152: N/A | N152: N/A | O152: N/A | P152: N/A | Q152: N/A | R152: N/A | S152: N/A | T152: N/A | U152: N/A | BB152: No | BC152: N/A | BD152: N/A | BE152: N/A | BF152: N/A | BG152: N/A | BH152: N/A | BI152: N/A | BJ152: N/A | BK152: N/A | BL152: N/A | BM152: N/A | BN152: N/A | BO152: N/A | BP152: N/A | BQ152: N/A | BR152: N/A | BS152: N/A | BT152: N/A | BU152: N/A
A153: Especie de metodo sanitario | B153: Descarga para o sist.de esgoto ou fossa | C153: 9.766070379 | D153: 6.548659167 | E153: 11.1839538 | F153: 12.74947779 | G153: 42.47040364 | H153: 1.629960248 | I153: 8.147753829 | J153: 12.70613018 | K153: 20.89080042 | L153: 60.82622517 | M153: 15.52201872 | N153: 3.766991951 | O153: 13.6927294 | P153: 10.84532966 | Q153: 19.71696923 | R153: 16.4666522 | S153: 18.34395856 | T153: 20.04127258 | U153: 7.223033381 | BA153: Especie de metodo sanitario | BB153: Descarga para o sist.de esgoto ou fossa | BC153: 267.121119 | BD153: 181.033905 | BE153: 307.228235 | BF153: 350.06899 | BG153: 1167.255224 | BH153: 21.290274 | BI153: 106.732714 | BJ153: 164.762714 | BK153: 275.239384 | BL153: 796.126722 | BM153: 223.829256 | BN153: 56.454914 | BO153: 183.825781 | BP153: 160.11334 | BQ153: 284.332374 | BR153: 1640.959965 | BS153: 446.119084 | BT153: 138.504163 | BU153: 47.124261
B154: Descarga para latrina | C154: 0.8794697442 | D154: 0.6270582646 | E154: 2.14128333 | F154: 2.425922545 | G154: 2.921643933 | H154: 0.5733221428 | I154: 1.786460102 | J154: 1.515956099 | K154: 2.65612048 | L154: 2.821809982 | M154: 1.079214743 | N154: 0.7901739896 | O154: 0.1352927537 | P154: 2.716214777 | Q154: 3.836315586 | R154: 2.210317711 | S154: 0.5780713284 | T154: 0.8662920459 | U154: 1.043614483 | BB154: Descarga para latrina | BC154: 24.055217 | BD154: 17.334664 | BE154: 58.822015 | BF154: 66.609807 | BG154: 80.298369 | BH154: 7.48864 | BI154: 23.402 | BJ154: 19.65768 | BK154: 34.99478 | BL154: 36.933384 | BM154: 15.562398 | BN154: 11.842129 | BO154: 1.816314 | BP154: 40.100415 | BQ154: 55.322332 | BR154: 220.265955 | BS154: 14.058506 | BT154: 5.986898 | BU154: 6.808713
B155: Latrina melhorada | C155: 2.258116236 | D155: 2.331055116 | E155: 4.528787023 | F155: 7.950374146 | G155: 15.50892733 | H155: 2.175310061 | I155: 5.054835042 | J155: 6.296825812 | K155: 13.4505044 | L155: 13.37405907 | M155: 2.931184138 | N155: 1.663289788 | O155: 0.9687506233 | P155: 5.22870519 | Q155: 14.50840205 | R155: 8.415672157 | S155: 1.065798886 | T155: 1.844532288 | U155: 2.734145782 | BB155: Latrina melhorada | BC155: 61.763894 | BD155: 64.440674 | BE155: 124.407814 | BF155: 218.297525 | BG155: 426.246866 | BH155: 28.413544 | BI155: 66.216564 | BJ155: 81.652092 | BK155: 177.212384 | BL155: 175.04696 | BM155: 42.268005 | BN155: 24.927285 | BO155: 13.00554 | BP155: 77.193177 | BQ155: 209.221222 | BR155: 838.65141 | BS155: 25.919881 | BT155: 12.747464 | BU155: 17.838018
B156: Latrina tradicional | C156: 0.1368940531 | D156: 0.3716184978 | E156: 1.151644836 | F156: 3.181865546 | G156: 3.167438716 | H156: 0.2866610714 | I156: 0.8656358761 | J156: 3.681607668 | K156: 3.079503053 | L156: 2.431647103 | M156: 0 | N156: 0.3615847366 | O156: 0.3615776931 | P156: 1.795028739 | Q156: 3.333837401 | R156: 1.972053087 | S156: 0.3267439417 | T156: 0.1508687699 | U156: 2.232103599 | BB156: Latrina tradicional | BC156: 3.74432 | BD156: 10.273179 | BE156: 31.636201 | BF156: 87.366124 | BG156: 87.053785 | BH156: 3.74432 | BI156: 11.339526 | BJ156: 47.74008 | BK156: 40.572908 | BL156: 31.82672 | BM156: 0 | BN156: 5.418975 | BO156: 4.854204 | BP156: 26.500628 | BQ156: 48.076248 | BR156: 196.522045 | BS156: 7.946306 | BT156: 1.042646 | BU156: 14.562612
B157: Outro | C157: 0 | D157: 0 | E157: 0.3730222944 | F157: 0 | G157: 0.3065321548 | H157: 0 | I157: 0.2858336163 | J157: 0 | K157: 0.2841956724 | L157: 0.3575951622 | M157: 0 | N157: 0 | O157: 0 | P157: 0.4404672611 | Q157: 0 | R157: 0.1873672776 | S157: 0 | T157: 0 | U157: 0 | BB157: Outro | BC157: 0 | BD157: 0 | BE157: 10.24709 | BF157: 0 | BG157: 8.42472 | BH157: 0 | BI157: 3.74432 | BJ157: 0 | BK157: 3.74432 | BL157: 4.6804 | BM157: 0 | BN157: 0 | BO157: 0 | BP157: 6.50277 | BQ157: 0 | BR157: 18.67181 | BS157: 0 | BT157: 0 | BU157: 0
B158: Mato, praia ou campo | C158: 86.95944959 | D158: 90.12160895 | E158: 80.62130872 | F158: 73.69235997 | G158: 35.62505422 | H158: 95.33474648 | I158: 83.85948153 | J158: 75.79948024 | K158: 59.63887598 | L158: 20.18866352 | M158: 80.4675824 | N158: 93.41795953 | O158: 84.84164953 | P158: 78.97425438 | Q158: 58.60447573 | R158: 70.74793756 | S158: 79.68542728 | T158: 77.09703431 | U158: 86.76710275 | BB158: Mato, praia ou campo | BC158: 2378.510965 | BD158: 2491.359892 | BE158: 2214.703568 | BF158: 2023.40915 | BG158: 979.117858 | BH158: 1245.246856 | BI158: 1098.52976 | BJ158: 982.905724 | BK158: 785.751008 | BL158: 264.24021 | BM158: 1160.35159 | BN158: 1400.0303 | BO158: 1139.004652 | BP158: 1165.924139 | BQ158: 845.117194 | BR158: 7050.281485 | BS158: 1937.923579 | BT158: 532.813481 | BU158: 566.082888
BB159: Total | BC159: 2735.195515 | BD159: 2764.442314 | BE159: 2747.044923 | BF159: 2745.751596 | BG159: 2748.396822 | BH159: 1306.183634 | BI159: 1309.964884 | BJ159: 1296.71829 | BK159: 1317.514784 | BL159: 1308.854396 | BM159: 1442.011249 | BN159: 1498.673603 | BO159: 1342.506491 | BP159: 1476.334469 | BQ159: 1442.06937 | BR159: 9965.35267 | BS159: 2431.967356 | BT159: 691.094652 | BU159: 652.416492
A208: =A1026 -> Sao Tome and Principe
A209: =A1034 -> 2000
A210: Access to hygiene facilities
A211: by wealth quintile and sub-national region
A212: Notes:
A213: WHO/UNICEF JMP customised wealth index excludes water,
A214: sanitation and hygiene assets.
A215: Survey used for analysis: | B215: =A1025 -> MICS00
A220: Access to handwashing | C220: NATIONAL wealth index quintile | H220: URBAN wealth index quintile | M220: RURAL wealth index quintile | R220: SUB-REGIONS: | BA220: Raw numbers of respondents: | BB220: Access to handwashing | BC220: NATIONAL wealth index quintile | BH220: URBAN wealth index quintile | BM220: RURAL wealth index quintile | BR220: SUB-REGIONS:
A221: Weighted percentage (used in graphs) | C221: Poorest | D221: Poor | E221: Middle | F221: Rich | G221: Richest | H221: Poorest | I221: Poor | J221: Middle | K221: Rich | L221: Richest | M221: Poorest | N221: Poor | O221: Middle | P221: Rich | Q221: Richest | R221: Centro | S221: Norte | T221: Principe | U221: Sul | BA221: Hygiene data, raw numbers (weighted) | BC221: Poorest | BD221: Poor | BE221: Middle | BF221: Rich | BG221: Richest | BH221: Poorest | BI221: Poor | BJ221: Middle | BK221: Rich | BL221: Richest | BM221: Poorest | BN221: Poor | BO221: Middle | BP221: Rich | BQ221: Richest | BR221: Centro | BS221: Norte | BT221: Principe | BU221: Sul
A222: Hygiene ladder | B222: Basic | C222: N/A | D222: N/A | E222: N/A | F222: N/A | G222: N/A | H222: N/A | I222: N/A | J222: N/A | K222: N/A | L222: N/A | M222: N/A | N222: N/A | O222: N/A | P222: N/A | Q222: N/A | R222: N/A | S222: N/A | T222: N/A | U222: N/A | BA222: Hygiene ladder | BB222: Basic | BC222: N/A | BD222: N/A | BE222: N/A | BF222: N/A | BG222: N/A | BH222: N/A | BI222: N/A | BJ222: N/A | BK222: N/A | BL222: N/A | BM222: N/A | BN222: N/A | BO222: N/A | BP222: N/A | BQ222: N/A | BR222: N/A | BS222: N/A | BT222: N/A | BU222: N/A
B223: Limited | C223: N/A | D223: N/A | E223: N/A | F223: N/A | G223: N/A | H223: N/A | I223: N/A | J223: N/A | K223: N/A | L223: N/A | M223: N/A | N223: N/A | O223: N/A | P223: N/A | Q223: N/A | R223: N/A | S223: N/A | T223: N/A | U223: N/A | BB223: Limited | BC223: N/A | BD223: N/A | BE223: N/A | BF223: N/A | BG223: N/A | BH223: N/A | BI223: N/A | BJ223: N/A | BK223: N/A | BL223: N/A | BM223: N/A | BN223: N/A | BO223: N/A | BP223: N/A | BQ223: N/A | BR223: N/A | BS223: N/A | BT223: N/A | BU223: N/A
B224: No facility | C224: N/A | D224: N/A | E224: N/A | F224: N/A | G224: N/A | H224: N/A | I224: N/A | J224: N/A | K224: N/A | L224: N/A | M224: N/A | N224: N/A | O224: N/A | P224: N/A | Q224: N/A | R224: N/A | S224: N/A | T224: N/A | U224: N/A | BB224: No facility | BC224: N/A | BD224: N/A | BE224: N/A | BF224: N/A | BG224: N/A | BH224: N/A | BI224: N/A | BJ224: N/A | BK224: N/A | BL224: N/A | BM224: N/A | BN224: N/A | BO224: N/A | BP224: N/A | BQ224: N/A | BR224: N/A | BS224: N/A | BT224: N/A | BU224: N/A
BA225: Observed handwashing place | BB225: Fixed | BC225: N/A | BD225: N/A | BE225: N/A | BF225: N/A | BG225: N/A | BH225: N/A | BI225: N/A | BJ225: N/A | BK225: N/A | BL225: N/A | BM225: N/A | BN225: N/A | BO225: N/A | BP225: N/A | BQ225: N/A | BR225: N/A | BS225: N/A | BT225: N/A | BU225: N/A
BB226: Mobile | BC226: N/A | BD226: N/A | BE226: N/A | BF226: N/A | BG226: N/A | BH226: N/A | BI226: N/A | BJ226: N/A | BK226: N/A | BL226: N/A | BM226: N/A | BN226: N/A | BO226: N/A | BP226: N/A | BQ226: N/A | BR226: N/A | BS226: N/A | BT226: N/A | BU226: N/A
BA227: Water / Soap | BB227: Water and soap | BC227: N/A | BD227: N/A | BE227: N/A | BF227: N/A | BG227: N/A | BH227: N/A | BI227: N/A | BJ227: N/A | BK227: N/A | BL227: N/A | BM227: N/A | BN227: N/A | BO227: N/A | BP227: N/A | BQ227: N/A | BR227: N/A | BS227: N/A | BT227: N/A | BU227: N/A
BB228: Water only | BC228: N/A | BD228: N/A | BE228: N/A | BF228: N/A | BG228: N/A | BH228: N/A | BI228: N/A | BJ228: N/A | BK228: N/A | BL228: N/A | BM228: N/A | BN228: N/A | BO228: N/A | BP228: N/A | BQ228: N/A | BR228: N/A | BS228: N/A | BT228: N/A | BU228: N/A
BB229: Soap only | BC229: N/A | BD229: N/A | BE229: N/A | BF229: N/A | BG229: N/A | BH229: N/A | BI229: N/A | BJ229: N/A | BK229: N/A | BL229: N/A | BM229: N/A | BN229: N/A | BO229: N/A | BP229: N/A | BQ229: N/A | BR229: N/A | BS229: N/A | BT229: N/A | BU229: N/A
BB230: Neither | BC230: N/A | BD230: N/A | BE230: N/A | BF230: N/A | BG230: N/A | BH230: N/A | BI230: N/A | BJ230: N/A | BK230: N/A | BL230: N/A | BM230: N/A | BN230: N/A | BO230: N/A | BP230: N/A | BQ230: N/A | BR230: N/A | BS230: N/A | BT230: N/A | BU230: N/A
BA259: Raw numbers of respondents: | BB259: Menstrual health and hygiene | BC259: NATIONAL wealth index quintile | BH259: URBAN wealth index quintile | BM259: RURAL wealth index quintile | BR259: SUB-REGIONS:
BA260: MHH data, raw numbers (weighted) | BC260: Poorest | BD260: Poor | BE260: Middle | BF260: Rich | BG260: Richest | BH260: Poorest | BI260: Poor | BJ260: Middle | BK260: Rich | BL260: Richest | BM260: Poorest | BN260: Poor | BO260: Middle | BP260: Rich | BQ260: Richest | BR260: Centro | BS260: Norte | BT260: Principe | BU260: Sul
BA261: Private place to wash and change | BB261: Yes | BC261: N/A | BD261: N/A | BE261: N/A | BF261: N/A | BG261: N/A | BH261: N/A | BI261: N/A | BJ261: N/A | BK261: N/A | BL261: N/A | BM261: N/A | BN261: N/A | BO261: N/A | BP261: N/A | BQ261: N/A | BR261: N/A | BS261: N/A | BT261: N/A | BU261: N/A
BB262: No | BC262: N/A | BD262: N/A | BE262: N/A | BF262: N/A | BG262: N/A | BH262: N/A | BI262: N/A | BJ262: N/A | BK262: N/A | BL262: N/A | BM262: N/A | BN262: N/A | BO262: N/A | BP262: N/A | BQ262: N/A | BR262: N/A | BS262: N/A | BT262: N/A | BU262: N/A
BB263: DK/not sure/missing | BC263: N/A | BD263: N/A | BE263: N/A | BF263: N/A | BG263: N/A | BH263: N/A | BI263: N/A | BJ263: N/A | BK263: N/A | BL263: N/A | BM263: N/A | BN263: N/A | BO263: N/A | BP263: N/A | BQ263: N/A | BR263: N/A | BS263: N/A | BT263: N/A | BU263: N/A
BA264: Use of menstrual materials | BB264: Materials reusable | BC264: N/A | BD264: N/A | BE264: N/A | BF264: N/A | BG264: N/A | BH264: N/A | BI264: N/A | BJ264: N/A | BK264: N/A | BL264: N/A | BM264: N/A | BN264: N/A | BO264: N/A | BP264: N/A | BQ264: N/A | BR264: N/A | BS264: N/A | BT264: N/A | BU264: N/A
BB265: Materials not reusable | BC265: N/A | BD265: N/A | BE265: N/A | BF265: N/A | BG265: N/A | BH265: N/A | BI265: N/A | BJ265: N/A | BK265: N/A | BL265: N/A | BM265: N/A | BN265: N/A | BO265: N/A | BP265: N/A | BQ265: N/A | BR265: N/A | BS265: N/A | BT265: N/A | BU265: N/A
BB266: No materials used | BC266: N/A | BD266: N/A | BE266: N/A | BF266: N/A | BG266: N/A | BH266: N/A | BI266: N/A | BJ266: N/A | BK266: N/A | BL266: N/A | BM266: N/A | BN266: N/A | BO266: N/A | BP266: N/A | BQ266: N/A | BR266: N/A | BS266: N/A | BT266: N/A | BU266: N/A
BB267: DK/not sure/missing | BC267: N/A | BD267: N/A | BE267: N/A | BF267: N/A | BG267: N/A | BH267: N/A | BI267: N/A | BJ267: N/A | BK267: N/A | BL267: N/A | BM267: N/A | BN267: N/A | BO267: N/A | BP267: N/A | BQ267: N/A | BR267: N/A | BS267: N/A | BT267: N/A | BU267: N/A
BA268: Use of menstrual materials with private place to wash and change | BB268: Materials reusable | BC268: N/A | BD268: N/A | BE268: N/A | BF268: N/A | BG268: N/A | BH268: N/A | BI268: N/A | BJ268: N/A | BK268: N/A | BL268: N/A | BM268: N/A | BN268: N/A | BO268: N/A | BP268: N/A | BQ268: N/A | BR268: N/A | BS268: N/A | BT268: N/A | BU268: N/A
BB269: Materials not reusable | BC269: N/A | BD269: N/A | BE269: N/A | BF269: N/A | BG269: N/A | BH269: N/A | BI269: N/A | BJ269: N/A | BK269: N/A | BL269: N/A | BM269: N/A | BN269: N/A | BO269: N/A | BP269: N/A | BQ269: N/A | BR269: N/A | BS269: N/A | BT269: N/A | BU269: N/A
BB270: No materials used | BC270: N/A | BD270: N/A | BE270: N/A | BF270: N/A | BG270: N/A | BH270: N/A | BI270: N/A | BJ270: N/A | BK270: N/A | BL270: N/A | BM270: N/A | BN270: N/A | BO270: N/A | BP270: N/A | BQ270: N/A | BR270: N/A | BS270: N/A | BT270: N/A | BU270: N/A
BA271: Awareness of menstruation before menarche | BB271: Yes | BC271: N/A | BD271: N/A | BE271: N/A | BF271: N/A | BG271: N/A | BH271: N/A | BI271: N/A | BJ271: N/A | BK271: N/A | BL271: N/A | BM271: N/A | BN271: N/A | BO271: N/A | BP271: N/A | BQ271: N/A | BR271: N/A | BS271: N/A | BT271: N/A | BU271: N/A
BB272: No | BC272: N/A | BD272: N/A | BE272: N/A | BF272: N/A | BG272: N/A | BH272: N/A | BI272: N/A | BJ272: N/A | BK272: N/A | BL272: N/A | BM272: N/A | BN272: N/A | BO272: N/A | BP272: N/A | BQ272: N/A | BR272: N/A | BS272: N/A | BT272: N/A | BU272: N/A
BB273: DK/not sure/missing | BC273: N/A | BD273: N/A | BE273: N/A | BF273: N/A | BG273: N/A | BH273: N/A | BI273: N/A | BJ273: N/A | BK273: N/A | BL273: N/A | BM273: N/A | BN273: N/A | BO273: N/A | BP273: N/A | BQ273: N/A | BR273: N/A | BS273: N/A | BT273: N/A | BU273: N/A
BA274: Participation in (all) activities during menstruation | BB274: Yes | BC274: N/A | BD274: N/A | BE274: N/A | BF274: N/A | BG274: N/A | BH274: N/A | BI274: N/A | BJ274: N/A | BK274: N/A | BL274: N/A | BM274: N/A | BN274: N/A | BO274: N/A | BP274: N/A | BQ274: N/A | BR274: N/A | BS274: N/A | BT274: N/A | BU274: N/A
BB275: No | BC275: N/A | BD275: N/A | BE275: N/A | BF275: N/A | BG275: N/A | BH275: N/A | BI275: N/A | BJ275: N/A | BK275: N/A | BL275: N/A | BM275: N/A | BN275: N/A | BO275: N/A | BP275: N/A | BQ275: N/A | BR275: N/A | BS275: N/A | BT275: N/A | BU275: N/A
BB276: DK/not sure/missing/no such activity | BC276: N/A | BD276: N/A | BE276: N/A | BF276: N/A | BG276: N/A | BH276: N/A | BI276: N/A | BJ276: N/A | BK276: N/A | BL276: N/A | BM276: N/A | BN276: N/A | BO276: N/A | BP276: N/A | BQ276: N/A | BR276: N/A | BS276: N/A | BT276: N/A | BU276: N/A
BA277: Participation in specific activities during menstruation | BB277: Did not go to school (amongst those usually attending school) | BC277: N/A | BD277: N/A | BE277: N/A | BF277: N/A | BG277: N/A | BH277: N/A | BI277: N/A | BJ277: N/A | BK277: N/A | BL277: N/A | BM277: N/A | BN277: N/A | BO277: N/A | BP277: N/A | BQ277: N/A | BR277: N/A | BS277: N/A | BT277: N/A | BU277: N/A
BB278: Did not go to work (amongst those who usually work) | BC278: N/A | BD278: N/A | BE278: N/A | BF278: N/A | BG278: N/A | BH278: N/A | BI278: N/A | BJ278: N/A | BK278: N/A | BL278: N/A | BM278: N/A | BN278: N/A | BO278: N/A | BP278: N/A | BQ278: N/A | BR278: N/A | BS278: N/A | BT278: N/A | BU278: N/A
BB279: Did not participate in social activities | BC279: N/A | BD279: N/A | BE279: N/A | BF279: N/A | BG279: N/A | BH279: N/A | BI279: N/A | BJ279: N/A | BK279: N/A | BL279: N/A | BM279: N/A | BN279: N/A | BO279: N/A | BP279: N/A | BQ279: N/A | BR279: N/A | BS279: N/A | BT279: N/A | BU279: N/A
BB280: Did not cook food | BC280: N/A | BD280: N/A | BE280: N/A | BF280: N/A | BG280: N/A | BH280: N/A | BI280: N/A | BJ280: N/A | BK280: N/A | BL280: N/A | BM280: N/A | BN280: N/A | BO280: N/A | BP280: N/A | BQ280: N/A | BR280: N/A | BS280: N/A | BT280: N/A | BU280: N/A
BB281: Did not eat with others | BC281: N/A | BD281: N/A | BE281: N/A | BF281: N/A | BG281: N/A | BH281: N/A | BI281: N/A | BJ281: N/A | BK281: N/A | BL281: N/A | BM281: N/A | BN281: N/A | BO281: N/A | BP281: N/A | BQ281: N/A | BR281: N/A | BS281: N/A | BT281: N/A | BU281: N/A
BB282: Did not bathe in regular place | BC282: N/A | BD282: N/A | BE282: N/A | BF282: N/A | BG282: N/A | BH282: N/A | BI282: N/A | BJ282: N/A | BK282: N/A | BL282: N/A | BM282: N/A | BN282: N/A | BO282: N/A | BP282: N/A | BQ282: N/A | BR282: N/A | BS282: N/A | BT282: N/A | BU282: N/A
BB283: Did not participate in other activities | BC283: N/A | BD283: N/A | BE283: N/A | BF283: N/A | BG283: N/A | BH283: N/A | BI283: N/A | BJ283: N/A | BK283: N/A | BL283: N/A | BM283: N/A | BN283: N/A | BO283: N/A | BP283: N/A | BQ283: N/A | BR283: N/A | BS283: N/A | BT283: N/A | BU283: N/A
BB284: DK/not sure/missing/no such activity | BC284: N/A | BD284: N/A | BE284: N/A | BF284: N/A | BG284: N/A | BH284: N/A | BI284: N/A | BJ284: N/A | BK284: N/A | BL284: N/A | BM284: N/A | BN284: N/A | BO284: N/A | BP284: N/A | BQ284: N/A | BR284: N/A | BS284: N/A | BT284: N/A | BU284: N/A
BA339: Raw numbers of respondents: | BB339: Basic water, sanitation and hygiene | BC339: NATIONAL wealth index quintile | BH339: URBAN wealth index quintile | BM339: RURAL wealth index quintile | BR339: SUB-REGIONS:
BA340: WatSan data, raw numbers (weighted) | BC340: Poorest | BD340: Poor | BE340: Middle | BF340: Rich | BG340: Richest | BH340: Poorest | BI340: Poor | BJ340: Middle | BK340: Rich | BL340: Richest | BM340: Poorest | BN340: Poor | BO340: Middle | BP340: Rich | BQ340: Richest | BR340: Centro | BS340: Norte | BT340: Principe | BU340: Sul
BA341: Use of Basic Water Sanitation and Hygiene | BB341: Yes | BC341: N/A | BD341: N/A | BE341: N/A | BF341: N/A | BG341: N/A | BH341: N/A | BI341: N/A | BJ341: N/A | BK341: N/A | BL341: N/A | BM341: N/A | BN341: N/A | BO341: N/A | BP341: N/A | BQ341: N/A | BR341: N/A | BS341: N/A | BT341: N/A | BU341: N/A
BB342: No | BC342: N/A | BD342: N/A | BE342: N/A | BF342: N/A | BG342: N/A | BH342: N/A | BI342: N/A | BJ342: N/A | BK342: N/A | BL342: N/A | BM342: N/A | BN342: N/A | BO342: N/A | BP342: N/A | BQ342: N/A | BR342: N/A | BS342: N/A | BT342: N/A | BU342: N/A
BA343: Use of Basic Water and Sanitation | BB343: Yes | BC343: N/A | BD343: N/A | BE343: N/A | BF343: N/A | BG343: N/A | BH343: N/A | BI343: N/A | BJ343: N/A | BK343: N/A | BL343: N/A | BM343: N/A | BN343: N/A | BO343: N/A | BP343: N/A | BQ343: N/A | BR343: N/A | BS343: N/A | BT343: N/A | BU343: N/A
BB344: No | BC344: N/A | BD344: N/A | BE344: N/A | BF344: N/A | BG344: N/A | BH344: N/A | BI344: N/A | BJ344: N/A | BK344: N/A | BL344: N/A | BM344: N/A | BN344: N/A | BO344: N/A | BP344: N/A | BQ344: N/A | BR344: N/A | BS344: N/A | BT344: N/A | BU344: N/A
BA345: Use of Basic Water and Hygiene | BB345: Yes | BC345: N/A | BD345: N/A | BE345: N/A | BF345: N/A | BG345: N/A | BH345: N/A | BI345: N/A | BJ345: N/A | BK345: N/A | BL345: N/A | BM345: N/A | BN345: N/A | BO345: N/A | BP345: N/A | BQ345: N/A | BR345: N/A | BS345: N/A | BT345: N/A | BU345: N/A
BB346: No | BC346: N/A | BD346: N/A | BE346: N/A | BF346: N/A | BG346: N/A | BH346: N/A | BI346: N/A | BJ346: N/A | BK346: N/A | BL346: N/A | BM346: N/A | BN346: N/A | BO346: N/A | BP346: N/A | BQ346: N/A | BR346: N/A | BS346: N/A | BT346: N/A | BU346: N/A
BA347: Use of Basic Sanitation and Hygiene | BB347: Yes | BC347: N/A | BD347: N/A | BE347: N/A | BF347: N/A | BG347: N/A | BH347: N/A | BI347: N/A | BJ347: N/A | BK347: N/A | BL347: N/A | BM347: N/A | BN347: N/A | BO347: N/A | BP347: N/A | BQ347: N/A | BR347: N/A | BS347: N/A | BT347: N/A | BU347: N/A
BB348: No | BC348: N/A | BD348: N/A | BE348: N/A | BF348: N/A | BG348: N/A | BH348: N/A | BI348: N/A | BJ348: N/A | BK348: N/A | BL348: N/A | BM348: N/A | BN348: N/A | BO348: N/A | BP348: N/A | BQ348: N/A | BR348: N/A | BS348: N/A | BT348: N/A | BU348: N/A
BA349: Use of Basic Water | BB349: Yes | BC349: N/A | BD349: N/A | BE349: N/A | BF349: N/A | BG349: N/A | BH349: N/A | BI349: N/A | BJ349: N/A | BK349: N/A | BL349: N/A | BM349: N/A | BN349: N/A | BO349: N/A | BP349: N/A | BQ349: N/A | BR349: N/A | BS349: N/A | BT349: N/A | BU349: N/A
BB350: No | BC350: N/A | BD350: N/A | BE350: N/A | BF350: N/A | BG350: N/A | BH350: N/A | BI350: N/A | BJ350: N/A | BK350: N/A | BL350: N/A | BM350: N/A | BN350: N/A | BO350: N/A | BP350: N/A | BQ350: N/A | BR350: N/A | BS350: N/A | BT350: N/A | BU350: N/A
BA351: Use of Basic Sanitation | BB351: Yes | BC351: N/A | BD351: N/A | BE351: N/A | BF351: N/A | BG351: N/A | BH351: N/A | BI351: N/A | BJ351: N/A | BK351: N/A | BL351: N/A | BM351: N/A | BN351: N/A | BO351: N/A | BP351: N/A | BQ351: N/A | BR351: N/A | BS351: N/A | BT351: N/A | BU351: N/A
BB352: No | BC352: N/A | BD352: N/A | BE352: N/A | BF352: N/A | BG352: N/A | BH352: N/A | BI352: N/A | BJ352: N/A | BK352: N/A | BL352: N/A | BM352: N/A | BN352: N/A | BO352: N/A | BP352: N/A | BQ352: N/A | BR352: N/A | BS352: N/A | BT352: N/A | BU352: N/A
BA353: Access to Basic Hygiene | BB353: Yes | BC353: N/A | BD353: N/A | BE353: N/A | BF353: N/A | BG353: N/A | BH353: N/A | BI353: N/A | BJ353: N/A | BK353: N/A | BL353: N/A | BM353: N/A | BN353: N/A | BO353: N/A | BP353: N/A | BQ353: N/A | BR353: N/A | BS353: N/A | BT353: N/A | BU353: N/A
BB354: No | BC354: N/A | BD354: N/A | BE354: N/A | BF354: N/A | BG354: N/A | BH354: N/A | BI354: N/A | BJ354: N/A | BK354: N/A | BL354: N/A | BM354: N/A | BN354: N/A | BO354: N/A | BP354: N/A | BQ354: N/A | BR354: N/A | BS354: N/A | BT354: N/A | BU354: N/A
C399: INITIAL (national) Wealth Index | H399: URBAN Wealth Index | M399: RURAL Wealth Index
C400: Component Matrix | H400: Component Matrix | M400: Component Matrix
E401: Component | J401: Component | O401: Component
B402: Note: The INITIAL (national) Wealth Index is based on the first component of the Principal Component Analysis (PCA) which has been obtained at national level. The final national-level (NATIONAL) Wealth Index is based on the URBAN and RURAL specific wealth indexes. Regression procedures are used to establish the relationships between the two sets of scores (urban and rural) and the initial (national) wealth factors. This allows best use of the available information for each area and a better precision of the FINAL (NATIONAL) Wealth Index. For dependency reasons, all WASH variables (contained in the generic MICS and DHS scripts) have been excluded from the sets of asset variables used in the PCAs. The PCA can extracts as many components as there are asset variables in the input. Only the first of the components is used to represent the Wealth Index. The scores represent the weights of the asset variables on the Wealth Index (correlations between the variables and the component). The communalities are the proportion of each variable's variance that can be explained by the component. Proportion of explained variance is the part of the model's total variance that is explained by the component. For more information on the procedure used: The DHS Wealth Index, DHS Comparative Reports No. 6, Shea Oscar Rutstein, Kiersten Johnson, ORC Macro International Inc., 2004. The DHS Wealth Index: Approaches for Rural and Urban Areas, Shea O. Rutstein, ORC Macro International Inc., 2008. MICS Methodological Paper No. 4, Review of options for reporting water, sanitation and hygiene coverage by wealth quintile, UNICEF, 2016. | E402: 1 | J402: 1 | O402: 1
C403: Televisao | E403: 0.8218219537 | H403: Televisao | J403: 0.8145220097 | M403: Have television | O403: 0.807752768
C404: Have television | E404: 0.8218219537 | H404: Have television | J404: 0.8145220097 | M404: Televisao | O404: 0.807752768
C405: Frigorifico | E405: 0.7552793432 | H405: Frigorifico | J405: 0.7711549877 | M405: Electricidade | O405: 0.7443547624
C406: Have refrigerator | E406: 0.7552793432 | H406: Have refrigerator | J406: 0.7711549877 | M406: Have electricity | O406: 0.7443547624
C407: Electricidade | E407: 0.7448948015 | H407: Electricidade | J407: 0.7241969172 | M407: Radio | O407: 0.6883123326
C408: Have electricity | E408: 0.7448948015 | H408: Have electricity | J408: 0.7241969172 | M408: Have radio | O408: 0.6883123326
C409: Have radio | E409: 0.7115342285 | H409: Radio | J409: 0.7136343266 | M409: Have refrigerator | O409: 0.6860144174
C410: Radio | E410: 0.7115342285 | H410: Have radio | J410: 0.7136343266 | M410: Frigorifico | O410: 0.6860144174
C411: Automovel | E411: 0.5027051314 | H411: Automovel | J411: 0.5301366607 | M411: Have motorcycle or scooter | O411: 0.4168738776
C412: Have car or truck | E412: 0.5027051314 | H412: Have car or truck | J412: 0.5301366607 | M412: Motocicleta | O412: 0.4168738776
C413: Fuel -firewood, straw | E413: -0.493554536 | H413: Have bicycle | J413: 0.4723451315 | M413: Bicicleta | O413: 0.4039759406
C414: Bicicleta | E414: 0.4806486166 | H414: Bicicleta | J414: 0.4723451315 | M414: Have bicycle | O414: 0.4039759406
C415: Have bicycle | E415: 0.4806486166 | H415: Fuel -biogas/kerosene/coal | J415: 0.4569083792 | M415: Have car or truck | O415: 0.3978466966
C416: Fuel -biogas/kerosene/coal | E416: 0.4641937828 | H416: Fuel -firewood, straw | J416: -0.4515544474 | M416: Automovel | O416: 0.3978466966
C417: Motocicleta | E417: 0.4009427938 | H417: Have motorcycle or scooter | J417: 0.3730597148 | M417: Fuel -firewood, straw | O417: -0.3518738351
C418: Have motorcycle or scooter | E418: 0.4009427938 | H418: Motocicleta | J418: 0.3730597148 | M418: Fuel -biogas/kerosene/coal | O418: 0.3260687043
C419: Persons per sleeping rooms | E419: -0.2747346938 | H419: Persons per sleeping rooms | J419: -0.2567655495 | M419: Dwelling floor -Wood/Planks | O419: -0.306657058
C420: Fuel -charcoal | E420: 0.1634000952 | H420: Dwelling floor -Tile/Concrete | J420: -0.2561649274 | M420: Dwelling floor -Tile/Concrete | O420: 0.3004905394
C421: Dwelling floor -Linoleum/Reline | E421: 0.1084141503 | H421: Dwelling floor -Wood/Planks | J421: 0.2395403402 | M421: Persons per sleeping rooms | O421: -0.2775178636
C422: Dwelling floor -Wood/Planks | E422: -0.07186831759 | H422: Dwelling floor -Linoleum/Reline | J422: 0.1271263381 | M422: Fuel -charcoal | O422: 0.1362723687
C423: Fuel -electricity | E423: 0.06072499835 | H423: Fuel -charcoal | J423: 0.07909550718 | M423: Fuel -natural gas | O423: 0.09260569308
... 118 more rows

Sheet DHS09
A2: =A1026 -> Sao Tome and Principe
A3: =A1034 -> 2009
A4: Use of drinking water sources
A5: by wealth quintile and sub-national region
A6: Notes:
A7: WHO/UNICEF JMP customised wealth index excludes water,
A8: sanitation and hygiene assets.
A9: Survey used for analysis: | B9: =A1025 -> DHS09
A10: =B1028 -> 
A11: =B1027 -> 
A14: Use of drinking water sources | C14: NATIONAL wealth index quintile | H14: URBAN wealth index quintile | M14: RURAL wealth index quintile | R14: SUB-REGIONS: | BA14: Raw numbers of respondents: | BB14: Use of drinking water sources | BC14: NATIONAL wealth index quintile | BH14: URBAN wealth index quintile | BM14: RURAL wealth index quintile | BR14: SUB-REGIONS:
A15: Weighted percentage (used in graphs) | C15: Poorest | D15: Poor | E15: Middle | F15: Rich | G15: Richest | H15: Poorest | I15: Poor | J15: Middle | K15: Rich | L15: Richest | M15: Poorest | N15: Poor | O15: Middle | P15: Rich | Q15: Richest | R15: Região Centro | S15: Região do Principe | T15: Região Norte | U15: Região Sul | BA15: Water data, raw numbers (weighted) | BC15: Poorest | BD15: Poor | BE15: Middle | BF15: Rich | BG15: Richest | BH15: Poorest | BI15: Poor | BJ15: Middle | BK15: Rich | BL15: Richest | BM15: Poorest | BN15: Poor | BO15: Middle | BP15: Rich | BQ15: Richest | BR15: Região Centro | BS15: Região do Principe | BT15: Região Norte | BU15: Região Sul
A16: Water | B16: Improved | C16: 89.65507418 | D16: 89.61504952 | E16: 95.77454331 | F16: 96.3777785 | G16: 99.51773297 | H16: 98.40322595 | I16: 98.04207491 | J16: 100 | K16: 100 | L16: 100 | M16: 86.09417178 | N16: 83.48781289 | O16: 87.47848241 | P16: 93.05284728 | Q16: 94.34359663 | R16: 97.0405433 | S16: 64.05111577 | T16: 93.75012351 | U16: 92.93950974 | BA16: Water | BB16: Improved | BC16: N/A | BD16: N/A | BE16: N/A | BF16: N/A | BG16: N/A | BH16: N/A | BI16: N/A | BJ16: N/A | BK16: N/A | BL16: N/A | BM16: N/A | BN16: N/A | BO16: N/A | BP16: N/A | BQ16: N/A | BR16: N/A | BS16: N/A | BT16: N/A | BU16: N/A
B17: Not Improved | C17: 10.34492582 | D17: 10.38495048 | E17: 4.225456688 | F17: 3.622221498 | G17: 0.4822670313 | H17: 1.59677405 | I17: 1.957925087 | J17: 0 | K17: 0 | L17: 0 | M17: 13.90582822 | N17: 16.51218711 | O17: 12.52151759 | P17: 6.947152722 | Q17: 5.656403369 | R17: 2.959456703 | S17: 35.94888423 | T17: 6.249876492 | U17: 7.060490264 | BB17: Not Improved | BC17: N/A | BD17: N/A | BE17: N/A | BF17: N/A | BG17: N/A | BH17: N/A | BI17: N/A | BJ17: N/A | BK17: N/A | BL17: N/A | BM17: N/A | BN17: N/A | BO17: N/A | BP17: N/A | BQ17: N/A | BR17: N/A | BS17: N/A | BT17: N/A | BU17: N/A
A18: Water ladder | B18: Basic | C18: =C16*C23/100 -> 77.29732317 | D18: =D16*D23/100 -> 77.6950877 | E18: =E16*E23/100 -> 80.91431532 | F18: 86.69491202 | G18: 91.79308071 | H18: 81.8074196 | I18: 81.47280389 | J18: 84.98564203 | K18: 86.83999778 | L18: 95.16934056 | M18: 76.43351019 | N18: 72.81806317 | O18: 76.45050026 | P18: 83.1094336 | Q18: 89.08550484 | R18: 84.46865591 | S18: 60.33023714 | T18: 87.63236926 | U18: 76.36035922 | BA18: Water ladder | BB18: Basic | BC18: N/A | BD18: N/A | BE18: N/A | BF18: N/A | BG18: N/A | BH18: N/A | BI18: N/A | BJ18: N/A | BK18: N/A | BL18: N/A | BM18: N/A | BN18: N/A | BO18: N/A | BP18: N/A | BQ18: N/A | BR18: N/A | BS18: N/A | BT18: N/A | BU18: N/A
B19: Limited | C19: =C16*C22/100 -> 12.35775101 | D19: =D16*D22/100 -> 11.91996182 | E19: =E16*E22/100 -> 14.860228 | F19: 9.68286648 | G19: 7.724652262 | H19: 16.59580635 | I19: 16.56927102 | J19: 15.01435797 | K19: 13.16000222 | L19: 4.830659443 | M19: 9.660661597 | N19: 10.66974972 | O19: 11.02798216 | P19: 9.943413675 | Q19: 5.258091788 | R19: 12.57188738 | S19: 3.720878622 | T19: 6.117754252 | U19: 16.57915051 | BB19: Limited | BC19: N/A | BD19: N/A | BE19: N/A | BF19: N/A | BG19: N/A | BH19: N/A | BI19: N/A | BJ19: N/A | BK19: N/A | BL19: N/A | BM19: N/A | BN19: N/A | BO19: N/A | BP19: N/A | BQ19: N/A | BR19: N/A | BS19: N/A | BT19: N/A | BU19: N/A
B20: Unimproved | C20: =100-C18-C19-C21 -> 0.2756766082 | D20: =100-D18-D19-D21 -> 0.4356354951 | E20: =100-E18-E19-E21 -> 0.3234791336 | F20: 0.3203736459 | G20: -0.002852870785 | H20: 0.1650957995 | I20: -0.09726796587 | J20: -2.131628207e-14 | K20: -4.97379915e-14 | L20: 1.33226763e-14 | M20: 0.4176204144 | N20: 0.7885136043 | O20: 0.5273549242 | P20: 1.37642841 | Q20: 0.1771474781 | R20: 0.2887682683 | S20: 4.237182846 | T20: -0.1627506735 | U20: -0.04826079652 | BB20: Unimproved | BC20: N/A | BD20: N/A | BE20: N/A | BF20: N/A | BG20: N/A | BH20: N/A | BI20: N/A | BJ20: N/A | BK20: N/A | BL20: N/A | BM20: N/A | BN20: N/A | BO20: N/A | BP20: N/A | BQ20: N/A | BR20: N/A | BS20: N/A | BT20: N/A | BU20: N/A
B21: Surface water | C21: 10.06924921 | D21: 9.949314983 | E21: 3.901977555 | F21: 3.301847853 | G21: 0.4851199021 | H21: 1.431678251 | I21: 2.055193053 | J21: 0 | K21: 0 | L21: 0 | M21: 13.4882078 | N21: 15.72367351 | O21: 11.99416266 | P21: 5.570724312 | Q21: 5.479255891 | R21: 2.670688434 | S21: 31.71170139 | T21: 6.412627166 | U21: 7.10875106 | BB21: Surface water | BC21: N/A | BD21: N/A | BE21: N/A | BF21: N/A | BG21: N/A | BH21: N/A | BI21: N/A | BJ21: N/A | BK21: N/A | BL21: N/A | BM21: N/A | BN21: N/A | BO21: N/A | BP21: N/A | BQ21: N/A | BR21: N/A | BS21: N/A | BT21: N/A | BU21: N/A
A22: Improved water point at more than 30 minutes | B22: Yes | C22: 13.78366046 | D22: 13.30129469 | E22: 15.51584323 | F22: 10.04678322 | G22: 7.762086245 | H22: 16.86510396 | I22: 16.90016357 | J22: 15.01435797 | K22: 13.16000222 | L22: 4.830659443 | M22: 11.22104017 | N22: 12.78000866 | O22: 12.60650831 | P22: 10.68577047 | Q22: 5.573342522 | R22: 12.95529369 | S22: 5.809233106 | T22: 6.525595939 | U22: 17.83864641 | BA22: Improved water point at more than 30 minutes | BB22: Yes | BC22: N/A | BD22: N/A | BE22: N/A | BF22: N/A | BG22: N/A | BH22: N/A | BI22: N/A | BJ22: N/A | BK22: N/A | BL22: N/A | BM22: N/A | BN22: N/A | BO22: N/A | BP22: N/A | BQ22: N/A | BR22: N/A | BS22: N/A | BT22: N/A | BU22: N/A
B23: No | C23: 86.21633954 | D23: 86.69870531 | E23: 84.48415677 | F23: 89.95321678 | G23: 92.23791376 | H23: 83.13489604 | I23: 83.09983643 | J23: 84.98564203 | K23: 86.83999778 | L23: 95.16934056 | M23: 88.77895983 | N23: 87.21999134 | O23: 87.39349169 | P23: 89.31422953 | Q23: 94.42665748 | R23: 87.04470631 | S23: 94.19076689 | T23: 93.47440406 | U23: 82.16135359 | BB23: No | BC23: N/A | BD23: N/A | BE23: N/A | BF23: N/A | BG23: N/A | BH23: N/A | BI23: N/A | BJ23: N/A | BK23: N/A | BL23: N/A | BM23: N/A | BN23: N/A | BO23: N/A | BP23: N/A | BQ23: N/A | BR23: N/A | BS23: N/A | BT23: N/A | BU23: N/A
A24: Manually calculated ratios | B24: Improved wells
B25: Improved springs
B26: Other
C27: NATIONAL wealth index quintile | H27: URBAN wealth index quintile | M27: RURAL wealth index quintile | R27: SUB-REGIONS: | BA27: Raw numbers of respondents: | BB27: Use of drinking water sources | BC27: NATIONAL wealth index quintile | BH27: URBAN wealth index quintile | BM27: RURAL wealth index quintile | BR27: SUB-REGIONS:
A28: Percentage based on weighted population | C28: Poorest | D28: Poor | E28: Middle | F28: Rich | G28: Richest | H28: Poorest | I28: Poor | J28: Middle | K28: Rich | L28: Richest | M28: Poorest | N28: Poor | O28: Middle | P28: Rich | Q28: Richest | R28: Região Centro | S28: Região do Principe | T28: Região Norte | U28: Região Sul | BA28: Water data, raw numbers (weighted) | BC28: Poorest | BD28: Poor | BE28: Middle | BF28: Rich | BG28: Richest | BH28: Poorest | BI28: Poor | BJ28: Middle | BK28: Rich | BL28: Richest | BM28: Poorest | BN28: Poor | BO28: Middle | BP28: Rich | BQ28: Richest | BR28: Região Centro | BS28: Região do Principe | BT28: Região Norte | BU28: Região Sul
A29: Piped water | B29: Yes | C29: 83.63094782 | D29: 82.59857121 | E29: 88.71706198 | F29: 90.43380034 | G29: 95.9600806 | H29: 93.94712406 | I29: 95.26179799 | J29: 97.45068655 | K29: 96.89833321 | L29: 98.55838751 | M29: 79.97861874 | N29: 76.86760919 | O29: 73.95950544 | P29: 80.58351302 | Q29: 87.71423934 | R29: 90.14860527 | S29: 45.85770388 | T29: 91.49711476 | U29: 89.85229351 | BA29: Piped water | BB29: Yes | BC29: N/A | BD29: N/A | BE29: N/A | BF29: N/A | BG29: N/A | BH29: N/A | BI29: N/A | BJ29: N/A | BK29: N/A | BL29: N/A | BM29: N/A | BN29: N/A | BO29: N/A | BP29: N/A | BQ29: N/A | BR29: N/A | BS29: N/A | BT29: N/A | BU29: N/A
B30: No | C30: 16.36905218 | D30: 17.40142879 | E30: 11.28293802 | F30: 9.566199656 | G30: 4.039919399 | H30: 6.052875944 | I30: 4.738202007 | J30: 2.549313454 | K30: 3.101666793 | L30: 1.441612488 | M30: 20.02138126 | N30: 23.13239081 | O30: 26.04049456 | P30: 19.41648698 | Q30: 12.28576066 | R30: 9.851394732 | S30: 54.14229612 | T30: 8.502885241 | U30: 10.14770649 | BB30: No | BC30: N/A | BD30: N/A | BE30: N/A | BF30: N/A | BG30: N/A | BH30: N/A | BI30: N/A | BJ30: N/A | BK30: N/A | BL30: N/A | BM30: N/A | BN30: N/A | BO30: N/A | BP30: N/A | BQ30: N/A | BR30: N/A | BS30: N/A | BT30: N/A | BU30: N/A
A31: Piped water on premises | B31: Yes | C31: 16.7070218 | D31: 17.86239296 | E31: 21.26980005 | F31: 37.89094607 | G31: 64.34381574 | H31: 14.68906179 | I31: 19.0686682 | J31: 36.41492807 | K31: 48.27885926 | L31: 77.01063706 | M31: 17.40885623 | N31: 21.69633887 | O31: 12.4149864 | P31: 25.79592492 | Q31: 43.03054466 | R31: 42.19233631 | S31: 16.65076346 | T31: 15.82356063 | U31: 15.16273251 | BA31: Piped water on premises | BB31: Yes | BC31: N/A | BD31: N/A | BE31: N/A | BF31: N/A | BG31: N/A | BH31: N/A | BI31: N/A | BJ31: N/A | BK31: N/A | BL31: N/A | BM31: N/A | BN31: N/A | BO31: N/A | BP31: N/A | BQ31: N/A | BR31: N/A | BS31: N/A | BT31: N/A | BU31: N/A
B32: No | C32: 83.2929782 | D32: 82.13760704 | E32: 78.73019995 | F32: 62.10905393 | G32: 35.65618426 | H32: 85.31093821 | I32: 80.9313318 | J32: 63.58507193 | K32: 51.72114074 | L32: 22.98936294 | M32: 82.59114377 | N32: 78.30366113 | O32: 87.5850136 | P32: 74.20407508 | Q32: 56.96945534 | R32: 57.80766369 | S32: 83.34923654 | T32: 84.17643937 | U32: 84.83726749 | BB32: No | BC32: N/A | BD32: N/A | BE32: N/A | BF32: N/A | BG32: N/A | BH32: N/A | BI32: N/A | BJ32: N/A | BK32: N/A | BL32: N/A | BM32: N/A | BN32: N/A | BO32: N/A | BP32: N/A | BQ32: N/A | BR32: N/A | BS32: N/A | BT32: N/A | BU32: N/A
A33: Piped water into dwelling | B33: Yes | C33: N/A | D33: N/A | E33: N/A | F33: N/A | G33: N/A | H33: N/A | I33: N/A | J33: N/A | K33: N/A | L33: N/A | M33: N/A | N33: N/A | O33: N/A | P33: N/A | Q33: N/A | R33: N/A | S33: N/A | T33: N/A | U33: N/A | BA33: Piped water into dwelling | BB33: Yes | BC33: N/A | BD33: N/A | BE33: N/A | BF33: N/A | BG33: N/A | BH33: N/A | BI33: N/A | BJ33: N/A | BK33: N/A | BL33: N/A | BM33: N/A | BN33: N/A | BO33: N/A | BP33: N/A | BQ33: N/A | BR33: N/A | BS33: N/A | BT33: N/A | BU33: N/A
B34: No | C34: N/A | D34: N/A | E34: N/A | F34: N/A | G34: N/A | H34: N/A | I34: N/A | J34: N/A | K34: N/A | L34: N/A | M34: N/A | N34: N/A | O34: N/A | P34: N/A | Q34: N/A | R34: N/A | S34: N/A | T34: N/A | U34: N/A | BB34: No | BC34: N/A | BD34: N/A | BE34: N/A | BF34: N/A | BG34: N/A | BH34: N/A | BI34: N/A | BJ34: N/A | BK34: N/A | BL34: N/A | BM34: N/A | BN34: N/A | BO34: N/A | BP34: N/A | BQ34: N/A | BR34: N/A | BS34: N/A | BT34: N/A | BU34: N/A
A35: Water source on premises | B35: Yes | C35: 19.60823126 | D35: 21.40967294 | E35: 22.15451726 | F35: 38.09435395 | G35: 65.77977426 | H35: 15.25712097 | I35: 22.07384967 | J35: 36.50368092 | K35: 48.47710956 | L35: 79.58786934 | M35: 22.12534622 | N35: 24.41795466 | O35: 15.09948698 | P35: 26.93431679 | Q35: 43.41684143 | R35: 44.0096689 | S35: 17.77326209 | T35: 17.56349981 | U35: 17.17945359 | BA35: Water source on premises | BB35: Yes | BC35: N/A | BD35: N/A | BE35: N/A | BF35: N/A | BG35: N/A | BH35: N/A | BI35: N/A | BJ35: N/A | BK35: N/A | BL35: N/A | BM35: N/A | BN35: N/A | BO35: N/A | BP35: N/A | BQ35: N/A | BR35: N/A | BS35: N/A | BT35: N/A | BU35: N/A
B36: No | C36: 80.39176874 | D36: 78.59032706 | E36: 77.84548274 | F36: 61.90564605 | G36: 34.22022574 | H36: 84.74287903 | I36: 77.92615033 | J36: 63.49631908 | K36: 51.52289044 | L36: 20.41213066 | M36: 77.87465378 | N36: 75.58204534 | O36: 84.90051302 | P36: 73.06568321 | Q36: 56.58315857 | R36: 55.9903311 | S36: 82.22673791 | T36: 82.43650019 | U36: 82.82054641 | BB36: No | BC36: N/A | BD36: N/A | BE36: N/A | BF36: N/A | BG36: N/A | BH36: N/A | BI36: N/A | BJ36: N/A | BK36: N/A | BL36: N/A | BM36: N/A | BN36: N/A | BO36: N/A | BP36: N/A | BQ36: N/A | BR36: N/A | BS36: N/A | BT36: N/A | BU36: N/A
A37: Improved Water source on premises | B37: Yes | C37: 19.35449972 | D37: 21.19106003 | E37: 22.03853636 | F37: 38.09435395 | G37: 65.77977426 | H37: 15.25712097 | I37: 21.84778429 | J37: 36.50368092 | K37: 48.47710956 | L37: 79.58786934 | M37: 21.60748223 | N37: 23.97178427 | O37: 15.09948698 | P37: 26.93431679 | Q37: 43.41684143 | R37: 43.97101077 | S37: 17.50758127 | T37: 17.19953532 | U37: 17.15604906 | BA37: Improved water source on premises | BB37: Yes | BC37: N/A | BD37: N/A | BE37: N/A | BF37: N/A | BG37: N/A | BH37: N/A | BI37: N/A | BJ37: N/A | BK37: N/A | BL37: N/A | BM37: N/A | BN37: N/A | BO37: N/A | BP37: N/A | BQ37: N/A | BR37: N/A | BS37: N/A | BT37: N/A | BU37: N/A
B38: No | C38: 80.64550028 | D38: 78.80893997 | E38: 77.96146364 | F38: 61.90564605 | G38: 34.22022574 | H38: 84.74287903 | I38: 78.15221571 | J38: 63.49631908 | K38: 51.52289044 | L38: 20.41213066 | M38: 78.39251777 | N38: 76.02821573 | O38: 84.90051302 | P38: 73.06568321 | Q38: 56.58315857 | R38: 56.02898923 | S38: 82.49241873 | T38: 82.80046468 | U38: 82.84395094 | BB38: No | BC38: N/A | BD38: N/A | BE38: N/A | BF38: N/A | BG38: N/A | BH38: N/A | BI38: N/A | BJ38: N/A | BK38: N/A | BL38: N/A | BM38: N/A | BN38: N/A | BO38: N/A | BP38: N/A | BQ38: N/A | BR38: N/A | BS38: N/A | BT38: N/A | BU38: N/A
A39: Piped water on premises available when needed | B39: Yes | C39: N/A | D39: N/A | E39: N/A | F39: N/A | G39: N/A | H39: N/A | I39: N/A | J39: N/A | K39: N/A | L39: N/A | M39: N/A | N39: N/A | O39: N/A | P39: N/A | Q39: N/A | R39: N/A | S39: N/A | T39: N/A | U39: N/A | BA39: Piped water on premises available when needed | BB39: Yes | BC39: N/A | BD39: N/A | BE39: N/A | BF39: N/A | BG39: N/A | BH39: N/A | BI39: N/A | BJ39: N/A | BK39: N/A | BL39: N/A | BM39: N/A | BN39: N/A | BO39: N/A | BP39: N/A | BQ39: N/A | BR39: N/A | BS39: N/A | BT39: N/A | BU39: N/A
B40: No | C40: N/A | D40: N/A | E40: N/A | F40: N/A | G40: N/A | H40: N/A | I40: N/A | J40: N/A | K40: N/A | L40: N/A | M40: N/A | N40: N/A | O40: N/A | P40: N/A | Q40: N/A | R40: N/A | S40: N/A | T40: N/A | U40: N/A | BB40: No | BC40: N/A | BD40: N/A | BE40: N/A | BF40: N/A | BG40: N/A | BH40: N/A | BI40: N/A | BJ40: N/A | BK40: N/A | BL40: N/A | BM40: N/A | BN40: N/A | BO40: N/A | BP40: N/A | BQ40: N/A | BR40: N/A | BS40: N/A | BT40: N/A | BU40: N/A
A41: Water point at more than 30 minutes | B41: Yes | C41: 15.6688667 | D41: 14.17286721 | E41: 16.35050708 | F41: 10.62027872 | G41: 7.737277001 | H41: 16.78052065 | I41: 17.34495438 | J41: 15.01435797 | K41: 13.16000222 | L41: 4.830659443 | M41: 14.82073649 | N41: 13.86305873 | O41: 14.28523633 | P41: 12.215893 | Q41: 6.586436245 | R41: 13.55226853 | S41: 8.07319706 | T41: 7.673490428 | U41: 19.96517593 | BA41: Water point at more than 30 minutes | BB41: Yes | BC41: N/A | BD41: N/A | BE41: N/A | BF41: N/A | BG41: N/A | BH41: N/A | BI41: N/A | BJ41: N/A | BK41: N/A | BL41: N/A | BM41: N/A | BN41: N/A | BO41: N/A | BP41: N/A | BQ41: N/A | BR41: N/A | BS41: N/A | BT41: N/A | BU41: N/A
B42: No | C42: 84.3311333 | D42: 85.82713279 | E42: 83.64949292 | F42: 89.37972128 | G42: 92.262723 | H42: 83.21947935 | I42: 82.65504562 | J42: 84.98564203 | K42: 86.83999778 | L42: 95.16934056 | M42: 85.17926351 | N42: 86.13694127 | O42: 85.71476367 | P42: 87.784107 | Q42: 93.41356376 | R42: 86.44773147 | S42: 91.92680294 | T42: 92.32650957 | U42: 80.03482407 | BB42: No | BC42: N/A | BD42: N/A | BE42: N/A | BF42: N/A | BG42: N/A | BH42: N/A | BI42: N/A | BJ42: N/A | BK42: N/A | BL42: N/A | BM42: N/A | BN42: N/A | BO42: N/A | BP42: N/A | BQ42: N/A | BR42: N/A | BS42: N/A | BT42: N/A | BU42: N/A
A43: Water source available when needed | B43: Yes | C43: N/A | D43: N/A | E43: N/A | F43: N/A | G43: N/A | H43: N/A | I43: N/A | J43: N/A | K43: N/A | L43: N/A | M43: N/A | N43: N/A | O43: N/A | P43: N/A | Q43: N/A | R43: N/A | S43: N/A | T43: N/A | U43: N/A | BA43: Water source available when needed | BB43: Yes | BC43: N/A | BD43: N/A | BE43: N/A | BF43: N/A | BG43: N/A | BH43: N/A | BI43: N/A | BJ43: N/A | BK43: N/A | BL43: N/A | BM43: N/A | BN43: N/A | BO43: N/A | BP43: N/A | BQ43: N/A | BR43: N/A | BS43: N/A | BT43: N/A | BU43: N/A
B44: No | C44: N/A | D44: N/A | E44: N/A | F44: N/A | G44: N/A | H44: N/A | I44: N/A | J44: N/A | K44: N/A | L44: N/A | M44: N/A | N44: N/A | O44: N/A | P44: N/A | Q44: N/A | R44: N/A | S44: N/A | T44: N/A | U44: N/A | BB44: No | BC44: N/A | BD44: N/A | BE44: N/A | BF44: N/A | BG44: N/A | BH44: N/A | BI44: N/A | BJ44: N/A | BK44: N/A | BL44: N/A | BM44: N/A | BN44: N/A | BO44: N/A | BP44: N/A | BQ44: N/A | BR44: N/A | BS44: N/A | BT44: N/A | BU44: N/A
A45: Improved water source available when needed | B45: Yes | C45: N/A | D45: N/A | E45: N/A | F45: N/A | G45: N/A | H45: N/A | I45: N/A | J45: N/A | K45: N/A | L45: N/A | M45: N/A | N45: N/A | O45: N/A | P45: N/A | Q45: N/A | R45: N/A | S45: N/A | T45: N/A | U45: N/A | BA45: Improved water source available when needed | BB45: Yes | BC45: N/A | BD45: N/A | BE45: N/A | BF45: N/A | BG45: N/A | BH45: N/A | BI45: N/A | BJ45: N/A | BK45: N/A | BL45: N/A | BM45: N/A | BN45: N/A | BO45: N/A | BP45: N/A | BQ45: N/A | BR45: N/A | BS45: N/A | BT45: N/A | BU45: N/A
B46: No | C46: N/A | D46: N/A | E46: N/A | F46: N/A | G46: N/A | H46: N/A | I46: N/A | J46: N/A | K46: N/A | L46: N/A | M46: N/A | N46: N/A | O46: N/A | P46: N/A | Q46: N/A | R46: N/A | S46: N/A | T46: N/A | U46: N/A | BB46: No | BC46: N/A | BD46: N/A | BE46: N/A | BF46: N/A | BG46: N/A | BH46: N/A | BI46: N/A | BJ46: N/A | BK46: N/A | BL46: N/A | BM46: N/A | BN46: N/A | BO46: N/A | BP46: N/A | BQ46: N/A | BR46: N/A | BS46: N/A | BT46: N/A | BU46: N/A
A47: Microbiological quality at point of collection | B47: Not contaminated (No E. coli in 100 mL) | C47: N/A | D47: N/A | E47: N/A | F47: N/A | G47: N/A | H47: N/A | I47: N/A | J47: N/A | K47: N/A | L47: N/A | M47: N/A | N47: N/A | O47: N/A | P47: N/A | Q47: N/A | R47: N/A | S47: N/A | T47: N/A | U47: N/A | BA47: Microbiological quality at point of collection | BB47: Not contaminated (No E. coli in 100 mL) | BC47: N/A | BD47: N/A | BE47: N/A | BF47: N/A | BG47: N/A | BH47: N/A | BI47: N/A | BJ47: N/A | BK47: N/A | BL47: N/A | BM47: N/A | BN47: N/A | BO47: N/A | BP47: N/A | BQ47: N/A | BR47: N/A | BS47: N/A | BT47: N/A | BU47: N/A
B48: Contaminated (E. coli detected in 100 mL) | C48: N/A | D48: N/A | E48: N/A | F48: N/A | G48: N/A | H48: N/A | I48: N/A | J48: N/A | K48: N/A | L48: N/A | M48: N/A | N48: N/A | O48: N/A | P48: N/A | Q48: N/A | R48: N/A | S48: N/A | T48: N/A | U48: N/A | BB48: Contaminated (E. coli detected in 100 mL) | BC48: N/A | BD48: N/A | BE48: N/A | BF48: N/A | BG48: N/A | BH48: N/A | BI48: N/A | BJ48: N/A | BK48: N/A | BL48: N/A | BM48: N/A | BN48: N/A | BO48: N/A | BP48: N/A | BQ48: N/A | BR48: N/A | BS48: N/A | BT48: N/A | BU48: N/A
B49: Highly contaminated (>100 CFU/100 mL) | C49: N/A | D49: N/A | E49: N/A | F49: N/A | G49: N/A | H49: N/A | I49: N/A | J49: N/A | K49: N/A | L49: N/A | M49: N/A | N49: N/A | O49: N/A | P49: N/A | Q49: N/A | R49: N/A | S49: N/A | T49: N/A | U49: N/A | BB49: Highly contaminated (>100 CFU/100 mL) | BC49: N/A | BD49: N/A | BE49: N/A | BF49: N/A | BG49: N/A | BH49: N/A | BI49: N/A | BJ49: N/A | BK49: N/A | BL49: N/A | BM49: N/A | BN49: N/A | BO49: N/A | BP49: N/A | BQ49: N/A | BR49: N/A | BS49: N/A | BT49: N/A | BU49: N/A
A50: Microbiological quality of improved water sources at point of collection | B50: Not contaminated (No E. coli in 100 mL) | C50: N/A | D50: N/A | E50: N/A | F50: N/A | G50: N/A | H50: N/A | I50: N/A | J50: N/A | K50: N/A | L50: N/A | M50: N/A | N50: N/A | O50: N/A | P50: N/A | Q50: N/A | R50: N/A | S50: N/A | T50: N/A | U50: N/A | BA50: Microbiological quality of improved water sources at point of collection | BB50: Not contaminated (No E. coli in 100 mL) | BC50: N/A | BD50: N/A | BE50: N/A | BF50: N/A | BG50: N/A | BH50: N/A | BI50: N/A | BJ50: N/A | BK50: N/A | BL50: N/A | BM50: N/A | BN50: N/A | BO50: N/A | BP50: N/A | BQ50: N/A | BR50: N/A | BS50: N/A | BT50: N/A | BU50: N/A
B51: Contaminated (E. coli detected in 100 mL) | C51: N/A | D51: N/A | E51: N/A | F51: N/A | G51: N/A | H51: N/A | I51: N/A | J51: N/A | K51: N/A | L51: N/A | M51: N/A | N51: N/A | O51: N/A | P51: N/A | Q51: N/A | R51: N/A | S51: N/A | T51: N/A | U51: N/A | BB51: Contaminated (E. coli detected in 100 mL) | BC51: N/A | BD51: N/A | BE51: N/A | BF51: N/A | BG51: N/A | BH51: N/A | BI51: N/A | BJ51: N/A | BK51: N/A | BL51: N/A | BM51: N/A | BN51: N/A | BO51: N/A | BP51: N/A | BQ51: N/A | BR51: N/A | BS51: N/A | BT51: N/A | BU51: N/A
B52: Highly contaminated (>100 CFU/100 mL) | C52: N/A | D52: N/A | E52: N/A | F52: N/A | G52: N/A | H52: N/A | I52: N/A | J52: N/A | K52: N/A | L52: N/A | M52: N/A | N52: N/A | O52: N/A | P52: N/A | Q52: N/A | R52: N/A | S52: N/A | T52: N/A | U52: N/A | BB52: Highly contaminated (>100 CFU/100 mL) | BC52: N/A | BD52: N/A | BE52: N/A | BF52: N/A | BG52: N/A | BH52: N/A | BI52: N/A | BJ52: N/A | BK52: N/A | BL52: N/A | BM52: N/A | BN52: N/A | BO52: N/A | BP52: N/A | BQ52: N/A | BR52: N/A | BS52: N/A | BT52: N/A | BU52: N/A
A53: Microbiological quality of piped on premises at point of collection | B53: Not contaminated (No E. coli in 100 mL) | C53: N/A | D53: N/A | E53: N/A | F53: N/A | G53: N/A | H53: N/A | I53: N/A | J53: N/A | K53: N/A | L53: N/A | M53: N/A | N53: N/A | O53: N/A | P53: N/A | Q53: N/A | R53: N/A | S53: N/A | T53: N/A | U53: N/A | BA53: Microbiological quality of piped on premises at point of collection | BB53: Not contaminated (No E. coli in 100 mL) | BC53: N/A | BD53: N/A | BE53: N/A | BF53: N/A | BG53: N/A | BH53: N/A | BI53: N/A | BJ53: N/A | BK53: N/A | BL53: N/A | BM53: N/A | BN53: N/A | BO53: N/A | BP53: N/A | BQ53: N/A | BR53: N/A | BS53: N/A | BT53: N/A | BU53: N/A
B54: Contaminated (E. coli detected in 100 mL) | C54: N/A | D54: N/A | E54: N/A | F54: N/A | G54: N/A | H54: N/A | I54: N/A | J54: N/A | K54: N/A | L54: N/A | M54: N/A | N54: N/A | O54: N/A | P54: N/A | Q54: N/A | R54: N/A | S54: N/A | T54: N/A | U54: N/A | BB54: Contaminated (E. coli detected in 100 mL) | BC54: N/A | BD54: N/A | BE54: N/A | BF54: N/A | BG54: N/A | BH54: N/A | BI54: N/A | BJ54: N/A | BK54: N/A | BL54: N/A | BM54: N/A | BN54: N/A | BO54: N/A | BP54: N/A | BQ54: N/A | BR54: N/A | BS54: N/A | BT54: N/A | BU54: N/A
B55: Highly contaminated (>100 CFU/100 mL) | C55: N/A | D55: N/A | E55: N/A | F55: N/A | G55: N/A | H55: N/A | I55: N/A | J55: N/A | K55: N/A | L55: N/A | M55: N/A | N55: N/A | O55: N/A | P55: N/A | Q55: N/A | R55: N/A | S55: N/A | T55: N/A | U55: N/A | BB55: Highly contaminated (>100 CFU/100 mL) | BC55: N/A | BD55: N/A | BE55: N/A | BF55: N/A | BG55: N/A | BH55: N/A | BI55: N/A | BJ55: N/A | BK55: N/A | BL55: N/A | BM55: N/A | BN55: N/A | BO55: N/A | BP55: N/A | BQ55: N/A | BR55: N/A | BS55: N/A | BT55: N/A | BU55: N/A
C56: NATIONAL wealth index quintile | H56: URBAN wealth index quintile | M56: RURAL wealth index quintile | R56: SUB-REGIONS: | BA56: Raw numbers of respondents: | BB56: Use of drinking water sources | BC56: NATIONAL wealth index quintile | BH56: URBAN wealth index quintile | BM56: RURAL wealth index quintile | BR56: SUB-REGIONS:
A57: Percentage based on weighted population | C57: Poorest | D57: Poor | E57: Middle | F57: Rich | G57: Richest | H57: Poorest | I57: Poor | J57: Middle | K57: Rich | L57: Richest | M57: Poorest | N57: Poor | O57: Middle | P57: Rich | Q57: Richest | R57: Região Centro | S57: Região do Principe | T57: Região Norte | U57: Região Sul | BA57: Water data, raw numbers (weighted) | BC57: Poorest | BD57: Poor | BE57: Middle | BF57: Rich | BG57: Richest | BH57: Poorest | BI57: Poor | BJ57: Middle | BK57: Rich | BL57: Richest | BM57: Poorest | BN57: Poor | BO57: Middle | BP57: Rich | BQ57: Richest | BR57: Região Centro | BS57: Região do Principe | BT57: Região Norte | BU57: Região Sul
A58: Source of drinking water | B58: Piped into dwelling | C58: 0.1967242907 | D58: 0.5186390537 | E58: 1.577936216 | F58: 3.306126908 | G58: 14.4672861 | H58: 0 | I58: 0.1705750847 | J58: 3.582663575 | K58: 6.058189724 | L58: 22.26193052 | M58: 0.1521818305 | N58: 0.9233265368 | O58: 0.4237726481 | P58: 3.14405398 | Q58: 3.488090224 | R58: 5.058373506 | S58: 5.436514535 | T58: 1.172622892 | U58: 3.403644919
B59: Piped to yard/plot | C59: 16.51029751 | D59: 17.34375391 | E59: 19.69186384 | F59: 34.58481916 | G59: 49.71647149 | H59: 14.68906179 | I59: 18.89809311 | J59: 32.83226449 | K59: 42.22066953 | L59: 54.42463583 | M59: 17.2566744 | N59: 20.77301233 | O59: 11.99121375 | P59: 22.65187094 | Q59: 39.54245444 | R59: 37.08064761 | S59: 11.21424893 | T59: 14.65093774 | U59: 11.7590876
B60: Public tap/standpipe | C60: 66.92392602 | D60: 64.73617825 | E60: 67.44726193 | F60: 52.14365997 | G60: 31.61626486 | H60: 79.25806226 | I60: 76.1931298 | J60: 61.03575848 | K60: 48.61947395 | L60: 21.54775045 | M60: 62.56976252 | N60: 55.17127032 | O60: 61.54451904 | P60: 53.98042736 | Q60: 44.68369468 | R60: 47.82354357 | S60: 29.20694041 | T60: 75.67355413 | U60: 74.689561
B61: Tube well or borehole | C61: 0.2579586004 | D61: 0.1956480125 | E61: 0.4309368029 | F61: 0 | G61: 0.3693174043 | H61: 0 | I61: 0.2515441143 | J61: 0.216726472 | K61: 0 | L61: 0 | M61: 0.2690195497 | N61: 0.3937458002 | O61: 0.6032171433 | P61: 0.05173943149 | Q61: 0.7577032049 | R61: 0.1660342991 | S61: 0.1062723301 | T61: 0.4112343107 | U61: 0.4235082847
B62: Protected well | C62: 0.8133862642 | D62: 0.2273677433 | E62: 0.3062289727 | F62: 0.488951069 | G62: 1.087487004 | H62: 0.2904723329 | I62: 0.2666083403 | J62: 0 | K62: 0 | L62: 0 | M62: 0.5021194123 | N62: 1.019992206 | O62: 0.4240547104 | P62: 0.7945990866 | Q62: 2.655029652 | R62: 0.3690576026 | S62: 3.894176227 | T62: 0.3147389176 | U62: 0.7985736973
B63: Unprotected well | C63: 0.6602113492 | D63: 0.7651322717 | E63: 0.4244713339 | F63: 0.3877951004 | G63: 0 | H63: 0.2583566543 | I63: 0 | J63: 0 | K63: 0 | L63: 0 | M63: 0.6829640842 | N63: 0.9037190082 | O63: 1.070768329 | P63: 1.390907812 | Q63: 0.2371322783 | R63: 0.350426034 | S63: 4.279791975 | T63: 0 | U63: 0.2294278671
B64: Protected spring | C64: 4.864981086 | D64: 6.59346256 | E64: 6.320315552 | F64: 5.455027088 | G64: 1.969494811 | H64: 4.165629561 | I64: 2.262124465 | J64: 2.332586982 | K64: 3.101666793 | L64: 1.17566098 | M64: 5.165214163 | N64: 5.206465686 | O64: 12.49170512 | P64: 11.62299574 | Q64: 3.216624437 | R64: 6.313092546 | S64: 14.19296333 | T64: 1.445426466 | U64: 1.865134243
B65: River/dam/lake/ponds/stream/canal/irirgation channel | C65: 9.684714469 | D65: 9.619818206 | E65: 3.800985354 | F65: 3.234426398 | G65: 0.4822670313 | H65: 1.338417396 | I65: 1.957925087 | J65: 0 | K65: 0 | L65: 0 | M65: 13.22286413 | N65: 15.60846811 | O65: 11.45074926 | P65: 5.55624491 | Q65: 5.41927109 | R65: 2.609030668 | S65: 31.66909226 | T65: 6.249876492 | U65: 6.831062396
B66: Rainwater | C66: 0.08780041213 | D66: 0 | E66: 0 | F66: 0 | G66: 0 | H66: 0 | I66: 0 | J66: 0 | K66: 0 | L66: 0 | M66: 0.1791999141 | N66: 0 | O66: 0 | P66: 0 | Q66: 0 | R66: 0 | S66: 0 | T66: 0.08160905512 | U66: 0
B67: Bottled water | C67: 0 | D67: 0 | E67: 0 | F67: 0.3991943082 | G67: 0.2914113024 | H67: 0 | I67: 0 | J67: 0 | K67: 0 | L67: 0.5900222142 | M67: 0 | N67: 0 | O67: 0 | P67: 0.8071607473 | Q67: 0 | R67: 0.2297941598 | S67: 0 | T67: 0 | U67: 0
A108: =A1026 -> Sao Tome and Principe
A109: =A1034 -> 2009
A110: Use of sanitation facilities
A111: by wealth quintile and sub-national region
A112: Notes:
A113: WHO/UNICEF JMP customised wealth index excludes water,
A114: sanitation and hygiene assets.
A115: Survey used for analysis: | B115: =A1025 -> DHS09
A116: =B1030 -> 
A117: =B1029 -> 
A120: Use of sanitation facilities | C120: NATIONAL wealth index quintile | H120: URBAN wealth index quintile | M120: RURAL wealth index quintile | R120: SUB-REGIONS: | BA120: Raw numbers of respondents: | BB120: Use of sanitation facilities | BC120: NATIONAL wealth index quintile | BH120: URBAN wealth index quintile | BM120: RURAL wealth index quintile | BR120: SUB-REGIONS:
A121: Weighted percentage (used in graphs) | C121: Poorest | D121: Poor | E121: Middle | F121: Rich | G121: Richest | H121: Poorest | I121: Poor | J121: Middle | K121: Rich | L121: Richest | M121: Poorest | N121: Poor | O121: Middle | P121: Rich | Q121: Richest | R121: Região Centro | S121: Região do Principe | T121: Região Norte | U121: Região Sul | BA121: Sanitation data, raw numbers (weighted) | BC121: Poorest | BD121: Poor | BE121: Middle | BF121: Rich | BG121: Richest | BH121: Poorest | BI121: Poor | BJ121: Middle | BK121: Rich | BL121: Richest | BM121: Poorest | BN121: Poor | BO121: Middle | BP121: Rich | BQ121: Richest | BR121: Região Centro | BS121: Região do Principe | BT121: Região Norte | BU121: Região Sul
A122: Sanitation | B122: Improved | C122: =C153+C154+C155+C156 -> 14.92187174 | D122: =D153+D154+D155+D156 -> 24.00008904 | E122: 32.18256196 | F122: 56.97970602 | G122: 80.97292621 | H122: 13.44615006 | I122: 24.00177659 | J122: 52.74582608 | K122: 69.71931375 | L122: 88.28671544 | M122: 18.60223587 | N122: 19.55813725 | O122: 26.57346871 | P122: 39.26666574 | Q122: 65.19832447 | R122: 47.61128981 | S122: 38.98449901 | T122: 39.67657753 | U122: 20.44527621 | BA122: Sanitation | BB122: Improved | BC122: 408.699651 | BD122: 653.595612 | BE122: 880.120513 | BF122: 1554.379442 | BG122: 2212.993437 | BH122: 186.835363 | BI122: 336.757528 | BJ122: 728.305818 | BK122: 1000.689549 | BL122: 1191.718498 | BM122: 249.634651 | BN122: 260.974944 | BO122: 356.589868 | BP122: 529.767329 | BQ122: 868.515107 | BR122: 3906.403601 | BS122: 256.067554 | BT122: 1169.158448 | BU122: 378.159052
B123: Not Improved | C123: =100-C122 -> 85.07812826 | D123: =100-D122 -> 75.99991096 | E123: 67.81743804 | F123: 43.02029398 | G123: 19.02707379 | H123: 86.55384994 | I123: 75.99822341 | J123: 47.25417392 | K123: 30.28068625 | L123: 11.71328456 | M123: 81.39776413 | N123: 80.44186275 | O123: 73.42653129 | P123: 60.73333426 | Q123: 34.80167553 | R123: 52.38871019 | S123: 61.01550099 | T123: 60.32342247 | U123: 79.55472379 | BB123: Not Improved | BC123: 2330.230545 | BD123: 2069.709334 | BE123: 1854.654034 | BF123: 1173.573281 | BG123: 520.010717 | BH123: 1202.672877 | BI123: 1066.294978 | BJ123: 652.477975 | BK123: 434.622268 | BL123: 158.109154 | BM123: 1092.325814 | BN123: 1073.37986 | BO123: 985.311981 | BP123: 819.385493 | BQ123: 463.597511 | BR123: 4298.380635 | BS123: 400.776988 | BT123: 1777.563575 | BU123: 1471.456713
A124: Sanitation ladder | B124: Basic | C124: =C122*C129/100 -> 10.5599014 | D124: =D122*D129/100 -> 17.82695768 | E124: =E122*E129/100 -> 25.98301216 | F124: 47.14663938 | G124: 73.76865496 | H124: 11.48961197 | I124: 18.64842957 | J124: 44.08522523 | K124: 60.50231418 | L124: 80.35317217 | M124: 11.94144142 | N124: 13.29888219 | O124: 19.93067174 | P124: 32.92292539 | Q124: 56.6279239 | R124: 40.97927098 | S124: 32.32843412 | T124: 32.05086994 | U124: 14.75876294 | BA124: Sanitation ladder | BB124: Basic | BC124: 283.118326 | BD124: 463.774598 | BE124: 708.370887 | BF124: 1274.716056 | BG124: 2006.421339 | BH124: 159.649105 | BI124: 259.52441 | BJ124: 598.814377 | BK124: 868.396865 | BL124: 1074.959725 | BM124: 157.713101 | BN124: 167.392262 | BO124: 253.117273 | BP124: 444.180577 | BQ124: 752.653511 | BR124: 3308.312907 | BS124: 212.347555 | BT124: 944.450043 | BU124: 271.290701
B125: Limited | C125: =C122*C128/100 -> 4.361970343 | D125: =D122*D128/100 -> 6.173131367 | E125: =E122*E128/100 -> 6.199549796 | F125: 9.833066638 | G125: 7.204271257 | H125: 1.956538091 | I125: 5.353347022 | J125: 8.660600851 | K125: 9.21699957 | L125: 7.933543271 | M125: 6.660794453 | N125: 6.259255065 | O125: 6.642796976 | P125: 6.343740354 | Q125: 8.570400571 | R125: 6.632018836 | S125: 6.656064899 | T125: 7.625707591 | U125: 5.686513273 | BB125: Limited | BC125: 116.947469 | BD125: 160.596192 | BE125: 169.017378 | BF125: 265.859202 | BG125: 195.947772 | BH125: 27.186258 | BI125: 74.50087 | BJ125: 117.637877 | BK125: 132.292684 | BL125: 106.134447 | BM125: 87.970498 | BN125: 78.784882 | BO125: 84.362769 | BP125: 85.586752 | BQ125: 113.910976 | BR125: 535.412002 | BS125: 43.719999 | BT125: 224.708405 | BU125: 104.527607
B126: Unimproved | C126: =100-C124-C125-C127 -> 0.2243027591 | D126: =100-D124-D125-D127 -> 0.2363642753 | E126: =100-E124-E125-E127 -> 0.3554614405 | F126: 0.7273130444 | G126: 1.001479341 | H126: 0.1863970954 | I126: 0.9900935953 | J126: 0.8286360296 | K126: 0.5251447045 | L126: 1.405695014 | M126: 0.2647986355 | N126: 0 | O126: 0.1560570173 | P126: 0.07663653688 | Q126: 0.6302779425 | R126: 0.6543377553 | S126: 0.5024628796 | T126: 0.3115263988 | U126: 0.1808751344 | BB126: Unimproved | BC126: 6.143496 | BD126: 6.43692 | BE126: 9.721069 | BF126: 19.840756 | BG126: 27.370472 | BH126: 2.590003 | BI126: 13.891533 | BJ126: 11.441672 | BK126: 7.537464 | BL126: 18.97446 | BM126: 3.553493 | BN126: 0 | BO126: 2.094132 | BP126: 1.033944 | BQ126: 8.396012 | BR126: 53.687001 | BS126: 3.3004 | BT126: 9.179817 | BU126: 3.345495
B127: Open defecation | C127: =C157 -> 84.8538255 | D127: =D157 -> 75.76354668 | E127: 67.4619766 | F127: 42.29298093 | G127: 18.02559445 | H127: 86.36745285 | I127: 75.00812981 | J127: 46.42553789 | K127: 29.75554154 | L127: 10.30758955 | M127: 81.13296549 | N127: 80.44186275 | O127: 73.27047427 | P127: 60.65669772 | Q127: 34.17139759 | R127: 51.73437243 | S127: 60.51303811 | T127: 60.01189607 | U127: 79.37384865 | BB127: Open defecation | BC127: 2324.087049 | BD127: 2063.272414 | BE127: 1844.932965 | BF127: 1153.732525 | BG127: 492.640245 | BH127: 1200.082874 | BI127: 1052.403445 | BJ127: 641.036303 | BK127: 427.084804 | BL127: 139.134694 | BM127: 1088.772321 | BN127: 1073.37986 | BO127: 983.217849 | BP127: 818.351549 | BQ127: 455.201499 | BR127: 4244.693634 | BS127: 397.476588 | BT127: 1768.383758 | BU127: 1468.111218
A128: Shared among Improved Sanitation | B128: Yes | C128: 29.23205894 | D128: 25.72128526 | E128: 19.26369257 | F128: 17.25713824 | G128: 8.897135863 | H128: 14.55091668 | I128: 22.30396154 | J128: 16.41949988 | K128: 13.22015246 | L128: 8.986112159 | M128: 35.80641864 | N128: 32.00332928 | O128: 24.99785424 | P128: 16.15553608 | Q128: 13.14512396 | R128: 13.92950887 | S128: 17.07361917 | T128: 19.21967081 | U128: 27.81333553 | BA128: Shared among improved sanitation facilities | BB128: Yes | BC128: N/A | BD128: N/A | BE128: N/A | BF128: N/A | BG128: N/A | BH128: N/A | BI128: N/A | BJ128: N/A | BK128: N/A | BL128: N/A | BM128: N/A | BN128: N/A | BO128: N/A | BP128: N/A | BQ128: N/A | BR128: N/A | BS128: N/A | BT128: N/A | BU128: N/A
B129: No | C129: 70.76794106 | D129: 74.27871474 | E129: 80.73630743 | F129: 82.74286176 | G129: 91.10286414 | H129: 85.44908332 | I129: 77.69603846 | J129: 83.58050012 | K129: 86.77984754 | L129: 91.01388784 | M129: 64.19358136 | N129: 67.99667072 | O129: 75.00214576 | P129: 83.84446392 | Q129: 86.85487604 | R129: 86.07049113 | S129: 82.92638083 | T129: 80.78032919 | U129: 72.18666447 | BB129: No | BC129: N/A | BD129: N/A | BE129: N/A | BF129: N/A | BG129: N/A | BH129: N/A | BI129: N/A | BJ129: N/A | BK129: N/A | BL129: N/A | BM129: N/A | BN129: N/A | BO129: N/A | BP129: N/A | BQ129: N/A | BR129: N/A | BS129: N/A | BT129: N/A | BU129: N/A
A130: Manually calculated ratios | B130: Improved latrines
B131: Other
B132: Other
C133: NATIONAL wealth index quintile | H133: URBAN wealth index quintile | M133: RURAL wealth index quintile | R133: SUB-REGIONS: | BA133: Raw numbers of respondents: | BB133: Use of sanitation facilities | BC133: NATIONAL wealth index quintile | BH133: URBAN wealth index quintile | BM133: RURAL wealth index quintile | BR133: SUB-REGIONS:
A134: Percentage based on weighted population | C134: Poorest | D134: Poor | E134: Middle | F134: Rich | G134: Richest | H134: Poorest | I134: Poor | J134: Middle | K134: Rich | L134: Richest | M134: Poorest | N134: Poor | O134: Middle | P134: Rich | Q134: Richest | R134: Região Centro | S134: Região do Principe | T134: Região Norte | U134: Região Sul | BA134: Sanitation data, raw numbers (weighted) | BC134: Poorest | BD134: Poor | BE134: Middle | BF134: Rich | BG134: Richest | BH134: Poorest | BI134: Poor | BJ134: Middle | BK134: Rich | BL134: Richest | BM134: Poorest | BN134: Poor | BO134: Middle | BP134: Rich | BQ134: Richest | BR134: Região Centro | BS134: Região do Principe | BT134: Região Norte | BU134: Região Sul
A135: Sanitation type | B135: Sewer connection | C135: 1.250446034 | D135: 2.44511501 | E135: 3.195414777 | F135: 7.1569689 | G135: 17.60896526 | H135: 0.1729294531 | I135: 2.246887402 | J135: 2.64863371 | K135: 8.732731279 | L135: 16.6465014 | M135: 1.952154157 | N135: 1.52643292 | O135: 2.876263344 | P135: 4.707384513 | Q135: 22.18312859 | R135: 7.17068213 | S135: 8.886103829 | T135: 4.288577002 | U135: 4.954397867 | BA135: Sanitation type | BB135: Sewer connection | BC135: N/A | BD135: N/A | BE135: N/A | BF135: N/A | BG135: N/A | BH135: N/A | BI135: N/A | BJ135: N/A | BK135: N/A | BL135: N/A | BM135: N/A | BN135: N/A | BO135: N/A | BP135: N/A | BQ135: N/A | BR135: N/A | BS135: N/A | BT135: N/A | BU135: N/A
B136: Septic tank connection | C136: 0.6754704821 | D136: 2.139857679 | E136: 4.595333138 | F136: 12.96311941 | G136: 37.2821246 | H136: 1.930659152 | I136: 2.930923884 | J136: 9.686043005 | K136: 24.95641586 | L136: 50.94165792 | M136: 1.184705691 | N136: 0.8820652472 | O136: 1.369503292 | P136: 8.097114146 | Q136: 12.92608062 | R136: 16.06507881 | S136: 11.88615281 | T136: 3.798894573 | U136: 3.615661007 | BB136: Septic tank connection | BC136: N/A | BD136: N/A | BE136: N/A | BF136: N/A | BG136: N/A | BH136: N/A | BI136: N/A | BJ136: N/A | BK136: N/A | BL136: N/A | BM136: N/A | BN136: N/A | BO136: N/A | BP136: N/A | BQ136: N/A | BR136: N/A | BS136: N/A | BT136: N/A | BU136: N/A
B137: Improved latrines | C137: 12.99595523 | D137: 19.41511636 | E137: 24.39181404 | F137: 36.85961771 | G137: 26.08183635 | H137: 11.34256145 | I137: 18.82396531 | J137: 40.41114937 | K137: 36.03016661 | L137: 20.69855611 | M137: 15.46537602 | N137: 17.14963909 | O137: 22.32770208 | P137: 26.46216709 | Q137: 30.08911526 | R137: 24.37552887 | S137: 18.21224237 | T137: 31.58910595 | U137: 11.87521734 | BB137: Improved latrines | BC137: N/A | BD137: N/A | BE137: N/A | BF137: N/A | BG137: N/A | BH137: N/A | BI137: N/A | BJ137: N/A | BK137: N/A | BL137: N/A | BM137: N/A | BN137: N/A | BO137: N/A | BP137: N/A | BQ137: N/A | BR137: N/A | BS137: N/A | BT137: N/A | BU137: N/A
B138: Unimproved facilities | C138: 0.2243027591 | D138: 0.2363642753 | E138: 0.3554614405 | F138: 0.7273130444 | G138: 1.001479341 | H138: 0.1863970954 | I138: 0.9900935953 | J138: 0.8286360296 | K138: 0.5251447045 | L138: 1.405695014 | M138: 0.2647986355 | N138: 0 | O138: 0.1560570173 | P138: 0.07663653688 | Q138: 0.6302779425 | R138: 0.6543377553 | S138: 0.5024628796 | T138: 0.3115263988 | U138: 0.1808751344 | BB138: Unimproved facilities | BC138: N/A | BD138: N/A | BE138: N/A | BF138: N/A | BG138: N/A | BH138: N/A | BI138: N/A | BJ138: N/A | BK138: N/A | BL138: N/A | BM138: N/A | BN138: N/A | BO138: N/A | BP138: N/A | BQ138: N/A | BR138: N/A | BS138: N/A | BT138: N/A | BU138: N/A
B139: Open defecation | C139: 84.8538255 | D139: 75.76354668 | E139: 67.4619766 | F139: 42.29298093 | G139: 18.02559445 | H139: 86.36745285 | I139: 75.00812981 | J139: 46.42553789 | K139: 29.75554154 | L139: 10.30758955 | M139: 81.13296549 | N139: 80.44186275 | O139: 73.27047427 | P139: 60.65669772 | Q139: 34.17139759 | R139: 51.73437243 | S139: 60.51303811 | T139: 60.01189607 | U139: 79.37384865 | BB139: Open defecation | BC139: N/A | BD139: N/A | BE139: N/A | BF139: N/A | BG139: N/A | BH139: N/A | BI139: N/A | BJ139: N/A | BK139: N/A | BL139: N/A | BM139: N/A | BN139: N/A | BO139: N/A | BP139: N/A | BQ139: N/A | BR139: N/A | BS139: N/A | BT139: N/A | BU139: N/A
A140: Septic tank emptying practices | B140: Not emptied/treated and disposed in situ | C140: N/A | D140: N/A | E140: N/A | F140: N/A | G140: N/A | H140: N/A | I140: N/A | J140: N/A | K140: N/A | L140: N/A | M140: N/A | N140: N/A | O140: N/A | P140: N/A | Q140: N/A | R140: N/A | S140: N/A | T140: N/A | U140: N/A | BA140: Septic tank emptying practices | BB140: Not emptied/treated and disposed in situ | BC140: N/A | BD140: N/A | BE140: N/A | BF140: N/A | BG140: N/A | BH140: N/A | BI140: N/A | BJ140: N/A | BK140: N/A | BL140: N/A | BM140: N/A | BN140: N/A | BO140: N/A | BP140: N/A | BQ140: N/A | BR140: N/A | BS140: N/A | BT140: N/A | BU140: N/A
B141: Emptied and buried on site | C141: N/A | D141: N/A | E141: N/A | F141: N/A | G141: N/A | H141: N/A | I141: N/A | J141: N/A | K141: N/A | L141: N/A | M141: N/A | N141: N/A | O141: N/A | P141: N/A | Q141: N/A | R141: N/A | S141: N/A | T141: N/A | U141: N/A | BB141: Emptied and buried on site | BC141: N/A | BD141: N/A | BE141: N/A | BF141: N/A | BG141: N/A | BH141: N/A | BI141: N/A | BJ141: N/A | BK141: N/A | BL141: N/A | BM141: N/A | BN141: N/A | BO141: N/A | BP141: N/A | BQ141: N/A | BR141: N/A | BS141: N/A | BT141: N/A | BU141: N/A
B142: Emptied and discharged locally | C142: N/A | D142: N/A | E142: N/A | F142: N/A | G142: N/A | H142: N/A | I142: N/A | J142: N/A | K142: N/A | L142: N/A | M142: N/A | N142: N/A | O142: N/A | P142: N/A | Q142: N/A | R142: N/A | S142: N/A | T142: N/A | U142: N/A | BB142: Emptied and discharged locally | BC142: N/A | BD142: N/A | BE142: N/A | BF142: N/A | BG142: N/A | BH142: N/A | BI142: N/A | BJ142: N/A | BK142: N/A | BL142: N/A | BM142: N/A | BN142: N/A | BO142: N/A | BP142: N/A | BQ142: N/A | BR142: N/A | BS142: N/A | BT142: N/A | BU142: N/A
B143: Emptied and removed offsite | C143: N/A | D143: N/A | E143: N/A | F143: N/A | G143: N/A | H143: N/A | I143: N/A | J143: N/A | K143: N/A | L143: N/A | M143: N/A | N143: N/A | O143: N/A | P143: N/A | Q143: N/A | R143: N/A | S143: N/A | T143: N/A | U143: N/A | BB143: Emptied and removed offsite | BC143: N/A | BD143: N/A | BE143: N/A | BF143: N/A | BG143: N/A | BH143: N/A | BI143: N/A | BJ143: N/A | BK143: N/A | BL143: N/A | BM143: N/A | BN143: N/A | BO143: N/A | BP143: N/A | BQ143: N/A | BR143: N/A | BS143: N/A | BT143: N/A | BU143: N/A
A144: Latrine emptying practices | B144: Not emptied/treated and disposed in situ | C144: N/A | D144: N/A | E144: N/A | F144: N/A | G144: N/A | H144: N/A | I144: N/A | J144: N/A | K144: N/A | L144: N/A | M144: N/A | N144: N/A | O144: N/A | P144: N/A | Q144: N/A | R144: N/A | S144: N/A | T144: N/A | U144: N/A | BA144: Latrine emptying practices | BB144: Not emptied/treated and disposed in situ | BC144: N/A | BD144: N/A | BE144: N/A | BF144: N/A | BG144: N/A | BH144: N/A | BI144: N/A | BJ144: N/A | BK144: N/A | BL144: N/A | BM144: N/A | BN144: N/A | BO144: N/A | BP144: N/A | BQ144: N/A | BR144: N/A | BS144: N/A | BT144: N/A | BU144: N/A
B145: Emptied and buried on site | C145: N/A | D145: N/A | E145: N/A | F145: N/A | G145: N/A | H145: N/A | I145: N/A | J145: N/A | K145: N/A | L145: N/A | M145: N/A | N145: N/A | O145: N/A | P145: N/A | Q145: N/A | R145: N/A | S145: N/A | T145: N/A | U145: N/A | BB145: Emptied and buried on site | BC145: N/A | BD145: N/A | BE145: N/A | BF145: N/A | BG145: N/A | BH145: N/A | BI145: N/A | BJ145: N/A | BK145: N/A | BL145: N/A | BM145: N/A | BN145: N/A | BO145: N/A | BP145: N/A | BQ145: N/A | BR145: N/A | BS145: N/A | BT145: N/A | BU145: N/A
B146: Emptied and discharged locally | C146: N/A | D146: N/A | E146: N/A | F146: N/A | G146: N/A | H146: N/A | I146: N/A | J146: N/A | K146: N/A | L146: N/A | M146: N/A | N146: N/A | O146: N/A | P146: N/A | Q146: N/A | R146: N/A | S146: N/A | T146: N/A | U146: N/A | BB146: Emptied and discharged locally | BC146: N/A | BD146: N/A | BE146: N/A | BF146: N/A | BG146: N/A | BH146: N/A | BI146: N/A | BJ146: N/A | BK146: N/A | BL146: N/A | BM146: N/A | BN146: N/A | BO146: N/A | BP146: N/A | BQ146: N/A | BR146: N/A | BS146: N/A | BT146: N/A | BU146: N/A
B147: Emptied and removed offsite | C147: N/A | D147: N/A | E147: N/A | F147: N/A | G147: N/A | H147: N/A | I147: N/A | J147: N/A | K147: N/A | L147: N/A | M147: N/A | N147: N/A | O147: N/A | P147: N/A | Q147: N/A | R147: N/A | S147: N/A | T147: N/A | U147: N/A | BB147: Emptied and removed offsite | BC147: N/A | BD147: N/A | BE147: N/A | BF147: N/A | BG147: N/A | BH147: N/A | BI147: N/A | BJ147: N/A | BK147: N/A | BL147: N/A | BM147: N/A | BN147: N/A | BO147: N/A | BP147: N/A | BQ147: N/A | BR147: N/A | BS147: N/A | BT147: N/A | BU147: N/A
A148: Shared among improved sanitation facilities | B148: Yes | C148: 4.26982291 | D148: 5.897106464 | E148: 6.180303901 | F148: 9.745740817 | G148: 7.169684382 | H148: 1.956538091 | I148: 5.309913184 | J148: 8.519644972 | K148: 9.21699957 | L148: 7.862814697 | M148: 6.555371808 | N148: 5.904342815 | O148: 6.286806227 | P148: 6.343740354 | Q148: 8.551152092 | R148: 6.525607336 | S148: 6.656064899 | T148: 7.625707591 | U148: 5.651314666 | BA148: Shared among improved sanitation facilities | BB148: Yes | BC148: N/A | BD148: N/A | BE148: N/A | BF148: N/A | BG148: N/A | BH148: N/A | BI148: N/A | BJ148: N/A | BK148: N/A | BL148: N/A | BM148: N/A | BN148: N/A | BO148: N/A | BP148: N/A | BQ148: N/A | BR148: N/A | BS148: N/A | BT148: N/A | BU148: N/A
B149: No | C149: 10.33682152 | D149: 17.02984452 | E149: 25.90235044 | F149: 46.72793796 | G149: 73.41450016 | H149: 11.48961197 | I149: 18.49712743 | J149: 43.36771477 | K149: 60.50231418 | L149: 79.63681314 | M149: 11.75244019 | N149: 12.54480903 | O149: 18.86257726 | P149: 32.92292539 | Q149: 56.50074182 | R149: 40.32175389 | S149: 32.32843412 | T149: 32.05086994 | U149: 14.66740856 | BB149: No | BC149: N/A | BD149: N/A | BE149: N/A | BF149: N/A | BG149: N/A | BH149: N/A | BI149: N/A | BJ149: N/A | BK149: N/A | BL149: N/A | BM149: N/A | BN149: N/A | BO149: N/A | BP149: N/A | BQ149: N/A | BR149: N/A | BS149: N/A | BT149: N/A | BU149: N/A
B150: DK/missing | C150: 85.39335557 | D150: 77.07304902 | E150: 67.91734566 | F150: 43.52632122 | G150: 19.41581546 | H150: 86.55384994 | I150: 76.19295938 | J150: 48.11264025 | K150: 30.28068625 | L150: 12.50037216 | M150: 81.692188 | N150: 81.55084815 | O150: 74.85061651 | P150: 60.73333426 | Q150: 34.94810609 | R150: 53.15263877 | S150: 61.01550099 | T150: 60.32342247 | U150: 79.68127678 | BB150: DK/missing | BC150: N/A | BD150: N/A | BE150: N/A | BF150: N/A | BG150: N/A | BH150: N/A | BI150: N/A | BJ150: N/A | BK150: N/A | BL150: N/A | BM150: N/A | BN150: N/A | BO150: N/A | BP150: N/A | BQ150: N/A | BR150: N/A | BS150: N/A | BT150: N/A | BU150: N/A
A151: Shared among all sanitation facilities | B151: Yes | C151: 29.0473551 | D151: 24.33155704 | E151: 19.24880085 | F151: 17.40649106 | G151: 8.753939269 | H151: 14.35196277 | I151: 21.24656196 | J151: 16.88867549 | K151: 13.12131914 | L151: 8.766421436 | M151: 36.14860852 | N151: 30.18867666 | O151: 24.10391905 | P151: 16.31885612 | Q151: 13.00967653 | R151: 13.7044258 | S151: 18.12883908 | T151: 19.15108256 | U151: 28.0796053 | BA151: Shared among all sanitation facilities | BB151: Yes | BC151: N/A | BD151: N/A | BE151: N/A | BF151: N/A | BG151: N/A | BH151: N/A | BI151: N/A | BJ151: N/A | BK151: N/A | BL151: N/A | BM151: N/A | BN151: N/A | BO151: N/A | BP151: N/A | BQ151: N/A | BR151: N/A | BS151: N/A | BT151: N/A | BU151: N/A
B152: No | C152: 68.87141105 | D152: 71.24065788 | E152: 80.44415034 | F152: 81.71661866 | G152: 90.77183751 | H152: 85.64803723 | I152: 77.97424075 | J152: 81.50894476 | K152: 86.87868086 | L152: 90.35603765 | M152: 62.29087133 | N152: 64.14112383 | O152: 70.56832003 | P152: 83.68114388 | Q152: 86.76788132 | R152: 84.71281516 | S152: 81.87116092 | T152: 80.84891744 | U152: 71.30683871 | BB152: No | BC152: N/A | BD152: N/A | BE152: N/A | BF152: N/A | BG152: N/A | BH152: N/A | BI152: N/A | BJ152: N/A | BK152: N/A | BL152: N/A | BM152: N/A | BN152: N/A | BO152: N/A | BP152: N/A | BQ152: N/A | BR152: N/A | BS152: N/A | BT152: N/A | BU152: N/A
A153: Type of toilet facility | B153: Flush - to piped sewer system | C153: 1.250446034 | D153: 2.44511501 | E153: 3.195414777 | F153: 7.1569689 | G153: 17.60896526 | H153: 0.1729294531 | I153: 2.246887402 | J153: 2.64863371 | K153: 8.732731279 | L153: 16.6465014 | M153: 1.952154157 | N153: 1.52643292 | O153: 2.876263344 | P153: 4.707384513 | Q153: 22.18312859 | R153: 7.17068213 | S153: 8.886103829 | T153: 4.288577002 | U153: 4.954397867 | BA153: Type of toilet facility | BB153: Flush - to piped sewer system | BC153: 34.248844 | BD153: 66.587938 | BE153: 87.38739 | BF153: 195.238728 | BG153: 481.253752 | BH153: 2.402869 | BI153: 31.52501 | BJ153: 36.571905 | BK153: 125.341924 | BL153: 224.699079 | BM153: 26.197137 | BN153: 20.368031 | BO153: 38.596631 | BP153: 63.509811 | BQ153: 295.504255 | BR153: 588.338997 | BS153: 58.367888 | BT153: 126.372443 | BU153: 91.637324
B154: Flush - to septic tank | C154: 0.6754704821 | D154: 2.139857679 | E154: 4.595333138 | F154: 12.96311941 | G154: 37.2821246 | H154: 1.930659152 | I154: 2.930923884 | J154: 9.686043005 | K154: 24.95641586 | L154: 50.94165792 | M154: 1.184705691 | N154: 0.8820652472 | O154: 1.369503292 | P154: 8.097114146 | Q154: 12.92608062 | R154: 16.06507881 | S154: 11.88615281 | T154: 3.798894573 | U154: 3.615661007 | BB154: Flush - to septic tank | BC154: 18.500665 | BD154: 58.27485 | BE154: 125.672001 | BF154: 353.627769 | BG154: 1018.922014 | BH154: 26.826668 | BI154: 41.122401 | BJ154: 133.743312 | BK154: 358.202386 | BL154: 687.624585 | BM154: 15.898282 | BN154: 11.76988 | BO154: 18.37739 | BP154: 109.242444 | BQ154: 172.189951 | BR154: 1318.105054 | BS154: 78.073546 | BT154: 111.942863 | BU154: 66.875836
B155: Flush - to pit latrine | C155: 9.774226681 | D155: 13.48764704 | E155: 15.39714703 | F155: 27.32934144 | G155: 17.96832128 | H155: 7.652131448 | I155: 13.46168652 | J155: 28.33330258 | K155: 26.63065826 | L155: 14.78268931 | M155: 13.39931508 | N155: 12.05048196 | O155: 12.89333427 | P155: 18.36708244 | Q155: 19.74909272 | R155: 16.35530357 | S155: 11.72375792 | T155: 23.63058947 | U155: 9.593923795 | BB155: Flush - to pit latrine | BC155: 267.709246 | BD155: 367.309759 | BE155: 421.077258 | BF155: 745.531514 | BG155: 491.074967 | BH155: 106.326997 | BI155: 188.87453 | BJ155: 391.22165 | BK155: 382.232985 | BL155: 199.540828 | BM155: 179.813511 | BN155: 160.796185 | BO155: 173.015891 | BP155: 247.800011 | BQ155: 263.080156 | BR155: 1341.917369 | BS155: 77.006864 | BT155: 696.327784 | BU155: 177.450727
B156: Pit latrine - ventilated improved pit (VIP) | C156: 3.221728547 | D156: 5.927469314 | E156: 8.994667011 | F156: 9.530276269 | G156: 8.113515074 | H156: 3.690430004 | I156: 5.362278794 | J156: 12.07784679 | K156: 9.399508344 | L156: 5.915866806 | M156: 2.06606094 | N156: 5.09915712 | O156: 9.434367804 | P156: 8.09508465 | Q156: 10.34002254 | R156: 8.020225299 | S156: 6.488484455 | T156: 7.958516486 | U156: 2.281293542 | BB156: Pit latrine - ventilated improved pit (VIP) | BC156: 88.240896 | BD156: 161.423065 | BE156: 245.983864 | BF156: 259.981431 | BG156: 221.742704 | BH156: 51.278829 | BI156: 75.235587 | BJ156: 166.768951 | BK156: 134.912254 | BL156: 79.854006 | BM156: 27.725721 | BN156: 68.040848 | BO156: 126.599956 | BP156: 109.215063 | BQ156: 137.740745 | BR156: 658.042181 | BS156: 42.619256 | BT156: 234.515358 | BU156: 42.195165
B157: No facility/bush/field/beach | C157: 84.8538255 | D157: 75.76354668 | E157: 67.4619766 | F157: 42.29298093 | G157: 18.02559445 | H157: 86.36745285 | I157: 75.00812981 | J157: 46.42553789 | K157: 29.75554154 | L157: 10.30758955 | M157: 81.13296549 | N157: 80.44186275 | O157: 73.27047427 | P157: 60.65669772 | Q157: 34.17139759 | R157: 51.73437243 | S157: 60.51303811 | T157: 60.01189607 | U157: 79.37384865 | BB157: No facility/bush/field/beach | BC157: 2324.087049 | BD157: 2063.272414 | BE157: 1844.932965 | BF157: 1153.732525 | BG157: 492.640245 | BH157: 1200.082874 | BI157: 1052.403445 | BJ157: 641.036303 | BK157: 427.084804 | BL157: 139.134694 | BM157: 1088.772321 | BN157: 1073.37986 | BO157: 983.217849 | BP157: 818.351549 | BQ157: 455.201499 | BR157: 4244.693634 | BS157: 397.476588 | BT157: 1768.383758 | BU157: 1468.111218
B158: OTHER | C158: 0.2243027591 | D158: 0.2363642753 | E158: 0.3554614405 | F158: 0.7273130444 | G158: 1.001479341 | H158: 0.1863970954 | I158: 0.9900935953 | J158: 0.8286360296 | K158: 0.5251447045 | L158: 1.405695014 | M158: 0.2647986355 | N158: 0 | O158: 0.1560570173 | P158: 0.07663653688 | Q158: 0.6302779425 | R158: 0.6543377553 | S158: 0.5024628796 | T158: 0.3115263988 | U158: 0.1808751344 | BB158: OTHER | BC158: 6.143496 | BD158: 6.43692 | BE158: 9.721069 | BF158: 19.840756 | BG158: 27.370472 | BH158: 2.590003 | BI158: 13.891533 | BJ158: 11.441672 | BK158: 7.537464 | BL158: 18.97446 | BM158: 3.553493 | BN158: 0 | BO158: 2.094132 | BP158: 1.033944 | BQ158: 8.396012 | BR158: 53.687001 | BS158: 3.3004 | BT158: 9.179817 | BU158: 3.345495
BB159: Total | BC159: 2738.930196 | BD159: 2723.304946 | BE159: 2734.774547 | BF159: 2727.952723 | BG159: 2733.004154 | BH159: 1389.50824 | BI159: 1403.052506 | BJ159: 1380.783793 | BK159: 1435.311817 | BL159: 1349.827652 | BM159: 1341.960465 | BN159: 1334.354804 | BO159: 1341.901849 | BP159: 1349.152822 | BQ159: 1332.112618 | BR159: 8204.784236 | BS159: 656.844542 | BT159: 2946.722023 | BU159: 1849.615765
A208: =A1026 -> Sao Tome and Principe
A209: =A1034 -> 2009
A210: Access to hygiene facilities
A211: by wealth quintile and sub-national region
A212: Notes:
A213: WHO/UNICEF JMP customised wealth index excludes water,
A214: sanitation and hygiene assets.
A215: Survey used for analysis: | B215: =A1025 -> DHS09
A220: Access to handwashing | C220: NATIONAL wealth index quintile | H220: URBAN wealth index quintile | M220: RURAL wealth index quintile | R220: SUB-REGIONS: | BA220: Raw numbers of respondents: | BB220: Access to handwashing | BC220: NATIONAL wealth index quintile | BH220: URBAN wealth index quintile | BM220: RURAL wealth index quintile | BR220: SUB-REGIONS:
A221: Weighted percentage (used in graphs) | C221: Poorest | D221: Poor | E221: Middle | F221: Rich | G221: Richest | H221: Poorest | I221: Poor | J221: Middle | K221: Rich | L221: Richest | M221: Poorest | N221: Poor | O221: Middle | P221: Rich | Q221: Richest | R221: Região Centro | S221: Região do Principe | T221: Região Norte | U221: Região Sul | BA221: Hygiene data, raw numbers (weighted) | BC221: Poorest | BD221: Poor | BE221: Middle | BF221: Rich | BG221: Richest | BH221: Poorest | BI221: Poor | BJ221: Middle | BK221: Rich | BL221: Richest | BM221: Poorest | BN221: Poor | BO221: Middle | BP221: Rich | BQ221: Richest | BR221: Região Centro | BS221: Região do Principe | BT221: Região Norte | BU221: Região Sul
A222: Hygiene ladder | B222: Basic | C222: N/A | D222: N/A | E222: N/A | F222: N/A | G222: N/A | H222: N/A | I222: N/A | J222: N/A | K222: N/A | L222: N/A | M222: N/A | N222: N/A | O222: N/A | P222: N/A | Q222: N/A | R222: N/A | S222: N/A | T222: N/A | U222: N/A | BA222: Hygiene ladder | BB222: Basic | BC222: N/A | BD222: N/A | BE222: N/A | BF222: N/A | BG222: N/A | BH222: N/A | BI222: N/A | BJ222: N/A | BK222: N/A | BL222: N/A | BM222: N/A | BN222: N/A | BO222: N/A | BP222: N/A | BQ222: N/A | BR222: N/A | BS222: N/A | BT222: N/A | BU222: N/A
B223: Limited | C223: N/A | D223: N/A | E223: N/A | F223: N/A | G223: N/A | H223: N/A | I223: N/A | J223: N/A | K223: N/A | L223: N/A | M223: N/A | N223: N/A | O223: N/A | P223: N/A | Q223: N/A | R223: N/A | S223: N/A | T223: N/A | U223: N/A | BB223: Limited | BC223: N/A | BD223: N/A | BE223: N/A | BF223: N/A | BG223: N/A | BH223: N/A | BI223: N/A | BJ223: N/A | BK223: N/A | BL223: N/A | BM223: N/A | BN223: N/A | BO223: N/A | BP223: N/A | BQ223: N/A | BR223: N/A | BS223: N/A | BT223: N/A | BU223: N/A
B224: No facility | C224: N/A | D224: N/A | E224: N/A | F224: N/A | G224: N/A | H224: N/A | I224: N/A | J224: N/A | K224: N/A | L224: N/A | M224: N/A | N224: N/A | O224: N/A | P224: N/A | Q224: N/A | R224: N/A | S224: N/A | T224: N/A | U224: N/A | BB224: No facility | BC224: N/A | BD224: N/A | BE224: N/A | BF224: N/A | BG224: N/A | BH224: N/A | BI224: N/A | BJ224: N/A | BK224: N/A | BL224: N/A | BM224: N/A | BN224: N/A | BO224: N/A | BP224: N/A | BQ224: N/A | BR224: N/A | BS224: N/A | BT224: N/A | BU224: N/A
BA225: Observed handwashing place | BB225: Fixed | BC225: N/A | BD225: N/A | BE225: N/A | BF225: N/A | BG225: N/A | BH225: N/A | BI225: N/A | BJ225: N/A | BK225: N/A | BL225: N/A | BM225: N/A | BN225: N/A | BO225: N/A | BP225: N/A | BQ225: N/A | BR225: N/A | BS225: N/A | BT225: N/A | BU225: N/A
BB226: Mobile | BC226: N/A | BD226: N/A | BE226: N/A | BF226: N/A | BG226: N/A | BH226: N/A | BI226: N/A | BJ226: N/A | BK226: N/A | BL226: N/A | BM226: N/A | BN226: N/A | BO226: N/A | BP226: N/A | BQ226: N/A | BR226: N/A | BS226: N/A | BT226: N/A | BU226: N/A
BA227: Water / Soap | BB227: Water and soap | BC227: N/A | BD227: N/A | BE227: N/A | BF227: N/A | BG227: N/A | BH227: N/A | BI227: N/A | BJ227: N/A | BK227: N/A | BL227: N/A | BM227: N/A | BN227: N/A | BO227: N/A | BP227: N/A | BQ227: N/A | BR227: N/A | BS227: N/A | BT227: N/A | BU227: N/A
BB228: Water only | BC228: N/A | BD228: N/A | BE228: N/A | BF228: N/A | BG228: N/A | BH228: N/A | BI228: N/A | BJ228: N/A | BK228: N/A | BL228: N/A | BM228: N/A | BN228: N/A | BO228: N/A | BP228: N/A | BQ228: N/A | BR228: N/A | BS228: N/A | BT228: N/A | BU228: N/A
BB229: Soap only | BC229: N/A | BD229: N/A | BE229: N/A | BF229: N/A | BG229: N/A | BH229: N/A | BI229: N/A | BJ229: N/A | BK229: N/A | BL229: N/A | BM229: N/A | BN229: N/A | BO229: N/A | BP229: N/A | BQ229: N/A | BR229: N/A | BS229: N/A | BT229: N/A | BU229: N/A
BB230: Neither | BC230: N/A | BD230: N/A | BE230: N/A | BF230: N/A | BG230: N/A | BH230: N/A | BI230: N/A | BJ230: N/A | BK230: N/A | BL230: N/A | BM230: N/A | BN230: N/A | BO230: N/A | BP230: N/A | BQ230: N/A | BR230: N/A | BS230: N/A | BT230: N/A | BU230: N/A
BA259: Raw numbers of respondents: | BB259: Menstrual health and hygiene | BC259: NATIONAL wealth index quintile | BH259: URBAN wealth index quintile | BM259: RURAL wealth index quintile | BR259: SUB-REGIONS:
BA260: MHH data, raw numbers (weighted) | BC260: Poorest | BD260: Poor | BE260: Middle | BF260: Rich | BG260: Richest | BH260: Poorest | BI260: Poor | BJ260: Middle | BK260: Rich | BL260: Richest | BM260: Poorest | BN260: Poor | BO260: Middle | BP260: Rich | BQ260: Richest | BR260: Região Centro | BS260: Região do Principe | BT260: Região Norte | BU260: Região Sul
BA261: Private place to wash and change | BB261: Yes | BC261: N/A | BD261: N/A | BE261: N/A | BF261: N/A | BG261: N/A | BH261: N/A | BI261: N/A | BJ261: N/A | BK261: N/A | BL261: N/A | BM261: N/A | BN261: N/A | BO261: N/A | BP261: N/A | BQ261: N/A | BR261: N/A | BS261: N/A | BT261: N/A | BU261: N/A
BB262: No | BC262: N/A | BD262: N/A | BE262: N/A | BF262: N/A | BG262: N/A | BH262: N/A | BI262: N/A | BJ262: N/A | BK262: N/A | BL262: N/A | BM262: N/A | BN262: N/A | BO262: N/A | BP262: N/A | BQ262: N/A | BR262: N/A | BS262: N/A | BT262: N/A | BU262: N/A
BB263: DK/not sure/missing | BC263: N/A | BD263: N/A | BE263: N/A | BF263: N/A | BG263: N/A | BH263: N/A | BI263: N/A | BJ263: N/A | BK263: N/A | BL263: N/A | BM263: N/A | BN263: N/A | BO263: N/A | BP263: N/A | BQ263: N/A | BR263: N/A | BS263: N/A | BT263: N/A | BU263: N/A
BA264: Use of menstrual materials | BB264: Materials reusable | BC264: N/A | BD264: N/A | BE264: N/A | BF264: N/A | BG264: N/A | BH264: N/A | BI264: N/A | BJ264: N/A | BK264: N/A | BL264: N/A | BM264: N/A | BN264: N/A | BO264: N/A | BP264: N/A | BQ264: N/A | BR264: N/A | BS264: N/A | BT264: N/A | BU264: N/A
BB265: Materials not reusable | BC265: N/A | BD265: N/A | BE265: N/A | BF265: N/A | BG265: N/A | BH265: N/A | BI265: N/A | BJ265: N/A | BK265: N/A | BL265: N/A | BM265: N/A | BN265: N/A | BO265: N/A | BP265: N/A | BQ265: N/A | BR265: N/A | BS265: N/A | BT265: N/A | BU265: N/A
BB266: No materials used | BC266: N/A | BD266: N/A | BE266: N/A | BF266: N/A | BG266: N/A | BH266: N/A | BI266: N/A | BJ266: N/A | BK266: N/A | BL266: N/A | BM266: N/A | BN266: N/A | BO266: N/A | BP266: N/A | BQ266: N/A | BR266: N/A | BS266: N/A | BT266: N/A | BU266: N/A
BB267: DK/not sure/missing | BC267: N/A | BD267: N/A | BE267: N/A | BF267: N/A | BG267: N/A | BH267: N/A | BI267: N/A | BJ267: N/A | BK267: N/A | BL267: N/A | BM267: N/A | BN267: N/A | BO267: N/A | BP267: N/A | BQ267: N/A | BR267: N/A | BS267: N/A | BT267: N/A | BU267: N/A
BA268: Use of menstrual materials with private place to wash and change | BB268: Materials reusable | BC268: N/A | BD268: N/A | BE268: N/A | BF268: N/A | BG268: N/A | BH268: N/A | BI268: N/A | BJ268: N/A | BK268: N/A | BL268: N/A | BM268: N/A | BN268: N/A | BO268: N/A | BP268: N/A | BQ268: N/A | BR268: N/A | BS268: N/A | BT268: N/A | BU268: N/A
BB269: Materials not reusable | BC269: N/A | BD269: N/A | BE269: N/A | BF269: N/A | BG269: N/A | BH269: N/A | BI269: N/A | BJ269: N/A | BK269: N/A | BL269: N/A | BM269: N/A | BN269: N/A | BO269: N/A | BP269: N/A | BQ269: N/A | BR269: N/A | BS269: N/A | BT269: N/A | BU269: N/A
BB270: No materials used | BC270: N/A | BD270: N/A | BE270: N/A | BF270: N/A | BG270: N/A | BH270: N/A | BI270: N/A | BJ270: N/A | BK270: N/A | BL270: N/A | BM270: N/A | BN270: N/A | BO270: N/A | BP270: N/A | BQ270: N/A | BR270: N/A | BS270: N/A | BT270: N/A | BU270: N/A
BA271: Awareness of menstruation before menarche | BB271: Yes | BC271: N/A | BD271: N/A | BE271: N/A | BF271: N/A | BG271: N/A | BH271: N/A | BI271: N/A | BJ271: N/A | BK271: N/A | BL271: N/A | BM271: N/A | BN271: N/A | BO271: N/A | BP271: N/A | BQ271: N/A | BR271: N/A | BS271: N/A | BT271: N/A | BU271: N/A
BB272: No | BC272: N/A | BD272: N/A | BE272: N/A | BF272: N/A | BG272: N/A | BH272: N/A | BI272: N/A | BJ272: N/A | BK272: N/A | BL272: N/A | BM272: N/A | BN272: N/A | BO272: N/A | BP272: N/A | BQ272: N/A | BR272: N/A | BS272: N/A | BT272: N/A | BU272: N/A
BB273: DK/not sure/missing | BC273: N/A | BD273: N/A | BE273: N/A | BF273: N/A | BG273: N/A | BH273: N/A | BI273: N/A | BJ273: N/A | BK273: N/A | BL273: N/A | BM273: N/A | BN273: N/A | BO273: N/A | BP273: N/A | BQ273: N/A | BR273: N/A | BS273: N/A | BT273: N/A | BU273: N/A
BA274: Participation in (all) activities during menstruation | BB274: Yes | BC274: N/A | BD274: N/A | BE274: N/A | BF274: N/A | BG274: N/A | BH274: N/A | BI274: N/A | BJ274: N/A | BK274: N/A | BL274: N/A | BM274: N/A | BN274: N/A | BO274: N/A | BP274: N/A | BQ274: N/A | BR274: N/A | BS274: N/A | BT274: N/A | BU274: N/A
BB275: No | BC275: N/A | BD275: N/A | BE275: N/A | BF275: N/A | BG275: N/A | BH275: N/A | BI275: N/A | BJ275: N/A | BK275: N/A | BL275: N/A | BM275: N/A | BN275: N/A | BO275: N/A | BP275: N/A | BQ275: N/A | BR275: N/A | BS275: N/A | BT275: N/A | BU275: N/A
BB276: DK/not sure/missing/no such activity | BC276: N/A | BD276: N/A | BE276: N/A | BF276: N/A | BG276: N/A | BH276: N/A | BI276: N/A | BJ276: N/A | BK276: N/A | BL276: N/A | BM276: N/A | BN276: N/A | BO276: N/A | BP276: N/A | BQ276: N/A | BR276: N/A | BS276: N/A | BT276: N/A | BU276: N/A
BA277: Participation in specific activities during menstruation | BB277: Did not go to school (amongst those usually attending school) | BC277: N/A | BD277: N/A | BE277: N/A | BF277: N/A | BG277: N/A | BH277: N/A | BI277: N/A | BJ277: N/A | BK277: N/A | BL277: N/A | BM277: N/A | BN277: N/A | BO277: N/A | BP277: N/A | BQ277: N/A | BR277: N/A | BS277: N/A | BT277: N/A | BU277: N/A
BB278: Did not go to work (amongst those who usually work) | BC278: N/A | BD278: N/A | BE278: N/A | BF278: N/A | BG278: N/A | BH278: N/A | BI278: N/A | BJ278: N/A | BK278: N/A | BL278: N/A | BM278: N/A | BN278: N/A | BO278: N/A | BP278: N/A | BQ278: N/A | BR278: N/A | BS278: N/A | BT278: N/A | BU278: N/A
BB279: Did not participate in social activities | BC279: N/A | BD279: N/A | BE279: N/A | BF279: N/A | BG279: N/A | BH279: N/A | BI279: N/A | BJ279: N/A | BK279: N/A | BL279: N/A | BM279: N/A | BN279: N/A | BO279: N/A | BP279: N/A | BQ279: N/A | BR279: N/A | BS279: N/A | BT279: N/A | BU279: N/A
BB280: Did not cook food | BC280: N/A | BD280: N/A | BE280: N/A | BF280: N/A | BG280: N/A | BH280: N/A | BI280: N/A | BJ280: N/A | BK280: N/A | BL280: N/A | BM280: N/A | BN280: N/A | BO280: N/A | BP280: N/A | BQ280: N/A | BR280: N/A | BS280: N/A | BT280: N/A | BU280: N/A
BB281: Did not eat with others | BC281: N/A | BD281: N/A | BE281: N/A | BF281: N/A | BG281: N/A | BH281: N/A | BI281: N/A | BJ281: N/A | BK281: N/A | BL281: N/A | BM281: N/A | BN281: N/A | BO281: N/A | BP281: N/A | BQ281: N/A | BR281: N/A | BS281: N/A | BT281: N/A | BU281: N/A
BB282: Did not bathe in regular place | BC282: N/A | BD282: N/A | BE282: N/A | BF282: N/A | BG282: N/A | BH282: N/A | BI282: N/A | BJ282: N/A | BK282: N/A | BL282: N/A | BM282: N/A | BN282: N/A | BO282: N/A | BP282: N/A | BQ282: N/A | BR282: N/A | BS282: N/A | BT282: N/A | BU282: N/A
BB283: Did not participate in other activities | BC283: N/A | BD283: N/A | BE283: N/A | BF283: N/A | BG283: N/A | BH283: N/A | BI283: N/A | BJ283: N/A | BK283: N/A | BL283: N/A | BM283: N/A | BN283: N/A | BO283: N/A | BP283: N/A | BQ283: N/A | BR283: N/A | BS283: N/A | BT283: N/A | BU283: N/A
BB284: DK/not sure/missing/no such activity | BC284: N/A | BD284: N/A | BE284: N/A | BF284: N/A | BG284: N/A | BH284: N/A | BI284: N/A | BJ284: N/A | BK284: N/A | BL284: N/A | BM284: N/A | BN284: N/A | BO284: N/A | BP284: N/A | BQ284: N/A | BR284: N/A | BS284: N/A | BT284: N/A | BU284: N/A
BA339: Raw numbers of respondents: | BB339: Basic water, sanitation and hygiene | BC339: NATIONAL wealth index quintile | BH339: URBAN wealth index quintile | BM339: RURAL wealth index quintile | BR339: SUB-REGIONS:
BA340: WatSan data, raw numbers (weighted) | BC340: Poorest | BD340: Poor | BE340: Middle | BF340: Rich | BG340: Richest | BH340: Poorest | BI340: Poor | BJ340: Middle | BK340: Rich | BL340: Richest | BM340: Poorest | BN340: Poor | BO340: Middle | BP340: Rich | BQ340: Richest | BR340: Região Centro | BS340: Região do Principe | BT340: Região Norte | BU340: Região Sul
BA341: Use of Basic Water Sanitation and Hygiene | BB341: Yes | BC341: N/A | BD341: N/A | BE341: N/A | BF341: N/A | BG341: N/A | BH341: N/A | BI341: N/A | BJ341: N/A | BK341: N/A | BL341: N/A | BM341: N/A | BN341: N/A | BO341: N/A | BP341: N/A | BQ341: N/A | BR341: N/A | BS341: N/A | BT341: N/A | BU341: N/A
BB342: No | BC342: N/A | BD342: N/A | BE342: N/A | BF342: N/A | BG342: N/A | BH342: N/A | BI342: N/A | BJ342: N/A | BK342: N/A | BL342: N/A | BM342: N/A | BN342: N/A | BO342: N/A | BP342: N/A | BQ342: N/A | BR342: N/A | BS342: N/A | BT342: N/A | BU342: N/A
BA343: Use of Basic Water and Sanitation | BB343: Yes | BC343: N/A | BD343: N/A | BE343: N/A | BF343: N/A | BG343: N/A | BH343: N/A | BI343: N/A | BJ343: N/A | BK343: N/A | BL343: N/A | BM343: N/A | BN343: N/A | BO343: N/A | BP343: N/A | BQ343: N/A | BR343: N/A | BS343: N/A | BT343: N/A | BU343: N/A
BB344: No | BC344: N/A | BD344: N/A | BE344: N/A | BF344: N/A | BG344: N/A | BH344: N/A | BI344: N/A | BJ344: N/A | BK344: N/A | BL344: N/A | BM344: N/A | BN344: N/A | BO344: N/A | BP344: N/A | BQ344: N/A | BR344: N/A | BS344: N/A | BT344: N/A | BU344: N/A
BA345: Use of Basic Water and Hygiene | BB345: Yes | BC345: N/A | BD345: N/A | BE345: N/A | BF345: N/A | BG345: N/A | BH345: N/A | BI345: N/A | BJ345: N/A | BK345: N/A | BL345: N/A | BM345: N/A | BN345: N/A | BO345: N/A | BP345: N/A | BQ345: N/A | BR345: N/A | BS345: N/A | BT345: N/A | BU345: N/A
BB346: No | BC346: N/A | BD346: N/A | BE346: N/A | BF346: N/A | BG346: N/A | BH346: N/A | BI346: N/A | BJ346: N/A | BK346: N/A | BL346: N/A | BM346: N/A | BN346: N/A | BO346: N/A | BP346: N/A | BQ346: N/A | BR346: N/A | BS346: N/A | BT346: N/A | BU346: N/A
BA347: Use of Basic Sanitation and Hygiene | BB347: Yes | BC347: N/A | BD347: N/A | BE347: N/A | BF347: N/A | BG347: N/A | BH347: N/A | BI347: N/A | BJ347: N/A | BK347: N/A | BL347: N/A | BM347: N/A | BN347: N/A | BO347: N/A | BP347: N/A | BQ347: N/A | BR347: N/A | BS347: N/A | BT347: N/A | BU347: N/A
BB348: No | BC348: N/A | BD348: N/A | BE348: N/A | BF348: N/A | BG348: N/A | BH348: N/A | BI348: N/A | BJ348: N/A | BK348: N/A | BL348: N/A | BM348: N/A | BN348: N/A | BO348: N/A | BP348: N/A | BQ348: N/A | BR348: N/A | BS348: N/A | BT348: N/A | BU348: N/A
BA349: Use of Basic Water | BB349: Yes | BC349: N/A | BD349: N/A | BE349: N/A | BF349: N/A | BG349: N/A | BH349: N/A | BI349: N/A | BJ349: N/A | BK349: N/A | BL349: N/A | BM349: N/A | BN349: N/A | BO349: N/A | BP349: N/A | BQ349: N/A | BR349: N/A | BS349: N/A | BT349: N/A | BU349: N/A
BB350: No | BC350: N/A | BD350: N/A | BE350: N/A | BF350: N/A | BG350: N/A | BH350: N/A | BI350: N/A | BJ350: N/A | BK350: N/A | BL350: N/A | BM350: N/A | BN350: N/A | BO350: N/A | BP350: N/A | BQ350: N/A | BR350: N/A | BS350: N/A | BT350: N/A | BU350: N/A
BA351: Use of Basic Sanitation | BB351: Yes | BC351: N/A | BD351: N/A | BE351: N/A | BF351: N/A | BG351: N/A | BH351: N/A | BI351: N/A | BJ351: N/A | BK351: N/A | BL351: N/A | BM351: N/A | BN351: N/A | BO351: N/A | BP351: N/A | BQ351: N/A | BR351: N/A | BS351: N/A | BT351: N/A | BU351: N/A
BB352: No | BC352: N/A | BD352: N/A | BE352: N/A | BF352: N/A | BG352: N/A | BH352: N/A | BI352: N/A | BJ352: N/A | BK352: N/A | BL352: N/A | BM352: N/A | BN352: N/A | BO352: N/A | BP352: N/A | BQ352: N/A | BR352: N/A | BS352: N/A | BT352: N/A | BU352: N/A
BA353: Access to Basic Hygiene | BB353: Yes | BC353: N/A | BD353: N/A | BE353: N/A | BF353: N/A | BG353: N/A | BH353: N/A | BI353: N/A | BJ353: N/A | BK353: N/A | BL353: N/A | BM353: N/A | BN353: N/A | BO353: N/A | BP353: N/A | BQ353: N/A | BR353: N/A | BS353: N/A | BT353: N/A | BU353: N/A
BB354: No | BC354: N/A | BD354: N/A | BE354: N/A | BF354: N/A | BG354: N/A | BH354: N/A | BI354: N/A | BJ354: N/A | BK354: N/A | BL354: N/A | BM354: N/A | BN354: N/A | BO354: N/A | BP354: N/A | BQ354: N/A | BR354: N/A | BS354: N/A | BT354: N/A | BU354: N/A
C399: INITIAL (national) Wealth Index | H399: URBAN Wealth Index | M399: RURAL Wealth Index
C400: Component Matrix | H400: Component Matrix | M400: Component Matrix
E401: Component | J401: Component | O401: Component
B402: Note: The INITIAL (national) Wealth Index is based on the first component of the Principal Component Analysis (PCA) which has been obtained at national level. The final national-level (NATIONAL) Wealth Index is based on the URBAN and RURAL specific wealth indexes. Regression procedures are used to establish the relationships between the two sets of scores (urban and rural) and the initial (national) wealth factors. This allows best use of the available information for each area and a better precision of the FINAL (NATIONAL) Wealth Index. For dependency reasons, all WASH variables (contained in the generic MICS and DHS scripts) have been excluded from the sets of asset variables used in the PCAs. The PCA can extracts as many components as there are asset variables in the input. Only the first of the components is used to represent the Wealth Index. The scores represent the weights of the asset variables on the Wealth Index (correlations between the variables and the component). The communalities are the proportion of each variable's variance that can be explained by the component. Proportion of explained variance is the part of the model's total variance that is explained by the component. For more information on the procedure used: The DHS Wealth Index, DHS Comparative Reports No. 6, Shea Oscar Rutstein, Kiersten Johnson, ORC Macro International Inc., 2004. The DHS Wealth Index: Approaches for Rural and Urban Areas, Shea O. Rutstein, ORC Macro International Inc., 2008. MICS Methodological Paper No. 4, Review of options for reporting water, sanitation and hygiene coverage by wealth quintile, UNICEF, 2016. | E402: 1 | J402: 1 | O402: 1
C403: if household has tv | E403: 0.7956630295 | H403: if household has tv | J403: 0.7739014949 | M403: if household has tv | O403: 0.8163397052
C404: if household has fridge | E404: 0.750068333 | H404: if household has fridge | J404: 0.7631437474 | M404: if household has dvd/video | O404: 0.7418415558
C405: if household has electric | E405: 0.7283456361 | H405: if household has dvd/video | J405: 0.7117517453 | M405: if household has electric | O405: 0.7364771072
C406: if household has dvd/video | E406: 0.7252687132 | H406: if household has electric | J406: 0.7092878175 | M406: if household has fridge | O406: 0.7208760801
C407: if household has mobile phone | E407: 0.6707028057 | H407: if household has mobile phone | J407: 0.6957879734 | M407: if household has mobile phone | O407: 0.6693240889
C408: if household has radio | E408: 0.6384700691 | H408: if household has radio | J408: 0.6434734705 | M408: if household has radio | O408: 0.6351615827
C409: if household has car or truck | E409: 0.4355427901 | H409: if household has car or truck | J409: 0.4889791023 | M409: if household has watch | O409: 0.4165932647
C410: if household has watch | E410: 0.4331180906 | H410: if uses kero for cooking (+9 elec) | J410: 0.4758275354 | M410: if household has motorcycle or scooter | O410: 0.375153987
C411: if uses kero for cooking (+9 elec) | E411: 0.4262848597 | H411: if household has computer | J411: 0.4510491584 | M411: if household has bicycle | O411: 0.3424269542
C412: if household has computer | E412: 0.3949727002 | H412: if household has watch | J412: 0.4179131758 | M412: if household has car or truck | O412: 0.3403558255
C413: if household has motorcycle or scooter | E413: 0.3639014585 | H413: if household has parabolic antenna | J413: 0.4046672591 | M413: if uses charcoal for cooking | O413: 0.3053256408
C414: if household has bicycle | E414: 0.3494801964 | H414: if household has bicycle | J414: 0.3862326977 | M414: if household has computer | O414: 0.296286009
C415: if household has parabolic antenna | E415: 0.3479402964 | H415: if household has motorcycle or scooter | J415: 0.3630848833 | M415: if uses kero for cooking (+9 elec) | O415: 0.2796004624
C416: if household has internet | E416: 0.2831569485 | H416: if household has internet | J416: 0.3439443074 | M416: if household has parabolic antenna | O416: 0.2409583599
C417: if uses charcoal for cooking | E417: 0.1758126496 | H417: if household has wooden boat | J417: -0.1486744034 | M417: if household has internet | O417: 0.1421015164
C418: number of members per sleeping room | E418: -0.09642450824 | H418: Hectares for agricultural land | J418: 0.1420489033 | M418: if doesn't cook | O418: -0.0872035372
C419: if doesn't cook | E419: -0.08126830462 | H419: Own land usable for agriculture | J419: 0.1210570398 | M419: number of members per sleeping room | O419: -0.06528433617
C420: if household has wooden boat | E420: -0.03590977753 | H420: number of members per sleeping room | J420: -0.1139383463 | M420: if household has wooden boat | O420: 0.04145842906
H421: if doesn't cook | J421: -0.05037554527 | M421: Own land usable for agriculture | O421: 0.008821940613
H422: if uses charcoal for cooking | J422: 0.01676612266 | M422: Hectares for agricultural land | O422: 0.0007930617327
C424: Communalities
... 103 more rows

Sheet MICS14
A2: =A1026 -> Sao Tome and Principe
A3: =A1034 -> 2014
A4: Use of drinking water sources
A5: by wealth quintile and sub-national region
A6: Notes:
A7: WHO/UNICEF JMP customised wealth index excludes water,
A8: sanitation and hygiene assets.
A9: Survey used for analysis: | B9: =A1025 -> MICS14
A10: =B1028 -> 
A11: =B1027 -> 
A14: Use of drinking water sources | C14: NATIONAL wealth index quintile | H14: URBAN wealth index quintile | M14: RURAL wealth index quintile | R14: SUB-REGIONS: | BA14: Raw numbers of respondents: | BB14: Use of drinking water sources | BC14: NATIONAL wealth index quintile | BH14: URBAN wealth index quintile | BM14: RURAL wealth index quintile | BR14: SUB-REGIONS:
A15: Weighted percentage (used in graphs) | C15: Poorest | D15: Poor | E15: Middle | F15: Rich | G15: Richest | H15: Poorest | I15: Poor | J15: Middle | K15: Rich | L15: Richest | M15: Poorest | N15: Poor | O15: Middle | P15: Rich | Q15: Richest | R15: RegiÃ£o Autonoma de Principe | S15: RegiÃ£o Centro Este | T15: RegiÃ£o Norte Oeste | U15: RegiÃ£o Sul Este | BA15: Water data, raw numbers (weighted) | BC15: Poorest | BD15: Poor | BE15: Middle | BF15: Rich | BG15: Richest | BH15: Poorest | BI15: Poor | BJ15: Middle | BK15: Rich | BL15: Richest | BM15: Poorest | BN15: Poor | BO15: Middle | BP15: Rich | BQ15: Richest | BR15: RegiÃ£o Autonoma de Principe | BS15: RegiÃ£o Centro Este | BT15: RegiÃ£o Norte Oeste | BU15: RegiÃ£o Sul Este
A16: Water | B16: Improved | C16: 90.35608269 | D16: 93.13886501 | E16: 92.25829497 | F16: 96.48373919 | G16: 97.59923276 | H16: 96.15374964 | I16: 97.33786891 | J16: 98.72749703 | K16: 98.92095258 | L16: 98.85273437 | M16: 85.27086348 | N16: 85.72597303 | O16: 86.01478784 | P16: 79.5702992 | Q16: 93.092507 | R16: 73.85066133 | S16: 95.8619273 | T16: 90.88165824 | U16: 94.59507979 | BA16: Water | BB16: Improved | BC16: N/A | BD16: N/A | BE16: N/A | BF16: N/A | BG16: N/A | BH16: N/A | BI16: N/A | BJ16: N/A | BK16: N/A | BL16: N/A | BM16: N/A | BN16: N/A | BO16: N/A | BP16: N/A | BQ16: N/A | BR16: N/A | BS16: N/A | BT16: N/A | BU16: N/A
B17: Not Improved | C17: 9.643917312 | D17: 6.861134987 | E17: 7.741705035 | F17: 3.516260808 | G17: 2.400767236 | H17: 3.846250356 | I17: 2.662131092 | J17: 1.27250297 | K17: 1.079047425 | L17: 1.14726563 | M17: 14.72913652 | N17: 14.27402697 | O17: 13.98521216 | P17: 20.4297008 | Q17: 6.907493 | R17: 26.14933867 | S17: 4.138072699 | T17: 9.118341764 | U17: 5.40492021 | BB17: Not Improved | BC17: N/A | BD17: N/A | BE17: N/A | BF17: N/A | BG17: N/A | BH17: N/A | BI17: N/A | BJ17: N/A | BK17: N/A | BL17: N/A | BM17: N/A | BN17: N/A | BO17: N/A | BP17: N/A | BQ17: N/A | BR17: N/A | BS17: N/A | BT17: N/A | BU17: N/A
A18: Water ladder | B18: Basic | C18: =C16*C23/100 -> 77.1861585 | D18: =D16*D23/100 -> 77.74111519 | E18: =E16*E23/100 -> 78.98642317 | F18: 85.4056698 | G18: 91.30327646 | H18: 79.8825053 | I18: 82.60303793 | J18: 85.74887673 | K18: 87.75587446 | L18: 92.67953653 | M18: 72.39824648 | N18: 74.03862344 | O18: 73.93163259 | P18: 68.38455656 | Q18: 85.91786178 | R18: 65.69459465 | S18: 84.78433639 | T18: 77.80188706 | U18: 80.32224903 | BA18: Water ladder | BB18: Basic | BC18: N/A | BD18: N/A | BE18: N/A | BF18: N/A | BG18: N/A | BH18: N/A | BI18: N/A | BJ18: N/A | BK18: N/A | BL18: N/A | BM18: N/A | BN18: N/A | BO18: N/A | BP18: N/A | BQ18: N/A | BR18: N/A | BS18: N/A | BT18: N/A | BU18: N/A
B19: Limited | C19: =C16*C22/100 -> 13.16992419 | D19: =D16*D22/100 -> 15.39774982 | E19: =E16*E22/100 -> 13.2718718 | F19: 11.07806939 | G19: 6.295956301 | H19: 16.27124435 | I19: 14.73483098 | J19: 12.9786203 | K19: 11.16507812 | L19: 6.173197837 | M19: 12.872617 | N19: 11.68734959 | O19: 12.08315525 | P19: 11.18574263 | Q19: 7.174645219 | R19: 8.156066678 | S19: 11.07759091 | T19: 13.07977117 | U19: 14.27283076 | BB19: Limited | BC19: N/A | BD19: N/A | BE19: N/A | BF19: N/A | BG19: N/A | BH19: N/A | BI19: N/A | BJ19: N/A | BK19: N/A | BL19: N/A | BM19: N/A | BN19: N/A | BO19: N/A | BP19: N/A | BQ19: N/A | BR19: N/A | BS19: N/A | BT19: N/A | BU19: N/A
B20: Unimproved | C20: =100-C18-C19-C21 -> 2.840098828 | D20: =100-D18-D19-D21 -> 1.676540392 | E20: =100-E18-E19-E21 -> 3.231081855 | F20: 1.156060932 | G20: 0.7842920465 | H20: -0.02855017608 | I20: -0.07804759325 | J20: -0.2251740264 | K20: 0.04054680043 | L20: 0.8020631925 | M20: 4.595375437 | N20: 6.465324475 | O20: 4.890886006 | P20: 12.38047801 | Q20: 1.776480544 | R20: 13.51423336 | S20: 1.965083173 | T20: 0.7701032569 | U20: 1.009892238 | BB20: Unimproved | BC20: N/A | BD20: N/A | BE20: N/A | BF20: N/A | BG20: N/A | BH20: N/A | BI20: N/A | BJ20: N/A | BK20: N/A | BL20: N/A | BM20: N/A | BN20: N/A | BO20: N/A | BP20: N/A | BQ20: N/A | BR20: N/A | BS20: N/A | BT20: N/A | BU20: N/A
B21: Surface water | C21: 6.803818484 | D21: 5.184594594 | E21: 4.51062318 | F21: 2.360199876 | G21: 1.61647519 | H21: 3.874800532 | I21: 2.740178685 | J21: 1.497676997 | K21: 1.038500625 | L21: 0.3452024372 | M21: 10.13376108 | N21: 7.808702494 | O21: 9.094326154 | P21: 8.049222797 | Q21: 5.131012456 | R21: 12.63510532 | S21: 2.172989526 | T21: 8.348238507 | U21: 4.395027972 | BB21: Surface water | BC21: N/A | BD21: N/A | BE21: N/A | BF21: N/A | BG21: N/A | BH21: N/A | BI21: N/A | BJ21: N/A | BK21: N/A | BL21: N/A | BM21: N/A | BN21: N/A | BO21: N/A | BP21: N/A | BQ21: N/A | BR21: N/A | BS21: N/A | BT21: N/A | BU21: N/A
A22: Improved water point at more than 30 minutes | B22: Yes | C22: 14.57558119 | D22: 16.53203506 | E22: 14.38555937 | F22: 11.4817994 | G22: 6.450825609 | H22: 16.9221111 | I22: 15.13781958 | J22: 13.1459023 | K22: 11.28686878 | L22: 6.244842772 | M22: 15.09614946 | N22: 13.63338225 | O22: 14.04776499 | P22: 14.05768578 | Q22: 7.707006128 | R22: 11.04399951 | S22: 11.55577738 | T22: 14.39209124 | U22: 15.0883437 | BA22: Improved water point at more than 30 minutes | BB22: Yes | BC22: N/A | BD22: N/A | BE22: N/A | BF22: N/A | BG22: N/A | BH22: N/A | BI22: N/A | BJ22: N/A | BK22: N/A | BL22: N/A | BM22: N/A | BN22: N/A | BO22: N/A | BP22: N/A | BQ22: N/A | BR22: N/A | BS22: N/A | BT22: N/A | BU22: N/A
B23: No | C23: 85.42441881 | D23: 83.46796494 | E23: 85.61444063 | F23: 88.5182006 | G23: 93.54917439 | H23: 83.0778889 | I23: 84.86218042 | J23: 86.8540977 | K23: 88.71313122 | L23: 93.75515723 | M23: 84.90385054 | N23: 86.36661775 | O23: 85.95223501 | P23: 85.94231422 | Q23: 92.29299387 | R23: 88.95600049 | S23: 88.44422262 | T23: 85.60790876 | U23: 84.9116563 | BB23: No | BC23: N/A | BD23: N/A | BE23: N/A | BF23: N/A | BG23: N/A | BH23: N/A | BI23: N/A | BJ23: N/A | BK23: N/A | BL23: N/A | BM23: N/A | BN23: N/A | BO23: N/A | BP23: N/A | BQ23: N/A | BR23: N/A | BS23: N/A | BT23: N/A | BU23: N/A
A24: Manually calculated ratios | B24: Improved wells
B25: Improved springs
B26: Other
C27: NATIONAL wealth index quintile | H27: URBAN wealth index quintile | M27: RURAL wealth index quintile | R27: SUB-REGIONS: | BA27: Raw numbers of respondents: | BB27: Use of drinking water sources | BC27: NATIONAL wealth index quintile | BH27: URBAN wealth index quintile | BM27: RURAL wealth index quintile | BR27: SUB-REGIONS:
A28: Percentage based on weighted population | C28: Poorest | D28: Poor | E28: Middle | F28: Rich | G28: Richest | H28: Poorest | I28: Poor | J28: Middle | K28: Rich | L28: Richest | M28: Poorest | N28: Poor | O28: Middle | P28: Rich | Q28: Richest | R28: RegiÃ£o Autonoma de Principe | S28: RegiÃ£o Centro Este | T28: RegiÃ£o Norte Oeste | U28: RegiÃ£o Sul Este | BA28: Water data, raw numbers (weighted) | BC28: Poorest | BD28: Poor | BE28: Middle | BF28: Rich | BG28: Richest | BH28: Poorest | BI28: Poor | BJ28: Middle | BK28: Rich | BL28: Richest | BM28: Poorest | BN28: Poor | BO28: Middle | BP28: Rich | BQ28: Richest | BR28: RegiÃ£o Autonoma de Principe | BS28: RegiÃ£o Centro Este | BT28: RegiÃ£o Norte Oeste | BU28: RegiÃ£o Sul Este
A29: Piped water | B29: Yes | C29: 86.42216028 | D29: 88.99901919 | E29: 87.92930676 | F29: 94.8338411 | G29: 96.39901613 | H29: 93.9217139 | I29: 95.17084804 | J29: 97.29444516 | K29: 98.40807622 | L29: 98.34670252 | M29: 78.09993739 | N29: 81.35944694 | O29: 79.74161014 | P29: 69.70141611 | Q29: 88.78000517 | R29: 59.9870615 | S29: 92.58029675 | T29: 89.872681 | U29: 92.91658209 | BA29: Piped water | BB29: Yes | BC29: N/A | BD29: N/A | BE29: N/A | BF29: N/A | BG29: N/A | BH29: N/A | BI29: N/A | BJ29: N/A | BK29: N/A | BL29: N/A | BM29: N/A | BN29: N/A | BO29: N/A | BP29: N/A | BQ29: N/A | BR29: N/A | BS29: N/A | BT29: N/A | BU29: N/A
B30: No | C30: 13.57783972 | D30: 11.00098081 | E30: 12.07069324 | F30: 5.166158905 | G30: 3.600983865 | H30: 6.078286105 | I30: 4.82915196 | J30: 2.705554844 | K30: 1.59192378 | L30: 1.653297485 | M30: 21.90006261 | N30: 18.64055306 | O30: 20.25838986 | P30: 30.29858389 | Q30: 11.21999483 | R30: 40.0129385 | S30: 7.419703252 | T30: 10.127319 | U30: 7.083417913 | BB30: No | BC30: N/A | BD30: N/A | BE30: N/A | BF30: N/A | BG30: N/A | BH30: N/A | BI30: N/A | BJ30: N/A | BK30: N/A | BL30: N/A | BM30: N/A | BN30: N/A | BO30: N/A | BP30: N/A | BQ30: N/A | BR30: N/A | BS30: N/A | BT30: N/A | BU30: N/A
A31: Piped water on premises | B31: Yes | C31: 5.447618077 | D31: 11.24744994 | E31: 19.130078 | F31: 34.83249564 | G31: 63.45310821 | H31: 6.857344278 | I31: 17.27346348 | J31: 28.67326921 | K31: 41.95465504 | L31: 73.76781573 | M31: 4.926898093 | N31: 6.614933246 | O31: 7.613503239 | P31: 14.32818599 | Q31: 32.08464658 | R31: 17.29890635 | S31: 32.76996705 | T31: 16.61083658 | U31: 13.39253859 | BA31: Piped water on premises | BB31: Yes | BC31: N/A | BD31: N/A | BE31: N/A | BF31: N/A | BG31: N/A | BH31: N/A | BI31: N/A | BJ31: N/A | BK31: N/A | BL31: N/A | BM31: N/A | BN31: N/A | BO31: N/A | BP31: N/A | BQ31: N/A | BR31: N/A | BS31: N/A | BT31: N/A | BU31: N/A
B32: No | C32: 94.55238192 | D32: 88.75255006 | E32: 80.869922 | F32: 65.16750436 | G32: 36.54689179 | H32: 93.14265572 | I32: 82.72653652 | J32: 71.32673079 | K32: 58.04534496 | L32: 26.23218427 | M32: 95.07310191 | N32: 93.38506675 | O32: 92.38649676 | P32: 85.67181401 | Q32: 67.91535342 | R32: 82.70109365 | S32: 67.23003295 | T32: 83.38916342 | U32: 86.60746141 | BB32: No | BC32: N/A | BD32: N/A | BE32: N/A | BF32: N/A | BG32: N/A | BH32: N/A | BI32: N/A | BJ32: N/A | BK32: N/A | BL32: N/A | BM32: N/A | BN32: N/A | BO32: N/A | BP32: N/A | BQ32: N/A | BR32: N/A | BS32: N/A | BT32: N/A | BU32: N/A
A33: Piped water into dwelling | B33: Yes | C33: N/A | D33: N/A | E33: N/A | F33: N/A | G33: N/A | H33: N/A | I33: N/A | J33: N/A | K33: N/A | L33: N/A | M33: N/A | N33: N/A | O33: N/A | P33: N/A | Q33: N/A | R33: N/A | S33: N/A | T33: N/A | U33: N/A | BA33: Piped water into dwelling | BB33: Yes | BC33: N/A | BD33: N/A | BE33: N/A | BF33: N/A | BG33: N/A | BH33: N/A | BI33: N/A | BJ33: N/A | BK33: N/A | BL33: N/A | BM33: N/A | BN33: N/A | BO33: N/A | BP33: N/A | BQ33: N/A | BR33: N/A | BS33: N/A | BT33: N/A | BU33: N/A
B34: No | C34: N/A | D34: N/A | E34: N/A | F34: N/A | G34: N/A | H34: N/A | I34: N/A | J34: N/A | K34: N/A | L34: N/A | M34: N/A | N34: N/A | O34: N/A | P34: N/A | Q34: N/A | R34: N/A | S34: N/A | T34: N/A | U34: N/A | BB34: No | BC34: N/A | BD34: N/A | BE34: N/A | BF34: N/A | BG34: N/A | BH34: N/A | BI34: N/A | BJ34: N/A | BK34: N/A | BL34: N/A | BM34: N/A | BN34: N/A | BO34: N/A | BP34: N/A | BQ34: N/A | BR34: N/A | BS34: N/A | BT34: N/A | BU34: N/A
A35: Water source on premises | B35: Yes | C35: 11.28178407 | D35: 15.60889654 | E35: 23.93217525 | F35: 36.71034845 | G35: 63.90580885 | H35: 7.57840885 | I35: 17.41560834 | J35: 29.82016618 | K35: 42.36801155 | L35: 74.301848 | M35: 18.37505119 | N35: 16.13269417 | O35: 17.38033006 | P35: 25.09132686 | Q35: 34.55749439 | R35: 30.67098348 | S35: 33.82781219 | T35: 23.74556773 | U35: 21.1449046 | BA35: Water source on premises | BB35: Yes | BC35: N/A | BD35: N/A | BE35: N/A | BF35: N/A | BG35: N/A | BH35: N/A | BI35: N/A | BJ35: N/A | BK35: N/A | BL35: N/A | BM35: N/A | BN35: N/A | BO35: N/A | BP35: N/A | BQ35: N/A | BR35: N/A | BS35: N/A | BT35: N/A | BU35: N/A
B36: No | C36: 88.71821593 | D36: 84.39110346 | E36: 76.06782475 | F36: 63.28965155 | G36: 36.09419115 | H36: 92.42159115 | I36: 82.58439166 | J36: 70.17983382 | K36: 57.63198845 | L36: 25.698152 | M36: 81.62494881 | N36: 83.86730583 | O36: 82.61966994 | P36: 74.90867314 | Q36: 65.44250561 | R36: 69.32901652 | S36: 66.17218781 | T36: 76.25443227 | U36: 78.8550954 | BB36: No | BC36: N/A | BD36: N/A | BE36: N/A | BF36: N/A | BG36: N/A | BH36: N/A | BI36: N/A | BJ36: N/A | BK36: N/A | BL36: N/A | BM36: N/A | BN36: N/A | BO36: N/A | BP36: N/A | BQ36: N/A | BR36: N/A | BS36: N/A | BT36: N/A | BU36: N/A
A37: Improved Water source on premises | B37: Yes | C37: 10.97381247 | D37: 15.22981925 | E37: 23.59542161 | F37: 36.45660439 | G37: 63.90580885 | H37: 7.57840885 | I37: 17.41560834 | J37: 29.82016618 | K37: 42.36801155 | L37: 74.301848 | M37: 17.78897862 | N37: 14.94337064 | O37: 16.68124981 | P37: 23.90970323 | Q37: 34.38935795 | R37: 27.13581648 | S37: 33.70293705 | T37: 23.56076165 | U37: 21.06831163 | BA37: Improved water source on premises | BB37: Yes | BC37: N/A | BD37: N/A | BE37: N/A | BF37: N/A | BG37: N/A | BH37: N/A | BI37: N/A | BJ37: N/A | BK37: N/A | BL37: N/A | BM37: N/A | BN37: N/A | BO37: N/A | BP37: N/A | BQ37: N/A | BR37: N/A | BS37: N/A | BT37: N/A | BU37: N/A
B38: No | C38: 89.02618753 | D38: 84.77018075 | E38: 76.40457839 | F38: 63.54339561 | G38: 36.09419115 | H38: 92.42159115 | I38: 82.58439166 | J38: 70.17983382 | K38: 57.63198845 | L38: 25.698152 | M38: 82.21102138 | N38: 85.05662936 | O38: 83.31875019 | P38: 76.09029677 | Q38: 65.61064205 | R38: 72.86418352 | S38: 66.29706295 | T38: 76.43923835 | U38: 78.93168837 | BB38: No | BC38: N/A | BD38: N/A | BE38: N/A | BF38: N/A | BG38: N/A | BH38: N/A | BI38: N/A | BJ38: N/A | BK38: N/A | BL38: N/A | BM38: N/A | BN38: N/A | BO38: N/A | BP38: N/A | BQ38: N/A | BR38: N/A | BS38: N/A | BT38: N/A | BU38: N/A
A39: Piped water on premises available when needed | B39: Yes | C39: N/A | D39: N/A | E39: N/A | F39: N/A | G39: N/A | H39: N/A | I39: N/A | J39: N/A | K39: N/A | L39: N/A | M39: N/A | N39: N/A | O39: N/A | P39: N/A | Q39: N/A | R39: N/A | S39: N/A | T39: N/A | U39: N/A | BA39: Piped water on premises available when needed | BB39: Yes | BC39: N/A | BD39: N/A | BE39: N/A | BF39: N/A | BG39: N/A | BH39: N/A | BI39: N/A | BJ39: N/A | BK39: N/A | BL39: N/A | BM39: N/A | BN39: N/A | BO39: N/A | BP39: N/A | BQ39: N/A | BR39: N/A | BS39: N/A | BT39: N/A | BU39: N/A
B40: No | C40: N/A | D40: N/A | E40: N/A | F40: N/A | G40: N/A | H40: N/A | I40: N/A | J40: N/A | K40: N/A | L40: N/A | M40: N/A | N40: N/A | O40: N/A | P40: N/A | Q40: N/A | R40: N/A | S40: N/A | T40: N/A | U40: N/A | BB40: No | BC40: N/A | BD40: N/A | BE40: N/A | BF40: N/A | BG40: N/A | BH40: N/A | BI40: N/A | BJ40: N/A | BK40: N/A | BL40: N/A | BM40: N/A | BN40: N/A | BO40: N/A | BP40: N/A | BQ40: N/A | BR40: N/A | BS40: N/A | BT40: N/A | BU40: N/A
A41: Water point at more than 30 minutes | B41: Yes | C41: 14.89386238 | D41: 16.71873419 | E41: 15.61866218 | F41: 12.70478608 | G41: 6.964786601 | H41: 16.39677511 | I41: 14.63885518 | J41: 12.94064342 | K41: 11.14382627 | L41: 6.165799157 | M41: 16.71224122 | N41: 14.77015938 | O41: 15.39097994 | P41: 19.56157 | Q41: 10.50158978 | R41: 14.96837738 | S41: 12.35480426 | T41: 15.21440405 | U41: 14.67520094 | BA41: Water point at more than 30 minutes | BB41: Yes | BC41: N/A | BD41: N/A | BE41: N/A | BF41: N/A | BG41: N/A | BH41: N/A | BI41: N/A | BJ41: N/A | BK41: N/A | BL41: N/A | BM41: N/A | BN41: N/A | BO41: N/A | BP41: N/A | BQ41: N/A | BR41: N/A | BS41: N/A | BT41: N/A | BU41: N/A
B42: No | C42: 85.10613762 | D42: 83.28126581 | E42: 84.38133782 | F42: 87.29521392 | G42: 93.0352134 | H42: 83.60322489 | I42: 85.36114482 | J42: 87.05935658 | K42: 88.85617373 | L42: 93.83420084 | M42: 83.28775878 | N42: 85.22984062 | O42: 84.60902006 | P42: 80.43843 | Q42: 89.49841022 | R42: 85.03162262 | S42: 87.64519574 | T42: 84.78559595 | U42: 85.32479906 | BB42: No | BC42: N/A | BD42: N/A | BE42: N/A | BF42: N/A | BG42: N/A | BH42: N/A | BI42: N/A | BJ42: N/A | BK42: N/A | BL42: N/A | BM42: N/A | BN42: N/A | BO42: N/A | BP42: N/A | BQ42: N/A | BR42: N/A | BS42: N/A | BT42: N/A | BU42: N/A
A43: Water source available when needed | B43: Yes | C43: N/A | D43: N/A | E43: N/A | F43: N/A | G43: N/A | H43: N/A | I43: N/A | J43: N/A | K43: N/A | L43: N/A | M43: N/A | N43: N/A | O43: N/A | P43: N/A | Q43: N/A | R43: N/A | S43: N/A | T43: N/A | U43: N/A | BA43: Water source available when needed | BB43: Yes | BC43: N/A | BD43: N/A | BE43: N/A | BF43: N/A | BG43: N/A | BH43: N/A | BI43: N/A | BJ43: N/A | BK43: N/A | BL43: N/A | BM43: N/A | BN43: N/A | BO43: N/A | BP43: N/A | BQ43: N/A | BR43: N/A | BS43: N/A | BT43: N/A | BU43: N/A
B44: No | C44: N/A | D44: N/A | E44: N/A | F44: N/A | G44: N/A | H44: N/A | I44: N/A | J44: N/A | K44: N/A | L44: N/A | M44: N/A | N44: N/A | O44: N/A | P44: N/A | Q44: N/A | R44: N/A | S44: N/A | T44: N/A | U44: N/A | BB44: No | BC44: N/A | BD44: N/A | BE44: N/A | BF44: N/A | BG44: N/A | BH44: N/A | BI44: N/A | BJ44: N/A | BK44: N/A | BL44: N/A | BM44: N/A | BN44: N/A | BO44: N/A | BP44: N/A | BQ44: N/A | BR44: N/A | BS44: N/A | BT44: N/A | BU44: N/A
A45: Improved water source available when needed | B45: Yes | C45: N/A | D45: N/A | E45: N/A | F45: N/A | G45: N/A | H45: N/A | I45: N/A | J45: N/A | K45: N/A | L45: N/A | M45: N/A | N45: N/A | O45: N/A | P45: N/A | Q45: N/A | R45: N/A | S45: N/A | T45: N/A | U45: N/A | BA45: Improved water source available when needed | BB45: Yes | BC45: N/A | BD45: N/A | BE45: N/A | BF45: N/A | BG45: N/A | BH45: N/A | BI45: N/A | BJ45: N/A | BK45: N/A | BL45: N/A | BM45: N/A | BN45: N/A | BO45: N/A | BP45: N/A | BQ45: N/A | BR45: N/A | BS45: N/A | BT45: N/A | BU45: N/A
B46: No | C46: N/A | D46: N/A | E46: N/A | F46: N/A | G46: N/A | H46: N/A | I46: N/A | J46: N/A | K46: N/A | L46: N/A | M46: N/A | N46: N/A | O46: N/A | P46: N/A | Q46: N/A | R46: N/A | S46: N/A | T46: N/A | U46: N/A | BB46: No | BC46: N/A | BD46: N/A | BE46: N/A | BF46: N/A | BG46: N/A | BH46: N/A | BI46: N/A | BJ46: N/A | BK46: N/A | BL46: N/A | BM46: N/A | BN46: N/A | BO46: N/A | BP46: N/A | BQ46: N/A | BR46: N/A | BS46: N/A | BT46: N/A | BU46: N/A
A47: Microbiological quality at point of collection | B47: Not contaminated (No E. coli in 100 mL) | C47: N/A | D47: N/A | E47: N/A | F47: N/A | G47: N/A | H47: N/A | I47: N/A | J47: N/A | K47: N/A | L47: N/A | M47: N/A | N47: N/A | O47: N/A | P47: N/A | Q47: N/A | R47: N/A | S47: N/A | T47: N/A | U47: N/A | BA47: Microbiological quality at point of collection | BB47: Not contaminated (No E. coli in 100 mL) | BC47: N/A | BD47: N/A | BE47: N/A | BF47: N/A | BG47: N/A | BH47: N/A | BI47: N/A | BJ47: N/A | BK47: N/A | BL47: N/A | BM47: N/A | BN47: N/A | BO47: N/A | BP47: N/A | BQ47: N/A | BR47: N/A | BS47: N/A | BT47: N/A | BU47: N/A
B48: Contaminated (E. coli detected in 100 mL) | C48: N/A | D48: N/A | E48: N/A | F48: N/A | G48: N/A | H48: N/A | I48: N/A | J48: N/A | K48: N/A | L48: N/A | M48: N/A | N48: N/A | O48: N/A | P48: N/A | Q48: N/A | R48: N/A | S48: N/A | T48: N/A | U48: N/A | BB48: Contaminated (E. coli detected in 100 mL) | BC48: N/A | BD48: N/A | BE48: N/A | BF48: N/A | BG48: N/A | BH48: N/A | BI48: N/A | BJ48: N/A | BK48: N/A | BL48: N/A | BM48: N/A | BN48: N/A | BO48: N/A | BP48: N/A | BQ48: N/A | BR48: N/A | BS48: N/A | BT48: N/A | BU48: N/A
B49: Highly contaminated (>100 CFU/100 mL) | C49: N/A | D49: N/A | E49: N/A | F49: N/A | G49: N/A | H49: N/A | I49: N/A | J49: N/A | K49: N/A | L49: N/A | M49: N/A | N49: N/A | O49: N/A | P49: N/A | Q49: N/A | R49: N/A | S49: N/A | T49: N/A | U49: N/A | BB49: Highly contaminated (>100 CFU/100 mL) | BC49: N/A | BD49: N/A | BE49: N/A | BF49: N/A | BG49: N/A | BH49: N/A | BI49: N/A | BJ49: N/A | BK49: N/A | BL49: N/A | BM49: N/A | BN49: N/A | BO49: N/A | BP49: N/A | BQ49: N/A | BR49: N/A | BS49: N/A | BT49: N/A | BU49: N/A
A50: Microbiological quality of improved water sources at point of collection | B50: Not contaminated (No E. coli in 100 mL) | C50: N/A | D50: N/A | E50: N/A | F50: N/A | G50: N/A | H50: N/A | I50: N/A | J50: N/A | K50: N/A | L50: N/A | M50: N/A | N50: N/A | O50: N/A | P50: N/A | Q50: N/A | R50: N/A | S50: N/A | T50: N/A | U50: N/A | BA50: Microbiological quality of improved water sources at point of collection | BB50: Not contaminated (No E. coli in 100 mL) | BC50: N/A | BD50: N/A | BE50: N/A | BF50: N/A | BG50: N/A | BH50: N/A | BI50: N/A | BJ50: N/A | BK50: N/A | BL50: N/A | BM50: N/A | BN50: N/A | BO50: N/A | BP50: N/A | BQ50: N/A | BR50: N/A | BS50: N/A | BT50: N/A | BU50: N/A
B51: Contaminated (E. coli detected in 100 mL) | C51: N/A | D51: N/A | E51: N/A | F51: N/A | G51: N/A | H51: N/A | I51: N/A | J51: N/A | K51: N/A | L51: N/A | M51: N/A | N51: N/A | O51: N/A | P51: N/A | Q51: N/A | R51: N/A | S51: N/A | T51: N/A | U51: N/A | BB51: Contaminated (E. coli detected in 100 mL) | BC51: N/A | BD51: N/A | BE51: N/A | BF51: N/A | BG51: N/A | BH51: N/A | BI51: N/A | BJ51: N/A | BK51: N/A | BL51: N/A | BM51: N/A | BN51: N/A | BO51: N/A | BP51: N/A | BQ51: N/A | BR51: N/A | BS51: N/A | BT51: N/A | BU51: N/A
B52: Highly contaminated (>100 CFU/100 mL) | C52: N/A | D52: N/A | E52: N/A | F52: N/A | G52: N/A | H52: N/A | I52: N/A | J52: N/A | K52: N/A | L52: N/A | M52: N/A | N52: N/A | O52: N/A | P52: N/A | Q52: N/A | R52: N/A | S52: N/A | T52: N/A | U52: N/A | BB52: Highly contaminated (>100 CFU/100 mL) | BC52: N/A | BD52: N/A | BE52: N/A | BF52: N/A | BG52: N/A | BH52: N/A | BI52: N/A | BJ52: N/A | BK52: N/A | BL52: N/A | BM52: N/A | BN52: N/A | BO52: N/A | BP52: N/A | BQ52: N/A | BR52: N/A | BS52: N/A | BT52: N/A | BU52: N/A
A53: Microbiological quality of piped on premises at point of collection | B53: Not contaminated (No E. coli in 100 mL) | C53: N/A | D53: N/A | E53: N/A | F53: N/A | G53: N/A | H53: N/A | I53: N/A | J53: N/A | K53: N/A | L53: N/A | M53: N/A | N53: N/A | O53: N/A | P53: N/A | Q53: N/A | R53: N/A | S53: N/A | T53: N/A | U53: N/A | BA53: Microbiological quality of piped on premises at point of collection | BB53: Not contaminated (No E. coli in 100 mL) | BC53: N/A | BD53: N/A | BE53: N/A | BF53: N/A | BG53: N/A | BH53: N/A | BI53: N/A | BJ53: N/A | BK53: N/A | BL53: N/A | BM53: N/A | BN53: N/A | BO53: N/A | BP53: N/A | BQ53: N/A | BR53: N/A | BS53: N/A | BT53: N/A | BU53: N/A
B54: Contaminated (E. coli detected in 100 mL) | C54: N/A | D54: N/A | E54: N/A | F54: N/A | G54: N/A | H54: N/A | I54: N/A | J54: N/A | K54: N/A | L54: N/A | M54: N/A | N54: N/A | O54: N/A | P54: N/A | Q54: N/A | R54: N/A | S54: N/A | T54: N/A | U54: N/A | BB54: Contaminated (E. coli detected in 100 mL) | BC54: N/A | BD54: N/A | BE54: N/A | BF54: N/A | BG54: N/A | BH54: N/A | BI54: N/A | BJ54: N/A | BK54: N/A | BL54: N/A | BM54: N/A | BN54: N/A | BO54: N/A | BP54: N/A | BQ54: N/A | BR54: N/A | BS54: N/A | BT54: N/A | BU54: N/A
B55: Highly contaminated (>100 CFU/100 mL) | C55: N/A | D55: N/A | E55: N/A | F55: N/A | G55: N/A | H55: N/A | I55: N/A | J55: N/A | K55: N/A | L55: N/A | M55: N/A | N55: N/A | O55: N/A | P55: N/A | Q55: N/A | R55: N/A | S55: N/A | T55: N/A | U55: N/A | BB55: Highly contaminated (>100 CFU/100 mL) | BC55: N/A | BD55: N/A | BE55: N/A | BF55: N/A | BG55: N/A | BH55: N/A | BI55: N/A | BJ55: N/A | BK55: N/A | BL55: N/A | BM55: N/A | BN55: N/A | BO55: N/A | BP55: N/A | BQ55: N/A | BR55: N/A | BS55: N/A | BT55: N/A | BU55: N/A
C56: NATIONAL wealth index quintile | H56: URBAN wealth index quintile | M56: RURAL wealth index quintile | R56: SUB-REGIONS: | BA56: Raw numbers of respondents: | BB56: Use of drinking water sources | BC56: NATIONAL wealth index quintile | BH56: URBAN wealth index quintile | BM56: RURAL wealth index quintile | BR56: SUB-REGIONS:
A57: Percentage based on weighted population | C57: Poorest | D57: Poor | E57: Middle | F57: Rich | G57: Richest | H57: Poorest | I57: Poor | J57: Middle | K57: Rich | L57: Richest | M57: Poorest | N57: Poor | O57: Middle | P57: Rich | Q57: Richest | R57: RegiÃ£o Autonoma de Principe | S57: RegiÃ£o Centro Este | T57: RegiÃ£o Norte Oeste | U57: RegiÃ£o Sul Este | BA57: Water data, raw numbers (weighted) | BC57: Poorest | BD57: Poor | BE57: Middle | BF57: Rich | BG57: Richest | BH57: Poorest | BI57: Poor | BJ57: Middle | BK57: Rich | BL57: Richest | BM57: Poorest | BN57: Poor | BO57: Middle | BP57: Rich | BQ57: Richest | BR57: RegiÃ£o Autonoma de Principe | BS57: RegiÃ£o Centro Este | BT57: RegiÃ£o Norte Oeste | BU57: RegiÃ£o Sul Este
A58: DE ONDE PROVÃ‰M A AGUA UTILIZADA PELOS MEMBROS DO AGREGADO PRINCIPALMENTE PARA BEBER | B58: No alojamento | C58: 0.07207334742 | D58: 0.2367533798 | E58: 1.288217882 | F58: 2.996235716 | G58: 20.83491231 | H58: 0.08311960297 | I58: 0.9149249795 | J58: 1.541303375 | K58: 4.026126359 | L58: 28.16103099 | M58: 0.2158030322 | N58: 0 | O58: 0 | P58: 1.084707198 | Q58: 5.580823478 | R58: 5.929924647 | S58: 6.406099967 | T58: 1.340786457 | U58: 3.406133092
B59: No quintal | C59: 5.375544729 | D59: 11.01069656 | E59: 17.84186012 | F59: 31.75489299 | G59: 42.42258351 | H59: 6.774224675 | I59: 16.3585385 | J59: 27.13196583 | K59: 37.80590323 | L59: 45.48768077 | M59: 4.711095061 | N59: 6.614933246 | O59: 7.613503239 | P59: 13.24347879 | Q59: 26.15642256 | R59: 11.36898171 | S59: 26.31469444 | T59: 15.14577389 | U59: 9.986405496
B60: No vizinho | C60: 7.516655679 | D60: 11.95498268 | E60: 13.88329106 | F60: 13.51197419 | G60: 9.15080198 | H60: 14.49650095 | I60: 16.77474128 | J60: 17.9554348 | K60: 13.63514616 | L60: 9.360249945 | M60: 2.48138485 | N60: 1.722661204 | O60: 5.874826875 | P60: 4.350008873 | Q60: 9.30254777 | R60: 3.253418584 | S60: 13.48242964 | T60: 6.736553967 | U60: 8.256699663
B61: Chafariz pÃºblico | C61: 73.45788652 | D61: 65.79658658 | E61: 54.9159377 | F61: 46.46925012 | G61: 23.79510594 | H61: 72.56786867 | I61: 61.12264328 | J61: 50.66574115 | K61: 42.78795111 | L61: 15.21863684 | M61: 70.69165444 | N61: 73.02185249 | O61: 66.25328003 | P61: 51.02322125 | Q61: 47.39281083 | R61: 39.43473657 | S61: 46.32790006 | T61: 66.52529045 | U61: 71.23441788
B62: PoÃ§o protegido | C62: 0.07927179858 | D62: 0.09906147132 | E62: 0.08838847557 | F62: 0.1676938921 | G62: 0.02813493984 | H62: 0.1190277871 | I62: 0.2812460627 | J62: 0 | K62: 0 | L62: 0 | M62: 0 | N62: 0 | O62: 0 | P62: 0.5035746427 | Q62: 0.08406821699 | R62: 1.067115312 | S62: 0.0302896627 | T62: 0.08496376083 | U62: 0.1440510576
B63: PoÃ§o protegido | C63: 0.5487288358 | D63: 0.08097651821 | E63: 0.5710997638 | F63: 0 | G63: 0.0662213217 | H63: 0.3128725095 | I63: 0.3655242894 | J63: 0.200947298 | K63: 0.09914035748 | L63: 0 | M63: 0.949309529 | N63: 0.1756926221 | O63: 0 | P63: 0.7143164835 | Q63: 0 | R63: 1.467144844 | S63: 0.23229937 | T63: 0.03804647836 | U63: 0.3284110019
B64: PoÃ§o desprotegido | C64: 0.2142674386 | D64: 0.09573305108 | E64: 0.1729331674 | F64: 0.3406337695 | G64: 0 | H64: 0.1624035949 | I64: 0.05198805728 | J64: 0 | K64: 0.1948370077 | L64: 0 | M64: 0.3177089006 | N64: 0.182505115 | O64: 0 | P64: 0.6219598997 | Q64: 0.5307959449 | R64: 1.152796749 | S64: 0.0853118743 | T64: 0.1026099952 | U64: 0.3878520753
B65: Nascente protegida | C65: 3.100100579 | D65: 3.860930792 | E65: 3.635686693 | F65: 1.482204205 | G65: 1.010803911 | H65: 1.800135452 | I65: 1.520250516 | J65: 1.232104576 | K65: 0.4137359977 | L65: 0.3633499645 | M65: 5.605343838 | N65: 3.895419671 | O65: 6.215775346 | P65: 8.607222222 | Q65: 4.228433609 | R65: 11.32933967 | S65: 2.974023682 | T65: 0.6579802658 | U65: 1.086456341
B66: Nascente desprotegida | C66: 2.94258521 | D66: 1.756202103 | E66: 3.567477877 | F66: 1.158257832 | G66: 0.9333315723 | H66: 0.4063799908 | I66: 0.2307669554 | J66: 0.05192535497 | K66: 0 | L66: 0.8343750035 | M66: 3.951560606 | N66: 5.881222977 | O66: 4.425315508 | P66: 11.94872997 | Q66: 1.751934486 | R66: 12.83765566 | S66: 1.987193498 | T66: 1.215460713 | U66: 0.5921653802
B67: Ãgua da chuva | C67: 0.02470836098 | D67: 0 | E67: 0 | F67: 0 | G67: 0 | H67: 0 | I67: 0 | J67: 0 | K67: 0 | L67: 0 | M67: 0.07398212254 | N67: 0 | O67: 0 | P67: 0 | Q67: 0 | R67: 0 | S67: 0 | T67: 0 | U67: 0.04027368656
B68: CaminhÃ£o cisterna | C68: 0.06591996221 | D68: 0.09887704021 | E68: 0 | F68: 0 | G68: 0 | H68: 0 | I68: 0 | J68: 0 | K68: 0 | L68: 0 | M68: 0.1973784796 | N68: 0.2954137974 | O68: 0 | P68: 0 | Q68: 0 | R68: 0 | S68: 0 | T68: 0.1766330525 | U68: 0
B69: Carro com pequeno tanque/tambor | C69: 0.02873756674 | D69: 0 | E69: 0 | F69: 0 | G69: 0 | H69: 0 | I69: 0 | J69: 0 | K69: 0 | L69: 0 | M69: 0.08604642722 | N69: 0 | O69: 0 | P69: 0 | Q69: 0 | R69: 0 | S69: 0 | T69: 0.03080101362 | U69: 0
B70: Agua de superfÃ­cie (ribeira/rio /barragem/lago/marÃ©/canal/irrigaÃ§Ã£o) | C70: 6.224547857 | D70: 4.433918323 | E70: 3.84237254 | F70: 2.017369207 | G70: 1.467435664 | H70: 3.235701222 | I70: 2.213105359 | J70: 1.220577615 | K70: 0.8842104172 | L70: 0.3128906263 | M70: 9.865138525 | N70: 7.522980123 | O70: 8.512319129 | P70: 7.621362989 | Q70: 4.624762569 | R70: 12.15888626 | S70: 1.846934534 | T70: 7.770458202 | U70: 4.011141718
B71: Ãgua engarrafada | C71: 0.08645530748 | D71: 0 | E71: 0.03381327452 | F71: 0.1014880769 | G71: 0.2906688496 | H71: 0 | I71: 0 | J71: 0 | K71: 0.1529493572 | L71: 0.2617858689 | M71: 0.2588656997 | N71: 0 | O71: 0.05740235104 | P71: 0.04376973463 | Q71: 0.3474005411 | R71: 0 | S71: 0.09419048221 | T71: 0.1448289003 | U71: 0.1122315718
B72: Outro (especificar) | C72: 0.262516806 | D72: 0.5752815092 | E72: 0.1589214497 | F72: 0 | G72: 0 | H72: 0.04176554874 | I72: 0.1662707198 | J72: 0 | K72: 0 | L72: 0 | M72: 0.5947284852 | N72: 0.6873187547 | O72: 1.047577524 | P72: 0.23764795 | Q72: 0 | R72: 0 | S72: 0.2186327932 | T72: 0.02981285445 | U72: 0.4137610362
A108: =A1026 -> Sao Tome and Principe
A109: =A1034 -> 2014
A110: Use of sanitation facilities
A111: by wealth quintile and sub-national region
A112: Notes:
A113: WHO/UNICEF JMP customised wealth index excludes water,
A114: sanitation and hygiene assets.
A115: Survey used for analysis: | B115: =A1025 -> MICS14
A116: =B1030 -> 
A117: =B1029 -> 
A120: Use of sanitation facilities | C120: NATIONAL wealth index quintile | H120: URBAN wealth index quintile | M120: RURAL wealth index quintile | R120: SUB-REGIONS: | BA120: Raw numbers of respondents: | BB120: Use of sanitation facilities | BC120: NATIONAL wealth index quintile | BH120: URBAN wealth index quintile | BM120: RURAL wealth index quintile | BR120: SUB-REGIONS:
A121: Weighted percentage (used in graphs) | C121: Poorest | D121: Poor | E121: Middle | F121: Rich | G121: Richest | H121: Poorest | I121: Poor | J121: Middle | K121: Rich | L121: Richest | M121: Poorest | N121: Poor | O121: Middle | P121: Rich | Q121: Richest | R121: RegiÃ£o Autonoma de Principe | S121: RegiÃ£o Centro Este | T121: RegiÃ£o Norte Oeste | U121: RegiÃ£o Sul Este | BA121: Sanitation data, raw numbers (weighted) | BC121: Poorest | BD121: Poor | BE121: Middle | BF121: Rich | BG121: Richest | BH121: Poorest | BI121: Poor | BJ121: Middle | BK121: Rich | BL121: Richest | BM121: Poorest | BN121: Poor | BO121: Middle | BP121: Rich | BQ121: Richest | BR121: RegiÃ£o Autonoma de Principe | BS121: RegiÃ£o Centro Este | BT121: RegiÃ£o Norte Oeste | BU121: RegiÃ£o Sul Este
A122: Sanitation | B122: Improved | C122: 17.86211403 | D122: 30.20697873 | E122: 47.28035181 | F122: 70.302448 | G122: 86.80894376 | H122: 20.18789397 | I122: 36.58046838 | J122: 60.630836 | K122: 78.62402094 | L122: 89.07914935 | M122: 18.00753652 | N122: 24.47446027 | O122: 27.5156493 | P122: 45.49124765 | Q122: 72.05223488 | R122: 57.65790266 | S122: 57.63687095 | T122: 33.16325599 | U122: 36.57539274 | BA122: Sanitation | BB122: Improved | BC122: 480.554549 | BD122: 812.699282 | BE122: 1271.844142 | BF122: 1898.841441 | BG122: 2329.178265 | BH122: 361.718901 | BI122: 655.900557 | BJ122: 1088.4448 | BK122: 1409.096938 | BL122: 1592.308031 | BM122: 161.801033 | BN122: 220.394317 | BO122: 247.29372 | BP122: 409.165957 | BQ122: 646.993425 | BR122: 285.515557 | BS122: 5071.463667 | BT122: 832.438164 | BU122: 603.700291
B123: Not Improved | C123: 82.13788597 | D123: 69.79302127 | E123: 52.71964819 | F123: 29.697552 | G123: 13.19105624 | H123: 79.81210603 | I123: 63.41953162 | J123: 39.369164 | K123: 21.37597906 | L123: 10.92085065 | M123: 81.99246348 | N123: 75.52553973 | O123: 72.4843507 | P123: 54.50875235 | Q123: 27.94776512 | R123: 42.34209734 | S123: 42.36312905 | T123: 66.83674401 | U123: 63.42460726 | BB123: Not Improved | BC123: 2209.801969 | BD123: 1877.736227 | BE123: 1418.161523 | BF123: 802.119187 | BG123: 353.930369 | BH123: 1430.042545 | BI123: 1137.134322 | BJ123: 706.755253 | BK123: 383.099545 | BL123: 195.212441 | BM123: 736.717389 | BN123: 680.113047 | BO123: 651.44473 | BP123: 490.272898 | BQ123: 250.957105 | BR123: 209.673383 | BS123: 3727.528339 | BT123: 1677.683774 | BU123: 1046.863779
A124: Sanitation ladder | B124: Basic | C124: =C122*C129/100 -> 12.79583647 | D124: =D122*D129/100 -> 23.86150553 | E124: =E122*E129/100 -> 38.38591378 | F124: 60.30659252 | G124: 81.53194973 | H124: 15.01876071 | I124: 28.10640213 | J124: 50.62506584 | K124: 66.07631413 | L124: 86.27247651 | M124: 12.25139233 | N124: 19.74888744 | O124: 22.85030755 | P124: 39.13842484 | Q124: 64.59945861 | R124: 52.54974596 | S124: 48.45322035 | T124: 30.27513671 | U124: 32.97212821 | BA124: Sanitation ladder | BB124: Basic | BC124: 343.514477 | BD124: 637.188076 | BE124: 1004.935077 | BF124: 1610.981943 | BG124: 2086.51796 | BH124: 269.100364 | BI124: 483.24841 | BJ124: 907.232988 | BK124: 1143.101363 | BL124: 1468.870858 | BM124: 110.081017 | BN124: 174.9835 | BO124: 203.513422 | BP124: 346.41136 | BQ124: 576.594251 | BR124: 260.22053 | BS124: 4147.569994 | BT124: 749.405568 | BU124: 525.941441
B125: Limited | C125: =C122*C128/100 -> 5.066277554 | D125: =D122*D128/100 -> 6.3454732 | E125: =E122*E128/100 -> 8.894438024 | F125: 9.99585548 | G125: 5.276994026 | H125: 5.169133269 | I125: 8.474066249 | J125: 10.00577016 | K125: 12.5477068 | L125: 2.80667284 | M125: 5.756144196 | N125: 4.725572827 | O125: 4.665341749 | P125: 6.352822811 | Q125: 7.452776269 | R125: 5.108156697 | S125: 9.183650596 | T125: 2.888119283 | U125: 3.603264531 | BB125: Limited | BC125: 136.008278 | BD125: 169.446972 | BE125: 232.8545 | BF125: 267.021266 | BG125: 135.045744 | BH125: 92.618537 | BI125: 145.699155 | BJ125: 179.309688 | BK125: 217.071744 | BL125: 47.786271 | BM125: 51.720016 | BN125: 41.870575 | BO125: 41.551286 | BP125: 56.228374 | BQ125: 66.521114 | BR125: 25.295027 | BS125: 786.115626 | BT125: 71.490104 | BU125: 57.476003
B126: Unimproved | C126: =100-C124-C125-C127 -> 1.884013588 | D126: =100-D124-D125-D127 -> 1.440980882 | E126: =100-E124-E125-E127 -> -0.2376010184 | F126: 0.7543811151 | G126: 0.1952702895 | H126: 2.479125003 | I126: 0.1776001294 | J126: 0.425812162 | K126: -0.3241041994 | L126: 0.6404080178 | M126: 2.141447134 | N126: 0.2192262206 | O126: 0.477545349 | P126: 0.8960692212 | Q126: 1.366163741 | R126: 1.83912488 | S126: 0.535204457 | T126: 1.079527338 | U126: -0.5936686208 | BB126: Unimproved | BC126: 51.514737 | BD126: 42.913689 | BE126: 11.64288 | BF126: 26.406782 | BG126: 19.224672 | BH126: 44.420006 | BI126: 20.230025 | BJ126: 8.384931 | BK126: 4.807928 | BL126: 19.224672 | BM126: 19.241297 | BN126: 4.640174 | BO126: 5.896924 | BP126: 11.558478 | BQ126: 13.298325 | BR126: 9.107143 | BS126: 104.722295 | BT126: 34.687474 | BU126: 3.185848
B127: Open defecation | C127: 80.25387238 | D127: 68.35204039 | E127: 52.95724921 | F127: 28.94317088 | G127: 12.99578595 | H127: 77.33298102 | I127: 63.24193149 | J127: 38.94335184 | K127: 21.70008326 | L127: 10.28044263 | M127: 79.85101634 | N127: 75.30631351 | O127: 72.00680535 | P127: 53.61268313 | Q127: 26.58160138 | R127: 40.50297246 | S127: 41.8279246 | T127: 65.75721667 | U127: 64.01827588 | BB127: Open defecation | BC127: 2158.287232 | BD127: 1834.822538 | BE127: 1406.518643 | BF127: 775.712405 | BG127: 334.705697 | BH127: 1385.622539 | BI127: 1116.904297 | BJ127: 698.370322 | BK127: 378.291617 | BL127: 175.987769 | BM127: 717.476092 | BN127: 675.472873 | BO127: 645.547806 | BP127: 478.71442 | BQ127: 237.65878 | BR127: 200.56624 | BS127: 3622.806044 | BT127: 1642.9963 | BU127: 1043.677931
A128: Shared among Improved Sanitation | B128: Yes | C128: 28.36325838 | D128: 21.00664637 | E128: 18.81212319 | F128: 14.21836048 | G128: 6.078859848 | H128: 25.60511401 | I128: 23.16554878 | J128: 16.50277453 | K128: 15.9591263 | L128: 3.150762957 | M128: 31.96519518 | N128: 19.30817994 | O128: 16.95523045 | P128: 13.96493422 | Q128: 10.34357405 | R128: 8.859421625 | S128: 15.93363839 | T128: 8.7087929 | U128: 9.851608585 | BA128: Shared among improved sanitation facilities | BB128: Yes | BC128: N/A | BD128: N/A | BE128: N/A | BF128: N/A | BG128: N/A | BH128: N/A | BI128: N/A | BJ128: N/A | BK128: N/A | BL128: N/A | BM128: N/A | BN128: N/A | BO128: N/A | BP128: N/A | BQ128: N/A | BR128: N/A | BS128: N/A | BT128: N/A | BU128: N/A
B129: No | C129: 71.63674162 | D129: 78.99335363 | E129: 81.18787681 | F129: 85.78163952 | G129: 93.92114015 | H129: 74.39488599 | I129: 76.83445122 | J129: 83.49722547 | K129: 84.0408737 | L129: 96.84923704 | M129: 68.03480482 | N129: 80.69182006 | O129: 83.04476955 | P129: 86.03506578 | Q129: 89.65642595 | R129: 91.14057837 | S129: 84.06636161 | T129: 91.2912071 | U129: 90.14839141 | BB129: No | BC129: N/A | BD129: N/A | BE129: N/A | BF129: N/A | BG129: N/A | BH129: N/A | BI129: N/A | BJ129: N/A | BK129: N/A | BL129: N/A | BM129: N/A | BN129: N/A | BO129: N/A | BP129: N/A | BQ129: N/A | BR129: N/A | BS129: N/A | BT129: N/A | BU129: N/A
A130: Manually calculated ratios | B130: Improved latrines
B131: Other
B132: Other
C133: NATIONAL wealth index quintile | H133: URBAN wealth index quintile | M133: RURAL wealth index quintile | R133: SUB-REGIONS: | BA133: Raw numbers of respondents: | BB133: Use of sanitation facilities | BC133: NATIONAL wealth index quintile | BH133: URBAN wealth index quintile | BM133: RURAL wealth index quintile | BR133: SUB-REGIONS:
A134: Percentage based on weighted population | C134: Poorest | D134: Poor | E134: Middle | F134: Rich | G134: Richest | H134: Poorest | I134: Poor | J134: Middle | K134: Rich | L134: Richest | M134: Poorest | N134: Poor | O134: Middle | P134: Rich | Q134: Richest | R134: RegiÃ£o Autonoma de Principe | S134: RegiÃ£o Centro Este | T134: RegiÃ£o Norte Oeste | U134: RegiÃ£o Sul Este | BA134: Sanitation data, raw numbers (weighted) | BC134: Poorest | BD134: Poor | BE134: Middle | BF134: Rich | BG134: Richest | BH134: Poorest | BI134: Poor | BJ134: Middle | BK134: Rich | BL134: Richest | BM134: Poorest | BN134: Poor | BO134: Middle | BP134: Rich | BQ134: Richest | BR134: RegiÃ£o Autonoma de Principe | BS134: RegiÃ£o Centro Este | BT134: RegiÃ£o Norte Oeste | BU134: RegiÃ£o Sul Este
A135: Sanitation type | B135: Sewer connection | C135: N/A | D135: N/A | E135: N/A | F135: N/A | G135: N/A | H135: N/A | I135: N/A | J135: N/A | K135: N/A | L135: N/A | M135: N/A | N135: N/A | O135: N/A | P135: N/A | Q135: N/A | R135: N/A | S135: N/A | T135: N/A | U135: N/A | BA135: Sanitation type | BB135: Sewer connection | BC135: N/A | BD135: N/A | BE135: N/A | BF135: N/A | BG135: N/A | BH135: N/A | BI135: N/A | BJ135: N/A | BK135: N/A | BL135: N/A | BM135: N/A | BN135: N/A | BO135: N/A | BP135: N/A | BQ135: N/A | BR135: N/A | BS135: N/A | BT135: N/A | BU135: N/A
B136: Septic tank connection | C136: N/A | D136: N/A | E136: N/A | F136: N/A | G136: N/A | H136: N/A | I136: N/A | J136: N/A | K136: N/A | L136: N/A | M136: N/A | N136: N/A | O136: N/A | P136: N/A | Q136: N/A | R136: N/A | S136: N/A | T136: N/A | U136: N/A | BB136: Septic tank connection | BC136: N/A | BD136: N/A | BE136: N/A | BF136: N/A | BG136: N/A | BH136: N/A | BI136: N/A | BJ136: N/A | BK136: N/A | BL136: N/A | BM136: N/A | BN136: N/A | BO136: N/A | BP136: N/A | BQ136: N/A | BR136: N/A | BS136: N/A | BT136: N/A | BU136: N/A
B137: Improved latrines | C137: N/A | D137: N/A | E137: N/A | F137: N/A | G137: N/A | H137: N/A | I137: N/A | J137: N/A | K137: N/A | L137: N/A | M137: N/A | N137: N/A | O137: N/A | P137: N/A | Q137: N/A | R137: N/A | S137: N/A | T137: N/A | U137: N/A | BB137: Improved latrines | BC137: N/A | BD137: N/A | BE137: N/A | BF137: N/A | BG137: N/A | BH137: N/A | BI137: N/A | BJ137: N/A | BK137: N/A | BL137: N/A | BM137: N/A | BN137: N/A | BO137: N/A | BP137: N/A | BQ137: N/A | BR137: N/A | BS137: N/A | BT137: N/A | BU137: N/A
B138: Unimproved facilities | C138: N/A | D138: N/A | E138: N/A | F138: N/A | G138: N/A | H138: N/A | I138: N/A | J138: N/A | K138: N/A | L138: N/A | M138: N/A | N138: N/A | O138: N/A | P138: N/A | Q138: N/A | R138: N/A | S138: N/A | T138: N/A | U138: N/A | BB138: Unimproved facilities | BC138: N/A | BD138: N/A | BE138: N/A | BF138: N/A | BG138: N/A | BH138: N/A | BI138: N/A | BJ138: N/A | BK138: N/A | BL138: N/A | BM138: N/A | BN138: N/A | BO138: N/A | BP138: N/A | BQ138: N/A | BR138: N/A | BS138: N/A | BT138: N/A | BU138: N/A
B139: Open defecation | C139: 80.22309376 | D139: 68.19797508 | E139: 52.28682829 | F139: 28.71987088 | G139: 12.47454884 | H139: 77.33298102 | I139: 62.29127554 | J139: 38.90208898 | K139: 21.10770893 | L139: 9.845356837 | M139: 79.85101634 | N139: 75.01025533 | O139: 71.82821721 | P139: 53.22367578 | Q139: 26.46680102 | R139: 40.50297246 | S139: 41.17296665 | T139: 65.45484007 | U139: 63.23159155 | BB139: Open defecation | BC139: N/A | BD139: N/A | BE139: N/A | BF139: N/A | BG139: N/A | BH139: N/A | BI139: N/A | BJ139: N/A | BK139: N/A | BL139: N/A | BM139: N/A | BN139: N/A | BO139: N/A | BP139: N/A | BQ139: N/A | BR139: N/A | BS139: N/A | BT139: N/A | BU139: N/A
A140: Septic tank emptying practices | B140: Not emptied/treated and disposed in situ | C140: N/A | D140: N/A | E140: N/A | F140: N/A | G140: N/A | H140: N/A | I140: N/A | J140: N/A | K140: N/A | L140: N/A | M140: N/A | N140: N/A | O140: N/A | P140: N/A | Q140: N/A | R140: N/A | S140: N/A | T140: N/A | U140: N/A | BA140: Septic tank emptying practices | BB140: Not emptied/treated and disposed in situ | BC140: N/A | BD140: N/A | BE140: N/A | BF140: N/A | BG140: N/A | BH140: N/A | BI140: N/A | BJ140: N/A | BK140: N/A | BL140: N/A | BM140: N/A | BN140: N/A | BO140: N/A | BP140: N/A | BQ140: N/A | BR140: N/A | BS140: N/A | BT140: N/A | BU140: N/A
B141: Emptied and buried on site | C141: N/A | D141: N/A | E141: N/A | F141: N/A | G141: N/A | H141: N/A | I141: N/A | J141: N/A | K141: N/A | L141: N/A | M141: N/A | N141: N/A | O141: N/A | P141: N/A | Q141: N/A | R141: N/A | S141: N/A | T141: N/A | U141: N/A | BB141: Emptied and buried on site | BC141: N/A | BD141: N/A | BE141: N/A | BF141: N/A | BG141: N/A | BH141: N/A | BI141: N/A | BJ141: N/A | BK141: N/A | BL141: N/A | BM141: N/A | BN141: N/A | BO141: N/A | BP141: N/A | BQ141: N/A | BR141: N/A | BS141: N/A | BT141: N/A | BU141: N/A
B142: Emptied and discharged locally | C142: N/A | D142: N/A | E142: N/A | F142: N/A | G142: N/A | H142: N/A | I142: N/A | J142: N/A | K142: N/A | L142: N/A | M142: N/A | N142: N/A | O142: N/A | P142: N/A | Q142: N/A | R142: N/A | S142: N/A | T142: N/A | U142: N/A | BB142: Emptied and discharged locally | BC142: N/A | BD142: N/A | BE142: N/A | BF142: N/A | BG142: N/A | BH142: N/A | BI142: N/A | BJ142: N/A | BK142: N/A | BL142: N/A | BM142: N/A | BN142: N/A | BO142: N/A | BP142: N/A | BQ142: N/A | BR142: N/A | BS142: N/A | BT142: N/A | BU142: N/A
B143: Emptied and removed offsite | C143: N/A | D143: N/A | E143: N/A | F143: N/A | G143: N/A | H143: N/A | I143: N/A | J143: N/A | K143: N/A | L143: N/A | M143: N/A | N143: N/A | O143: N/A | P143: N/A | Q143: N/A | R143: N/A | S143: N/A | T143: N/A | U143: N/A | BB143: Emptied and removed offsite | BC143: N/A | BD143: N/A | BE143: N/A | BF143: N/A | BG143: N/A | BH143: N/A | BI143: N/A | BJ143: N/A | BK143: N/A | BL143: N/A | BM143: N/A | BN143: N/A | BO143: N/A | BP143: N/A | BQ143: N/A | BR143: N/A | BS143: N/A | BT143: N/A | BU143: N/A
A144: Latrine emptying practices | B144: Not emptied/treated and disposed in situ | C144: N/A | D144: N/A | E144: N/A | F144: N/A | G144: N/A | H144: N/A | I144: N/A | J144: N/A | K144: N/A | L144: N/A | M144: N/A | N144: N/A | O144: N/A | P144: N/A | Q144: N/A | R144: N/A | S144: N/A | T144: N/A | U144: N/A | BA144: Latrine emptying practices | BB144: Not emptied/treated and disposed in situ | BC144: N/A | BD144: N/A | BE144: N/A | BF144: N/A | BG144: N/A | BH144: N/A | BI144: N/A | BJ144: N/A | BK144: N/A | BL144: N/A | BM144: N/A | BN144: N/A | BO144: N/A | BP144: N/A | BQ144: N/A | BR144: N/A | BS144: N/A | BT144: N/A | BU144: N/A
B145: Emptied and buried on site | C145: N/A | D145: N/A | E145: N/A | F145: N/A | G145: N/A | H145: N/A | I145: N/A | J145: N/A | K145: N/A | L145: N/A | M145: N/A | N145: N/A | O145: N/A | P145: N/A | Q145: N/A | R145: N/A | S145: N/A | T145: N/A | U145: N/A | BB145: Emptied and buried on site | BC145: N/A | BD145: N/A | BE145: N/A | BF145: N/A | BG145: N/A | BH145: N/A | BI145: N/A | BJ145: N/A | BK145: N/A | BL145: N/A | BM145: N/A | BN145: N/A | BO145: N/A | BP145: N/A | BQ145: N/A | BR145: N/A | BS145: N/A | BT145: N/A | BU145: N/A
B146: Emptied and discharged locally | C146: N/A | D146: N/A | E146: N/A | F146: N/A | G146: N/A | H146: N/A | I146: N/A | J146: N/A | K146: N/A | L146: N/A | M146: N/A | N146: N/A | O146: N/A | P146: N/A | Q146: N/A | R146: N/A | S146: N/A | T146: N/A | U146: N/A | BB146: Emptied and discharged locally | BC146: N/A | BD146: N/A | BE146: N/A | BF146: N/A | BG146: N/A | BH146: N/A | BI146: N/A | BJ146: N/A | BK146: N/A | BL146: N/A | BM146: N/A | BN146: N/A | BO146: N/A | BP146: N/A | BQ146: N/A | BR146: N/A | BS146: N/A | BT146: N/A | BU146: N/A
B147: Emptied and removed offsite | C147: N/A | D147: N/A | E147: N/A | F147: N/A | G147: N/A | H147: N/A | I147: N/A | J147: N/A | K147: N/A | L147: N/A | M147: N/A | N147: N/A | O147: N/A | P147: N/A | Q147: N/A | R147: N/A | S147: N/A | T147: N/A | U147: N/A | BB147: Emptied and removed offsite | BC147: N/A | BD147: N/A | BE147: N/A | BF147: N/A | BG147: N/A | BH147: N/A | BI147: N/A | BJ147: N/A | BK147: N/A | BL147: N/A | BM147: N/A | BN147: N/A | BO147: N/A | BP147: N/A | BQ147: N/A | BR147: N/A | BS147: N/A | BT147: N/A | BU147: N/A
A148: Shared among improved sanitation facilities | B148: Yes | C148: 5.055399799 | D148: 6.298124279 | E148: 8.656282886 | F148: 9.88615914 | G148: 5.033182119 | H148: 5.169133269 | I148: 8.125840535 | J148: 9.988284464 | K148: 12.11205055 | L148: 2.673327201 | M148: 5.756144196 | N148: 4.649664919 | O148: 4.623290124 | P148: 6.251494883 | Q148: 7.408104542 | R148: 5.108156697 | S148: 8.934155474 | T148: 2.848072953 | U148: 3.482203693 | BA148: Shared among improved sanitation facilities | BB148: Yes | BC148: N/A | BD148: N/A | BE148: N/A | BF148: N/A | BG148: N/A | BH148: N/A | BI148: N/A | BJ148: N/A | BK148: N/A | BL148: N/A | BM148: N/A | BN148: N/A | BO148: N/A | BP148: N/A | BQ148: N/A | BR148: N/A | BS148: N/A | BT148: N/A | BU148: N/A
B149: No | C149: 12.76836266 | D149: 23.68345474 | E149: 37.35810263 | F149: 59.64477698 | G149: 77.76494524 | H149: 15.01876071 | I149: 26.95142273 | J149: 50.53659543 | K149: 63.7821452 | L149: 82.17365233 | M149: 12.25139233 | N149: 19.43165675 | O149: 22.64434352 | P149: 38.51416448 | Q149: 64.21225131 | R149: 52.54974596 | S149: 47.13687649 | T149: 29.85534514 | U149: 31.86434568 | BB149: No | BC149: N/A | BD149: N/A | BE149: N/A | BF149: N/A | BG149: N/A | BH149: N/A | BI149: N/A | BJ149: N/A | BK149: N/A | BL149: N/A | BM149: N/A | BN149: N/A | BO149: N/A | BP149: N/A | BQ149: N/A | BR149: N/A | BS149: N/A | BT149: N/A | BU149: N/A
B150: DK/missing | C150: 82.17623754 | D150: 70.01842098 | E150: 53.98561449 | F150: 30.46906388 | G150: 17.20187264 | H150: 79.81210603 | I150: 64.92273673 | J150: 39.4751201 | K150: 24.10580425 | L150: 15.15302047 | M150: 81.99246348 | N150: 75.91867833 | O150: 72.73236635 | P150: 55.23434064 | Q150: 28.37964414 | R150: 42.34209734 | S150: 43.92896804 | T150: 67.29658191 | U150: 64.65345062 | BB150: DK/missing | BC150: N/A | BD150: N/A | BE150: N/A | BF150: N/A | BG150: N/A | BH150: N/A | BI150: N/A | BJ150: N/A | BK150: N/A | BL150: N/A | BM150: N/A | BN150: N/A | BO150: N/A | BP150: N/A | BQ150: N/A | BR150: N/A | BS150: N/A | BT150: N/A | BU150: N/A
A151: Shared among all sanitation facilities | B151: Yes | C151: 26.41186659 | D151: 19.86083671 | E151: 18.14233381 | F151: 13.97321975 | G151: 5.810787913 | H151: 23.16837894 | I151: 21.54896685 | J151: 16.53014883 | K151: 15.35264141 | L151: 3.05307121 | M151: 30.24922624 | N151: 18.60629222 | O151: 16.60259176 | P151: 13.36465613 | Q151: 10.07450328 | R151: 9.065831316 | S151: 15.25429718 | T151: 8.651447001 | U151: 9.470640258 | BA151: Shared among all sanitation facilities | BB151: Yes | BC151: N/A | BD151: N/A | BE151: N/A | BF151: N/A | BG151: N/A | BH151: N/A | BI151: N/A | BJ151: N/A | BK151: N/A | BL151: N/A | BM151: N/A | BN151: N/A | BO151: N/A | BP151: N/A | BQ151: N/A | BR151: N/A | BS151: N/A | BT151: N/A | BU151: N/A
